{"text_format":"1","workbook":"xlsx","n_sheets":10,"sheets":["Cover Page","READ ME","Effect Type&Measure-Resp Site","Unit Conversions - IR - BW","Data Entry","Calculator","References","Default BW IR-Formatted by age","Default BW IR-Formatted by LS","Index"],"not_rendered":{"charts":0,"images":1,"macros":1,"external_links":4,"defined_names":93,"comments":0,"pivot_tables":2},"unopened":[],"bounds":{"document_bytes":16777216,"sheet_cells":100000,"rows_first":2000,"rows_last":500,"rows_between":2000,"halvings":0,"cell_chars":16384,"cell_head_chars":4096},"cells_cut":0,"cells_raw":0,"read":"whole","date_system":"1900"}

{"sheet":"Cover Page","index":0,"n_rows":3,"n_cols":1,"rows_kept":3,"cut":false,"hidden":false,"merged":[]}
["Avian Hazard Value Calculator for 1,2-Dichloroethane"]
[]
["CASRN 107-06-2"]

{"sheet":"READ ME","index":1,"n_rows":188,"n_cols":8,"rows_kept":188,"cut":false,"hidden":false,"merged":[]}
["TRV Calculator Tool Notes/Instructions"]
["This spreadsheet tool is meant to be used in conjunction with EPA's Guidance for Developing Ecological Soil Screening Levels (OSWER Directive 92857-55), Attachments 4-3 and 4-5 (Eco-SSL Standard Operating Procedures [SOPs] # 4: Wildlife TRV Literature Review, Data Extraction and Coding and 6: Derivation of Wildlife Toxicity Reference Value [TRV])."]
["https://www.epa.gov/chemical-research/guidance-developing-ecological-soil-screening-levels"]
[]
["If body weight or ingestion rate (food or water) is not reported in a study, this tool will look up a default body weight based on the reported age or lifestage and/or will calculate an ingestion rate based on body weight and organism type."]
["This tool will also convert the NOAEL Dose and/or LOAEL Dose to units of mg/kg/day. However, it does allow for manually entry as well if that is preferred."]
["Manually Entered Fields"]
["Field","Notes/Instructions"]
["Effect Group","In previous spreadsheets this field was a sub-header within the table instead of a separate field. For this tool to work correctly this information needs to be provided for each row as a separate field."]
[null,"This tool is currently set up to graph the following effect groups:"]
[null,"Accumulation (ACC)",null,"Growth (GRO)",null,"Physiology (PHY)"]
[null,"Behavior (BEH)",null,"Pathology (PTH)",null,"Reproduction (REP)"]
[null,"Biochemical (BIO)",null,"Population (POP)",null,"Survival (SUR)"]
[null,"Please use the above terms to ensure that the tool functions properly (e.g., use \"Survival (SUR)\" instead of \"Mortality (MOR)\")."]
["Result #","After all data has been entered in this tab, sort the data based on the \"Endpoint Number\" field. Then, each row should be assigned a sequential number beginning with \"1\" in row 5."]
["Ref N. ","Each study should be assigned a unique reference number in this field. Note that studies with multiple end points, effect groups, species, etc. should have data entered on multiple rows and should have the same reference number assigned in this field."]
["Reference","The citation for the study that the data was extracted from should be entered in this field. "]
["Chemical Form","e.g., DDE and p,p’DDT, Cadmium chloride and Cadmium sulfate, etc."]
["MW%","% Molecular Weight (e.g., purity); If the exposure is reported as pure contaminant, the User enters the number 100. "]
[null,"For organic chemicals, the study should be reviewed for information on the purity of the tested material."]
[null,"Toxicological studies administer metals using compounds which contain various amounts of the metal by weight. Some studies report concentrations (or doses) as units of metal per amount of exposure medium (water or diet) (e.g., mg of Co per kg of diet), while others report concentrations (or doses) based on the compound used (e.g., mg of cobalt chloride per kg of diet). "]
[null,"For example, if the administered compound is cadmium chloride, then only 61.32 percent by weight was delivered as cadmium (based on the MW for cadmium chloride of 183.32 g/mol and the MW for cadmium of 112.41 g/mol)."]
["Test Species","This field should be populated with a more general species type (e.g., simplified common name) outside of the parentheses (the scientific name MUST be populated within parentheses to the right). The specific organism type should be populated in a different field. "]
[null,"Example: the Short-tailed vole (Microtus agrestis) should only have \"vole (Microtus agrestis)\" recorded in this field. "]
[null,"This tool is currently set up to calculate Ingestion rates for the following categories:"]
[null,"cat","duck","hamster","pheasant","rabbit","sparrow"]
[null,"cattle","eagle","horse","owl","rat","starling"]
[null,"chicken","finch","kestrel","pigeon","blackbird","turkey"]
[null,"dog","gerbil","mink","pig","sheep","vole"]
[null,"dove","guinea pig","mouse","quail","shrew"]
[null,"Please use the above terms if they apply to the study organism (e.g., use \"cattle\" instead of \"cow\")."]
["Specific Organism Type","This field should be populated with the Specific Organism type (e.g., strain). Some examples include \"Sprague-Dawley\" (rat), \"B6C3F1\" (mouse), \"Short-tailed\" (vole). If no Specific Organism Type is available, this field can be left blank/null or can be populated with \"unspecified\"."]
[null,"Column K in the Reference tab lists all Specific Organism Types that this tool supports."]
[null,"This field is used to pull in the default body weight of study organisms when the body weight is not reported."]
["Phase #","The study phase is the basic unit of experimental design for the Wildlife TRV Database. This field should be coded sequentially, starting at 1 for each study. "]
[null,"Multiple study phases are present if the study reports different results for any of the following parameters: "]
[null,"-test organism (different species /strain or lifestage)"]
[null,"-chemical form (e.g. DDE and p,p’DDT, Cadmium chloride and Cadmium sulfate, etc.)"]
[null,"-range of chemical doses or concentrations"]
[null,"-test location"]
[null,"-exposure type"]
[null,"-control type"]
[null,"-total number of doses"]
[null,"-application frequency"]
[null,"-basal diet type or route of exposure"]
["# of Conc/Doses","Number of concentrations or doses tested; The total number of different concentrations or doses administered to the test organism is entered\nfor the specific phase in the numeric field provided. The total number of concentrations (or doses) includes the control(s). "]
[null,"For example, for a study which has four exposure groups of 5, 10, 20, 50 mg/kg and a valid control, the number 5 would be entered. "]
[null,"A study must have at least two concentrations or doses (i.e., a valid control and one exposure group) to be used for derivation of Wildlife TRVs."]
["Conc/Doses","The test concentration is the amount of contaminant to which the test organism is exposed per unit of exposure medium (water, diet or other medium). The test dose is the amount of contaminant administered to the test organism per unit of body weight in a specified period of time."]
[null,"Doses are preferred over concentrations for the purpose of establishing a wildlife TRV, but they are not reported in many toxicological studies."]
[null,"If both dry and wet weight concentrations or doses are provided in the study, use the dry weight values, as this is the more conservative measurement."]
[null,"The User should enter either the reported exposure concentrations or doses, but not both, in the field. "]
[null,"The concentrations or doses are separated by a forward-slash in the text box provided. The control(s) should be included as the first in the series (e.g.: 0 / 5 / 10 / 20 / 50), and should always be zero."]
["Conc/Dose Units","The tool is set up to look for the following units - all others will report an error and will require manual calculation of Doses:"]
[null,"% in diet","g/kg diet","mg/g","mg/kg diet","mg/org/d","ug/g bw/d","ug/L"]
[null,"% in water","g/L","mg/g bw/d","mg/kg/bw/d","ng/g diet","ug/g diet","ug/org/d"]
[null,"% water","g/org/d","mg/g diet","mg/kg/d","ppm in mg/kg","ug/kg"]
[null,"g/d","g/org/day","mg/kg","mg/L","ppm in mg/L","ug/kg bw/d"]
[null,"g/kg bw/d","mg/d","mg/kg bw/d","mg/ml","ug/g","ug/kg diet"]
[null,"Units such as mg/kg bw and mg/org are not supported by this calculator tool. Conc/Doses reported in this type of format should be checked to confirm that it is in daily dosing. If this is true, then units such as mg/kg bw/d or mg/org/d can be used to auto-generate the NOAEL/LOAEL dose."]
[null,"See the 'Reference' tab for calculations done in this tool to convert doses from the above units to mg/kg/day."]
["Wet Weight Reported?","If the study reports that the dietary exposure concentrations are expressed on a wet weight basis, then the User should enter “Yes”. "]
[null,"If the dietary concentration units are reported as dry weight, enter \"No\"."]
[null,"If the dietary concentration units are not specified as wet weight or dry weight, enter \"NR\" for Not Reported. "]
[null,"Also enter “NR” if a drinking water, gavage or other oral study is being entered. "]
[null,"For studies where NR is entered, the entered results are assumed to be reported in dry weight and are not converted by the application. This is assumed to be conservative as conversion to dry-weight results in higher LOAEL and NOAEL dose values."]
["Percent Moisture","If the percent moisture in the exposure media is reported, the User enters the percent moisture in the numeric field provided."]
[null,"For example, if the percent moisture for laboratory rat chow is reported as 3 percent, the number 3 is entered. "]
[null,"The number 100 should be entered for drinking water studies. "]
["Application Frequency","The frequency of the exposure application should use the following codes:"]
[null,"ADL \n","Ad libitum; without limit or restraint"]
[null,"CON \n","Continual; non-pulsed"]
[null,"DLY ","Daily; dosing regime not specified"]
[null,"EOD ","Every other day"]
[null,"X ","Dosed x time(s) per study period; e.g. 1 time = 1X"]
[null,"X per h ","X times per hour"]
[null,"X per d ","X times per day"]
[null,"X per w ","X times per week"]
[null,"X per mo ","X times per month"]
[null,"NR ","Not Reported"]
["Method of Analysis","This field enables the User to indicate whether the tested concentrations (or doses) were quantified or if nominal (target) values are reported using the following codes:"]
[null,"M ","Measured; Exposure and/or observation concentrations or doses are verified by analytical methods and are reported as quantitative measured values."]
[null,"U","Unmeasured; Exposure and/or observation concentrations or doses are clearly identified as nominal values; or when the author does not report any information about whether the concentrations were measured or nominal, i.e. unmeasured is used as a default value when there is no information provided about the contaminant concentrations."]
[null,"UX","Unmeasured but Verified; Unmeasured exposure concentrations or doses are clearly identified as nominal values. The author reports that contaminant analysis was done to verify the nominal values, but analytical results are not reported in the article."]
["Route of Exposure","The method by which the contaminant is administered to the test organism."]
[null,"The following are special cases that might be encountered in coding exposure type and route:"]
[null,"FD","contaminant incorporated into the food"]
[null,"DR","contaminant incorporated into the drinking water"]
[null,"CH","choice of treated or untreated food or drinking water"]
[null,"GV","gavage"]
[null,"OR","other oral (e.g., capsule)"]
[null,"If the publication only indicates “diet” as an exposure, the User should choose “FD” (contaminant incorporated into the food) for the exposure route."]
["Exposure Duration","The exposure duration for a specific endpoint is entered in the numeric field provided."]
[null,"For example, if contaminant exposure lasts for ten weeks, the User enters the number 10."]
["Duration Units","Exposure duration units should be entered using the following codes:"]
[null,"s","second"]
[null,"mi","minute"]
[null,"h","hour"]
[null,"d","day"]
[null,"w","week"]
[null,"mo","month"]
[null,"yr","year"]
[null,"lf","lifetime"]
[null,"NR","Not Reported"]
["Age","When the age in a study is a range, please use a hyphen to separate the two values. For example, if the age is one to four years enter \"1-4\" in this field (excel formatting may require you to add ` before so it does not convert this value to a date)."]
["Age Units","Age units should be entered using the following codes:"]
[null,"s","second"]
[null,"mi","minute"]
[null,"h","hour"]
[null,"d","day"]
[null,"w","week"]
[null,"mo","month"]
[null,"yr","year"]
[null,"lf","lifetime"]
[null,"NR","Not Reported"]
["Lifestage","Use the following codes to indicate the lifestage of the test organism:"]
[null,"AD","adult"]
[null,"EG","egg"]
[null,"EM","embryo"]
[null,"IM","immature"]
[null,"JV","juvenile; includes yearling, fledgling, hatchling, weanling"]
[null,"LB","egg laying bird"]
[null,"MA","mature"]
[null,"NR","Not Reported"]
[null,"SA","subadult"]
[null,"SI","sexually immature"]
[null,"SM","sexually mature"]
[null,"YO","young"]
[null,"YY","young of year"]
[null,"GE","Gestational Exposures"]
[null,"LC","Lactation"]
[null,"If the lifestage is not specified, the User should refer to Table 20 of Attachment 4-3 or enter \"NR\" for Not Reported."]
["Sex","Use the following codes to indicate the sex of the test organism:"]
[null,"M","male"]
[null,"F","female"]
[null,"BH","Both male and female"]
[null,"NR","Not Reported"]
["Control Type","The effects of contaminant exposure are evaluated by comparing groups of exposed organisms to one or more groups of untreated organisms. These untreated organisms are designated as the controls."]
[null,"M","multiple valid controls"]
[null,"H","historic control (invalid; control data collected before exposure of treated organisms)"]
[null,"K","insufficient info on controls presented (invalid)"]
[null,"P","Positive control (invalid)"]
[null,"V","valid (carrier, vehicle or solvent control)"]
[null,"Z","no control (invalid)"]
[null,"B","baseline or background control (invalid)"]
[null,"C","concurrent control (valid)"]
[null,"NR","not reported (invalid)"]
["Test Location","Use the following codes to enter the appropriate location or setting in which the experiment is reported to be conducted:"]
[null,"FieldA","Field, Artifical"]
[null,"FieldN","Field, Natural"]
[null,"FieldU","Field - Unable to determine whether natural or artificial setting"]
[null,"Lab","Laboratory indoor setting"]
[null,"NR","Not Reported"]
["Endpoint Number","This field is used to sort results on the 'Data Entry' tab for use in generating the data plot figure (on the 'Figure' tab). The figure should be organized by General Effect Group in the following order:"]
[null,"Biochemical (BIO)"]
[null,"Behavior (BEH)"]
[null,"Physiology (PHY)"]
[null,"Pathology (PTH)"]
[null,"Reproduction (REP)"]
[null,"Growth (GRO)"]
[null,"Survival (SUR)"]
[null,"Data not used"]
[null,"For example, if a chemical has data entered for GRO, BEH, REP, SUR and Data not used, 1 would be entered in this field for all BEH records, 2 would be entered in this field for all REP records, 3 would be entered for all GRO records, 4 would be entered for all SUR records and 5 would be entered for all records classified as \"Data not used\""]
["Effect Type","See the 'Effect Type&Measure-Resp Site' tab for the appropriate codes for this field."]
["Effect Measure","See the 'Effect Type&Measure-Resp Site' tab for the appropriate codes for this field."]
["Response Site","The response site is the specific location (e.g., organ or tissue) where an effect is observed."]
[null,"The response site for mortality (MOR) or behavioral (BEH) effects is not applicable."]
[null,"See the 'Effect Type&Measure-Resp Site' tab for the appropriate codes for this field."]
["Study NOAEL","This field should NOT be adjusted for %MW. This adjustment is made when the Dose is calculated in the tool."]
["Study LOAEL","This field should NOT be adjusted for %MW. This adjustment is made when the Dose is calculated in the tool."]
["Reported Body Weight (kg)","If no body weight is reported in the study, please enter \"NR\"."]
["Reported Ingestion Rate (in kg or L/day)","If no ingestion rate is reported in the study, please enter \"NR\"."]
[]
["Auto-Generated Fields"]
["Field"]
["Application freq (d/w)","When 'Application frequency' field has units of \"per w\" reported, then the number of days is divided by 7 and applied as a factor to the dose calculations, all other units have a factor of 1 applied"]
["Lifestage","This field pulls from the manually entered \"Lifestage\" field: GE=adult, JV=juvenile, NR=adult"]
["Sex","This field pulls from the manually entered 'Sex' field: F = F, M = M, B = B, NR = B"]
["BW (kg)","This field pulls from the manually entered 'Reported Body Weight' field. If a body weight is reported it is pulled in, if \"NR\" is entered a default body weight is pulled in based on the test species, specific organism type, sex, and age/lifestage."]
[null,"When the age is reported as a range, the body weight value is based on the maximum age in that range."]
[]
["FIR (kg/day)","This field pulls from the manually entered 'Reported Ingestion Rate' field. If an ingestion rate is reported it is pulled in, if \"NR\" is entered a default ingestion rate is calculate based on the body weight in the  auto-generated 'BW (kg)' field."]
[]
["Error Messages"]
["BW Error Message","This Error Message will be triggered if a body weight is not reported and the test species, specific organism type, sex, and age/lifestage manually entered does not match an entry in Table 20 of Attachment 4-3 of the EcoSSL guidance. "]
[null,"The user will need to manually enter a body weight into column AX (cell[s] that needs manual entry will be highlighted in red)."]
["Unit Error Message","This Error Message will be triggered if the 'Conc/Dose Units' field is populated with a unit that is not supported by this tool (see a list of supported units beginning in Row 22 of this sheet)."]
[null,"The user will need to manually calculate the Dose in mg/kg/day and populate these values in column AY and/or AZ (cell[s] that needs manual entry will be highlighted in red)."]

{"sheet":"Effect Type&Measure-Resp Site","index":2,"n_rows":381,"n_cols":7,"rows_kept":381,"cut":false,"hidden":false,"merged":[]}
["Effect Type Codes, Effect Measure Codes and Definitions from Table 17 of Attachment 4-3 of the EcoSSL Guidance",null,null,null,null,"Response Site Codes from Table 18 of Attachment 4-3 of the EcoSSL Guidance"]
["Effect Group","Effect Type","Effect Measure Code","Effect Measure Definition",null,"Code","Response Site"]
["BEHAVIOR (BEH)","Avoidance Effect (AVO) ","CHEM","contaminant avoidance",null,"AG","Accessory Gland"]
["BEHAVIOR (BEH)","Avoidance Effect (AVO) ","FOOD","food avoidance",null,"AD","Adipose Tissue"]
["BEHAVIOR (BEH)","Avoidance Effect (AVO) ","STIM","stimulus avoidance",null,"AR","Adrenal Gland"]
["BEHAVIOR (BEH)","Avoidance Effect (AVO) ","WATR","water avoidance",null,"AS","Air Sac"]
["BEHAVIOR (BEH)","General Behavior (BEH)","ACTP","accuracy of learned behavior",null,"AL","Albumen (egg white)"]
["BEHAVIOR (BEH)","General Behavior (BEH)","ACTV","activity, general",null,"AT","Alimentary Tract"]
["BEHAVIOR (BEH)","General Behavior (BEH)","AGGT","aggression",null,"AF","Amniotic Fluid"]
["BEHAVIOR (BEH)","General Behavior (BEH)","AMBU","ambulatory/circadian rhythm",null,"AP","Appendages"]
["BEHAVIOR (BEH)","General Behavior (BEH)","EQUL","balance and equilibrium",null,"BI","Bile"]
["BEHAVIOR (BEH)","General Behavior (BEH)","GBHV","behavioral changes",null,"BL","Blood"]
["BEHAVIOR (BEH)","General Behavior (BEH)","LOCO","distance",null,"BV","Blood Vessel"]
["BEHAVIOR (BEH)","General Behavior (BEH)","DPLY","displaying behavior",null,"BO","Bone"]
["BEHAVIOR (BEH)","General Behavior (BEH)","DRMT","dormant, adverse condition",null,"BM","Bone Marrow"]
["BEHAVIOR (BEH)","General Behavior (BEH)","FRZG","freezing behavior",null,"BR","Brain"]
["BEHAVIOR (BEH)","General Behavior (BEH)","GBHV","general behavior",null,"BT","Breast"]
["BEHAVIOR (BEH)","General Behavior (BEH)","GPRD","general production",null,"BU","Bursa"]
["BEHAVIOR (BEH)","General Behavior (BEH)","INST","induced sleeping time",null,"CA","Cartilage"]
["BEHAVIOR (BEH)","General Behavior (BEH)","NMVM","number of movements",null,"CH","Cord, spinal"]
["BEHAVIOR (BEH)","General Behavior (BEH)","NVOC","number of vocalizations",null,"CL","Claw"]
["BEHAVIOR (BEH)","General Behavior (BEH)","RRSP","righting response",null,"CG","Cloacal gland"]
["BEHAVIOR (BEH)","General Behavior (BEH)","RSPT","response time to stimulus",null,"CO","Collagen"]
["BEHAVIOR (BEH)","General Behavior (BEH)","VCLF","visual cliff",null,"CR","Crop"]
["BEHAVIOR (BEH)","Feeding Behavior (FDB)","BGNB","begging behavior",null,"DG","Digestive Gland"]
["BEHAVIOR (BEH)","Feeding Behavior (FDB)","CAIN","caloric intake",null,"DT","Digestive Tract"]
["BEHAVIOR (BEH)","Feeding Behavior (FDB)","FCNS","food consumption",null,"EG","Egg"]
["BEHAVIOR (BEH)","Feeding Behavior (FDB)","FDNG","feeding behavior",null,"EU","Egg Cuticle"]
["BEHAVIOR (BEH)","Feeding Behavior (FDB)","FEFF","feeding efficiency",null,"EM","Embryo"]
["BEHAVIOR (BEH)","Feeding Behavior (FDB)","FSTR","food storage",null,"EN","Entrails"]
["BEHAVIOR (BEH)","Feeding Behavior (FDB)","FTIM","feeding time",null,"ER","Erythrocyte"]
["BEHAVIOR (BEH)","Feeding Behavior (FDB)","GFDB","general feeding behavior",null,"ES","Esophagus"]
["BEHAVIOR (BEH)","Feeding Behavior (FDB)","WCON","water consumption",null,"EY","Eye"]
["BIOCHEMISTRY (BIO)","Biochemical (CHM) ","5HAA","5-hydroxyindole acetic acid",null,"FE","Feathers"]
["BIOCHEMISTRY (BIO)","Biochemical (CHM) ","AABA","alpha-aminobutyric acid",null,"FM","Femur"]
["BIOCHEMISTRY (BIO)","Biochemical (CHM) ","ALAN","alanine",null,"FO","Foot"]
["BIOCHEMISTRY (BIO)","Biochemical (CHM) ","ALBM","albumins",null,"FT","Fetus"]
["BIOCHEMISTRY (BIO)","Biochemical (CHM) ","ALBE","albumen energy",null,"GB","Gall Bladder"]
["BIOCHEMISTRY (BIO)","Biochemical (CHM) ","AMAC","amino acids, general term",null,"GT","Gastrointestinal Tract"]
["BIOCHEMISTRY (BIO)","Biochemical (CHM) ","AMMO","ammonia",null,"GZ","Gizzard"]
["BIOCHEMISTRY (BIO)","Biochemical (CHM) ","AMNH","p-amino hippurate",null,"GO","Gonads"]
["BIOCHEMISTRY (BIO)","Biochemical (CHM) ","ANBC","aniline binding capability",null,"HA","Hair"]
["BIOCHEMISTRY (BIO)","Biochemical (CHM) ","ARGI","arginine",null,"HD","Head"]
["BIOCHEMISTRY (BIO)","Biochemical (CHM) ","ASCA","ascorbic acid",null,"HE","Heart"]
["BIOCHEMISTRY (BIO)","Biochemical (CHM) ","ASHC","ash content",null,"HM","Humerus"]
["BIOCHEMISTRY (BIO)","Biochemical (CHM) ","ASIS","amyloidosis",null,"HG","Harderian Gland"]
["BIOCHEMISTRY (BIO)","Biochemical (CHM) ","ASPA","aspartate",null,"HY","Hypothalamus"]
["BIOCHEMISTRY (BIO)","Biochemical (CHM) ","ATPT","adenosine triphosphate",null,"IN","Intestinal Tract"]
["BIOCHEMISTRY (BIO)","Biochemical (CHM) ","B2MG","beta2-microglobulin",null,"KI","Kidney"]
["BIOCHEMISTRY (BIO)","Biochemical (CHM) ","BASO","basophil",null,"LD","Lipid, Fat"]
["BIOCHEMISTRY (BIO)","Biochemical (CHM) ","BIOT","biotin content",null,"LG","Leg"]
["BIOCHEMISTRY (BIO)","Biochemical (CHM) ","BUNT","blood urea nitrogen",null,"LI","Liver"]
["BIOCHEMISTRY (BIO)","Biochemical (CHM) ","CALC","calcium",null,"LU","Lungs"]
["BIOCHEMISTRY (BIO)","Biochemical (CHM) ","CAPH","calcium/phosphorus ratio",null,"MM","Mammary Tissue"]
["BIOCHEMISTRY (BIO)","Biochemical (CHM) ","CCHG","cell changes",null,"MS","Mesenteric Lymph Node"]
["BIOCHEMISTRY (BIO)","Biochemical (CHM) ","CHLN","choline",null,"MC","Microsome"]
["BIOCHEMISTRY (BIO)","Biochemical (CHM) ","CHLR","chloride",null,"MK","Milk, lactating females"]
["BIOCHEMISTRY (BIO)","Biochemical (CHM) ","CHOL","cholesterol",null,"MT","Multiple Tissue/Organs"]
["BIOCHEMISTRY (BIO)","Biochemical (CHM) ","CREA","creatinine",null,"MU","Muscle"]
["BIOCHEMISTRY (BIO)","Biochemical (CHM) ","DISC","diethylsuccinate hydrolysis",null,"MB","Muscle+Bone"]
["BIOCHEMISTRY (BIO)","Biochemical (CHM) ","DTBL","direct bilirubin (conjugated)",null,"MO","Mucous"]
["BIOCHEMISTRY (BIO)","Biochemical (CHM) ","EOSN","eosinophil",null,"NG","Nasal Gland"]
["BIOCHEMISTRY (BIO)","Biochemical (CHM) ","ERTH","erythroblasts",null,"NE","Nervous Tissue"]
["BIOCHEMISTRY (BIO)","Biochemical (CHM) ","ESAA","amino acids, essential",null,"NK","Neck"]
["BIOCHEMISTRY (BIO)","Biochemical (CHM) ","FECO","iron content (do not code)",null,"NR","Not Reported"]
["BIOCHEMISTRY (BIO)","Biochemical (CHM) ","FEPR","free erythrocyte protoporphyrins",null,"OL","Olfactory"]
["BIOCHEMISTRY (BIO)","Biochemical (CHM) ","FFTA","fatty acids, free",null,"OV","Ovaries"]
["BIOCHEMISTRY (BIO)","Biochemical (CHM) ","GBCM","general biochemical",null,"OD","Oviduct"]
["BIOCHEMISTRY (BIO)","Biochemical (CHM) ","GLCN","glycine",null,"PS","Pancreas"]
["BIOCHEMISTRY (BIO)","Biochemical (CHM) ","GLTH","glutathione",null,"PE","Penis"]
["BIOCHEMISTRY (BIO)","Biochemical (CHM) ","GLUC","glucose",null,"PI","Pituitary Gland"]
["BIOCHEMISTRY (BIO)","Biochemical (CHM) ","GLYC","glycogen",null,"PC","Placenta"]
["BIOCHEMISTRY (BIO)","Biochemical (CHM) ","GMIN","glutamine",null,"PL","Plasma"]
["BIOCHEMISTRY (BIO)","Biochemical (CHM) ","HEME","heme content",null,"PG","Prostate Gland"]
["BIOCHEMISTRY (BIO)","Biochemical (CHM) ","HEMT","general hematology",null,"PR","Proventriculus"]
["BIOCHEMISTRY (BIO)","Biochemical (CHM) ","HIST","histidine",null,"PY","Progeny"]
["BIOCHEMISTRY (BIO)","Biochemical (CHM) ","HMCT","hematocrit (anemia)",null,"RC","Rectum"]
["BIOCHEMISTRY (BIO)","Biochemical (CHM) ","HMGL","hemoglobin",null,"RT","Reproductive Tissue"]
["BIOCHEMISTRY (BIO)","Biochemical (CHM) ","IBIL","indirect bilirubin (free)",null,"SV","Seminal Vesicle"]
["BIOCHEMISTRY (BIO)","Biochemical (CHM) ","ILEU","isoleucine",null,"SE","Sensory Organs"]
["BIOCHEMISTRY (BIO)","Biochemical (CHM) ","LACT","lactate",null,"SR","Serum"]
["BIOCHEMISTRY (BIO)","Biochemical (CHM) ","LCTA","lactic acid",null,"SN","Skeleton"]
["BIOCHEMISTRY (BIO)","Biochemical (CHM) ","LEUC","leucine",null,"SK","Skin, Epidermis"]
["BIOCHEMISTRY (BIO)","Biochemical (CHM) ","LEUK","leukocytes",null,"SG","Shell Gland"]
["BIOCHEMISTRY (BIO)","Biochemical (CHM) ","LIPD","lipid",null,"SL","Shell"]
["BIOCHEMISTRY (BIO)","Biochemical (CHM) ","LMPH","lymphocyte",null,"SM","Sperm"]
["BIOCHEMISTRY (BIO)","Biochemical (CHM) ","LPSA","lipid soluble antioxidants",null,"SP","Spleen"]
["BIOCHEMISTRY (BIO)","Biochemical (CHM) ","LYSI","lysine",null,"SH","Stomach"]
["BIOCHEMISTRY (BIO)","Biochemical (CHM) ","MCHC","mean corpuscular hemoglobin",null,"ST","Soft Tissue"]
["BIOCHEMISTRY (BIO)","Biochemical (CHM) ","MCPR","microsomal proteins",null,"SX","Submaxillary Gland"]
["BIOCHEMISTRY (BIO)","Biochemical (CHM) ","MCPV","mean corpuscular volume",null,"TA","Tail"]
["BIOCHEMISTRY (BIO)","Biochemical (CHM) ","METH","methionine",null,"TE","Testes"]
["BIOCHEMISTRY (BIO)","Biochemical (CHM) ","MONO","monocyte",null,"TG","Thigh muscle"]
["BIOCHEMISTRY (BIO)","Biochemical (CHM) ","NADP","nicatinamide-adenine dinucleotide phosphate, reduced",null,"TH","Teeth"]
["BIOCHEMISTRY (BIO)","Biochemical (CHM) ","NEAA","amino acids, nonessential",null,"TB","Tibia"]
["BIOCHEMISTRY (BIO)","Biochemical (CHM) ","NEFA","fatty acids, nonesterified",null,"TI","Tissue"]
["BIOCHEMISTRY (BIO)","Biochemical (CHM) ","NEUT","neutrophil",null,"TS","Thymus"]
["BIOCHEMISTRY (BIO)","Biochemical (CHM) ","ORNI","ornithine",null,"TY","Thyroid"]
["BIOCHEMISTRY (BIO)","Biochemical (CHM) ","OSRS","osmotic resistance/RBC",null,"UB","Urinary Bladder"]
["BIOCHEMISTRY (BIO)","Biochemical (CHM) ","PCLV","packed cell volume",null,"UR","Urine"]
["BIOCHEMISTRY (BIO)","Biochemical (CHM) ","PHPH","pH",null,"UT","Uterus"]
["BIOCHEMISTRY (BIO)","Biochemical (CHM) ","PHEN","phenylalanine",null,"VA","Vagina"]
["BIOCHEMISTRY (BIO)","Biochemical (CHM) ","PPHT","phosphate",null,"VD","Vas Deferens"]
["BIOCHEMISTRY (BIO)","Biochemical (CHM) ","PHSP","phosphatide phosphorus",null,"VE","Vertebra"]
["BIOCHEMISTRY (BIO)","Biochemical (CHM) ","PCON","phosphorus",null,"VI","Viscera"]
["BIOCHEMISTRY (BIO)","Biochemical (CHM) ","PHST","phospholipid content, total",null,"WI","Wings"]
["BIOCHEMISTRY (BIO)","Biochemical (CHM) ","PORP","porphyrin",null,"WO","Whole Organism"]
["BIOCHEMISTRY (BIO)","Biochemical (CHM) ","KCON","potassium",null,"YO","Yolk"]
["BIOCHEMISTRY (BIO)","Biochemical (CHM) ","PRTO","protoporphyrin",null,"XX","Temporary code, requires validation"]
["BIOCHEMISTRY (BIO)","Biochemical (CHM) ","PYRV","pyruvate"]
["BIOCHEMISTRY (BIO)","Biochemical (CHM) ","RGSH","reduced gluthione"]
["BIOCHEMISTRY (BIO)","Biochemical (CHM) ","NPSH","nonprotein sulfhydryl"]
["BIOCHEMISTRY (BIO)","Biochemical (CHM) ","RBCE","red blood cell"]
["BIOCHEMISTRY (BIO)","Biochemical (CHM) ","RBVL","relative blood volume (volume/100g body weight)"]
["BIOCHEMISTRY (BIO)","Biochemical (CHM) ","RETI","reticulocytes"]
["BIOCHEMISTRY (BIO)","Biochemical (CHM) ","SERI","serine"]
["BIOCHEMISTRY (BIO)","Biochemical (CHM) ","NACO","sodium"]
["BIOCHEMISTRY (BIO)","Biochemical (CHM) ","SOMC","somatomedin C"]
["BIOCHEMISTRY (BIO)","Biochemical (CHM) ","SPLO","splenocytes"]
["BIOCHEMISTRY (BIO)","Biochemical (CHM) ","SRTN","serotonin"]
["BIOCHEMISTRY (BIO)","Biochemical (CHM) ","TEAM","tetraethylammonium"]
["BIOCHEMISTRY (BIO)","Biochemical (CHM) ","TFAA","amino acids, total free"]
["BIOCHEMISTRY (BIO)","Biochemical (CHM) ","THBA","thiobarbituric acid"]
["BIOCHEMISTRY (BIO)","Biochemical (CHM) ","THIA","thiamine"]
["BIOCHEMISTRY (BIO)","Biochemical (CHM) ","THRE","threonine"]
["BIOCHEMISTRY (BIO)","Biochemical (CHM) ","THRM","thrombocytes"]
["BIOCHEMISTRY (BIO)","Biochemical (CHM) ","TLBL","bilirubin, total"]
["BIOCHEMISTRY (BIO)","Biochemical (CHM) ","PRTL","protein, total"]
["BIOCHEMISTRY (BIO)","Biochemical (CHM) ","TRIB","tributyrin"]
["BIOCHEMISTRY (BIO)","Biochemical (CHM) ","TRIG","triglycerides"]
["BIOCHEMISTRY (BIO)","Biochemical (CHM) ","TYRO","tyrosine"]
["BIOCHEMISTRY (BIO)","Biochemical (CHM) ","TRYP","tryptophan"]
["BIOCHEMISTRY (BIO)","Biochemical (CHM) ","TTAA","amino acids, total"]
["BIOCHEMISTRY (BIO)","Biochemical (CHM) ","TWBC","white blood cell count, total"]
["BIOCHEMISTRY (BIO)","Biochemical (CHM) ","UBWB","white blood cell, undifferentiated blasts"]
["BIOCHEMISTRY (BIO)","Biochemical (CHM) ","UREA","urea"]
["BIOCHEMISTRY (BIO)","Biochemical (CHM) ","URIC","uric acid"]
["BIOCHEMISTRY (BIO)","Biochemical (CHM) ","VALI","valine"]
["BIOCHEMISTRY (BIO)","Biochemical (CHM) ","VTD3","vitamin D3"]
["BIOCHEMISTRY (BIO)","Biochemical (CHM) ","VTMA","vitamin A"]
["BIOCHEMISTRY (BIO)","Biochemical (CHM) ","ZNPR","zinc protoporphyrin"]
["BIOCHEMISTRY (BIO)","Enzyme (ENZ)","20HB","2-OH biphenyl hydroxylase"]
["BIOCHEMISTRY (BIO)","Enzyme (ENZ)","40HB","4-OH biphenyl hydroxylase"]
["BIOCHEMISTRY (BIO)","Enzyme (ENZ)","450R","Cyt P450 reductase"]
["BIOCHEMISTRY (BIO)","Enzyme (ENZ)","DHYD","NADPH dehydrogenase"]
["BIOCHEMISTRY (BIO)","Enzyme (ENZ)","AATT","alanine aminotransferase"]
["BIOCHEMISTRY (BIO)","Enzyme (ENZ)","ACHE","acetylcholinesterase"]
["BIOCHEMISTRY (BIO)","Enzyme (ENZ)","ACPH","acid phosphatase"]
["BIOCHEMISTRY (BIO)","Enzyme (ENZ)","AEPX","aldrin epoxidase"]
["BIOCHEMISTRY (BIO)","Enzyme (ENZ)","AHHD","aryl hydrocarbon hydrolase"]
["BIOCHEMISTRY (BIO)","Enzyme (ENZ)","AHDX","aniline hydroxylase"]
["BIOCHEMISTRY (BIO)","Enzyme (ENZ)","ALAD","(delta) -aminolevulinic acid dehydrogenase"]
["BIOCHEMISTRY (BIO)","Enzyme (ENZ)","ALAS","(gamma) y-ALA synthetase"]
["BIOCHEMISTRY (BIO)","Enzyme (ENZ)","ALDO","aldolase"]
["BIOCHEMISTRY (BIO)","Enzyme (ENZ)","ALPH","alkaline phosphatase"]
["BIOCHEMISTRY (BIO)","Enzyme (ENZ)","ANAE","alpha naphthyl acetate esterase"]
["BIOCHEMISTRY (BIO)","Enzyme (ENZ)","APND","aminopyin n-demethylase"]
["BIOCHEMISTRY (BIO)","Enzyme (ENZ)","ATRP","alanine transpeptidase"]
["BIOCHEMISTRY (BIO)","Enzyme (ENZ)","ASAT","aspartate aminotransferase"]
["BIOCHEMISTRY (BIO)","Enzyme (ENZ)","BAPH","benzo(a)pyrene hydroxylase"]
["BIOCHEMISTRY (BIO)","Enzyme (ENZ)","BCHE","buterylcholinesterase"]
["BIOCHEMISTRY (BIO)","Enzyme (ENZ)","BCOD","butoxycoumurin O-dealkylase"]
["BIOCHEMISTRY (BIO)","Enzyme (ENZ)","BHXA","benzpyrene hydroxylase"]
["BIOCHEMISTRY (BIO)","Enzyme (ENZ)","BPND","benzphetamine-n-demethylase"]
["BIOCHEMISTRY (BIO)","Enzyme (ENZ)","BROD","benzylresorufin O-deethylase"]
["BIOCHEMISTRY (BIO)","Enzyme (ENZ)","CAAH","carbonic anhydrase"]
["BIOCHEMISTRY (BIO)","Enzyme (ENZ)","CACA","choline acetyltransferase"]
["BIOCHEMISTRY (BIO)","Enzyme (ENZ)","CATP","calcium ATPase"]
["BIOCHEMISTRY (BIO)","Enzyme (ENZ)","CYB5","cytochrome B-5"]
["BIOCHEMISTRY (BIO)","Enzyme (ENZ)","CCOX","cytochrome C-oxidase"]
["BIOCHEMISTRY (BIO)","Enzyme (ENZ)","CEST\\","cholinesterase"]
["BIOCHEMISTRY (BIO)","Enzyme (ENZ)","CRKI","creatine kinase"]
["BIOCHEMISTRY (BIO)","Enzyme (ENZ)","NCCR","NADPH cytochrome C reductase"]
["BIOCHEMISTRY (BIO)","Enzyme (ENZ)","EPHY","epoxide hydrase"]
["BIOCHEMISTRY (BIO)","Enzyme (ENZ)","ECOD","ethoxycoumurin O-deethylase"]
["BIOCHEMISTRY (BIO)","Enzyme (ENZ)","EROD","7-ethoxyresorufin O-deethylase"]
["BIOCHEMISTRY (BIO)","Enzyme (ENZ)","ESTE","esterase"]
["BIOCHEMISTRY (BIO)","Enzyme (ENZ)","FDPA","fructos-diphosphate aldolase"]
["BIOCHEMISTRY (BIO)","Enzyme (ENZ)","GENZ","general enzyme"]
["BIOCHEMISTRY (BIO)","Enzyme (ENZ)","G6PD","glucose-6-phosphate dehydrogenase"]
["BIOCHEMISTRY (BIO)","Enzyme (ENZ)","GGTR","(gamma) Y-glutamyltransferase"]
["BIOCHEMISTRY (BIO)","Enzyme (ENZ)","GLAD","glutamic acid dehydrogenase"]
["BIOCHEMISTRY (BIO)","Enzyme (ENZ)","GLPX","gluathione peroxidase"]
["BIOCHEMISTRY (BIO)","Enzyme (ENZ)","GLRE","gluthione reductase"]
["BIOCHEMISTRY (BIO)","Enzyme (ENZ)","GLTR","glucouronyl transferase"]
["BIOCHEMISTRY (BIO)","Enzyme (ENZ)","GOTR","glutamic-oxaloacetic transaminase"]
["BIOCHEMISTRY (BIO)","Enzyme (ENZ)","GPTR","glutamic pyruvic transaminase"]
["BIOCHEMISTRY (BIO)","Enzyme (ENZ)","GSTR","glutathione S-transferase"]
["BIOCHEMISTRY (BIO)","Enzyme (ENZ)","HXBH","hexobarbital hydroxylase"]
["BIOCHEMISTRY (BIO)","Enzyme (ENZ)","LADH","lactate dehydrogenase"]
["BIOCHEMISTRY (BIO)","Enzyme (ENZ)","LDMD","lactate dehydrogenase/malic dehydrogenase ratio"]
["BIOCHEMISTRY (BIO)","Enzyme (ENZ)","MADH","malic dehydrogenase"]
["BIOCHEMISTRY (BIO)","Enzyme (ENZ)","MCOD","methoxycoumarin O-dealkylase"]
["BIOCHEMISTRY (BIO)","Enzyme (ENZ)","MG6P","microsomal glucose 6-phosphatase"]
["BIOCHEMISTRY (BIO)","Enzyme (ENZ)","MAOA","mono amino oxidase"]
["BIOCHEMISTRY (BIO)","Enzyme (ENZ)","MGAT","magnesium ATPase"]
["BIOCHEMISTRY (BIO)","Enzyme (ENZ)","NKAT","sodium potassium ATPase"]
["BIOCHEMISTRY (BIO)","Enzyme (ENZ)","ORCT","ornithine carbamoyl transferase"]
["BIOCHEMISTRY (BIO)","Enzyme (ENZ)","P450","cytochrome P450 proteins"]
["BIOCHEMISTRY (BIO)","Enzyme (ENZ)","PBES","phenyl benzoate esterase"]
["BIOCHEMISTRY (BIO)","Enzyme (ENZ)","PBHD","pentobarbital hydroxylase"]
["BIOCHEMISTRY (BIO)","Enzyme (ENZ)","PCOD","propoxycoumarin O-dealkylase"]
["BIOCHEMISTRY (BIO)","Enzyme (ENZ)","PNAD","p-nitroanisole demethylase"]
["BIOCHEMISTRY (BIO)","Enzyme (ENZ)","PROD","pentylresorufin O-deethylase"]
["BIOCHEMISTRY (BIO)","Enzyme (ENZ)","SBDH","sorbitol dehydrogenase"]
["BIOCHEMISTRY (BIO)","Enzyme (ENZ)","SCDH","succinate dehydrogenase"]
["BIOCHEMISTRY (BIO)","Enzyme (ENZ)","SGOT","serum glutamate oxalo aetate transaminase"]
["BIOCHEMISTRY (BIO)","Enzyme (ENZ)","SGPT","serum glutamic pyruvic transaminase"]
["BIOCHEMISTRY (BIO)","Enzyme (ENZ)","THTR","thiotransferase"]
["BIOCHEMISTRY (BIO)","Enzyme (ENZ)","TRIE","triacetin esterase"]
["BIOCHEMISTRY (BIO)","Hormone (HRM)","ANDR","androgen"]
["BIOCHEMISTRY (BIO)","Hormone (HRM)","CORT","corticosterone"]
["BIOCHEMISTRY (BIO)","Hormone (HRM)","CRTS","cortisol"]
["BIOCHEMISTRY (BIO)","Hormone (HRM)","DOPA","dopamine"]
["BIOCHEMISTRY (BIO)","Hormone (HRM)","EPIN","epinephrine"]
["BIOCHEMISTRY (BIO)","Hormone (HRM)","ESDL","17-beta estradiol"]
["BIOCHEMISTRY (BIO)","Hormone (HRM)","ESTR","estrogen"]
["BIOCHEMISTRY (BIO)","Hormone (HRM)","FOSH","follicle stimulating hormone"]
["BIOCHEMISTRY (BIO)","Hormone (HRM)","GHRM","general hormone"]
["BIOCHEMISTRY (BIO)","Hormone (HRM)","GTHH","growth hormone"]
["BIOCHEMISTRY (BIO)","Hormone (HRM)","GHRM","hormone, changes in"]
["BIOCHEMISTRY (BIO)","Hormone (HRM)","LUTH","luteinizing hormone"]
["BIOCHEMISTRY (BIO)","Hormone (HRM)","NORE","norepinephrine"]
["BIOCHEMISTRY (BIO)","Hormone (HRM)","PRGS","progesterone"]
["BIOCHEMISTRY (BIO)","Hormone (HRM)","TSTR","testosterone"]
["BIOCHEMISTRY (BIO)","Hormone (HRM)","THYR","thyroxine"]
["BIOCHEMISTRY (BIO)","Hormone (HRM)","TRII","tridothyronine"]
["GROWTH (GRO)","Development (DVP)","EMDV","embryo development"]
["GROWTH (GRO)","Development (DVP)","FLDG","fledged/female or /brood"]
["GROWTH (GRO)","Development (DVP)","GDPV","general development"]
["GROWTH (GRO)","Development (DVP)","LRGN","limb regeneration"]
["GROWTH (GRO)","Development (DVP)","WEAN","weaned"]
["GROWTH (GRO)","Growth Effect (GRO)","BODL","body length changes - non-adult organisms only (see PTH GRS for adults)"]
["GROWTH (GRO)","Growth Effect (GRO)","BDWT","body weight changes - non-adult organisms only (see PTH GRS for adults)"]
["GROWTH (GRO)","Growth Effect (GRO)","GGRO","general growth"]
["GROWTH (GRO)","Morphology (MPH)","COSC","caudal ossification center"]
["GROWTH (GRO)","Morphology (MPH)","CRLT","crown-rump length"]
["GROWTH (GRO)","Morphology (MPH)","FRLT","feather length"]
["GROWTH (GRO)","Morphology (MPH)","GMPH","general morphological changes"]
["GROWTH (GRO)","Morphology (MPH)","HULT","humerus length"]
["GROWTH (GRO)","Morphology (MPH)","MOSC","metacarpal ossification center"]
["GROWTH (GRO)","Morphology (MPH)","MUSC","muscle changes"]
["GROWTH (GRO)","Morphology (MPH)","OVLT","oviduct length"]
["GROWTH (GRO)","Morphology (MPH)","RULT","radius-ulna length"]
["GROWTH (GRO)","Morphology (MPH)","SOSC","sternal ossification center"]
["GROWTH (GRO)","Morphology (MPH)","SRIB","supernumerary ribs"]
["GROWTH (GRO)","Morphology (MPH)","TRLT","tarsus length"]
["GROWTH (GRO)","Morphology (MPH)","TELT","testis length"]
["GROWTH (GRO)","Morphology (MPH)","TTLT","tibiotarsus length"]
["MORTALITY (MOR)","Mortality (MOR)","GMOR","general mortality"]
["MORTALITY (MOR)","Mortality (MOR)","LFSP","lifespan"]
["MORTALITY (MOR)","Mortality (MOR)","MDTH","mean time of death"]
["MORTALITY (MOR)","Mortality (MOR)","MORT","mortality"]
["MORTALITY (MOR)","Mortality (MOR)","SURV","survival"]
["MORTALITY (MOR)","Mortality (MOR)","TDTH","time to death"]
["MORTALITY (MOR)","Mortality (MOR)","TKNO","knockdown"]
["PATHOLOGY (PTH)","Gross Wasting (GRS)","BODL","body length changes - adult organisms only (see GRO GRO for non-adults (jv, ma, sm, etc.)"]
["PATHOLOGY (PTH)","Gross Wasting (GRS)","BDWT","body weight changes - adult organisms only (see GRO GRO for non-adults (jv, ma, sm, etc.)"]
["PATHOLOGY (PTH)","Organ Weight (ORW)","ORWT","organ weight changes"]
["PATHOLOGY (PTH)","Organ Weight (ORW)","SMIX","organ weight in relationship to body weight"]
["PATHOLOGY (PTH)","Histology (HIS)","ARTS","arteriosclerosis"]
["PATHOLOGY (PTH)","Histology (HIS)","CTYP","percent cell type"]
["PATHOLOGY (PTH)","Histology (HIS)","EDMA","edema"]
["PATHOLOGY (PTH)","Histology (HIS)","ENCP","encephalopathy"]
["PATHOLOGY (PTH)","Histology (HIS)","GHIS","histological changes, general"]
["PATHOLOGY (PTH)","Histology (HIS)","GLBM","glomerular basement membrane"]
["PATHOLOGY (PTH)","Histology (HIS)","GLSN","gross lesions"]
["PATHOLOGY (PTH)","Histology (HIS)","HEMR","hemorrhage"]
["PATHOLOGY (PTH)","Histology (HIS)","HYPL","hyperplasia"]
["PATHOLOGY (PTH)","Histology (HIS)","IIBD","intranuclear inclusion bodies"]
["PATHOLOGY (PTH)","Histology (HIS)","NCRO","necrosis"]
["PATHOLOGY (PTH)","Histology (HIS)","NPHR","nephrosis"]
["PATHOLOGY (PTH)","Histology (HIS)","TFLR","tissue fluorescence in UV light"]
["PATHOLOGY (PTH)","Histology (HIS)","USTR","ultrastructural changes"]
["PATHOLOGY (PTH)","Intoxication (ITX)","ANOR","anorexia"]
["PATHOLOGY (PTH)","Intoxication (ITX)","ATAX","ataxia"]
["PATHOLOGY (PTH)","Intoxication (ITX)","CONV","convulsions"]
["PATHOLOGY (PTH)","Intoxication (ITX)","GITX","general intoxication"]
["PATHOLOGY (PTH)","Intoxication (ITX)","IMBL","immobile"]
["PATHOLOGY (PTH)","Intoxication (ITX)","INCO","incoordination"]
["PATHOLOGY (PTH)","Intoxication (ITX)","GITX","intoxication, general"]
["PATHOLOGY (PTH)","Intoxication (ITX)","PARL","paralysis"]
["PATHOLOGY (PTH)","Intoxication (ITX)","TINT","time to signs of intoxication"]
["PATHOLOGY (PTH)","Intoxication (ITX)","TREM","tremors"]
["POPULATION (POP)","Population (POP)","PBMS","biomass or weight for total population"]
["POPULATION (POP)","Population (POP)","DVRS","diversity and evenness"]
["POPULATION (POP)","Population (POP)","GPOP","general population effect"]
["POPULATION (POP)","Population (POP)","INDX","index to population size, count, number"]
["POPULATION (POP)","Population (POP)","ABND","number of animals/population and population density (N/area)"]
["POPULATION (POP)","Population (POP)","NCHG","population change (change in N/change in time)"]
["POPULATION (POP)","Population (POP)","RCPR","recapture ratio"]
["POPULATION (POP)","Population (POP)","SEXR","sex ratio"]
["POPULATION (POP)","Population (POP)","TRAP","trappability"]
["PHYSIOLOGY (PHY)","Physiology (PHY)","ADPO","oxidative phosphorylation"]
["PHYSIOLOGY (PHY)","Physiology (PHY)","BLPR","blood pressure"]
["PHYSIOLOGY (PHY)","Physiology (PHY)","BTMP","body temperature"]
["PHYSIOLOGY (PHY)","Physiology (PHY)","CRDY","crop dysfunction"]
["PHYSIOLOGY (PHY)","Physiology (PHY)","DIFD","digestibility of food"]
["PHYSIOLOGY (PHY)","Physiology (PHY)","BDVL","blood volume"]
["PHYSIOLOGY (PHY)","Physiology (PHY)","EECG","electroencephalogram"]
["PHYSIOLOGY (PHY)","Physiology (PHY)","EXCR","excretion rate"]
["PHYSIOLOGY (PHY)","Physiology (PHY)","FDCV","food conversion efficiency"]
["PHYSIOLOGY (PHY)","Physiology (PHY)","GPHY","general physiology"]
["PHYSIOLOGY (PHY)","Physiology (PHY)","GLFR","glomular filtration rate"]
["PHYSIOLOGY (PHY)","Physiology (PHY)","HTRT","heart rate"]
["PHYSIOLOGY (PHY)","Physiology (PHY)","HYDR","hydration"]
["PHYSIOLOGY (PHY)","Physiology (PHY)","NRGM","metabolizable energy"]
["PHYSIOLOGY (PHY)","Physiology (PHY)","META","metabolic rate"]
["PHYSIOLOGY (PHY)","Physiology (PHY)","RPRT","respiratory rate"]
["PHYSIOLOGY (PHY)","Physiology (PHY)","OSMO","serum/plasma osmolality"]
["PHYSIOLOGY (PHY)","Physiology (PHY)","PRIN","PR intervals"]
["PHYSIOLOGY (PHY)","Physiology (PHY)","IRRI","skin irritation"]
["PHYSIOLOGY (PHY)","Physiology (PHY)","THRG","thermoregulation"]
["PHYSIOLOGY (PHY)","Physiology (PHY)","PROT","Prothrombin time"]
["REPRODUCTION (REP)","Reproduction (REP)","ABNM","abnormal"]
["REPRODUCTION (REP)","Reproduction (REP)","BEFF","breeding efficiency"]
["REPRODUCTION (REP)","Reproduction (REP)","BNDG","pair bonding nesting behavior"]
["REPRODUCTION (REP)","Reproduction (REP)","COUR","courtship behavior"]
["REPRODUCTION (REP)","Reproduction (REP)","CYNG","care of young, nest attentiveness"]
["REPRODUCTION (REP)","Reproduction (REP)","DEYO","death of young"]
["REPRODUCTION (REP)","Reproduction (REP)","EGPN","eggs per nest"]
["REPRODUCTION (REP)","Reproduction (REP)","FERT","fertility"]
["REPRODUCTION (REP)","Reproduction (REP)","GREP","general reproduction"]
["REPRODUCTION (REP)","Reproduction (REP)","GIDX","gestation index"]
["REPRODUCTION (REP)","Reproduction (REP)","GSTT","gestation time"]
["REPRODUCTION (REP)","Reproduction (REP)","HTCH","hatch"]
["REPRODUCTION (REP)","Reproduction (REP)","LACG","lactating"]
["REPRODUCTION (REP)","Reproduction (REP)","NANT","nests abandoned"]
["REPRODUCTION (REP)","Reproduction (REP)","NCLU","corpus lutea, number of"]
["REPRODUCTION (REP)","Reproduction (REP)","NDAY","number of days between eggs laid"]
["REPRODUCTION (REP)","Reproduction (REP)","NINC","number of nests incubated"]
["REPRODUCTION (REP)","Reproduction (REP)","NOPN","number of organisms per nest"]
["REPRODUCTION (REP)","Reproduction (REP)","NSNT","successful nests"]
["REPRODUCTION (REP)","Reproduction (REP)","NSTI","nest initiation"]
["REPRODUCTION (REP)","Reproduction (REP)","NSTS","number of active nests"]
["REPRODUCTION (REP)","Reproduction (REP)","NTSZ","nest size"]
["REPRODUCTION (REP)","Reproduction (REP)","NUNT","unsuccessful nests"]
["REPRODUCTION (REP)","Reproduction (REP)","OBRD","open brood"]
["REPRODUCTION (REP)","Reproduction (REP)","ODVP","offspring development"]
["REPRODUCTION (REP)","Reproduction (REP)","OEGP","onset of egg production"]
["REPRODUCTION (REP)","Reproduction (REP)","OHIS","offspring histology"]
["REPRODUCTION (REP)","Reproduction (REP)","ORWT","reproductive organ weight"]
["REPRODUCTION (REP)","Reproduction (REP)","OTHR","other; use this to code any effects (pathology, biochemistry, etc.) reported in offspring of contaminant-exposed mothers"]
["REPRODUCTION (REP)","Reproduction (REP)","OVRT","ovulation rate"]
["REPRODUCTION (REP)","Reproduction (REP)","PBEH","progeny behavior"]
["REPRODUCTION (REP)","Reproduction (REP)","PIPD","pipped"]
["REPRODUCTION (REP)","Reproduction (REP)","PLBR","pairs with litter or brood"]
["REPRODUCTION (REP)","Reproduction (REP)","PRFM","pregnant females in a population"]
["REPRODUCTION (REP)","Reproduction (REP)","PROG","progeny counts/numbers"]
["REPRODUCTION (REP)","Reproduction (REP)","PRWT","progeny weight (TBWT, LTWT)"]
["REPRODUCTION (REP)","Reproduction (REP)","PVOP","premature or delayed vaginal opening"]
["REPRODUCTION (REP)","Reproduction (REP)","RBEH","reproductive behavior changes"]
["REPRODUCTION (REP)","Reproduction (REP)","SBRD","sealed brood"]
["REPRODUCTION (REP)","Reproduction (REP)","RHIS","reproductive organ histology"]
["REPRODUCTION (REP)","Reproduction (REP)","RPRD","reproductive capacity"]
["REPRODUCTION (REP)","Reproduction (REP)","RSEM","resorbed embryos"]
["REPRODUCTION (REP)","Reproduction (REP)","RSUC","reproductive success (general)"]
["REPRODUCTION (REP)","Reproduction (REP)","SPCL","sperm cell counts"]
["REPRODUCTION (REP)","Reproduction (REP)","SPCV","sperm cell viability"]
["REPRODUCTION (REP)","Reproduction (REP)","TEDG","testes degeneration"]
["REPRODUCTION (REP)","Reproduction (REP)","TERA","teratogenic measurements"]
["REPRODUCTION (REP)","Reproduction (REP)","TEWT","testes weight"]
["REPRODUCTION (REP)","Reproduction (REP)","TPRD","total production"]
["REPRODUCTION (REP)","EGG (EGG)","ALWT","albumen weight"]
["REPRODUCTION (REP)","EGG (EGG)","CRAK","cracked eggs"]
["REPRODUCTION (REP)","EGG (EGG)","EGVL","egg volume"]
["REPRODUCTION (REP)","EGG (EGG)","EGWT","egg weight"]
["REPRODUCTION (REP)","EGG (EGG)","EQUA","egg quality"]
["REPRODUCTION (REP)","EGG (EGG)","ESIN","eggshell index"]
["REPRODUCTION (REP)","EGG (EGG)","ESLT","eggshell length"]
["REPRODUCTION (REP)","EGG (EGG)","ESQU","eggshell quality"]
["REPRODUCTION (REP)","EGG (EGG)","ESTH","eggshell thickness"]
["REPRODUCTION (REP)","EGG (EGG)","ESWD","eggshell width"]
["REPRODUCTION (REP)","EGG (EGG)","ESWT","eggshell weight"]
["REPRODUCTION (REP)","EGG (EGG)","FTEG","fertile egg"]
["REPRODUCTION (REP)","EGG (EGG)","GEGG","general egg effects"]
["REPRODUCTION (REP)","EGG (EGG)","SHLL","percent shell"]
["REPRODUCTION (REP)","EGG (EGG)","SHSZ","shell size"]
["REPRODUCTION (REP)","EGG (EGG)","SFYK","soft yolk"]
["REPRODUCTION (REP)","EGG (EGG)","YOLK","yolk, percent"]
["REPRODUCTION (REP)","EGG (EGG)","YKWT","yolk weight"]

{"sheet":"Unit Conversions - IR - BW","index":3,"n_rows":291,"n_cols":19,"rows_kept":291,"cut":false,"hidden":false,"merged":[[286,9,286,18],[287,9,287,18],[288,9,288,18],[289,9,289,18],[290,9,290,18],[280,9,280,18],[281,9,281,18],[282,9,282,18],[283,9,283,18],[284,9,284,18],[285,9,285,18],[274,9,274,18],[275,9,275,18],[276,9,276,18],[277,9,277,18],[278,9,278,18],[279,9,279,18],[265,9,268,9],[266,10,268,10],[270,9,270,18],[271,9,271,18],[272,9,272,18],[273,9,273,18],[203,9,204,9],[203,10,204,10],[206,9,207,9],[206,10,207,10],[208,9,264,9],[208,10,264,10],[188,9,189,9],[188,10,189,10],[190,9,202,9],[191,10,195,10],[196,10,198,10],[199,10,200,10],[201,10,202,10],[152,9,187,9],[152,10,157,10],[158,10,163,10],[164,10,169,10],[170,10,175,10],[176,10,181,10],[182,10,187,10],[126,9,135,9],[127,10,135,10],[136,9,145,9],[136,10,140,10],[141,10,145,10],[146,9,151,9],[146,10,151,10],[120,9,121,9],[120,10,121,10],[122,9,123,9],[122,10,123,10],[124,9,125,9],[124,10,125,10],[94,9,95,9],[94,10,95,10],[96,9,99,9],[100,9,119,9],[100,10,105,10],[106,10,111,10],[112,10,113,10],[114,10,119,10],[72,9,89,9],[72,10,77,10],[78,10,83,10],[84,10,89,10],[90,9,93,9],[90,10,93,10],[59,3,61,7],[60,9,65,9],[60,10,65,10],[62,3,63,7],[66,9,71,9],[66,10,71,10],[37,9,56,9],[37,10,40,10],[41,10,56,10],[53,3,54,7],[55,3,56,7],[57,3,58,7],[57,9,58,9],[57,10,58,10],[18,9,25,9],[18,10,23,10],[24,10,25,10],[26,9,30,9],[26,10,30,10],[31,9,36,9],[31,10,36,10],[0,0,0,1],[0,3,0,7],[2,3,4,7],[2,9,7,9],[2,10,7,10],[8,9,17,9],[8,10,9,10],[11,3,14,7],[13,10,17,10],[15,3,15,7]]}
["Unit Conversions",null,null,"Ingestion Rate Calculations",null,null,null,null,null,"Body Weight Values from Table 20 of Attachment 4-3 of the EcoSSL Guidance"]
["Dose Unit from Study","NOAEL or LOAEL conversion to mg/kg/day",null,"Water:",null,null,null,null,null,"General Organism Type","Specific Organism Type","Sex in Table 20","Sex Assigned in Calculator Toola","Lifestage in Table 20","Lifestage Assigned/Used in Calculator Tool","Age in Table 20","Age in Days (for use in Calculator Tool)","Default BW in Table 20 (kg)","Default BW Reference in Table 20"]
["ug/org/d","Study NOAEL or LOAEL Dose(ug/org/d) * 1mg/1000ug * MW(%)/100% * 1/BW(kg)",null,"Water ingestion rates were calculated using the allometric equations from Calder Braun (1983). These equations are based on measured mean body weights and ingestion rates.",null,null,null,null,null,"cat","unspecified","M","M/B","juvenile",null,"weaning to 90 days","28 - 89",1.72,"USEPA, 1987"]
["mg/kg bw/d","Study NOAEL or LOAEL Dose(mg/kg bw/d) * MW(%)/100%",null,null,null,null,null,null,null,null,null,"M","M/B","sexually mature","Juvenile","90 days to 1 year","90 -364",3.66,"USEPA, 1987"]
["mg/kg/bw/d","Study NOAEL or LOAEL Dose(mg/kg/bw/d) * MW(%)/100%",null,null,null,null,null,null,null,null,null,"M","M/B","adult","Adult","1 year or older","≥365",4,"USEPA, 1987"]
["mg/kg/d","Study NOAEL or LOAEL Dose(mg/kg/d) * MW(%)/100%",null,"Bird - ","WIR = 0.059 * BW0.67",null,null,null,null,null,null,"F","F","juvenile",null,"weaning to 90 days","56 - 89",1.49,"USEPA, 1987"]
["ug/g bw/d","Study NOAEL or LOAEL Dose(ug/g bw/d) * MW(%)/100%",null,"Mammal - ","WIR = 0.099 *  BW0.9",null,null,null,null,null,null,"F","F","sexually mature","Juvenile","90 days to 1 year","90 - 364",2.96,"USEPA, 1987"]
["mg/org/d","Study NOAEL or LOAEL Dose(mg/org/d) * 1/BW(kg) * MW(%)/100%",null,null,"BW = body weight in kg",null,null,null,null,null,null,"F","F","adult","Adult","1 year or older","≥365",3.1,"USEPA, 1987"]
["mg/d","Study NOAEL or LOAEL Dose(mg/d) * 1/BW(kg) * MW(%)/100%",null,null,"WIR = water ingestion rate in L/day",null,null,null,null,"cattle","Beef","BH","M/F/B","juvenile","Juvenile","weaning","140 - 180",220,"Jurgens, 1972"]
["mg/kg diet","Study NOAEL or LOAEL Dose(mg/kg diet) * MW(%)/100% * FIR(kg/day) * 1/BW(kg) ",null,null,null,null,null,null,null,null,null,"BH","M/F/B","adult","Adult","> 1 year",">365",454,"Jurgens, 1972"]
["mg/L","Study NOAEL or LOAEL Dose(mg/L) * MW(%)/100% * WIR(L/day) * 1/BW(kg) ",null,"Food:",null,null,null,null,null,null,"Fresian","F","F","juvenile","Juvenile","10 months","300 - 331",99,"Maro et al., 1980"]
["ppm in mg/kg","Study NOAEL or LOAEL Dose(ppm in mg/kg) * MW(%)/100% * FIR(kg/day) *1/BW(kg) ",null,"Food ingestion rates were calculated using the allometric equations from Nagy (2001). These equations are based on measured mean body weights and ingestion rates.",null,null,null,null,null,null,"Holstein","F","F","Adult","Adult","Lactating, 58 months","≥1740",680,"NRC (2001)"]
["mg/kg","Study NOAEL or LOAEL Dose(mg/kg) * MW(%)/100% * FIR(kg/day) * 1/BW(kg) ",null,null,null,null,null,null,null,null,"Jersey","F","F","Adult","Adult","Lactating, 58 months","≥1740",454,"NRC (2001)"]
["ug/g diet","Study NOAEL or LOAEL Dose(ug/g diet) * MW(%)/100% * FIR(kg/day) * 1/ BW(kg) ",null,null,null,null,null,null,null,null,"unspecified","BH","M/F/B","juvenile",null,"3 to 7 days","3-7",67,"USEPA, 2005"]
["ug/g","Study NOAEL or LOAEL Dose(ug/g) * MW(%)/100% * FIR(kg/day) * 1/BW(kg) ",null,null,null,null,null,null,null,null,null,"BH","M/F/B","juvenile",null,"6 to 8 weeks","42 - 56",119,"USEPA, 2005"]
["ppm in mg/L","Study NOAEL or LOAEL Dose(ppm in mg/L) * MW(%)/100% * WIR(L/day) * 1/BW(kg) ",null,"FIR = (a * (BW*1000)b) / 1000",null,null,null,null,null,null,null,"BH","M/F/B","juvenile",null,"8 to 10 weeks","56 - 77",137,"USEPA, 2005"]
["mg/ml","Study NOAEL or LOAEL Dose(mg/ml) * 1000ml/1L * MW(%)/100% *WIR(L/day) * 1/BW(kg) ",null,"a = organism specific, see table below",null,null,null,null,null,null,null,"BH","M/F/B","juvenile",null,"13 to 16 weeks","91 - 119",198,"USEPA, 2005"]
["mg/g","Study NOAEL or LOAEL Dose(mg/g) * 1000g/1kg * MW(%)/100% * FIR(kg/day) * 1/BW(kg) ",null,"BW = body weight in kg",null,null,null,null,null,null,null,"BH","M/F/B","juvenile","Juvenile","22 to 51 weeks","154 - 364",260,"USEPA, 2005"]
["g/L","Study NOAEL or LOAEL Dose(g/L) * 1000mg/1g * MW(%)/100% * WIR(L/day) * 1/BW(kg) ",null,"b = organism specific, see table below",null,null,null,null,null,"chicken","domestic","BH","M/F/B","juvenile",null,"1 day",1,3.9699999999999999E-2,"Diaz et al 1994"]
["g/kg diet","Study NOAEL or LOAEL Dose(g/kg diet) * 1000mg/1g * MW(%)/100% *FIR(kg/day) * 1/BW(kg) ",null,"FIR = food ingestion rate in kg per day",null,null,null,null,null,null,null,"BH","M/F/B","juvenile",null,"3 days",3,5.4300000000000001E-2,"Franson and Custer, 1982"]
["mg/g diet","Study NOAEL or LOAEL Dose(mg/g diet) * 1000g/1kg * MW(%)/100% *FIR(kg/day) * 1/BW(kg) ",null,"General Organism Type","Nagy 2001 Group","Notes","a","b",null,null,null,"BH","M/F/B","juvenile",null,"7 days",7,8.4000000000000005E-2,"Southern and Baker, 1981"]
["% in diet","Study NOAEL or LOAEL Dose(% in diet) * 10000mg/kg * MW(%)/100% * FIR(kg/day) * 1/BW(kg) ",null,"cat","Carnivora",null,0.34799999999999998,0.85899999999999999,null,null,null,"BH","M/F/B","juvenile",null,"14 days",14,0.32800000000000001,"Southern and Baker, 1981"]
["% in water","Study NOAEL or LOAEL Dose(% in water)* 10000ml/L * MW(%)/100% * WIR(L/day) * 1/BW(kg) ",null,"cattle","Herbivores",null,2.6059999999999999,0.628,null,null,null,"BH","M/F/B","juvenile",null,"20 days",20,0.56399999999999995,"Donaldson and McGowan, 1989"]
["% water","Study NOAEL or LOAEL Dose(% water)* 10000ml/L * MW(%)/100% * WIR(L/day) * 1/BW(kg) ",null,"chicken","All birds ","A",2.0649999999999999,0.68899999999999995,null,null,null,"BH","M/F/B","juvenile","Juvenile","28 days",28,1.042,"Diaz et al., 1994"]
["ug/kg bw/d","Study NOAEL or LOAEL Dose(ug/kg bw/d) * 1mg/1000ug * MW(%)/100% ",null,"dog","Carnivora",null,0.34799999999999998,0.85899999999999999,null,null,"unspecified","M","M","adult","Adult","Older than 30 days",">30",1.3,"Donaldson and McGowan, 1989"]
["g/kg bw/d","Study NOAEL or LOAEL Dose(g/kg bw/d) * 1000mg/1g * MW(%)/100% ",null,"dove","All birds ","B",2.0649999999999999,0.68899999999999995,null,null,null,"F","F/B","adult","Adult","Older than 30 days",">30",1.6,"Donaldson and McGowan, 1989"]
["mg/g bw/d","Study NOAEL or LOAEL Dose(mg/g bw/d) * 1000g/1kg * MW(%)/100% ",null,"duck","Omnivorous birds",null,2.0939999999999999,0.627,null,"dog","unspecified","M","M/B","juvenile",null,"weaning to 90 days","21 - 89",2.4,"USEPA, 1987"]
["g/d","Study NOAEL or LOAEL Dose(g/d) * 1000mg/1g * MW(%)/100% * 1/BW(kg)",null,"eagle","Carnivorous birds",null,3.048,0.66500000000000004,null,null,null,"M","M/B","sexually mature","Juvenile","90 days to 1 year","90 - 364",10.8,"USEPA, 1987"]
["g/org/d","Study NOAEL or LOAEL Dose(g/org/d) * 1000mg/1g * MW(%)/100% * 1/BW(kg)",null,"finch","Passerines",null,2.4380000000000002,0.60699999999999998,null,null,null,"M","M/F/B","adult","Adult","1 year or older","≥365",14,"USEPA, 1987"]
["g/org/day","Study NOAEL or LOAEL Dose(g/org/day) * 1000mg/1g * MW(%)/100% * 1/BW(kg)",null,"gerbil","Rodentia",null,0.58799999999999997,0.86399999999999999,null,null,null,"F","F","juvenile",null,"weaning to 90 days","21 - 89",1.97,"USEPA, 1987"]
["ug/kg","Study NOAEL or LOAEL Dose(ug/kg) * 1mg/1000ug * MW(%)/100% * FIR(kg/day) * 1/BW(kg)",null,"guinea pig","Rodentia",null,0.58799999999999997,0.86399999999999999,null,null,null,"F","F","sexually mature","Juvenile","90 days to 1 year","90 - 364",10.1,"USEPA, 1987"]
["ng/g diet","Study NOAEL or LOAEL Dose(ng/g diet) * 1mg/1000000ng * 1000g/1kg * MW(%)/100% * FIR(kg/day) * 1/BW(kg)",null,"hamster","Rodentia",null,0.58799999999999997,0.86399999999999999,null,"dove","ringed turtle","B","M/F/B","juvenile",null,"0 days",0,0.01,"Carriere et al., 1986"]
["ug/kg diet","Study NOAEL or LOAEL Dose(ug/kg diet) * 1mg/1000ug * MW(%)/100% * FIR(kg/day) * 1/BW(kg)",null,"horse","All mammals",null,0.79400000000000004,0.77300000000000002,null,null,null,"B","M/F/B","juvenile",null,"7 days",7,5.7000000000000002E-2,"Carriere et al., 1986; Kendall and Scanlon, 1981"]
["ug/L","Study NOAEL or LOAEL Dose(ug/L) * 1mg/1000ug * MW(%)/100% * WIR(L/day) * 1/BW(kg)",null,"kestrel","Carnivorous birds",null,3.048,0.66500000000000004,null,null,null,"B","M/F/B","juvenile",null,"14 days",14,9.1999999999999998E-2,"Carriere et al., 1986; Kendall and Scanlon, 1981"]
["Notes:",null,null,"mink","Carnivora",null,0.34799999999999998,0.85899999999999999,null,null,null,"B","M/F/B","juvenile",null,"21 days",21,0.11700000000000001,"Carriere et al., 1986; Kendall and Scanlon, 1981"]
["BW","Body Weight",null,"mouse","Rodentia",null,0.58799999999999997,0.86399999999999999,null,null,null,"B","M/F/B","juvenile","Juvenile","28 days",28,0.13400000000000001,"Carriere et al., 1986"]
["FIR","Food Ingestion Rate",null,"pheasant","All birds ","A",2.0649999999999999,0.68899999999999995,null,null,null,"B","M/F/B","adult","Adult","Adult",">28",0.14399999999999999,"Carriere et al., 1986; Kendall and Scanlon, 1981; Keith and Mitchell, 1993"]
["LOAEL","Lowest Observed Adverse Effect Level",null,"owl","Carnivorous birds",null,3.048,0.66500000000000004,null,"duck","mallard","JV","M/F/B","juvenile",null,"10 days",10,9.1999999999999998E-2,"USEPA, 1993"]
["MW","Molecular Weight",null,"pigeon","All birds ","B",2.0649999999999999,0.68899999999999995,null,null,null,"JV","M/F/B","juvenile","Juvenile","30 days",30,0.46,"USEPA, 1993"]
["NOAEL","No Observed Adverse Effect Level",null,"pig","All mammals",null,0.79400000000000004,0.77300000000000002,null,null,null,"F","F","adult","Adult","Adult","≥84",1.1000000000000001,"USEPA, 1993"]
["WIR","Water Ingestion Rate",null,"quail","All birds ","A",2.0649999999999999,0.68899999999999995,null,null,null,"M","M/B","adult","Adult","Adult","≥84",1.2,"USEPA, 1993"]
[null,null,null,"rabbit","All mammals",null,0.79400000000000004,0.77300000000000002,null,null,"white pekin","B","M/F/B","juvenile",null,"0 days",0,0.06,"NRC, 1994"]
[null,null,null,"rat","Rodentia",null,0.58799999999999997,0.86399999999999999,null,null,null,"B","M/F/B","juvenile",null,"7 days",7,0.27,"NRC, 1994"]
[null,null,null,"blackbird","Passerines",null,2.4380000000000002,0.60699999999999998,null,null,null,"F","F","juvenile",null,"14 days",14,0.74,"NRC, 1994"]
[null,null,null,"sheep","All mammals",null,0.79400000000000004,0.77300000000000002,null,null,null,"F","F","juvenile",null,"21 days",21,1.28,"NRC, 1994"]
[null,null,null,"shrew","Rodentia",null,0.58799999999999997,0.86399999999999999,null,null,null,"F","F","juvenile",null,"28 days",28,1.82,"NRC, 1994"]
[null,null,null,"sparrow","Passerines",null,2.4380000000000002,0.60699999999999998,null,null,null,"F","F","juvenile",null,"35 days",35,2.2999999999999998,"NRC, 1994"]
[null,null,null,"starling","Passerines",null,2.4380000000000002,0.60699999999999998,null,null,null,"F","F","juvenile",null,"42 days",42,2.73,"NRC, 1994"]
[null,null,null,"turkey","All birds ","A",2.0649999999999999,0.68899999999999995,null,null,null,"F","F","juvenile",null,"49 days",49,3.06,"NRC, 1994"]
[null,null,null,"vole","Rodentia",null,0.58799999999999997,0.86399999999999999,null,null,null,"F","F","juvenile","Juvenile","56 days",56,3.29,"NRC, 1994"]
[null,null,null,"Notes:",null,null,null,null,null,null,null,"M","M/B","juvenile",null,"14 days",14,0.78,"NRC, 1994"]
[null,null,null,"A  No FMI regression for galliformes",null,null,null,null,null,null,null,"M","M/B","juvenile",null,"21 days",21,1.38,"NRC, 1994"]
[null,null,null,"B  Doves will consume insects, but primary food is seeds, selected \"all bird\"",null,null,null,null,null,null,null,"M","M/B","juvenile",null,"28 days",28,1.96,"NRC, 1994"]
[null,null,null,null,null,null,null,null,null,null,null,"M","M/B","juvenile",null,"35 days",35,2.4900000000000002,"NRC, 1994"]
[null,null,null,null,null,null,null,null,null,null,null,"M","M/B","juvenile",null,"42 days",42,2.96,"NRC, 1994"]
[null,null,null,"Calder, W. A. (1981). \"Scaling of physiological processes in homeothermic animals.\" Ann. Rev. Physiol. 43: 301-322.",null,null,null,null,null,null,null,"M","M/B","juvenile",null,"49 days",49,3.34,"NRC, 1994"]
[null,null,null,null,null,null,null,null,null,null,null,"M","M/B","juvenile","Juvenile","56 days",56,3.61,"NRC, 1994"]
[null,null,null,"Calder, W. A. and E. J. Braun (1983). \"Scaling of osmotic regulation in mammals and birds.\" American Journal of Physiology 244: R601-R606.",null,null,null,null,null,"eagle","bald eagle","M","M","adult","Adult","Adult",">2007",4.13,"Dunning, 1993"]
[null,null,null,null,null,null,null,null,null,null,null,"F","F/B","adult","Adult","Adult",">2007",5.35,"Dunning, 1993"]
[null,null,null,"Chew, R. M. (1965). Water Metabolism in Mammals. Physiological Mammalogy. W. V. Mayer and R. G. Van Gelder. New York, Academic Press: 43-178.",null,null,null,null,null,"finch","zebra finch","B","B","adult","Adult","Adult","≥90",1.2E-2,"Dunning, 1993"]
[null,null,null,null,null,null,null,null,null,"gerbil","unspecified","M","M/B","juvenile",null,"weaning to 90 days","28 -89",4.8000000000000001E-2,"USEPA, 1987"]
[null,null,null,null,null,null,null,null,null,null,null,"M","M/B","juvenile","Juvenile","90 days to 1 year","90 - 364",8.4000000000000005E-2,"USEPA, 1987"]
[null,null,null,"Nagy, K. A. (2001). \"Food requirements of wild animals: Predictive equations for free living mammals, reptiles, and birds.\" Nutrition Abstracts and Reviews Series B71: 21R-31R.",null,null,null,null,null,null,null,"M","M/B","adult","Adult","1 year or older","≥365",0.1,"USEPA, 1987"]
[null,null,null,null,null,null,null,null,null,null,null,"F","F","juvenile",null,"weaning to 90 days","28 -89",0.04,"USEPA, 1987"]
[null,null,null,null,null,null,null,null,null,null,null,"F","F","juvenile","Juvenile","90 days to 1 year","90 - 364",7.2999999999999995E-2,"USEPA, 1987"]
[null,null,null,null,null,null,null,null,null,null,null,"F","F","adult","Adult","1 year or older","≥365",0.09,"USEPA, 1987"]
[null,null,null,null,null,null,null,null,null,"guinea pig","unspecified","M","M/B","juvenile",null,"weaning to 90 days","21 -89",0.48,"USEPA, 1987"]
[null,null,null,null,null,null,null,null,null,null,null,"M","M/B","juvenile","Juvenile","90 days to 1 year","90 - 364",0.89,"USEPA, 1987"]
[null,null,null,null,null,null,null,null,null,null,null,"M","M/B","adult","Adult","1 year or older","≥365",1,"USEPA, 1987"]
[null,null,null,null,null,null,null,null,null,null,null,"F","F","juvenile",null,"weaning to 90 days","21 -89",0.39,"USEPA, 1987"]
[null,null,null,null,null,null,null,null,null,null,null,"F","F","juvenile","Juvenile","90 days to 1 year","90 - 364",0.86,"USEPA, 1987"]
[null,null,null,null,null,null,null,null,null,null,null,"F","F","adult","Adult","1 year or older","≥365",0.9,"USEPA, 1987"]
[null,null,null,null,null,null,null,null,null,"hamster","golden Syrian","M","M/B","juvenile",null,"weaning to 90 days","21 - 89",9.7000000000000003E-2,"USEPA, 1987"]
[null,null,null,null,null,null,null,null,null,null,null,"M","M","juvenile","Juvenile","90 days to 1 year","90 - 364",0.13400000000000001,"USEPA, 1987"]
[null,null,null,null,null,null,null,null,null,null,null,"M","M","adult","Adult","1 year or older","≥365",0.15,"USEPA, 1987"]
[null,null,null,null,null,null,null,null,null,null,null,"F","F","juvenile",null,"weaning to 90 days","21 - 89",9.5000000000000001E-2,"USEPA, 1987"]
[null,null,null,null,null,null,null,null,null,null,null,"F","F/B","juvenile","Juvenile","90 days to 1 year","90 - 364",0.14499999999999999,"USEPA, 1987"]
[null,null,null,null,null,null,null,null,null,null,null,"F","F/B","adult","Adult","1 year or older","≥365",0.16,"USEPA, 1987"]
[null,null,null,null,null,null,null,null,null,null,"Chinese & Djungarain","M","M/B","juvenile",null,"weaning to 90 days","21 - 89",0.03,"USEPA, 1987"]
[null,null,null,null,null,null,null,null,null,null,null,"M","M/B","juvenile","Juvenile","90 days to 1 year","90 - 364",4.1000000000000002E-2,"USEPA, 1987"]
[null,null,null,null,null,null,null,null,null,null,null,"M","M/B","adult","Adult","1 year or older","≥365",0.04,"USEPA, 1987"]
[null,null,null,null,null,null,null,null,null,null,null,"F","F","juvenile",null,"weaning to 90 days","21 - 89",2.5000000000000001E-2,"USEPA, 1987"]
[null,null,null,null,null,null,null,null,null,null,null,"F","F","juvenile","Juvenile","90 days to 1 year","90 - 364",3.7999999999999999E-2,"USEPA, 1987"]
[null,null,null,null,null,null,null,null,null,null,null,"F","F","adult","Adult","1 year or older","≥365",3.5000000000000003E-2,"USEPA, 1987"]
[null,null,null,null,null,null,null,null,null,null,"unspecified","M","M","juvenile",null,"weaning to 90 days","21 - 89",6.3500000000000001E-2,"USEPA, 1987"]
[null,null,null,null,null,null,null,null,null,null,null,"M","M","juvenile","Juvenile","90 days to 1 year","90 - 364",8.7499999999999994E-2,"USEPA, 1987"]
[null,null,null,null,null,null,null,null,null,null,null,"M","M","adult","Adult","1 year or older","≥365",9.5000000000000001E-2,"USEPA, 1987"]
[null,null,null,null,null,null,null,null,null,null,null,"F","F/B","juvenile",null,"weaning to 90 days","21 - 89",0.24249999999999999,"USEPA, 1987"]
[null,null,null,null,null,null,null,null,null,null,null,"F","F/B","juvenile","Juvenile","90 days to 1 year","90 - 364",0.50249999999999995,"USEPA, 1987"]
[null,null,null,null,null,null,null,null,null,null,null,"F","F/B","adult","Adult","1 year or older","≥365",1.03,"USEPA, 1987"]
[null,null,null,null,null,null,null,null,null,"horse","unspecified","M","M/B","foal",null,"2 to 5 months","60 - 149",181.44,"Jurgens, 1993"]
[null,null,null,null,null,null,null,null,null,null,null,"M","M/B","weanling",null,"5 to 12 months","150 - 364",317.51,"Jurgens, 1993"]
[null,null,null,null,null,null,null,null,null,null,null,"M","M/B","yearling","Juvenile","12 to 24 months","365 - 729",408.23,"Jurgens, 1993"]
[null,null,null,null,null,null,null,null,null,null,null,"B","M/F/B","adult","Adult","> 2 year","≥730",498.95,"Jurgens, 1993"]
[null,null,null,null,null,null,null,null,null,"kestrel","American","F","F/B","egg-laying","Adult","unspecified","≥20",0.13800000000000001,"Dunning, 1993"]
[null,null,null,null,null,null,null,null,null,null,null,"M","M","adult","Adult","unspecified","≥20",0.114,"Dunning, 1993"]
[null,null,null,null,null,null,null,null,null,"mink","unspecified","M","M/B","juvenile","Juvenile","weaning to 49 days","42 - 49",1.02,"USEPA 1993"]
[null,null,null,null,null,null,null,null,null,null,"unspecified","M","M/B","adult","Adult","> 1 year",">365",1.18,"USEPA 1993"]
[null,null,null,null,null,null,null,null,null,null,"unspecified","F","F","juvenile","Juvenile","weaning to 49 days","42 - 49",0.58299999999999996,"USEPA 1993"]
[null,null,null,null,null,null,null,null,null,null,"unspecified","F","F","adult","Adult","> 1 year",">365",0.59599999999999997,"USEPA 1993"]
[null,null,null,null,null,null,null,null,null,"mouse","BAF1","M","M/B","juvenile",null,"weaning to 90 days","21 - 89",2.23E-2,"USEPA, 1987"]
[null,null,null,null,null,null,null,null,null,null,null,"M","M/B","juvenile",null,"90 days to 1 year","90 - 364",2.6100000000000002E-2,"USEPA, 1987"]
[null,null,null,null,null,null,null,null,null,null,null,"M","M/B","adult","Adult","1 year or older","≥365",3.5000000000000003E-2,"USEPA, 1987"]
[null,null,null,null,null,null,null,null,null,null,null,"F","F","juvenile",null,"weaning to 90 days","21 - 89",2.0400000000000001E-2,"USEPA, 1987"]
[null,null,null,null,null,null,null,null,null,null,null,"F","F","juvenile",null,"90 days to 1 year","90 - 364",2.2200000000000001E-2,"USEPA, 1987"]
[null,null,null,null,null,null,null,null,null,null,null,"F","F","adult","Adult","1 year or older","≥365",0.03,"USEPA, 1987"]
[null,null,null,null,null,null,null,null,null,null,"B6C3F1","M","M/B","juvenile",null,"weaning to 90 days","21 - 89",3.1600000000000003E-2,"USEPA, 1987"]
[null,null,null,null,null,null,null,null,null,null,null,"M","M/B","juvenile","Juvenile","90 days to 1 year","90 - 364",3.73E-2,"USEPA, 1987"]
[null,null,null,null,null,null,null,null,null,null,null,"M","M/B","adult","Adult","1 year or older",">365",0.04,"USEPA, 1987"]
[null,null,null,null,null,null,null,null,null,null,null,"F","F","juvenile",null,"weaning to 90 days","21 - 89",2.46E-2,"USEPA, 1987"]
[null,null,null,null,null,null,null,null,null,null,null,"F","F","juvenile","Juvenile","90 days to 1 year","90 - 364",3.5299999999999998E-2,"USEPA, 1987"]
[null,null,null,null,null,null,null,null,null,null,null,"F","F","adult","Adult","1 year or older","≥365",3.5000000000000003E-2,"USEPA, 1987"]
[null,null,null,null,null,null,null,null,null,null,"deer mouse","M","M/B","adult","Adult","Adult","≥42",0.02,"USEPA, 1993"]
[null,null,null,null,null,null,null,null,null,null,null,"F","F","adult","Adult","Adult","≥42",1.9E-2,"USEPA, 1993"]
[null,null,null,null,null,null,null,null,null,null,"unspecified","M","M/B","juvenile",null,"weaning to 90 days","21 - 89",2.6950000000000002E-2,"USEPA, 1987"]
[null,null,null,null,null,null,null,null,null,null,null,"M","M/B","juvenile","Juvenile","90 days to 1 year","90 - 364",3.1699999999999999E-2,"USEPA, 1987"]
[null,null,null,null,null,null,null,null,null,null,null,"M","M/B","adult","Adult","1 year or older","≥365",3.7499999999999999E-2,"USEPA, 1987"]
[null,null,null,null,null,null,null,null,null,null,null,"F","F","juvenile",null,"weaning to 90 days","21 - 89",2.2499999999999999E-2,"USEPA, 1987"]
[null,null,null,null,null,null,null,null,null,null,null,"F","F","juvenile","Juvenile","90 days to 1 year","90 - 364",2.8750000000000001E-2,"USEPA, 1987"]
[null,null,null,null,null,null,null,null,null,null,null,"F","F","adult","Adult","1 year or older","≥365",3.2500000000000001E-2,"USEPA, 1987"]
[null,null,null,null,null,null,null,null,null,"pheasant","ring-necked","F","F","adult","Adult","Adult","≥42",0.95,"Dunning, 1993"]
[null,null,null,null,null,null,null,null,null,null,null,"M","M/B","adult","Adult","Adult","≥42",1.3,"Dunning, 1993"]
[null,null,null,null,null,null,null,null,null,"owl","barn owl","M","M","adult","Adult","Adult","≥240",0.47899999999999998,"Dunning, 1993"]
[null,null,null,null,null,null,null,null,null,null,null,"F","F/B","adult","Adult","Adult","≥240",0.56799999999999995,"Dunning, 1993"]
[null,null,null,null,null,null,null,null,null,"pigeon","pigeon","F","F","adult","Adult","Adult","≥213",0.34,"Dunning, 1993"]
[null,null,null,null,null,null,null,null,null,null,null,"M","M/B","adult","Adult","Adult","≥213",0.36899999999999999,"Dunning, 1993"]
[null,null,null,null,null,null,null,null,null,"pig","miniature","M","M/F/B","adult","Adult","Adult","≥365",72.5,"USEPA, 1987"]
[null,null,null,null,null,null,null,null,null,null,"unspecified","BH","M/F/B","juvenile",null,"1 d",1,1.2,"Spears et al, 1984"]
[null,null,null,null,null,null,null,null,null,null,null,"BH","M/F/B","juvenile",null,"21 to 25 days",21,6.6,"USEPA 2005"]
[null,null,null,null,null,null,null,null,null,null,null,"BH","M/F/B","juvenile",null,"26 to 29 days",26,7.9,"USEPA 2005"]
[null,null,null,null,null,null,null,null,null,null,null,"BH","M/F/B","juvenile",null,"30 TO 35 days",30,9.3000000000000007,"USEPA 2005"]
[null,null,null,null,null,null,null,null,null,null,null,"BH","M/F/B","juvenile",null,"36 to 66 days",36,31.5,"USEPA 2005"]
[null,null,null,null,null,null,null,null,null,null,null,"BH","M/F/B","juvenile",null,"67 to 150 days",67,61,"USEPA 2005"]
[null,null,null,null,null,null,null,null,null,null,null,"BH","M/F/B","juvenile","Juvenile","151 to 299 days",151,61,"USEPA 2005"]
[null,null,null,null,null,null,null,null,null,null,null,"F","F/B","Gestation","Adult","Adult","≥300",152,"Cromwell et al., 1993"]
[null,null,null,null,null,null,null,null,null,null,null,"BH","M","adult","Adult","> 299 days","≥300",104,"USEPA 2005"]
[null,null,null,null,null,null,null,null,null,"quail","Japanese","BH","M/F/B","juvenile",null,"0 to 1 days","0-1",7.0449999999999999E-2,"USEPA, 2005"]
[null,null,null,null,null,null,null,null,null,null,null,"BH","M/F/B","juvenile",null,"7 to 8 days","7-8",0.10299999999999999,"USEPA, 2005"]
[null,null,null,null,null,null,null,null,null,null,null,"BH","M/F/B","juvenile",null,"14 to 28 days","14-28",0.12,"USEPA, 2005"]
[null,null,null,null,null,null,null,null,null,null,null,"BH","M/F/B","juvenile","Juvenile","29 to 59 days","29-59",0.13200000000000001,"USEPA, 2005"]
[null,null,null,null,null,null,null,null,null,null,null,"BH","M/F/B","juvenile","Adult","60 to 154 days","≥60",0.13500000000000001,"USEPA, 2005"]
[null,null,null,null,null,null,null,null,null,null,"bobwhite","JV","M/F/B","juvenile",null,"10 days",10,1.2E-2,"USEPA, 1993"]
[null,null,null,null,null,null,null,null,null,null,null,"JV","M/F/B","juvenile",null,"18 days",18,3.4000000000000002E-2,"Landis Assoc. Inc, 1985"]
[null,null,null,null,null,null,null,null,null,null,null,"JV","M/F/B","juvenile","Juvenile","30 days",30,0.04,"USEPA, 1993"]
[null,null,null,null,null,null,null,null,null,null,null,"F","F/B","adult","Adult","Adult","≥42",0.17,"USEPA, 1993"]
[null,null,null,null,null,null,null,null,null,null,null,"M","M","adult","Adult","Adult","≥42",0.16,"USEPA, 1993"]
[null,null,null,null,null,null,null,null,null,"rabbit","unspecified","M","M","juvenile",null,"weaning to 90 days","56-89",2.86,"USEPA, 1987"]
[null,null,null,null,null,null,null,null,null,null,null,"M","M","juvenile","Juvenile","90 days to 1 year","90-364",3.76,"USEPA, 1987"]
[null,null,null,null,null,null,null,null,null,null,null,"M","M","adult","Adult","1 year or older","≥365",4,"USEPA, 1987"]
[null,null,null,null,null,null,null,null,null,null,null,"F","F/B","juvenile",null,"weaning to 90 days","56-89",3.1,"USEPA, 1987"]
[null,null,null,null,null,null,null,null,null,null,null,"F","F/B","juvenile","Juvenile","90 days to 1 year","90-364",3.93,"USEPA, 1987"]
[null,null,null,null,null,null,null,null,null,null,null,"F","F/B","adult","Adult","1 year or older","≥365",4.0999999999999996,"USEPA, 1987"]
[null,null,null,null,null,null,null,null,null,"rat","Fischer 344","M","M/B","juvenile",null,"weaning to 90 days","21-89",0.18,"USEPA, 1987"]
[null,null,null,null,null,null,null,null,null,null,null,"M","M/B","juvenile","Juvenile","90 days to 1 year","90-364",0.38,"USEPA, 1987"]
[null,null,null,null,null,null,null,null,null,null,null,"M","M/B","adult","Adult","1 year or older","≥365",0.4,"USEPA, 1987"]
[null,null,null,null,null,null,null,null,null,null,null,"F","F","juvenile",null,"weaning to 90 days","21-89",0.124,"USEPA, 1987"]
[null,null,null,null,null,null,null,null,null,null,null,"F","F","juvenile","Juvenile","90 days to 1 year","90-364",0.22900000000000001,"USEPA, 1987"]
[null,null,null,null,null,null,null,null,null,null,null,"F","F","adult","Adult","1 year or older","≥365",0.25,"USEPA, 1987"]
[null,null,null,null,null,null,null,null,null,null,"Long-Evans","M","M/B","juvenile",null,"weaning to 90 days","21-89",0.248,"USEPA, 1987"]
[null,null,null,null,null,null,null,null,null,null,null,"M","M/B","juvenile","Juvenile","90 days to 1 year","90-364",0.47199999999999998,"USEPA, 1987"]
[null,null,null,null,null,null,null,null,null,null,null,"M","M/B","adult","Adult","1 year or older","≥365",0.5,"USEPA, 1987"]
[null,null,null,null,null,null,null,null,null,null,null,"F","F","juvenile",null,"weaning to 90 days","21-89",0.17899999999999999,"USEPA, 1987"]
[null,null,null,null,null,null,null,null,null,null,null,"F","F","juvenile","Juvenile","90 days to 1 year","90-364",0.34399999999999997,"USEPA, 1987"]
[null,null,null,null,null,null,null,null,null,null,null,"F","F","adult","Adult","1 year or older","≥365",0.35,"USEPA, 1987"]
[null,null,null,null,null,null,null,null,null,null,"Osborne-Mendel","M","M/B","juvenile",null,"weaning to 90 days","21-89",0.26300000000000001,"USEPA, 1987"]
[null,null,null,null,null,null,null,null,null,null,null,"M","M/B","juvenile","Juvenile","90 days to 1 year","90-364",0.51400000000000001,"USEPA, 1987"]
[null,null,null,null,null,null,null,null,null,null,null,"M","M/B","adult","Adult","1 year or older","≥365",0.55000000000000004,"USEPA, 1987"]
[null,null,null,null,null,null,null,null,null,null,null,"F","F","juvenile",null,"weaning to 90 days","21-89",0.20100000000000001,"USEPA, 1987"]
[null,null,null,null,null,null,null,null,null,null,null,"F","F","juvenile","Juvenile","90 days to 1 year","90-364",0.38900000000000001,"USEPA, 1987"]
[null,null,null,null,null,null,null,null,null,null,null,"F","F","adult","Adult","1 year or older","≥365",0.4,"USEPA, 1987"]
[null,null,null,null,null,null,null,null,null,null,"Sprague-Dawley","M","M/B","juvenile",null,"weaning to 90 days","21-89",0.26700000000000002,"USEPA, 1987"]
[null,null,null,null,null,null,null,null,null,null,null,"M","M/B","juvenile","Juvenile","90 days to 1 year","90-364",0.52300000000000002,"USEPA, 1987"]
[null,null,null,null,null,null,null,null,null,null,null,"M","M/B","adult","Adult","1 year or older","≥365",0.6,"USEPA, 1987"]
[null,null,null,null,null,null,null,null,null,null,null,"F","F","juvenile",null,"weaning to 90 days","21-89",0.20399999999999999,"USEPA, 1987"]
[null,null,null,null,null,null,null,null,null,null,null,"F","F","juvenile","Juvenile","90 days to 1 year","90-364",0.33800000000000002,"USEPA, 1987"]
[null,null,null,null,null,null,null,null,null,null,null,"F","F","adult","Adult","1 year or older","≥365",0.35,"USEPA, 1987"]
[null,null,null,null,null,null,null,null,null,null,"Wistar","M","M/B","juvenile",null,"weaning to 90 days","21-89",0.217,"USEPA, 1987"]
[null,null,null,null,null,null,null,null,null,null,null,"M","M/B","juvenile","Juvenile","90 days to 1 year","90-364",0.46200000000000002,"USEPA, 1987"]
[null,null,null,null,null,null,null,null,null,null,null,"M","M/B","adult","Adult","1 year or older","≥365",0.5,"USEPA, 1987"]
[null,null,null,null,null,null,null,null,null,null,null,"F","F","juvenile",null,"weaning to 90 days","21-89",0.156,"USEPA, 1987"]
[null,null,null,null,null,null,null,null,null,null,null,"F","F","juvenile","Juvenile","90 days to 1 year","90-364",0.29699999999999999,"USEPA, 1987"]
[null,null,null,null,null,null,null,null,null,null,null,"F","F","adult","Adult","1 year or older","≥365",0.32,"USEPA, 1987"]
[null,null,null,null,null,null,null,null,null,null,"unspecified","M","M/B","juvenile",null,"weaning to 90 days","21-89",0.23499999999999999,"USEPA, 1987"]
[null,null,null,null,null,null,null,null,null,null,null,"M","M/B","juvenile","Juvenile","90 days to 1 year","90-364",0.47020000000000001,"USEPA, 1987"]
[null,null,null,null,null,null,null,null,null,null,null,"M","M/B","adult","Adult","1 year or older","≥365",0.51,"USEPA, 1987"]
[null,null,null,null,null,null,null,null,null,null,null,"F","F","juvenile",null,"weaning to 90 days","21-89",0.2024,"USEPA, 1987"]
[null,null,null,null,null,null,null,null,null,null,null,"F","F","juvenile","Juvenile","90 days to 1 year","90-364",0.3846,"USEPA, 1987"]
[null,null,null,null,null,null,null,null,null,null,null,"F","F","adult","Adult","1 year or older","≥365",0.4,"USEPA, 1987"]
[null,null,null,null,null,null,null,null,null,"blackbird","red winged","M","M/B","adult","Adult","not specified",">365",6.3600000000000004E-2,"Dunning, 1993"]
[null,null,null,null,null,null,null,null,null,null,null,"F","F","adult","Adult","not specified",">365",4.1500000000000002E-2,"Dunning, 1993"]
[null,null,null,null,null,null,null,null,null,"sheep","domestic","BH","M/F/B","juvenile","Juvenile","1 week","7-13",46.81,"Steinheim et al., 2002"]
[null,null,null,null,null,null,null,null,null,null,"unspecified","BH","M/F/B","juvenile",null,"112 to 189 days","112-188",34,"USEPA, 2005"]
[null,null,null,null,null,null,null,null,null,null,null,"BH","M/F/B","juvenile",null,"189 to 224 days","189-224",40.6,"USEPA, 2005"]
[null,null,null,null,null,null,null,null,null,null,null,"BH","M/F/B","juvenile","Juvenile","225 to 252 days","225-252",59.1,"USEPA, 2005"]
[null,null,null,null,null,null,null,null,null,null,null,"F","F","Gestation","Adult","Gestation",">252",70,"USEPA, 2005"]
[null,null,null,null,null,null,null,null,null,null,null,"BH","M","adult","Adult","> 252 days",">252",65.099999999999994,"USEPA, 2005"]
[null,null,null,null,null,null,null,null,null,null,"Clun forest","BH","M/F/B","Juvenile","Juvenile","Juvenile","0-364",24,"www.ansi.okstate.edu/breeds/sheep/ based on data for related strain (Kerry Hill)"]
[null,null,null,null,null,null,null,null,null,null,null,"M","M/B","Adult","Adult","Adult","≥365",91.5,"www.ansi.okstate.edu/breeds/sheep/ based on data for related strain (mean of Kerry Hill and Shropshire)"]
[null,null,null,null,null,null,null,null,null,null,null,"F","F","Adult","Adult","Adult","≥365",73,"www.ansi.okstate.edu/breeds/sheep/ based on data for related strain (mean of Kerry Hill and Shropshire)"]
[null,null,null,null,null,null,null,null,null,null,"Dala","M","M/B","adult","Adult","Adult","≥365",115,"Geertman, 2001"]
[null,null,null,null,null,null,null,null,null,null,null,"F","F","adult","Adult","Adult","≥365",80,"Geertman, 2001"]
[null,null,null,null,null,null,null,null,null,null,"Old Norse","M","M/B","adult","Adult","Adult","≥365",43,"www.ansi.okstate.edu/breeds/sheep/"]
[null,null,null,null,null,null,null,null,null,null,null,"F","F","adult","Adult","Adult","≥365",32,"www.ansi.okstate.edu/breeds/sheep/"]
[null,null,null,null,null,null,null,null,null,"shrew","short-tailed","M","M","adult","Adult","Adult","≥84",1.7000000000000001E-2,"USEPA, 1993"]
[null,null,null,null,null,null,null,null,null,null,null,"F","F/B","adult","Adult","Adult","≥42",1.7000000000000001E-2,"USEPA, 1993"]
[null,null,null,null,null,null,null,null,null,"sparrow","white-throated","BH","M/F/B","adult","Adult","Adult","≥365",2.5899999999999999E-2,"Dunning, 1993"]
[null,null,null,null,null,null,null,null,null,"starling","starling","M","M/B","adult","Adult","Adult","≥140",8.4699999999999998E-2,"Dunning, 1993"]
[null,null,null,null,null,null,null,null,null,null,null,"F","F","adult","Adult","Adult","≥140",7.9899999999999999E-2,"Dunning, 1993"]
[null,null,null,null,null,null,null,null,null,"turkey","domestic","BH","M/F/B","juvenile",null,"1 w","7-13",0.12,"NRC, 1994"]
[null,null,null,null,null,null,null,null,null,null,null,"F","F","juvenile",null,"2 w","14-20",0.24,"NRC, 1994"]
[null,null,null,null,null,null,null,null,null,null,null,"F","F","juvenile",null,"3 w","21-27",0.46,"NRC, 1994"]
[null,null,null,null,null,null,null,null,null,null,null,"F","F","juvenile",null,"4 w","28-34",0.9,"NRC, 1994"]
[null,null,null,null,null,null,null,null,null,null,null,"F","F","juvenile",null,"5 w","35-41",1.4,"NRC, 1994"]
[null,null,null,null,null,null,null,null,null,null,null,"F","F","juvenile",null,"6 w","42-48",1.8,"NRC, 1994"]
[null,null,null,null,null,null,null,null,null,null,null,"F","F","juvenile",null,"7 w","49-55",2.2999999999999998,"NRC, 1994"]
[null,null,null,null,null,null,null,null,null,null,null,"F","F","juvenile",null,"8 w","56-62",3,"NRC, 1994"]
[null,null,null,null,null,null,null,null,null,null,null,"F","F","juvenile",null,"9 w","63-69",3.7,"NRC, 1994"]
[null,null,null,null,null,null,null,null,null,null,null,"F","F","juvenile",null,"10 w","70-76",4.4000000000000004,"NRC, 1994"]
[null,null,null,null,null,null,null,null,null,null,null,"F","F","juvenile",null,"11 w","77-83",5.2,"NRC, 1994"]
[null,null,null,null,null,null,null,null,null,null,null,"F","F","juvenile",null,"12 w","84-90",6,"NRC, 1994"]
[null,null,null,null,null,null,null,null,null,null,null,"F","F","juvenile",null,"13 w","91-97",6.8,"NRC, 1994"]
[null,null,null,null,null,null,null,null,null,null,null,"F","F","juvenile",null,"14 w","98-104",7.5,"NRC, 1994"]
[null,null,null,null,null,null,null,null,null,null,null,"F","F","juvenile",null,"15 w","105-111",8.3000000000000007,"NRC, 1994"]
[null,null,null,null,null,null,null,null,null,null,null,"F","F","juvenile",null,"16 w","112-118",8.9,"NRC, 1994"]
[null,null,null,null,null,null,null,null,null,null,null,"F","F","juvenile",null,"17 w","119-125",9.6,"NRC, 1994"]
[null,null,null,null,null,null,null,null,null,null,null,"F","F","juvenile",null,"18 w","126-132",10.199999999999999,"NRC, 1994"]
[null,null,null,null,null,null,null,null,null,null,null,"F","F","juvenile",null,"19 w","133-139",10.9,"NRC, 1994"]
[null,null,null,null,null,null,null,null,null,null,null,"F","F","juvenile","Juvenile","20 w","140-146",11.5,"NRC, 1994"]
[null,null,null,null,null,null,null,null,null,null,null,"F","F","egg laying bird",null,"25 w","175-181",9.8000000000000007,"NRC, 1994"]
[null,null,null,null,null,null,null,null,null,null,null,"F","F","egg laying bird",null,"30 w","210-216",11.1,"NRC, 1994"]
[null,null,null,null,null,null,null,null,null,null,null,"F","F","egg laying bird",null,"35 w","245-251",11.1,"NRC, 1994"]
[null,null,null,null,null,null,null,null,null,null,null,"F","F","egg laying bird",null,"40 w","280-286",10.8,"NRC, 1994"]
[null,null,null,null,null,null,null,null,null,null,null,"F","F","egg laying bird",null,"45 w","315-321",10.5,"NRC, 1994"]
[null,null,null,null,null,null,null,null,null,null,null,"F","F","egg laying bird",null,"50 w","350-356",10.5,"NRC, 1994"]
[null,null,null,null,null,null,null,null,null,null,null,"F","F","egg laying bird",null,"55 w","385-392",10.5,"NRC, 1994"]
[null,null,null,null,null,null,null,null,null,null,null,"F","F","egg laying bird","Adult","60 w","≥420",10.6,"NRC, 1994"]
[null,null,null,null,null,null,null,null,null,null,null,"M","M/B","juvenile",null,"2 w","14-20",0.25,"NRC, 1994"]
[null,null,null,null,null,null,null,null,null,null,null,"M","M/B","juvenile",null,"3 w","21-27",0.5,"NRC, 1994"]
[null,null,null,null,null,null,null,null,null,null,null,"M","M/B","juvenile",null,"4 w","28-34",1,"NRC, 1994"]
[null,null,null,null,null,null,null,null,null,null,null,"M","M/B","juvenile",null,"5 w","35-41",1.6,"NRC, 1994"]
[null,null,null,null,null,null,null,null,null,null,null,"M","M/B","juvenile",null,"6 w","42-48",2.2000000000000002,"NRC, 1994"]
[null,null,null,null,null,null,null,null,null,null,null,"M","M/B","juvenile",null,"7 w","49-55",3.1,"NRC, 1994"]
[null,null,null,null,null,null,null,null,null,null,null,"M","M/B","juvenile",null,"8 w","56-62",4,"NRC, 1994"]
[null,null,null,null,null,null,null,null,null,null,null,"M","M/B","juvenile",null,"9 w","63-69",5,"NRC, 1994"]
[null,null,null,null,null,null,null,null,null,null,null,"M","M/B","juvenile",null,"10 w","70-76",6,"NRC, 1994"]
[null,null,null,null,null,null,null,null,null,null,null,"M","M/B","juvenile",null,"11 w","77-83",7.1,"NRC, 1994"]
[null,null,null,null,null,null,null,null,null,null,null,"M","M/B","juvenile",null,"12 w","84-90",8.1999999999999993,"NRC, 1994"]
[null,null,null,null,null,null,null,null,null,null,null,"M","M/B","juvenile",null,"13 w","91-97",9.3000000000000007,"NRC, 1994"]
[null,null,null,null,null,null,null,null,null,null,null,"M","M/B","juvenile",null,"14 w","98-104",10.5,"NRC, 1994"]
[null,null,null,null,null,null,null,null,null,null,null,"M","M/B","juvenile",null,"15 w","105-111",11.5,"NRC, 1994"]
[null,null,null,null,null,null,null,null,null,null,null,"M","M/B","juvenile",null,"16 w","112-118",12.6,"NRC, 1994"]
[null,null,null,null,null,null,null,null,null,null,null,"M","M/B","juvenile",null,"17 w","119-125",13.5,"NRC, 1994"]
[null,null,null,null,null,null,null,null,null,null,null,"M","M/B","juvenile",null,"18 w","126-132",14.4,"NRC, 1994"]
[null,null,null,null,null,null,null,null,null,null,null,"M","M/B","juvenile",null,"19 w","133-139",15.2,"NRC, 1994"]
[null,null,null,null,null,null,null,null,null,null,null,"M","M/B","juvenile",null,"20 w","140-146",16.100000000000001,"NRC, 1994"]
[null,null,null,null,null,null,null,null,null,null,null,"M","M/B","juvenile",null,"21 w","147-153",17,"NRC, 1994"]
[null,null,null,null,null,null,null,null,null,null,null,"M","M/B","juvenile",null,"22 w","154-160",17.899999999999999,"NRC, 1994"]
[null,null,null,null,null,null,null,null,null,null,null,"M","M/B","juvenile",null,"23 w","161-167",18.600000000000001,"NRC, 1994"]
[null,null,null,null,null,null,null,null,null,null,null,"M","M/B","adult",null,"24 w/ > 24 w","168-244",19.399999999999999,"NRC, 1994"]
[null,null,null,null,null,null,null,null,null,null,null,"M","M/B","breeding (juvenile)",null,"35 w","245-251",20.7,"NRC, 1994"]
[null,null,null,null,null,null,null,null,null,null,null,"M","M/B","breeding (juvenile)",null,"40 w","280-286",21.8,"NRC, 1994"]
[null,null,null,null,null,null,null,null,null,null,null,"M","M/B","breeding (juvenile)",null,"45 w","315-321",22.5,"NRC, 1994"]
[null,null,null,null,null,null,null,null,null,null,null,"M","M/B","breeding (juvenile)","Juvenile","50 w","350-356",23.2,"NRC, 1994"]
[null,null,null,null,null,null,null,null,null,null,null,"M","M/B","breeding (adult)",null,"55 w","385-391",23.9,"NRC, 1994"]
[null,null,null,null,null,null,null,null,null,null,null,"M","M/B","breeding (adult)","Adult","60 w","≥420",24.5,"NRC, 1994"]
[null,null,null,null,null,null,null,null,null,"vole","prairie vole","BH","M/F/B","adult","Adult","Adult","≥30",4.2000000000000003E-2,"USEPA, 1993"]
[null,null,null,null,null,null,null,null,null,null,"meadow vole","M","M","adult","Adult","Adult","≥35",4.2999999999999997E-2,"USEPA, 1993"]
[null,null,null,null,null,null,null,null,null,null,null,"M","B","adult","Adult","Adult","≥30",4.2999999999999997E-2,"USEPA, 1993"]
[null,null,null,null,null,null,null,null,null,null,null,"F","F","adult","Adult","Adult","≥30",3.9E-2,"USEPA, 1993"]
[null,null,null,null,null,null,null,null,null,"aM=male, F=female, B=both male and female"]
[null,null,null,null,null,null,null,null,null,"Carriere, D., K. Fischer, D. Peakall and P. Angehrn. 1986. Effects of Dietary Aluminum in Combination with Reduced Calcium and Phosphorous on the Ring Dove (Streptopelia risoria). Water, Air and Soil Pollution. 30: 757-764."]
[null,null,null,null,null,null,null,null,null,"Cromwell, G. L. ; et al. 1993. There a couple references from Crowell et al. published in 1993. This may be: Long term effects of feeding a high copper diet to sows during gestation and lactation. J. Anim. Sci., 71: 2996-3002."]
[null,null,null,null,null,null,null,null,null,"Diaz, G. J.; Julian, R. J., and Squires, E. J. 1994. Cobalt-induced polycythaemia causing right ventricular hypertrophy and ascites in meat-type chickens. Avian Pathology. 91-104."]
[null,null,null,null,null,null,null,null,null,"Donaldson, W. E. and C. McGowan. 1989. Lead toxicity in chickens. Interaction with toxic dietary levels of selenium. Biol Trace Elem Res. 20(1-2): 127-33."]
[null,null,null,null,null,null,null,null,null,"Dunning, J.B., Jr. 1993. CRC Handbook of Avian Body Masses. CRC Press."]
[null,null,null,null,null,null,null,null,null,"Franson, J. C. and T. W. Custer. 1982. Toxicity of dietary lead in young cockerels. Vet. Hum. Toxicol. 24 (6): 421-423."]
[null,null,null,null,null,null,null,null,null,"Geertman, T. 2001. President of the Inspectors of the Dutch Breeders Association of the Drentse Heideschap, Email: hgeertman@zeelandnet.nl On the Department of Animal Breeding and Genetics, School of Veterinary Medicine Hannover Website at http://www.tiho-hannover.de/einricht/zucht/eaap/descript/476.htm"]
[null,null,null,null,null,null,null,null,null,"Jurgens. 1972. Unable to locate this reference. It may be Jurgens, M. H. 1993. Animal Feeding and Nutrition (Seventh Edition). Kendall/Hunt Publishing Company, Dubuque Iowa."]
[null,null,null,null,null,null,null,null,null,"Jurgens, M.H. 1993. Animal Feeding and Nutrition (Seventh Edition). Kendall/Hunt Publishing Company, Dubuque Iowa."]
[null,null,null,null,null,null,null,null,null,"Keith, J. O. and C. A. Mitchell. 1993. Effects of DDE and Food Stress on Reproduction and Body Condition of Ringed Turtle Doves. Arch. Environ. Contam. Toxicol. 25: 192-203."]
[null,null,null,null,null,null,null,null,null,"Kendall, R. J. and P. F. Scanlon. 1981. Effects of Chronic Lead Ingestion on Reproduction Characteristics of Ringed Turtle Doves Streptopelia Risoria and on tissue Lead Concentration of Adults and their Progeny. Environmental Pollution (Series A). 26: 203-213."]
[null,null,null,null,null,null,null,null,null,"Landis Assoc. Inc. 1985. Unable to locate this reference."]
[null,null,null,null,null,null,null,null,null,"Maro, J. K., J. A. Kategile, and H. Hvidsten. 1980. Studies on copper and cobalt in dairy calves. British Journal of Nutrition. 44(1): 25-31."]
[null,null,null,null,null,null,null,null,null,"National Research Council (NRC). 2001. Nutrient Requirements of Dairy Cattle, Seventh Revised Edition, 2001. National Academy Press, Washington D.C."]
[null,null,null,null,null,null,null,null,null,"National Research Council (NRC). 1994. Nutrient Requirements of Poultry. Ninth revised edition. National Academy Press, Washington DC."]
[null,null,null,null,null,null,null,null,null,"Southern, L. L. and D. H. Baker. 1981. The effect of methionine or cysteine on cobalt toxicity in the chick. Poultry Sci. 60(6): 1303-8."]
[null,null,null,null,null,null,null,null,null,"Spears, J.W., et al. 1984. Effect of dietary nickel on growth, urease activity, blood parameters and tissue mineral concentrations in the neonatal pig. J. Nutr. 114: 845-853"]
[null,null,null,null,null,null,null,null,null,"Steinheim, G., A. Mysterud, O. Holand, M. Bakken and T. Adnoy. 2002. The effect of initial weight of the ewe on later reproductive effort in domestic sheep (Ovis aries). J. Zoll. Lond. 258: 515-520."]
[null,null,null,null,null,null,null,null,null,"United States Environmental Protection Agency (USEPA). 1987. Recommendations for and Documentation of Biological Values for Use in Risk Assessment. U.S. Environmental Protection Agency, Environmental Criteria and Assessment Office, Office Health and Environmental Assessment, Office of Research and Development, Cincinnati, OH. EPA/600/6-87/008. August."]
[null,null,null,null,null,null,null,null,null,"United States Environmental Protection Agency (USEPA). 1993. Wildlife Exposure Factors Handbook. Volume I of II. U.S. Environmental Protection Agency, Office of Research and Development, Washington, D.C. EPA/600/R-93/187a. December."]
[null,null,null,null,null,null,null,null,null,"United States Environmental Protection Agency (USEPA). 2005. Review of body weight data recorded in the Eco-SSL wildlife toxicity reference value (TRV) database."]

{"sheet":"Data Entry","index":4,"n_rows":22,"n_cols":37,"rows_kept":22,"cut":false,"hidden":false,"merged":[[2,4,2,22],[2,26,2,28],[2,1,2,3],[2,23,2,25],[1,1,1,32]]}
["Enter Data into this sheet. Once complete, sort based on the Endpoint Number and assign a Result #. Then click the Copy to Calculator button. Check Columns AX:AZ  in the 'Calculator' tab for results that require manual entry."]
[null,"Fields with a Blue header must be populated for this spreadsheet tool to function correctly. Fields with Green header need to be populated for the spreadsheet tool to lookup a default body weight if one is not reported (see the 'READ ME' and 'Reference' tabs for more information.)"]
[null,"Ref",null,null,"Exposure",null,null,null,null,null,null,null,null,null,null,null,null,null,null,null,null,null,null,null,null,null,"Effects"]
["Effect Group (Select from dropdown within each cell)","Result #","Ref N.","Reference","Chemical Form","MW%","Test Species","Specific Organism Type","Phase #","# of Conc/ Doses","Conc/ Doses","Conc/Dose Units","Wet Weight Reported?","Percent Moisture","Application Frequency","Method of Analyses","Route of Exposure","Exposure Duration","Duration Units","Age","Age Units","Lifestage","Sex","Control Type","Test Location","Endpoint Number","Effect Type","Effect Measure","Response Site","Study NOAEL","Study LOAEL","Reported Body Weight (kg)\n(If not reported, enter \"NR\")","Reported Ingestion Rate\n(in kg or L/day)\n(If not reported, enter \"NR\")","Data Quality Determination","HERO ID","10% cutoff used for determining biologically significant change?","Notes"]
["Behavior",1,1,"Alumot et al. 1976","1,2-Dichloroethane",100,"Chicken (Gallus gallus)","White Leghorn",1,3,"0/175/350","ppm in mg/kg","NR",100,"3 per d","UX","FD",8,"w",0,"w","JV","BH","C","Lab",1,"FDB","FEFF","WO",350,null,0.70599999999999996,5.74E-2,"Medium",5435200,null,"Feed efficiency; \"Records of growth…during the first 8 wk of the trial (Table 1) showed no differences between the control and EDC-treated groups.\" Dietary concentrations of 250 and 500 ppm were adjusted for 70% measured exposure concentration to obtain concentrations of 175 and 350 ppm; Body weight is weight at 8 weeks presented in Table 1 for the 500 ppm (adjusted to 350ppm) dose group. IR calculated as weight gain/feed efficiency [(((703g-513g)/0.24)/2 wk)/7d = 57.4 g/d]."]
["Behavior",1,2,"Alumot et al. 1976","1,2-Dichloroethane",100,"Chicken (Gallus gallus)","White Leghorn",6,3,"0/175/350","ppm in mg/kg","NR",100,"3 per d","UX","FD",13.5,"mo",0,"w","LB","F","C","Lab",1,"FDB","FCNS","WO",175,350,"NR",0.08,"Medium",5435200,"Yes","Feed Intake; from months 9 through 18 of egg laying, feed consumption at 350 ppm was >10% less than feed consumption of control birds; “The feed intake of the high-EDC group was lower than that of the other groups, particularly in the period after moulting was induced”; Dietary concentrations of 250 and 500 ppm were adjusted for 70% measured exposure concentration to obtain concentrations of 175 and 350 ppm; IR in 250ppm (adjusted to 175ppm) dose group is average across 3-9 month duration sum from Table 6 converted to kg/d [17.8 kg/hen / 7 months / 30 days/month = 0.08]; Exposure duration = 4.5 months + 9 months into egg laying period."]
["Reproduction",1,3,"Alumot et al. 1976","1,2-Dichloroethane",100,"Chicken (Gallus gallus)","White Leghorn",4,3,"0/175/350","ppm in mg/kg","NR",100,"3 per d","UX","FD",7.5,"mo",0,"w","LB","F","C","Lab",2,"EGG","EGWT","EG",null,175,"NR",0.09,"Medium",5435200,null,"Egg weight; \"A highly significant difference in egg weights between the control group and the two EDC-treated groups appeared in month 3 of full laying activity and persisted up to the end of the 2-yr trial.\" Dietary concentrations of 250 and 500 ppm were adjusted for 70% measured exposure concentration to obtain concentrations of 175 and 350 ppm; IR in 250ppm (adjusted to 175ppm) dose group is 3 month duration value from Table 6 converted to kg/d [2.6 kg/mo /30 d]; Exposure duration = 4.5 months + 3 months into egg laying period."]
["Reproduction",1,4,"Alumot et al. 1976","1,2-Dichloroethane",100,"Chicken (Gallus gallus)","White Leghorn",5,3,"0/175/350","ppm in mg/kg","NR",100,"3 per d","UX","FD",8.5,"mo",0,"w","LB","F","C","Lab",2,"REP","RSUC","WO",175,350,"NR",0.1,"Medium",5435200,null,"Flock production rate (%); Dietary concentrations of 250 and 500 ppm were adjusted for 70% measured exposure concentration to obtain concentrations of 175 and 350 ppm; IR in 500ppm (adjusted to 350ppm) dose group is average across 3-4 month duration sum from Table 6 converted to kg/d [6.1 kg/hen / 2 months / 30 days/month = 0.10]; Exposure duration = 4.5 months + 4 months into egg laying period."]
["Reproduction",1,5,"Alumot et al. 1976","1,2-Dichloroethane",100,"Chicken (Gallus gallus)","White Leghorn",7,3,"0/175/350","ppm in mg/kg","NR",100,"3 per d","UX","FD",2,"yr",0,"w","AD","BH","C","Lab",2,"EGG","FTEG","EG",350,null,"NR",0.09,"Medium",5435200,null,"Fertilization rate; treated cocks and treated hens (100% fertile eggs) vs. control cocks and control hens (97% fertile eggs); \"No significant differences were found in the fertilization rates following insemination with the control- or EDC-group semen, regardless of whether the hens were from the control or EDC group\"; Dietary concentrations of 250 and 500 ppm were adjusted for 70% measured exposure concentration to obtain concentrations of 175 and 350 ppm; IR in 500ppm (adjusted to 350ppm) dose group is average across 3-18 month duration value from Table 6 converted to kg/d [41.4 kg/hen / 16 months / 30 days/month = 0.09]."]
["Reproduction",1,6,"Alumot et al. 1976","1,2-Dichloroethane",100,"Chicken (Gallus gallus)","White Leghorn",8,3,"0/175/350","ppm in mg/kg","NR",100,"3 per d","UX","FD",2,"yr",0,"w","LB","F","C","Lab",2,"EGG","FTEG","EG",350,null,"NR",0.09,"Medium",5435200,null,"Fertilization rate; control cocks and treated hens (100% fertile eggs) vs. control cocks and control hens (97% fertile eggs); \"No significant differences were found in the fertilization rates following insemination with the control- or EDC-group semen, regardless of whether the hens were from the control or EDC group\"; Dietary concentrations of 250 and 500 ppm were adjusted for 70% measured exposure concentration to obtain concentrations of 175 and 350 ppm; IR in 500ppm (adjusted to 350ppm) dose group average is across 3-18 month duration value from Table 6 converted to kg/d [41.4 kg/hen / 16 months / 30 days/month = 0.09]."]
["Reproduction",1,7,"Alumot et al. 1976","1,2-Dichloroethane",100,"Chicken (Gallus gallus)","White Leghorn",9,3,"0/175/350","ppm in mg/kg","NR",100,"3 per d","UX","FD",2,"yr",0,"w","AD","M","C","Lab",2,"EGG","FTEG","EG",350,null,1.82,"NR","Medium",5435200,null,"Fertilization rate; treated cocks and control hens (87% fertile eggs) vs. control cocks and control hens (97% fertile eggs); \"No significant differences were found in the fertilization rates following insemination with the control- or EDC-group semen, regardless of whether the hens were from the control or EDC group\"; Dietary concentrations of 250 and 500 ppm were adjusted for 70% measured exposure concentration to obtain concentrations of 175 and 350 ppm; Body weight for 500ppm (adjusted to 350ppm) dose group is male body weight (1.82 kg) at 4.5 months old (best information available)."]
["Growth",1,8,"Alumot et al. 1976","1,2-Dichloroethane",100,"Chicken (Gallus gallus)","White Leghorn",1,3,"0/175/350","ppm in mg/kg","NR",100,"3 per d","UX","FD",8,"w",0,"w","JV","BH","C","Lab",3,"GRO","BDWT","WO",350,null,0.70599999999999996,5.74E-2,"Medium",5435200,null,"Body weight; \"Records of growth…during the first 8 wk of the trial (Table 1) showed no differences between the control and EDC-treated groups.\" Dietary concentrations of 250 and 500 ppm were adjusted for 70% measured exposure concentration to obtain concentrations of 175 and 350 ppm; Body weight is weight at 8 weeks presented in Table 1 for the 500 ppm (adjusted to 350ppm) dose group. IR calculated as weight gain/feed efficiency [(((703g-513g)/0.24)/2 wk)/7d = 57.4 g/d]."]
["Growth",1,9,"Alumot et al. 1976","1,2-Dichloroethane",100,"Chicken (Gallus gallus)","White Leghorn",2,3,"0/175/350","ppm in mg/kg","NR",100,"3 per d","UX","FD",4.5,"mo",0,"w","JV","F","C","Lab",3,"GRO","BDWT","WO",350,null,1.363,"NR","Medium",5435200,null,"Body weight; \"the chicks were weighed monthly, and at 4.5 months of age...there was again no significant difference between treatments.\" Dietary concentrations of 250 and 500 ppm were adjusted for 70% measured exposure concentration to obtain concentrations of 175 and 350 ppm."]
["Growth",1,10,"Alumot et al. 1976","1,2-Dichloroethane",100,"Chicken (Gallus gallus)","White Leghorn",3,3,"0/175/350","ppm in mg/kg","NR",100,"3 per d","UX","FD",4.5,"mo",0,"w","JV","M","C","Lab",3,"GRO","BDWT","WO",350,null,1.82,"NR","Medium",5435200,null,"Body weight; \"the chicks were weighed monthly, and at 4.5 months of age...there was again no significant difference between treatments.\" Dietary concentrations of 250 and 500 ppm were adjusted for 70% measured exposure concentration to obtain concentrations of 175 and 350 ppm."]
["Data Not Used",1,11,"Alumot et al. 1976","1,2-Dichloroethane",100,"Chicken (Gallus gallus)","White Leghorn",5,3,"0/175/350","ppm in mg/kg","NR",100,"3 per d","UX","FD",8.5,"mo",0,"w","LB","F","C","Lab",null,"REP","RSUC","WO",175,350,"NR",0.1,"Medium",5435200,null,"REP effect group, data not used because there is another entry with the same NOAEL/LOAEL for this effect group. Layers' production rate (%); Dietary concentrations of 250 and 500 ppm were adjusted for 70% measured exposure concentration to obtain concentrations of 175 and 350 ppm; IR in 500ppm (adjusted to 350ppm) dose group is average across 3-4 month duration sum from Table 6 converted to kg/d [6.1 kg/hen / 2 months / 30 days/month = 0.10];Exposure duration = 4.5 months + 4 months into egg laying period."]
["Data Not Used",1,12,"Alumot et al. 1976","1,2-Dichloroethane",100,"Chicken (Gallus gallus)","White Leghorn",7,3,"0/175/350","ppm in mg/kg","NR",100,"3 per d","UX","FD",2,"yr",0,"w","AD","BH","C","Lab",null,"REP","HTCH","EG",350,null,"NR",0.09,"Medium",5435200,null,"REP effect group, data not used because there is another entry with the same NOAEL for this effect group; Hatchability (% of fertile eggs); treated cocks and treated hens; Dietary concentrations of 250 and 500 ppm were adjusted for 70% measured exposure concentration to obtain concentrations of 175 and 350 ppm; IR in 500ppm (adjusted to 350ppm) dose group is average across 3-18 month duration value from Table 6 converted to kg/d [41.4 kg/hen / 16 months / 30 days/month = 0.09]."]
["Data Not Used",1,13,"Alumot et al. 1976","1,2-Dichloroethane",100,"Chicken (Gallus gallus)","White Leghorn",7,3,"0/175/350","ppm in mg/kg","NR",100,"3 per d","UX","FD",2,"yr",0,"w","AD","BH","C","Lab",null,"REP","PRWT","PY",350,null,"NR",0.09,"Medium",5435200,null,"REP effect group, data not used because there is another entry with the same NOAEL for this effect group; Chick weight; treated cocks and treated hens; Dietary concentrations of 250 and 500 ppm were adjusted for 70% measured exposure concentration to obtain concentrations of 175 and 350 ppm; IR in 500ppm (adjusted to 350ppm) dose group is average across 3-18 month duration value from Table 6 converted to kg/d [41.4 kg/hen / 16 months / 30 days/month = 0.09]."]
["Data Not Used",1,14,"Alumot et al. 1976","1,2-Dichloroethane",100,"Chicken (Gallus gallus)","White Leghorn",8,3,"0/175/350","ppm in mg/kg","NR",100,"3 per d","UX","FD",2,"yr",0,"w","LB","F","C","Lab",null,"REP","HTCH","EG",350,null,"NR",0.09,"Medium",5435200,null,"REP effect group, data not used because there is another entry with the same NOAEL for this effect group. Hatchability (% of fertile eggs); control cocks and treated hens; Dietary concentrations of 250 and 500 ppm were adjusted for 70% measured exposure concentration to obtain concentrations of 175 and 350 ppm; IR in 500ppm (adjusted to 350ppm) dose group is average across 3-18 month duration value from Table 6 converted to kg/d [41.4 kg/hen / 16 months / 30 days/month = 0.09]."]
["Data Not Used",1,15,"Alumot et al. 1976","1,2-Dichloroethane",100,"Chicken (Gallus gallus)","White Leghorn",8,3,"0/175/350","ppm in mg/kg","NR",100,"3 per d","UX","FD",2,"yr",0,"w","LB","F","C","Lab",null,"REP","PRWT","PY",350,null,"NR",0.09,"Medium",5435200,null,"REP effect group, data not used because there is another entry with the same NOAEL for this effect group. Chick weight; control cocks and treated hens; Dietary concentrations of 250 and 500 ppm were adjusted for 70% measured exposure concentration to obtain concentrations of 175 and 350 ppm; IR in 500ppm (adjusted to 350ppm) dose group is average across 3-18 month duration value from Table 6 converted to kg/d [41.4 kg/hen / 16 months / 30 days/month = 0.09]."]
["Data Not Used",1,16,"Alumot et al. 1976","1,2-Dichloroethane",100,"Chicken (Gallus gallus)","White Leghorn",8,3,"0/175/350","ppm in mg/kg","NR",100,"3 per d","UX","FD",2,"yr",0,"w","LB","F","C","Lab",null,"REP","RSUC","WO",350,null,"NR",0.09,"Medium",5435200,null,"REP effect group, data not used because there is another entry with the same NOAEL for this effect group. Laying hens, % of total; Dietary concentrations of 250 and 500 ppm were adjusted for 70% measured exposure concentration to obtain concentrations of 175 and 350 ppm; IR in 500ppm (adjusted to 350ppm) dose group is average across 3-18 month duration value from Table 6 converted to kg/d [41.4 kg/hen / 16 months / 30 days/month = 0.09]. "]
["Data Not Used",1,17,"Alumot et al. 1976","1,2-Dichloroethane",100,"Chicken (Gallus gallus)","White Leghorn",9,3,"0/175/350","ppm in mg/kg","NR",100,"3 per d","UX","FD",2,"yr",0,"w","AD","M","C","Lab",null,"REP","HTCH","EG",350,null,1.82,"NR","Medium",5435200,null,"REP effect group, data not used because there is another entry with the same NOAEL for this effect group. Hatchability (% of fertile eggs); treated cocks and control hens; Dietary concentrations of 250 and 500 ppm were adjusted for 70% measured exposure concentration to obtain concentrations of 175 and 350 ppm; Body weight for 500ppm (adjusted to 350ppm) dose group is male body weight (1.82 kg) at 4.5 months old (best information available)."]
["Data Not Used",1,18,"Alumot et al. 1976","1,2-Dichloroethane",100,"Chicken (Gallus gallus)","White Leghorn",9,3,"0/175/350","ppm in mg/kg","NR",100,"3 per d","UX","FD",2,"yr",0,"w","AD","M","C","Lab",null,"REP","PRWT","PY",350,null,1.82,"NR","Medium",5435200,null,"REP effect group, data not used because there is another entry with the same NOAEL for this effect group. Chick weight; treated cocks and control hens; Dietary concentrations of 250 and 500 ppm were adjusted for 70% measured exposure concentration to obtain concentrations of 175 and 350 ppm; Body weight for 500ppm (adjusted to 350ppm) dose group is male body weight (1.82 kg) at 4.5 months old (best information available)."]

{"sheet":"Calculator","index":5,"n_rows":59,"n_cols":64,"rows_kept":59,"cut":false,"hidden":false,"merged":[[1,0,1,32],[1,33,1,48],[1,49,2,51],[1,58,1,59],[2,1,2,3],[2,4,2,22],[2,26,2,28]]}
["Copy cells A5:AG72 in the 'Data Entry' tab and paste into cells A6:AG73 in this tab.",null,null,null,null,null,null,null,null,null,null,null,null,"UNIT ERROR MESSAGE:",{"$f":"IF(OR(BG3=\"Yes\",BH3=\"Yes\"),\"Conc/Dose Units entered do not allow for auto calculation, manual calculation neededmanual calculation needed in red cell(s) in columns AY and/or AZ.\",\"NO ERROR\")","v":"NO ERROR"},null,null,null,null,null,null,null,null,null,null,null,"BW ERROR MESSAGE:",{"$f":"IF(ISERROR(VLOOKUP(\"X\",BF5:BF59,1,FALSE))=TRUE,\"NO ERROR\",\"BODY WEIGHT NEEDS MANUAL ENTRY IN RED CELL(S) IN COLUMN AX\")","v":"NO ERROR"}]
["FIELDS COPIED FROM 'DATA ENTRY' TAB and Manually Entered Here:",null,null,null,null,null,null,null,null,null,null,null,null,null,null,null,null,null,null,null,null,null,null,null,null,null,null,null,null,null,null,null,null,"AUTO-GENERATED FIELDS",null,null,null,null,null,null,null,null,null,null,null,null,null,null,null,"Manual Entry if Errors Occur (cells will be highlighted red in these columns)",null,null,null,null,null,null,null,null,"Error?"]
[null,"Ref",null,null,"Exposure",null,null,null,null,null,null,null,null,null,null,null,null,null,null,null,null,null,null,null,null,null,"Effects",null,null,null,null,null,null,null,null,null,null,null,null,null,null,null,null,null,null,null,null,null,null,null,null,null,null,null,null,null,null,null,{"$f":"IF(ISERROR(VLOOKUP(\"X\",BG5:BG59,1,FALSE))=TRUE,\"No\",\"Yes\")","v":"No"},{"$f":"IF(ISERROR(VLOOKUP(\"X\",BH5:BH59,1,FALSE))=TRUE,\"No\",\"Yes\")","v":"No"}]
["Effect Group","Result #","Ref N.","Reference","Chemical Form","MW%","Test Species","Specific Organism Type","Phase #","# of Conc/ Doses","Conc/ Doses","Conc/Dose Units","Wet Weight Reported?","Percent Moisture","Application Frequency","Method of Analyses","Route of Exposure","Exposure Duration","Duration Units","Age","Age Units","Lifestage","Sex","Control Type","Test Location","Endpoint Number","Effect Type","Effect Measure","Response Site","Study NOAEL","Study LOAEL","Reported Body Weight (kg)","Reported Ingestion Rate (in kg or L/day)","General Organism Type","Bird or Mammal?","Specific Organism Type","Application freq (d/w)","Min age","Max age","Min age (days)","Max age (days)","Lifestage","Sex","Show BW?","Show FIR?","BW (kg)","FIR (kg/day) or WIR (L/day)","NOAEL Dose (mg/kg/day)*","LOAEL Dose (mg/kg/day)*","If BW error message occurs, enter BW in kg in this column based on professional judgement","If Unit error message occurs, manually calculate the NOAEL Dose in mg/kg/day and enter in this column.","If Unit error message occurs, manually calculate the LOAEL Dose in mg/kg/day and enter in this column.","BW (kg)","BW to use in dose calc","FIR (kg/day) or WIR (L/day)","NOAEL Dose (mg/kg/day)*","LOAEL Dose (mg/kg/day)*","BW Cond Formatting","NOAEL Dose Cond formatting","NOAEL Dose Cond formatting","FINAL NOAEL Dose (mg/kg/day)*","FINAL LOAEL Dose (mg/kg/day)*","MW(%) to use in calcs","Geometric Mean"]
["Behavior",1,1,"Alumot et al. 1976","1,2-Dichloroethane",100,"Chicken (Gallus gallus)","White Leghorn",1,3,"0/175/350","ppm in mg/kg","NR",100,"3 per d","UX","FD",8,"w",0,"w","JV","BH","C","Lab",1,"FDB","FEFF","WO",350,null,0.70599999999999996,5.74E-2,{"$f":"IF(A5=\"\",\"\",TRIM(LEFT(G5,FIND(\"(\",G5)-2)))","v":"Chicken"},{"$f":"VLOOKUP(AH5,Index!$L$2:$Q$30,6,FALSE)","v":"bird"},{"$f":"IF(A5=\"\",\"\",IF(OR(H5=\"\",H5=\"unspecified\"),\"unspecified\",H5))","v":"White Leghorn"},{"$f":"IF(RIGHT(O5,5)=\"per w\",LEFT(O5,1)/7,1)","v":1},{"$f":"IF(A5=\"\",\"\",IF(ISERROR(FIND(\"-\",T5))=TRUE,T5,LEFT(T5,FIND(\"-\",T5)-1)))","v":0},{"$f":"IF(A5=\"\",\"\",IF(ISERROR(FIND(\"-\",T5))=TRUE,T5,RIGHT(T5,LEN(T5)-FIND(\"-\",T5))))","v":0},{"$f":"IF(A5=\"\",\"\",IF(U5=\"NR\",\"NR\",AL5*IF(U5=\"d\",1,IF(U5=\"mo\",30.5,IF(U5=\"w\",7,IF(U5=\"yr\",365,\"ERROR\"))))))","v":0},{"$f":"IF(A5=\"\",\"\",IF(U5=\"NR\",\"NR\",AM5*IF(U5=\"d\",1,IF(U5=\"mo\",30.5,IF(U5=\"w\",7,IF(U5=\"yr\",365,\"ERROR\"))))))","v":0},{"$f":"IF(A5=\"\",\"\",IF(V5=\"JV\",\"juvenile\",\"adult\"))","v":"juvenile"},{"$f":"IF(A5=\"\",\"\",IF(W5=\"M\",\"M\",IF(W5=\"F\",\"F\",\"B\")))","v":"B"},{"$f":"IF(AF5<>\"NR\",\"yes\",IF(OR(L5=\"mg/kg bw/d\",L5=\"mg/kg/bw/d\",L5=\"mg/kg/d\",L5=\"ug/g bw/d\",L5=\"ug/kg bw/d\",L5=\"g/kg bw/d\",L5=\"mg/g bw/d\"),\"no\",\"yes\"))","v":"yes"},{"$f":"IF(AG5<>\"NR\",\"yes\",IF(AR5=\"no\",\"no\",IF(OR(L5=\"mg/org/d\",L5=\"mg/d\",L5=\"g/d\",L5=\"g/org/d\",L5=\"g/org/day\",L5=\"ug/org/d\"),\"no\",\"yes\")))","v":"yes"},{"$f":"BB5","v":0.70599999999999996},{"$f":"IF(BC5=\"\",\"\",sigfig(BC5,4))","v":5.74E-2},{"$f":"IF(BI5=\"\",\"\",IF(AND(BI5>=10,BI5<10000),MROUND(BI5,1),sigfig(BI5,2)))","v":28},{"$f":"IF(BJ5=\"\",\"\",IF(AND(BJ5>=10,BJ5<10000),MROUND(BJ5,1),sigfig(BJ5,2)))","v":""},null,null,null,{"$f":"IF(A5=\"\",\"\",IF(AR5=\"no\",\"\",IF(ISERROR(IF(AF5<>\"NR\",AF5,IF(AM5=\"NR\",IF(AQ5=\"B\",VLOOKUP(AH5&AJ5&AP5,'Default BW IR-Formatted by LS'!$AB$4:$AF$83,5,FALSE),VLOOKUP(AH5&AJ5&AQ5&AP5,'Default BW IR-Formatted by LS'!$S$4:$X$124,6,FALSE)),VLOOKUP(AO5,INDIRECT(\"'Default BW IR-Formatted by age'!\"&VLOOKUP(AH5&AJ5&AQ5,Index!$A$2:$E$151,5,FALSE)),2,TRUE))))=TRUE,\"ERROR\",IF(AF5<>\"NR\",AF5,IF(AM5=\"NR\",IF(AQ5=\"B\",VLOOKUP(AH5&AJ5&AP5,'Default BW IR-Formatted by LS'!$AB$4:$AF$83,5,FALSE),VLOOKUP(AH5&AJ5&AQ5&AP5,'Default BW IR-Formatted by LS'!$S$4:$X$124,6,FALSE)),VLOOKUP(AO5,INDIRECT(\"'Default BW IR-Formatted by age'!\"&VLOOKUP(AH5&AJ5&AQ5,Index!$A$2:$E$151,5,FALSE)),2,TRUE))))))","v":0.70599999999999996},{"$f":"IF(OR(ISERROR(BA5)=TRUE,BA5=\"ERROR\"),AX5,BA5)","v":0.70599999999999996},{"$f":"IF(A5=\"\",\"\",IF(AS5=\"no\",\"\",IF(AG5<>\"NR\",AG5,IF(OR(L5=\"mg/L\",L5=\"ppm in mg/L\",L5=\"mg/ml\",L5=\"% in water\",L5=\"% water\",L5=\"g/L\",L5=\"ug/L\"),IF(AI5=\"bird\",0.059*BB5^0.67,0.099*BB5^0.9),(((BB5*1000)^VLOOKUP(AH5,Index!$L$2:$N$30,3,FALSE))*VLOOKUP(AH5,Index!$L$2:$N$30,2,FALSE))/1000))))","v":5.74E-2},{"$f":"IF(AD5=\"\",\"\",IF(OR(L5=\"mg/kg bw/d\",L5=\"mg/kg/bw/d\",L5=\"mg/kg/d\",L5=\"ug/g bw/d\"),BK5/100*AD5*AK5,IF(OR(L5=\"mg/org/d\",L5=\"mg/d\"),BK5/100*AD5/BB5*AK5,IF(OR(L5=\"mg/kg diet\",L5=\"mg/L\",L5=\"ppm in mg/kg\",L5=\"mg/kg\",L5=\"ug/g diet\",L5=\"ug/g\",L5=\"ppm in mg/L\"),BK5/100*AD5*BC5/BB5*AK5,IF(OR(L5=\"mg/ml\",L5=\"mg/g\",L5=\"g/L\",L5=\"g/kg diet\",L5=\"mg/g diet\"),BK5/100*(AD5*1000)*BC5/BB5*AK5,IF(OR(L5=\"% in diet\", L5=\"% in water\", L5=\"% water\"),BK5/100*(AD5*10000)*BC5/BB5*AK5,IF( L5=\"ug/kg bw/d\",BK5/100*AD5/1000*AK5,IF(OR(L5=\"g/kg bw/d\",L5=\"mg/g bw/d\"),BK5/100*AD5*1000*AK5,IF(OR(L5=\"g/d\",L5=\"g/org/d\",L5=\"g/org/day\"),BK5/100*AD5*1000/BB5*AK5,IF(OR(L5=\"ug/kg\",L5=\"ng/g diet\",L5=\"ug/kg diet\",L5=\"ug/L\"),BK5/100*AD5/1000*BC5/BB5*AK5,IF(L5=\"ug/org/d\",BK5/100*AD5/1000/BB5*AK5,NA())))))))))))","v":28.456090651558075},{"$f":"IF(AE5=\"\",\"\",IF(OR(L5=\"mg/kg bw/d\",L5=\"mg/kg/bw/d\",L5=\"mg/kg/d\",L5=\"ug/g bw/d\"),BK5/100*AE5*AK5,IF(OR(L5=\"mg/org/d\",L5=\"mg/d\"),BK5/100*AE5/BB5*AK5,IF(OR(L5=\"mg/kg diet\",L5=\"mg/L\",L5=\"ppm in mg/kg\",L5=\"mg/kg\",L5=\"ug/g diet\",L5=\"ug/g\",L5=\"ppm in mg/L\"),BK5/100*AE5*BC5/BB5*AK5,IF(OR(L5=\"mg/ml\",L5=\"mg/g\",L5=\"g/L\",L5=\"g/kg diet\",L5=\"mg/g diet\"),BK5/100*(AE5*1000)*BC5/BB5*AK5,IF(OR(L5=\"% in diet\", L5=\"% in water\", L5=\"% water\"),BK5/100*(AE5*10000)*BC5/BB5*AK5,IF( L5=\"ug/kg bw/d\",BK5/100*AE5/1000*AK5,IF(OR(L5=\"g/kg bw/d\",L5=\"mg/g bw/d\"),BK5/100*AE5*1000*AK5,IF(OR(L5=\"g/d\",L5=\"g/org/d\",L5=\"g/org/day\"),BK5/100*AE5*1000/BB5*AK5,IF(OR(L5=\"ug/kg\",L5=\"ng/g diet\",L5=\"ug/kg diet\",L5=\"ug/L\"),BK5/100*AE5/1000*BC5/BB5*AK5,IF(L5=\"ug/org/d\",BK5/100*AE5/1000/BB5*AK5,NA())))))))))))","v":""},{"$f":"IF(AND(OR(ISERROR(BA5)=TRUE,BA5=\"ERROR\"),AX5=\"\"),\"X\",\"\")","v":""},{"$f":"IF(BF5=\"X\",\"\",IF(AND(ISERROR(BD5)=TRUE,AY5=\"\"),\"X\",\"\"))","v":""},{"$f":"IF(BF5=\"X\",\"\",IF(AND(ISERROR(BE5)=TRUE,AZ5=\"\"),\"X\",\"\"))","v":""},{"$f":"IF(ISNUMBER(AY5)=TRUE,AY5,BD5)","v":28.456090651558075},{"$f":"IF(ISNUMBER(AZ5)=TRUE,AZ5,BE5)","v":""},{"$f":"IF(F5>=90,100,F5)","v":100}]
["Behavior",1,2,"Alumot et al. 1976","1,2-Dichloroethane",100,"Chicken (Gallus gallus)","White Leghorn",6,3,"0/175/350","ppm in mg/kg","NR",100,"3 per d","UX","FD",13.5,"mo",0,"w","LB","F","C","Lab",1,"FDB","FCNS","WO",175,350,"NR",0.08,"Chicken",{"$f":"VLOOKUP(AH6,Index!$L$2:$Q$30,6,FALSE)","v":"bird"},"White Leghorn",1,0,0,0,0,"adult","F","yes","yes",1.6,{"$f":"IF(BC6=\"\",\"\",sigfig(BC6,4))","v":0.08},{"$f":"IF(BI6=\"\",\"\",IF(AND(BI6>=10,BI6<10000),MROUND(BI6,1),sigfig(BI6,2)))","v":{"$error":"#NAME?"}},{"$f":"IF(BJ6=\"\",\"\",IF(AND(BJ6>=10,BJ6<10000),MROUND(BJ6,1),sigfig(BJ6,2)))","v":18},1.6,null,null,{"$f":"IF(A6=\"\",\"\",IF(AR6=\"no\",\"\",IF(ISERROR(IF(AF6<>\"NR\",AF6,IF(AM6=\"NR\",IF(AQ6=\"B\",VLOOKUP(AH6&AJ6&AP6,'Default BW IR-Formatted by LS'!$AB$4:$AF$83,5,FALSE),VLOOKUP(AH6&AJ6&AQ6&AP6,'Default BW IR-Formatted by LS'!$S$4:$X$124,6,FALSE)),VLOOKUP(AO6,INDIRECT(\"'Default BW IR-Formatted by age'!\"&VLOOKUP(AH6&AJ6&AQ6,Index!$A$2:$E$151,5,FALSE)),2,TRUE))))=TRUE,\"ERROR\",IF(AF6<>\"NR\",AF6,IF(AM6=\"NR\",IF(AQ6=\"B\",VLOOKUP(AH6&AJ6&AP6,'Default BW IR-Formatted by LS'!$AB$4:$AF$83,5,FALSE),VLOOKUP(AH6&AJ6&AQ6&AP6,'Default BW IR-Formatted by LS'!$S$4:$X$124,6,FALSE)),VLOOKUP(AO6,INDIRECT(\"'Default BW IR-Formatted by age'!\"&VLOOKUP(AH6&AJ6&AQ6,Index!$A$2:$E$151,5,FALSE)),2,TRUE))))))","v":"ERROR"},1.6,{"$f":"IF(A6=\"\",\"\",IF(AS6=\"no\",\"\",IF(AG6<>\"NR\",AG6,IF(OR(L6=\"mg/L\",L6=\"ppm in mg/L\",L6=\"mg/ml\",L6=\"% in water\",L6=\"% water\",L6=\"g/L\",L6=\"ug/L\"),IF(AI6=\"bird\",0.059*BB6^0.67,0.099*BB6^0.9),(((BB6*1000)^VLOOKUP(AH6,Index!$L$2:$N$30,3,FALSE))*VLOOKUP(AH6,Index!$L$2:$N$30,2,FALSE))/1000))))","v":0.08},8.75,17.5,"","","",8.75,17.5,100,{"$f":"GEOMEAN(AV6:AW6)","v":{"$error":"#NAME?"}}]
["Reproduction",1,3,"Alumot et al. 1976","1,2-Dichloroethane",100,"Chicken (Gallus gallus)","White Leghorn",4,3,"0/175/350","ppm in mg/kg","NR",100,"3 per d","UX","FD",7.5,"mo",0,"w","LB","F","C","Lab",2,"EGG","EGWT","EG",null,175,"NR",0.09,"Chicken",{"$f":"VLOOKUP(AH7,Index!$L$2:$Q$30,6,FALSE)","v":"bird"},"White Leghorn",1,0,0,0,0,"adult","F","yes","yes",1.6,{"$f":"IF(BC7=\"\",\"\",sigfig(BC7,4))","v":0.09},{"$f":"IF(BI7=\"\",\"\",IF(AND(BI7>=10,BI7<10000),MROUND(BI7,1),sigfig(BI7,2)))","v":""},{"$f":"IF(BJ7=\"\",\"\",IF(AND(BJ7>=10,BJ7<10000),MROUND(BJ7,1),sigfig(BJ7,2)))","v":{"$error":"#NAME?"}},1.6,null,null,{"$f":"IF(A7=\"\",\"\",IF(AR7=\"no\",\"\",IF(ISERROR(IF(AF7<>\"NR\",AF7,IF(AM7=\"NR\",IF(AQ7=\"B\",VLOOKUP(AH7&AJ7&AP7,'Default BW IR-Formatted by LS'!$AB$4:$AF$83,5,FALSE),VLOOKUP(AH7&AJ7&AQ7&AP7,'Default BW IR-Formatted by LS'!$S$4:$X$124,6,FALSE)),VLOOKUP(AO7,INDIRECT(\"'Default BW IR-Formatted by age'!\"&VLOOKUP(AH7&AJ7&AQ7,Index!$A$2:$E$151,5,FALSE)),2,TRUE))))=TRUE,\"ERROR\",IF(AF7<>\"NR\",AF7,IF(AM7=\"NR\",IF(AQ7=\"B\",VLOOKUP(AH7&AJ7&AP7,'Default BW IR-Formatted by LS'!$AB$4:$AF$83,5,FALSE),VLOOKUP(AH7&AJ7&AQ7&AP7,'Default BW IR-Formatted by LS'!$S$4:$X$124,6,FALSE)),VLOOKUP(AO7,INDIRECT(\"'Default BW IR-Formatted by age'!\"&VLOOKUP(AH7&AJ7&AQ7,Index!$A$2:$E$151,5,FALSE)),2,TRUE))))))","v":"ERROR"},1.6,{"$f":"IF(A7=\"\",\"\",IF(AS7=\"no\",\"\",IF(AG7<>\"NR\",AG7,IF(OR(L7=\"mg/L\",L7=\"ppm in mg/L\",L7=\"mg/ml\",L7=\"% in water\",L7=\"% water\",L7=\"g/L\",L7=\"ug/L\"),IF(AI7=\"bird\",0.059*BB7^0.67,0.099*BB7^0.9),(((BB7*1000)^VLOOKUP(AH7,Index!$L$2:$N$30,3,FALSE))*VLOOKUP(AH7,Index!$L$2:$N$30,2,FALSE))/1000))))","v":0.09},"",9.84375,"","","","",9.84375,100]
["Reproduction",1,4,"Alumot et al. 1976","1,2-Dichloroethane",100,"Chicken (Gallus gallus)","White Leghorn",5,3,"0/175/350","ppm in mg/kg","NR",100,"3 per d","UX","FD",8.5,"mo",0,"w","LB","F","C","Lab",2,"REP","RSUC","WO",175,350,"NR",0.1,"Chicken",{"$f":"VLOOKUP(AH8,Index!$L$2:$Q$30,6,FALSE)","v":"bird"},"White Leghorn",1,0,0,0,0,"adult","F","yes","yes",1.6,{"$f":"IF(BC8=\"\",\"\",sigfig(BC8,4))","v":0.1},{"$f":"IF(BI8=\"\",\"\",IF(AND(BI8>=10,BI8<10000),MROUND(BI8,1),sigfig(BI8,2)))","v":11},{"$f":"IF(BJ8=\"\",\"\",IF(AND(BJ8>=10,BJ8<10000),MROUND(BJ8,1),sigfig(BJ8,2)))","v":22},1.6,null,null,{"$f":"IF(A8=\"\",\"\",IF(AR8=\"no\",\"\",IF(ISERROR(IF(AF8<>\"NR\",AF8,IF(AM8=\"NR\",IF(AQ8=\"B\",VLOOKUP(AH8&AJ8&AP8,'Default BW IR-Formatted by LS'!$AB$4:$AF$83,5,FALSE),VLOOKUP(AH8&AJ8&AQ8&AP8,'Default BW IR-Formatted by LS'!$S$4:$X$124,6,FALSE)),VLOOKUP(AO8,INDIRECT(\"'Default BW IR-Formatted by age'!\"&VLOOKUP(AH8&AJ8&AQ8,Index!$A$2:$E$151,5,FALSE)),2,TRUE))))=TRUE,\"ERROR\",IF(AF8<>\"NR\",AF8,IF(AM8=\"NR\",IF(AQ8=\"B\",VLOOKUP(AH8&AJ8&AP8,'Default BW IR-Formatted by LS'!$AB$4:$AF$83,5,FALSE),VLOOKUP(AH8&AJ8&AQ8&AP8,'Default BW IR-Formatted by LS'!$S$4:$X$124,6,FALSE)),VLOOKUP(AO8,INDIRECT(\"'Default BW IR-Formatted by age'!\"&VLOOKUP(AH8&AJ8&AQ8,Index!$A$2:$E$151,5,FALSE)),2,TRUE))))))","v":"ERROR"},1.6,{"$f":"IF(A8=\"\",\"\",IF(AS8=\"no\",\"\",IF(AG8<>\"NR\",AG8,IF(OR(L8=\"mg/L\",L8=\"ppm in mg/L\",L8=\"mg/ml\",L8=\"% in water\",L8=\"% water\",L8=\"g/L\",L8=\"ug/L\"),IF(AI8=\"bird\",0.059*BB8^0.67,0.099*BB8^0.9),(((BB8*1000)^VLOOKUP(AH8,Index!$L$2:$N$30,3,FALSE))*VLOOKUP(AH8,Index!$L$2:$N$30,2,FALSE))/1000))))","v":0.1},10.9375,21.875,"","","",10.9375,21.875,100,{"$f":"GEOMEAN(AV8:AW8)","v":15.556349186104045}]
["Reproduction",1,5,"Alumot et al. 1976","1,2-Dichloroethane",100,"Chicken (Gallus gallus)","White Leghorn",7,3,"0/175/350","ppm in mg/kg","NR",100,"3 per d","UX","FD",2,"yr",0,"w","AD","BH","C","Lab",2,"EGG","FTEG","EG",350,null,"NR",0.09,"Chicken",{"$f":"VLOOKUP(AH9,Index!$L$2:$Q$30,6,FALSE)","v":"bird"},"White Leghorn",1,0,0,0,0,"adult","B","yes","yes",1.6,{"$f":"IF(BC9=\"\",\"\",sigfig(BC9,4))","v":0.09},{"$f":"IF(BI9=\"\",\"\",IF(AND(BI9>=10,BI9<10000),MROUND(BI9,1),sigfig(BI9,2)))","v":20},{"$f":"IF(BJ9=\"\",\"\",IF(AND(BJ9>=10,BJ9<10000),MROUND(BJ9,1),sigfig(BJ9,2)))","v":""},1.6,null,null,{"$f":"IF(A9=\"\",\"\",IF(AR9=\"no\",\"\",IF(ISERROR(IF(AF9<>\"NR\",AF9,IF(AM9=\"NR\",IF(AQ9=\"B\",VLOOKUP(AH9&AJ9&AP9,'Default BW IR-Formatted by LS'!$AB$4:$AF$83,5,FALSE),VLOOKUP(AH9&AJ9&AQ9&AP9,'Default BW IR-Formatted by LS'!$S$4:$X$124,6,FALSE)),VLOOKUP(AO9,INDIRECT(\"'Default BW IR-Formatted by age'!\"&VLOOKUP(AH9&AJ9&AQ9,Index!$A$2:$E$151,5,FALSE)),2,TRUE))))=TRUE,\"ERROR\",IF(AF9<>\"NR\",AF9,IF(AM9=\"NR\",IF(AQ9=\"B\",VLOOKUP(AH9&AJ9&AP9,'Default BW IR-Formatted by LS'!$AB$4:$AF$83,5,FALSE),VLOOKUP(AH9&AJ9&AQ9&AP9,'Default BW IR-Formatted by LS'!$S$4:$X$124,6,FALSE)),VLOOKUP(AO9,INDIRECT(\"'Default BW IR-Formatted by age'!\"&VLOOKUP(AH9&AJ9&AQ9,Index!$A$2:$E$151,5,FALSE)),2,TRUE))))))","v":"ERROR"},1.6,{"$f":"IF(A9=\"\",\"\",IF(AS9=\"no\",\"\",IF(AG9<>\"NR\",AG9,IF(OR(L9=\"mg/L\",L9=\"ppm in mg/L\",L9=\"mg/ml\",L9=\"% in water\",L9=\"% water\",L9=\"g/L\",L9=\"ug/L\"),IF(AI9=\"bird\",0.059*BB9^0.67,0.099*BB9^0.9),(((BB9*1000)^VLOOKUP(AH9,Index!$L$2:$N$30,3,FALSE))*VLOOKUP(AH9,Index!$L$2:$N$30,2,FALSE))/1000))))","v":0.09},19.6875,"","","","",19.6875,"",100]
["Reproduction",1,6,"Alumot et al. 1976","1,2-Dichloroethane",100,"Chicken (Gallus gallus)","White Leghorn",8,3,"0/175/350","ppm in mg/kg","NR",100,"3 per d","UX","FD",2,"yr",0,"w","LB","F","C","Lab",2,"EGG","FTEG","EG",350,null,"NR",0.09,"Chicken",{"$f":"VLOOKUP(AH10,Index!$L$2:$Q$30,6,FALSE)","v":"bird"},"White Leghorn",1,0,0,0,0,"adult","F","yes","yes",1.6,{"$f":"IF(BC10=\"\",\"\",sigfig(BC10,4))","v":0.09},{"$f":"IF(BI10=\"\",\"\",IF(AND(BI10>=10,BI10<10000),MROUND(BI10,1),sigfig(BI10,2)))","v":20},{"$f":"IF(BJ10=\"\",\"\",IF(AND(BJ10>=10,BJ10<10000),MROUND(BJ10,1),sigfig(BJ10,2)))","v":""},1.6,null,null,{"$f":"IF(A10=\"\",\"\",IF(AR10=\"no\",\"\",IF(ISERROR(IF(AF10<>\"NR\",AF10,IF(AM10=\"NR\",IF(AQ10=\"B\",VLOOKUP(AH10&AJ10&AP10,'Default BW IR-Formatted by LS'!$AB$4:$AF$83,5,FALSE),VLOOKUP(AH10&AJ10&AQ10&AP10,'Default BW IR-Formatted by LS'!$S$4:$X$124,6,FALSE)),VLOOKUP(AO10,INDIRECT(\"'Default BW IR-Formatted by age'!\"&VLOOKUP(AH10&AJ10&AQ10,Index!$A$2:$E$151,5,FALSE)),2,TRUE))))=TRUE,\"ERROR\",IF(AF10<>\"NR\",AF10,IF(AM10=\"NR\",IF(AQ10=\"B\",VLOOKUP(AH10&AJ10&AP10,'Default BW IR-Formatted by LS'!$AB$4:$AF$83,5,FALSE),VLOOKUP(AH10&AJ10&AQ10&AP10,'Default BW IR-Formatted by LS'!$S$4:$X$124,6,FALSE)),VLOOKUP(AO10,INDIRECT(\"'Default BW IR-Formatted by age'!\"&VLOOKUP(AH10&AJ10&AQ10,Index!$A$2:$E$151,5,FALSE)),2,TRUE))))))","v":"ERROR"},1.6,{"$f":"IF(A10=\"\",\"\",IF(AS10=\"no\",\"\",IF(AG10<>\"NR\",AG10,IF(OR(L10=\"mg/L\",L10=\"ppm in mg/L\",L10=\"mg/ml\",L10=\"% in water\",L10=\"% water\",L10=\"g/L\",L10=\"ug/L\"),IF(AI10=\"bird\",0.059*BB10^0.67,0.099*BB10^0.9),(((BB10*1000)^VLOOKUP(AH10,Index!$L$2:$N$30,3,FALSE))*VLOOKUP(AH10,Index!$L$2:$N$30,2,FALSE))/1000))))","v":0.09},19.6875,"","","","",19.6875,"",100]
["Reproduction",1,7,"Alumot et al. 1976","1,2-Dichloroethane",100,"Chicken (Gallus gallus)","White Leghorn",9,3,"0/175/350","ppm in mg/kg","NR",100,"3 per d","UX","FD",2,"yr",0,"w","AD","M","C","Lab",2,"EGG","FTEG","EG",350,null,1.82,"NR","Chicken",{"$f":"VLOOKUP(AH11,Index!$L$2:$Q$30,6,FALSE)","v":"bird"},"White Leghorn",1,0,0,0,0,"adult","M","yes","yes",1.82,{"$f":"IF(BC11=\"\",\"\",sigfig(BC11,4))","v":{"$error":"#NAME?"}},{"$f":"IF(BI11=\"\",\"\",IF(AND(BI11>=10,BI11<10000),MROUND(BI11,1),sigfig(BI11,2)))","v":70},{"$f":"IF(BJ11=\"\",\"\",IF(AND(BJ11>=10,BJ11<10000),MROUND(BJ11,1),sigfig(BJ11,2)))","v":""},null,null,null,{"$f":"IF(A11=\"\",\"\",IF(AR11=\"no\",\"\",IF(ISERROR(IF(AF11<>\"NR\",AF11,IF(AM11=\"NR\",IF(AQ11=\"B\",VLOOKUP(AH11&AJ11&AP11,'Default BW IR-Formatted by LS'!$AB$4:$AF$83,5,FALSE),VLOOKUP(AH11&AJ11&AQ11&AP11,'Default BW IR-Formatted by LS'!$S$4:$X$124,6,FALSE)),VLOOKUP(AO11,INDIRECT(\"'Default BW IR-Formatted by age'!\"&VLOOKUP(AH11&AJ11&AQ11,Index!$A$2:$E$151,5,FALSE)),2,TRUE))))=TRUE,\"ERROR\",IF(AF11<>\"NR\",AF11,IF(AM11=\"NR\",IF(AQ11=\"B\",VLOOKUP(AH11&AJ11&AP11,'Default BW IR-Formatted by LS'!$AB$4:$AF$83,5,FALSE),VLOOKUP(AH11&AJ11&AQ11&AP11,'Default BW IR-Formatted by LS'!$S$4:$X$124,6,FALSE)),VLOOKUP(AO11,INDIRECT(\"'Default BW IR-Formatted by age'!\"&VLOOKUP(AH11&AJ11&AQ11,Index!$A$2:$E$151,5,FALSE)),2,TRUE))))))","v":1.82},1.82,{"$f":"IF(A11=\"\",\"\",IF(AS11=\"no\",\"\",IF(AG11<>\"NR\",AG11,IF(OR(L11=\"mg/L\",L11=\"ppm in mg/L\",L11=\"mg/ml\",L11=\"% in water\",L11=\"% water\",L11=\"g/L\",L11=\"ug/L\"),IF(AI11=\"bird\",0.059*BB11^0.67,0.099*BB11^0.9),(((BB11*1000)^VLOOKUP(AH11,Index!$L$2:$N$30,3,FALSE))*VLOOKUP(AH11,Index!$L$2:$N$30,2,FALSE))/1000))))","v":0.36400658672879738},70.001266678614883,"","","","",70.001266678614883,"",100]
["Growth",1,8,"Alumot et al. 1976","1,2-Dichloroethane",100,"Chicken (Gallus gallus)","White Leghorn",1,3,"0/175/350","ppm in mg/kg","NR",100,"3 per d","UX","FD",8,"w",0,"w","JV","BH","C","Lab",3,"GRO","BDWT","WO",350,null,0.70599999999999996,5.74E-2,"Chicken",{"$f":"VLOOKUP(AH12,Index!$L$2:$Q$30,6,FALSE)","v":"bird"},"White Leghorn",1,0,0,0,0,"juvenile","B","yes","yes",0.70599999999999996,{"$f":"IF(BC12=\"\",\"\",sigfig(BC12,4))","v":5.74E-2},{"$f":"IF(BI12=\"\",\"\",IF(AND(BI12>=10,BI12<10000),MROUND(BI12,1),sigfig(BI12,2)))","v":28},{"$f":"IF(BJ12=\"\",\"\",IF(AND(BJ12>=10,BJ12<10000),MROUND(BJ12,1),sigfig(BJ12,2)))","v":""},null,null,null,{"$f":"IF(A12=\"\",\"\",IF(AR12=\"no\",\"\",IF(ISERROR(IF(AF12<>\"NR\",AF12,IF(AM12=\"NR\",IF(AQ12=\"B\",VLOOKUP(AH12&AJ12&AP12,'Default BW IR-Formatted by LS'!$AB$4:$AF$83,5,FALSE),VLOOKUP(AH12&AJ12&AQ12&AP12,'Default BW IR-Formatted by LS'!$S$4:$X$124,6,FALSE)),VLOOKUP(AO12,INDIRECT(\"'Default BW IR-Formatted by age'!\"&VLOOKUP(AH12&AJ12&AQ12,Index!$A$2:$E$151,5,FALSE)),2,TRUE))))=TRUE,\"ERROR\",IF(AF12<>\"NR\",AF12,IF(AM12=\"NR\",IF(AQ12=\"B\",VLOOKUP(AH12&AJ12&AP12,'Default BW IR-Formatted by LS'!$AB$4:$AF$83,5,FALSE),VLOOKUP(AH12&AJ12&AQ12&AP12,'Default BW IR-Formatted by LS'!$S$4:$X$124,6,FALSE)),VLOOKUP(AO12,INDIRECT(\"'Default BW IR-Formatted by age'!\"&VLOOKUP(AH12&AJ12&AQ12,Index!$A$2:$E$151,5,FALSE)),2,TRUE))))))","v":0.70599999999999996},0.70599999999999996,{"$f":"IF(A12=\"\",\"\",IF(AS12=\"no\",\"\",IF(AG12<>\"NR\",AG12,IF(OR(L12=\"mg/L\",L12=\"ppm in mg/L\",L12=\"mg/ml\",L12=\"% in water\",L12=\"% water\",L12=\"g/L\",L12=\"ug/L\"),IF(AI12=\"bird\",0.059*BB12^0.67,0.099*BB12^0.9),(((BB12*1000)^VLOOKUP(AH12,Index!$L$2:$N$30,3,FALSE))*VLOOKUP(AH12,Index!$L$2:$N$30,2,FALSE))/1000))))","v":5.74E-2},28.456090651558075,"","","","",28.456090651558075,"",100]
["Growth",1,9,"Alumot et al. 1976","1,2-Dichloroethane",100,"Chicken (Gallus gallus)","White Leghorn",2,3,"0/175/350","ppm in mg/kg","NR",100,"3 per d","UX","FD",4.5,"mo",0,"w","JV","F","C","Lab",3,"GRO","BDWT","WO",350,null,1.363,"NR","Chicken",{"$f":"VLOOKUP(AH13,Index!$L$2:$Q$30,6,FALSE)","v":"bird"},"White Leghorn",1,0,0,0,0,"juvenile","F","yes","yes",1.363,{"$f":"IF(BC13=\"\",\"\",sigfig(BC13,4))","v":0.09},{"$f":"IF(BI13=\"\",\"\",IF(AND(BI13>=10,BI13<10000),MROUND(BI13,1),sigfig(BI13,2)))","v":23},{"$f":"IF(BJ13=\"\",\"\",IF(AND(BJ13>=10,BJ13<10000),MROUND(BJ13,1),sigfig(BJ13,2)))","v":""},null,null,null,{"$f":"IF(A13=\"\",\"\",IF(AR13=\"no\",\"\",IF(ISERROR(IF(AF13<>\"NR\",AF13,IF(AM13=\"NR\",IF(AQ13=\"B\",VLOOKUP(AH13&AJ13&AP13,'Default BW IR-Formatted by LS'!$AB$4:$AF$83,5,FALSE),VLOOKUP(AH13&AJ13&AQ13&AP13,'Default BW IR-Formatted by LS'!$S$4:$X$124,6,FALSE)),VLOOKUP(AO13,INDIRECT(\"'Default BW IR-Formatted by age'!\"&VLOOKUP(AH13&AJ13&AQ13,Index!$A$2:$E$151,5,FALSE)),2,TRUE))))=TRUE,\"ERROR\",IF(AF13<>\"NR\",AF13,IF(AM13=\"NR\",IF(AQ13=\"B\",VLOOKUP(AH13&AJ13&AP13,'Default BW IR-Formatted by LS'!$AB$4:$AF$83,5,FALSE),VLOOKUP(AH13&AJ13&AQ13&AP13,'Default BW IR-Formatted by LS'!$S$4:$X$124,6,FALSE)),VLOOKUP(AO13,INDIRECT(\"'Default BW IR-Formatted by age'!\"&VLOOKUP(AH13&AJ13&AQ13,Index!$A$2:$E$151,5,FALSE)),2,TRUE))))))","v":1.363},1.363,0.09,23.110785033015407,"","","","",23.110785033015407,"",100]
["Growth",1,10,"Alumot et al. 1976","1,2-Dichloroethane",100,"Chicken (Gallus gallus)","White Leghorn",3,3,"0/175/350","ppm in mg/kg","NR",100,"3 per d","UX","FD",4.5,"mo",0,"w","JV","M","C","Lab",3,"GRO","BDWT","WO",350,null,1.82,"NR","Chicken",{"$f":"VLOOKUP(AH14,Index!$L$2:$Q$30,6,FALSE)","v":"bird"},"White Leghorn",1,0,0,0,0,"juvenile","M","yes","yes",1.82,{"$f":"IF(BC14=\"\",\"\",sigfig(BC14,4))","v":{"$error":"#NAME?"}},{"$f":"IF(BI14=\"\",\"\",IF(AND(BI14>=10,BI14<10000),MROUND(BI14,1),sigfig(BI14,2)))","v":70},{"$f":"IF(BJ14=\"\",\"\",IF(AND(BJ14>=10,BJ14<10000),MROUND(BJ14,1),sigfig(BJ14,2)))","v":""},null,null,null,{"$f":"IF(A14=\"\",\"\",IF(AR14=\"no\",\"\",IF(ISERROR(IF(AF14<>\"NR\",AF14,IF(AM14=\"NR\",IF(AQ14=\"B\",VLOOKUP(AH14&AJ14&AP14,'Default BW IR-Formatted by LS'!$AB$4:$AF$83,5,FALSE),VLOOKUP(AH14&AJ14&AQ14&AP14,'Default BW IR-Formatted by LS'!$S$4:$X$124,6,FALSE)),VLOOKUP(AO14,INDIRECT(\"'Default BW IR-Formatted by age'!\"&VLOOKUP(AH14&AJ14&AQ14,Index!$A$2:$E$151,5,FALSE)),2,TRUE))))=TRUE,\"ERROR\",IF(AF14<>\"NR\",AF14,IF(AM14=\"NR\",IF(AQ14=\"B\",VLOOKUP(AH14&AJ14&AP14,'Default BW IR-Formatted by LS'!$AB$4:$AF$83,5,FALSE),VLOOKUP(AH14&AJ14&AQ14&AP14,'Default BW IR-Formatted by LS'!$S$4:$X$124,6,FALSE)),VLOOKUP(AO14,INDIRECT(\"'Default BW IR-Formatted by age'!\"&VLOOKUP(AH14&AJ14&AQ14,Index!$A$2:$E$151,5,FALSE)),2,TRUE))))))","v":1.82},1.82,{"$f":"IF(A14=\"\",\"\",IF(AS14=\"no\",\"\",IF(AG14<>\"NR\",AG14,IF(OR(L14=\"mg/L\",L14=\"ppm in mg/L\",L14=\"mg/ml\",L14=\"% in water\",L14=\"% water\",L14=\"g/L\",L14=\"ug/L\"),IF(AI14=\"bird\",0.059*BB14^0.67,0.099*BB14^0.9),(((BB14*1000)^VLOOKUP(AH14,Index!$L$2:$N$30,3,FALSE))*VLOOKUP(AH14,Index!$L$2:$N$30,2,FALSE))/1000))))","v":0.36400658672879738},70.001266678614883,"","","","",70.001266678614883,"",100]
["Data Not Used",1,11,"Alumot et al. 1976","1,2-Dichloroethane",100,"Chicken (Gallus gallus)","White Leghorn",5,3,"0/175/350","ppm in mg/kg","NR",100,"3 per d","UX","FD",8.5,"mo",0,"w","LB","F","C","Lab",null,"REP","RSUC","WO",175,350,"NR",0.1,"Chicken",{"$f":"VLOOKUP(AH15,Index!$L$2:$Q$30,6,FALSE)","v":"bird"},"White Leghorn",1,0,0,0,0,"adult","F","yes","yes",1.6,{"$f":"IF(BC15=\"\",\"\",sigfig(BC15,4))","v":0.1},{"$f":"IF(BI15=\"\",\"\",IF(AND(BI15>=10,BI15<10000),MROUND(BI15,1),sigfig(BI15,2)))","v":11},{"$f":"IF(BJ15=\"\",\"\",IF(AND(BJ15>=10,BJ15<10000),MROUND(BJ15,1),sigfig(BJ15,2)))","v":22},1.6,null,null,{"$f":"IF(A15=\"\",\"\",IF(AR15=\"no\",\"\",IF(ISERROR(IF(AF15<>\"NR\",AF15,IF(AM15=\"NR\",IF(AQ15=\"B\",VLOOKUP(AH15&AJ15&AP15,'Default BW IR-Formatted by LS'!$AB$4:$AF$83,5,FALSE),VLOOKUP(AH15&AJ15&AQ15&AP15,'Default BW IR-Formatted by LS'!$S$4:$X$124,6,FALSE)),VLOOKUP(AO15,INDIRECT(\"'Default BW IR-Formatted by age'!\"&VLOOKUP(AH15&AJ15&AQ15,Index!$A$2:$E$151,5,FALSE)),2,TRUE))))=TRUE,\"ERROR\",IF(AF15<>\"NR\",AF15,IF(AM15=\"NR\",IF(AQ15=\"B\",VLOOKUP(AH15&AJ15&AP15,'Default BW IR-Formatted by LS'!$AB$4:$AF$83,5,FALSE),VLOOKUP(AH15&AJ15&AQ15&AP15,'Default BW IR-Formatted by LS'!$S$4:$X$124,6,FALSE)),VLOOKUP(AO15,INDIRECT(\"'Default BW IR-Formatted by age'!\"&VLOOKUP(AH15&AJ15&AQ15,Index!$A$2:$E$151,5,FALSE)),2,TRUE))))))","v":"ERROR"},1.6,{"$f":"IF(A15=\"\",\"\",IF(AS15=\"no\",\"\",IF(AG15<>\"NR\",AG15,IF(OR(L15=\"mg/L\",L15=\"ppm in mg/L\",L15=\"mg/ml\",L15=\"% in water\",L15=\"% water\",L15=\"g/L\",L15=\"ug/L\"),IF(AI15=\"bird\",0.059*BB15^0.67,0.099*BB15^0.9),(((BB15*1000)^VLOOKUP(AH15,Index!$L$2:$N$30,3,FALSE))*VLOOKUP(AH15,Index!$L$2:$N$30,2,FALSE))/1000))))","v":0.1},10.9375,21.875,"","","",10.9375,21.875,100]
["Data Not Used",1,12,"Alumot et al. 1976","1,2-Dichloroethane",100,"Chicken (Gallus gallus)","White Leghorn",7,3,"0/175/350","ppm in mg/kg","NR",100,"3 per d","UX","FD",2,"yr",0,"w","AD","BH","C","Lab",null,"REP","HTCH","EG",350,null,"NR",0.09,"Chicken",{"$f":"VLOOKUP(AH16,Index!$L$2:$Q$30,6,FALSE)","v":"bird"},"White Leghorn",1,0,0,0,0,"adult","B","yes","yes",1.6,{"$f":"IF(BC16=\"\",\"\",sigfig(BC16,4))","v":0.09},{"$f":"IF(BI16=\"\",\"\",IF(AND(BI16>=10,BI16<10000),MROUND(BI16,1),sigfig(BI16,2)))","v":20},{"$f":"IF(BJ16=\"\",\"\",IF(AND(BJ16>=10,BJ16<10000),MROUND(BJ16,1),sigfig(BJ16,2)))","v":""},1.6,null,null,{"$f":"IF(A16=\"\",\"\",IF(AR16=\"no\",\"\",IF(ISERROR(IF(AF16<>\"NR\",AF16,IF(AM16=\"NR\",IF(AQ16=\"B\",VLOOKUP(AH16&AJ16&AP16,'Default BW IR-Formatted by LS'!$AB$4:$AF$83,5,FALSE),VLOOKUP(AH16&AJ16&AQ16&AP16,'Default BW IR-Formatted by LS'!$S$4:$X$124,6,FALSE)),VLOOKUP(AO16,INDIRECT(\"'Default BW IR-Formatted by age'!\"&VLOOKUP(AH16&AJ16&AQ16,Index!$A$2:$E$151,5,FALSE)),2,TRUE))))=TRUE,\"ERROR\",IF(AF16<>\"NR\",AF16,IF(AM16=\"NR\",IF(AQ16=\"B\",VLOOKUP(AH16&AJ16&AP16,'Default BW IR-Formatted by LS'!$AB$4:$AF$83,5,FALSE),VLOOKUP(AH16&AJ16&AQ16&AP16,'Default BW IR-Formatted by LS'!$S$4:$X$124,6,FALSE)),VLOOKUP(AO16,INDIRECT(\"'Default BW IR-Formatted by age'!\"&VLOOKUP(AH16&AJ16&AQ16,Index!$A$2:$E$151,5,FALSE)),2,TRUE))))))","v":"ERROR"},1.6,{"$f":"IF(A16=\"\",\"\",IF(AS16=\"no\",\"\",IF(AG16<>\"NR\",AG16,IF(OR(L16=\"mg/L\",L16=\"ppm in mg/L\",L16=\"mg/ml\",L16=\"% in water\",L16=\"% water\",L16=\"g/L\",L16=\"ug/L\"),IF(AI16=\"bird\",0.059*BB16^0.67,0.099*BB16^0.9),(((BB16*1000)^VLOOKUP(AH16,Index!$L$2:$N$30,3,FALSE))*VLOOKUP(AH16,Index!$L$2:$N$30,2,FALSE))/1000))))","v":0.09},19.6875,"","","","",19.6875,"",100]
["Data Not Used",1,13,"Alumot et al. 1976","1,2-Dichloroethane",100,"Chicken (Gallus gallus)","White Leghorn",7,3,"0/175/350","ppm in mg/kg","NR",100,"3 per d","UX","FD",2,"yr",0,"w","AD","BH","C","Lab",null,"REP","PRWT","PY",350,null,"NR",0.09,"Chicken",{"$f":"VLOOKUP(AH17,Index!$L$2:$Q$30,6,FALSE)","v":"bird"},"White Leghorn",1,0,0,0,0,"adult","B","yes","yes",1.6,{"$f":"IF(BC17=\"\",\"\",sigfig(BC17,4))","v":0.09},{"$f":"IF(BI17=\"\",\"\",IF(AND(BI17>=10,BI17<10000),MROUND(BI17,1),sigfig(BI17,2)))","v":20},{"$f":"IF(BJ17=\"\",\"\",IF(AND(BJ17>=10,BJ17<10000),MROUND(BJ17,1),sigfig(BJ17,2)))","v":""},1.6,null,null,{"$f":"IF(A17=\"\",\"\",IF(AR17=\"no\",\"\",IF(ISERROR(IF(AF17<>\"NR\",AF17,IF(AM17=\"NR\",IF(AQ17=\"B\",VLOOKUP(AH17&AJ17&AP17,'Default BW IR-Formatted by LS'!$AB$4:$AF$83,5,FALSE),VLOOKUP(AH17&AJ17&AQ17&AP17,'Default BW IR-Formatted by LS'!$S$4:$X$124,6,FALSE)),VLOOKUP(AO17,INDIRECT(\"'Default BW IR-Formatted by age'!\"&VLOOKUP(AH17&AJ17&AQ17,Index!$A$2:$E$151,5,FALSE)),2,TRUE))))=TRUE,\"ERROR\",IF(AF17<>\"NR\",AF17,IF(AM17=\"NR\",IF(AQ17=\"B\",VLOOKUP(AH17&AJ17&AP17,'Default BW IR-Formatted by LS'!$AB$4:$AF$83,5,FALSE),VLOOKUP(AH17&AJ17&AQ17&AP17,'Default BW IR-Formatted by LS'!$S$4:$X$124,6,FALSE)),VLOOKUP(AO17,INDIRECT(\"'Default BW IR-Formatted by age'!\"&VLOOKUP(AH17&AJ17&AQ17,Index!$A$2:$E$151,5,FALSE)),2,TRUE))))))","v":"ERROR"},1.6,{"$f":"IF(A17=\"\",\"\",IF(AS17=\"no\",\"\",IF(AG17<>\"NR\",AG17,IF(OR(L17=\"mg/L\",L17=\"ppm in mg/L\",L17=\"mg/ml\",L17=\"% in water\",L17=\"% water\",L17=\"g/L\",L17=\"ug/L\"),IF(AI17=\"bird\",0.059*BB17^0.67,0.099*BB17^0.9),(((BB17*1000)^VLOOKUP(AH17,Index!$L$2:$N$30,3,FALSE))*VLOOKUP(AH17,Index!$L$2:$N$30,2,FALSE))/1000))))","v":0.09},19.6875,"","","","",19.6875,"",100]
["Data Not Used",1,14,"Alumot et al. 1976","1,2-Dichloroethane",100,"Chicken (Gallus gallus)","White Leghorn",8,3,"0/175/350","ppm in mg/kg","NR",100,"3 per d","UX","FD",2,"yr",0,"w","LB","F","C","Lab",null,"REP","HTCH","EG",350,null,"NR",0.09,"Chicken",{"$f":"VLOOKUP(AH18,Index!$L$2:$Q$30,6,FALSE)","v":"bird"},"White Leghorn",1,0,0,0,0,"adult","F","yes","yes",1.6,{"$f":"IF(BC18=\"\",\"\",sigfig(BC18,4))","v":0.09},{"$f":"IF(BI18=\"\",\"\",IF(AND(BI18>=10,BI18<10000),MROUND(BI18,1),sigfig(BI18,2)))","v":20},{"$f":"IF(BJ18=\"\",\"\",IF(AND(BJ18>=10,BJ18<10000),MROUND(BJ18,1),sigfig(BJ18,2)))","v":""},1.6,null,null,{"$f":"IF(A18=\"\",\"\",IF(AR18=\"no\",\"\",IF(ISERROR(IF(AF18<>\"NR\",AF18,IF(AM18=\"NR\",IF(AQ18=\"B\",VLOOKUP(AH18&AJ18&AP18,'Default BW IR-Formatted by LS'!$AB$4:$AF$83,5,FALSE),VLOOKUP(AH18&AJ18&AQ18&AP18,'Default BW IR-Formatted by LS'!$S$4:$X$124,6,FALSE)),VLOOKUP(AO18,INDIRECT(\"'Default BW IR-Formatted by age'!\"&VLOOKUP(AH18&AJ18&AQ18,Index!$A$2:$E$151,5,FALSE)),2,TRUE))))=TRUE,\"ERROR\",IF(AF18<>\"NR\",AF18,IF(AM18=\"NR\",IF(AQ18=\"B\",VLOOKUP(AH18&AJ18&AP18,'Default BW IR-Formatted by LS'!$AB$4:$AF$83,5,FALSE),VLOOKUP(AH18&AJ18&AQ18&AP18,'Default BW IR-Formatted by LS'!$S$4:$X$124,6,FALSE)),VLOOKUP(AO18,INDIRECT(\"'Default BW IR-Formatted by age'!\"&VLOOKUP(AH18&AJ18&AQ18,Index!$A$2:$E$151,5,FALSE)),2,TRUE))))))","v":"ERROR"},1.6,{"$f":"IF(A18=\"\",\"\",IF(AS18=\"no\",\"\",IF(AG18<>\"NR\",AG18,IF(OR(L18=\"mg/L\",L18=\"ppm in mg/L\",L18=\"mg/ml\",L18=\"% in water\",L18=\"% water\",L18=\"g/L\",L18=\"ug/L\"),IF(AI18=\"bird\",0.059*BB18^0.67,0.099*BB18^0.9),(((BB18*1000)^VLOOKUP(AH18,Index!$L$2:$N$30,3,FALSE))*VLOOKUP(AH18,Index!$L$2:$N$30,2,FALSE))/1000))))","v":0.09},19.6875,"","","","",19.6875,"",100]
["Data Not Used",1,15,"Alumot et al. 1976","1,2-Dichloroethane",100,"Chicken (Gallus gallus)","White Leghorn",8,3,"0/175/350","ppm in mg/kg","NR",100,"3 per d","UX","FD",2,"yr",0,"w","LB","F","C","Lab",null,"REP","PRWT","PY",350,null,"NR",0.09,"Chicken",{"$f":"VLOOKUP(AH19,Index!$L$2:$Q$30,6,FALSE)","v":"bird"},"White Leghorn",1,0,0,0,0,"adult","F","yes","yes",1.6,{"$f":"IF(BC19=\"\",\"\",sigfig(BC19,4))","v":0.09},{"$f":"IF(BI19=\"\",\"\",IF(AND(BI19>=10,BI19<10000),MROUND(BI19,1),sigfig(BI19,2)))","v":20},{"$f":"IF(BJ19=\"\",\"\",IF(AND(BJ19>=10,BJ19<10000),MROUND(BJ19,1),sigfig(BJ19,2)))","v":""},1.6,null,null,{"$f":"IF(A19=\"\",\"\",IF(AR19=\"no\",\"\",IF(ISERROR(IF(AF19<>\"NR\",AF19,IF(AM19=\"NR\",IF(AQ19=\"B\",VLOOKUP(AH19&AJ19&AP19,'Default BW IR-Formatted by LS'!$AB$4:$AF$83,5,FALSE),VLOOKUP(AH19&AJ19&AQ19&AP19,'Default BW IR-Formatted by LS'!$S$4:$X$124,6,FALSE)),VLOOKUP(AO19,INDIRECT(\"'Default BW IR-Formatted by age'!\"&VLOOKUP(AH19&AJ19&AQ19,Index!$A$2:$E$151,5,FALSE)),2,TRUE))))=TRUE,\"ERROR\",IF(AF19<>\"NR\",AF19,IF(AM19=\"NR\",IF(AQ19=\"B\",VLOOKUP(AH19&AJ19&AP19,'Default BW IR-Formatted by LS'!$AB$4:$AF$83,5,FALSE),VLOOKUP(AH19&AJ19&AQ19&AP19,'Default BW IR-Formatted by LS'!$S$4:$X$124,6,FALSE)),VLOOKUP(AO19,INDIRECT(\"'Default BW IR-Formatted by age'!\"&VLOOKUP(AH19&AJ19&AQ19,Index!$A$2:$E$151,5,FALSE)),2,TRUE))))))","v":"ERROR"},1.6,{"$f":"IF(A19=\"\",\"\",IF(AS19=\"no\",\"\",IF(AG19<>\"NR\",AG19,IF(OR(L19=\"mg/L\",L19=\"ppm in mg/L\",L19=\"mg/ml\",L19=\"% in water\",L19=\"% water\",L19=\"g/L\",L19=\"ug/L\"),IF(AI19=\"bird\",0.059*BB19^0.67,0.099*BB19^0.9),(((BB19*1000)^VLOOKUP(AH19,Index!$L$2:$N$30,3,FALSE))*VLOOKUP(AH19,Index!$L$2:$N$30,2,FALSE))/1000))))","v":0.09},19.6875,"","","","",19.6875,"",100]
["Data Not Used",1,16,"Alumot et al. 1976","1,2-Dichloroethane",100,"Chicken (Gallus gallus)","White Leghorn",8,3,"0/175/350","ppm in mg/kg","NR",100,"3 per d","UX","FD",2,"yr",0,"w","LB","F","C","Lab",null,"REP","RSUC","WO",350,null,"NR",0.09,"Chicken",{"$f":"VLOOKUP(AH20,Index!$L$2:$Q$30,6,FALSE)","v":"bird"},"White Leghorn",1,0,0,0,0,"adult","F","yes","yes",1.6,{"$f":"IF(BC20=\"\",\"\",sigfig(BC20,4))","v":0.09},{"$f":"IF(BI20=\"\",\"\",IF(AND(BI20>=10,BI20<10000),MROUND(BI20,1),sigfig(BI20,2)))","v":20},{"$f":"IF(BJ20=\"\",\"\",IF(AND(BJ20>=10,BJ20<10000),MROUND(BJ20,1),sigfig(BJ20,2)))","v":""},1.6,null,null,{"$f":"IF(A20=\"\",\"\",IF(AR20=\"no\",\"\",IF(ISERROR(IF(AF20<>\"NR\",AF20,IF(AM20=\"NR\",IF(AQ20=\"B\",VLOOKUP(AH20&AJ20&AP20,'Default BW IR-Formatted by LS'!$AB$4:$AF$83,5,FALSE),VLOOKUP(AH20&AJ20&AQ20&AP20,'Default BW IR-Formatted by LS'!$S$4:$X$124,6,FALSE)),VLOOKUP(AO20,INDIRECT(\"'Default BW IR-Formatted by age'!\"&VLOOKUP(AH20&AJ20&AQ20,Index!$A$2:$E$151,5,FALSE)),2,TRUE))))=TRUE,\"ERROR\",IF(AF20<>\"NR\",AF20,IF(AM20=\"NR\",IF(AQ20=\"B\",VLOOKUP(AH20&AJ20&AP20,'Default BW IR-Formatted by LS'!$AB$4:$AF$83,5,FALSE),VLOOKUP(AH20&AJ20&AQ20&AP20,'Default BW IR-Formatted by LS'!$S$4:$X$124,6,FALSE)),VLOOKUP(AO20,INDIRECT(\"'Default BW IR-Formatted by age'!\"&VLOOKUP(AH20&AJ20&AQ20,Index!$A$2:$E$151,5,FALSE)),2,TRUE))))))","v":"ERROR"},1.6,{"$f":"IF(A20=\"\",\"\",IF(AS20=\"no\",\"\",IF(AG20<>\"NR\",AG20,IF(OR(L20=\"mg/L\",L20=\"ppm in mg/L\",L20=\"mg/ml\",L20=\"% in water\",L20=\"% water\",L20=\"g/L\",L20=\"ug/L\"),IF(AI20=\"bird\",0.059*BB20^0.67,0.099*BB20^0.9),(((BB20*1000)^VLOOKUP(AH20,Index!$L$2:$N$30,3,FALSE))*VLOOKUP(AH20,Index!$L$2:$N$30,2,FALSE))/1000))))","v":0.09},19.6875,"","","","",19.6875,"",100]
["Data Not Used",1,17,"Alumot et al. 1976","1,2-Dichloroethane",100,"Chicken (Gallus gallus)","White Leghorn",9,3,"0/175/350","ppm in mg/kg","NR",100,"3 per d","UX","FD",2,"yr",0,"w","AD","M","C","Lab",null,"REP","HTCH","EG",350,null,1.82,"NR","Chicken",{"$f":"VLOOKUP(AH21,Index!$L$2:$Q$30,6,FALSE)","v":"bird"},"White Leghorn",1,0,0,0,0,"adult","M","yes","yes",1.82,{"$f":"IF(BC21=\"\",\"\",sigfig(BC21,4))","v":{"$error":"#NAME?"}},{"$f":"IF(BI21=\"\",\"\",IF(AND(BI21>=10,BI21<10000),MROUND(BI21,1),sigfig(BI21,2)))","v":70},{"$f":"IF(BJ21=\"\",\"\",IF(AND(BJ21>=10,BJ21<10000),MROUND(BJ21,1),sigfig(BJ21,2)))","v":""},null,null,null,{"$f":"IF(A21=\"\",\"\",IF(AR21=\"no\",\"\",IF(ISERROR(IF(AF21<>\"NR\",AF21,IF(AM21=\"NR\",IF(AQ21=\"B\",VLOOKUP(AH21&AJ21&AP21,'Default BW IR-Formatted by LS'!$AB$4:$AF$83,5,FALSE),VLOOKUP(AH21&AJ21&AQ21&AP21,'Default BW IR-Formatted by LS'!$S$4:$X$124,6,FALSE)),VLOOKUP(AO21,INDIRECT(\"'Default BW IR-Formatted by age'!\"&VLOOKUP(AH21&AJ21&AQ21,Index!$A$2:$E$151,5,FALSE)),2,TRUE))))=TRUE,\"ERROR\",IF(AF21<>\"NR\",AF21,IF(AM21=\"NR\",IF(AQ21=\"B\",VLOOKUP(AH21&AJ21&AP21,'Default BW IR-Formatted by LS'!$AB$4:$AF$83,5,FALSE),VLOOKUP(AH21&AJ21&AQ21&AP21,'Default BW IR-Formatted by LS'!$S$4:$X$124,6,FALSE)),VLOOKUP(AO21,INDIRECT(\"'Default BW IR-Formatted by age'!\"&VLOOKUP(AH21&AJ21&AQ21,Index!$A$2:$E$151,5,FALSE)),2,TRUE))))))","v":1.82},1.82,{"$f":"IF(A21=\"\",\"\",IF(AS21=\"no\",\"\",IF(AG21<>\"NR\",AG21,IF(OR(L21=\"mg/L\",L21=\"ppm in mg/L\",L21=\"mg/ml\",L21=\"% in water\",L21=\"% water\",L21=\"g/L\",L21=\"ug/L\"),IF(AI21=\"bird\",0.059*BB21^0.67,0.099*BB21^0.9),(((BB21*1000)^VLOOKUP(AH21,Index!$L$2:$N$30,3,FALSE))*VLOOKUP(AH21,Index!$L$2:$N$30,2,FALSE))/1000))))","v":0.36400658672879738},70.001266678614883,"","","","",70.001266678614883,"",100]
["Data Not Used",1,18,"Alumot et al. 1976","1,2-Dichloroethane",100,"Chicken (Gallus gallus)","White Leghorn",9,3,"0/175/350","ppm in mg/kg","NR",100,"3 per d","UX","FD",2,"yr",0,"w","AD","M","C","Lab",null,"REP","PRWT","PY",350,null,1.82,"NR","Chicken",{"$f":"VLOOKUP(AH22,Index!$L$2:$Q$30,6,FALSE)","v":"bird"},"White Leghorn",1,0,0,0,0,"adult","M","yes","yes",1.82,{"$f":"IF(BC22=\"\",\"\",sigfig(BC22,4))","v":{"$error":"#NAME?"}},{"$f":"IF(BI22=\"\",\"\",IF(AND(BI22>=10,BI22<10000),MROUND(BI22,1),sigfig(BI22,2)))","v":70},{"$f":"IF(BJ22=\"\",\"\",IF(AND(BJ22>=10,BJ22<10000),MROUND(BJ22,1),sigfig(BJ22,2)))","v":""},null,null,null,{"$f":"IF(A22=\"\",\"\",IF(AR22=\"no\",\"\",IF(ISERROR(IF(AF22<>\"NR\",AF22,IF(AM22=\"NR\",IF(AQ22=\"B\",VLOOKUP(AH22&AJ22&AP22,'Default BW IR-Formatted by LS'!$AB$4:$AF$83,5,FALSE),VLOOKUP(AH22&AJ22&AQ22&AP22,'Default BW IR-Formatted by LS'!$S$4:$X$124,6,FALSE)),VLOOKUP(AO22,INDIRECT(\"'Default BW IR-Formatted by age'!\"&VLOOKUP(AH22&AJ22&AQ22,Index!$A$2:$E$151,5,FALSE)),2,TRUE))))=TRUE,\"ERROR\",IF(AF22<>\"NR\",AF22,IF(AM22=\"NR\",IF(AQ22=\"B\",VLOOKUP(AH22&AJ22&AP22,'Default BW IR-Formatted by LS'!$AB$4:$AF$83,5,FALSE),VLOOKUP(AH22&AJ22&AQ22&AP22,'Default BW IR-Formatted by LS'!$S$4:$X$124,6,FALSE)),VLOOKUP(AO22,INDIRECT(\"'Default BW IR-Formatted by age'!\"&VLOOKUP(AH22&AJ22&AQ22,Index!$A$2:$E$151,5,FALSE)),2,TRUE))))))","v":1.82},1.82,{"$f":"IF(A22=\"\",\"\",IF(AS22=\"no\",\"\",IF(AG22<>\"NR\",AG22,IF(OR(L22=\"mg/L\",L22=\"ppm in mg/L\",L22=\"mg/ml\",L22=\"% in water\",L22=\"% water\",L22=\"g/L\",L22=\"ug/L\"),IF(AI22=\"bird\",0.059*BB22^0.67,0.099*BB22^0.9),(((BB22*1000)^VLOOKUP(AH22,Index!$L$2:$N$30,3,FALSE))*VLOOKUP(AH22,Index!$L$2:$N$30,2,FALSE))/1000))))","v":0.36400658672879738},70.001266678614883,"","","","",70.001266678614883,"",100]
[null,null,null,null,null,null,null,null,null,null,null,null,null,null,null,null,null,null,null,null,null,null,null,null,null,null,null,null,null,null,null,null,null,{"$f":"IF(A23=\"\",\"\",TRIM(LEFT(G23,FIND(\"(\",G23)-2)))","v":""},{"$f":"VLOOKUP(AH23,Index!$L$2:$Q$30,6,FALSE)","v":{"$error":"#N/A"}},{"$f":"IF(A23=\"\",\"\",IF(OR(H23=\"\",H23=\"unspecified\"),\"unspecified\",H23))","v":""},{"$f":"IF(RIGHT(O23,5)=\"per w\",LEFT(O23,1)/7,1)","v":1},{"$f":"IF(A23=\"\",\"\",IF(ISERROR(FIND(\"-\",T23))=TRUE,T23,LEFT(T23,FIND(\"-\",T23)-1)))","v":""},{"$f":"IF(A23=\"\",\"\",IF(ISERROR(FIND(\"-\",T23))=TRUE,T23,RIGHT(T23,LEN(T23)-FIND(\"-\",T23))))","v":""},{"$f":"IF(A23=\"\",\"\",IF(U23=\"NR\",\"NR\",AL23*IF(U23=\"d\",1,IF(U23=\"mo\",30.5,IF(U23=\"w\",7,IF(U23=\"yr\",365,\"ERROR\"))))))","v":""},{"$f":"IF(A23=\"\",\"\",IF(U23=\"NR\",\"NR\",AM23*IF(U23=\"d\",1,IF(U23=\"mo\",30.5,IF(U23=\"w\",7,IF(U23=\"yr\",365,\"ERROR\"))))))","v":""},{"$f":"IF(A23=\"\",\"\",IF(V23=\"JV\",\"juvenile\",\"adult\"))","v":""},{"$f":"IF(A23=\"\",\"\",IF(W23=\"M\",\"M\",IF(W23=\"F\",\"F\",\"B\")))","v":""},{"$f":"IF(AF23<>\"NR\",\"yes\",IF(OR(L23=\"mg/kg bw/d\",L23=\"mg/kg/bw/d\",L23=\"mg/kg/d\",L23=\"ug/g bw/d\",L23=\"ug/kg bw/d\",L23=\"g/kg bw/d\",L23=\"mg/g bw/d\"),\"no\",\"yes\"))","v":"yes"},{"$f":"IF(AG23<>\"NR\",\"yes\",IF(AR23=\"no\",\"no\",IF(OR(L23=\"mg/org/d\",L23=\"mg/d\",L23=\"g/d\",L23=\"g/org/d\",L23=\"g/org/day\",L23=\"ug/org/d\"),\"no\",\"yes\")))","v":"yes"},{"$f":"BB23","v":""},{"$f":"IF(BC23=\"\",\"\",sigfig(BC23,4))","v":""},{"$f":"IF(BI23=\"\",\"\",IF(AND(BI23>=10,BI23<10000),MROUND(BI23,1),sigfig(BI23,2)))","v":""},{"$f":"IF(BJ23=\"\",\"\",IF(AND(BJ23>=10,BJ23<10000),MROUND(BJ23,1),sigfig(BJ23,2)))","v":""},null,null,null,{"$f":"IF(A23=\"\",\"\",IF(AR23=\"no\",\"\",IF(ISERROR(IF(AF23<>\"NR\",AF23,IF(AM23=\"NR\",IF(AQ23=\"B\",VLOOKUP(AH23&AJ23&AP23,'Default BW IR-Formatted by LS'!$AB$4:$AF$83,5,FALSE),VLOOKUP(AH23&AJ23&AQ23&AP23,'Default BW IR-Formatted by LS'!$S$4:$X$124,6,FALSE)),VLOOKUP(AO23,INDIRECT(\"'Default BW IR-Formatted by age'!\"&VLOOKUP(AH23&AJ23&AQ23,Index!$A$2:$E$151,5,FALSE)),2,TRUE))))=TRUE,\"ERROR\",IF(AF23<>\"NR\",AF23,IF(AM23=\"NR\",IF(AQ23=\"B\",VLOOKUP(AH23&AJ23&AP23,'Default BW IR-Formatted by LS'!$AB$4:$AF$83,5,FALSE),VLOOKUP(AH23&AJ23&AQ23&AP23,'Default BW IR-Formatted by LS'!$S$4:$X$124,6,FALSE)),VLOOKUP(AO23,INDIRECT(\"'Default BW IR-Formatted by age'!\"&VLOOKUP(AH23&AJ23&AQ23,Index!$A$2:$E$151,5,FALSE)),2,TRUE))))))","v":""},{"$f":"IF(OR(ISERROR(BA23)=TRUE,BA23=\"ERROR\"),AX23,BA23)","v":""},{"$f":"IF(A23=\"\",\"\",IF(AS23=\"no\",\"\",IF(AG23<>\"NR\",AG23,IF(OR(L23=\"mg/L\",L23=\"ppm in mg/L\",L23=\"mg/ml\",L23=\"% in water\",L23=\"% water\",L23=\"g/L\",L23=\"ug/L\"),IF(AI23=\"bird\",0.059*BB23^0.67,0.099*BB23^0.9),(((BB23*1000)^VLOOKUP(AH23,Index!$L$2:$N$30,3,FALSE))*VLOOKUP(AH23,Index!$L$2:$N$30,2,FALSE))/1000))))","v":""},{"$f":"IF(AD23=\"\",\"\",IF(OR(L23=\"mg/kg bw/d\",L23=\"mg/kg/bw/d\",L23=\"mg/kg/d\",L23=\"ug/g bw/d\"),BK23/100*AD23*AK23,IF(OR(L23=\"mg/org/d\",L23=\"mg/d\"),BK23/100*AD23/BB23*AK23,IF(OR(L23=\"mg/kg diet\",L23=\"mg/L\",L23=\"ppm in mg/kg\",L23=\"mg/kg\",L23=\"ug/g diet\",L23=\"ug/g\",L23=\"ppm in mg/L\"),BK23/100*AD23*BC23/BB23*AK23,IF(OR(L23=\"mg/ml\",L23=\"mg/g\",L23=\"g/L\",L23=\"g/kg diet\",L23=\"mg/g diet\"),BK23/100*(AD23*1000)*BC23/BB23*AK23,IF(OR(L23=\"% in diet\", L23=\"% in water\", L23=\"% water\"),BK23/100*(AD23*10000)*BC23/BB23*AK23,IF( L23=\"ug/kg bw/d\",BK23/100*AD23/1000*AK23,IF(OR(L23=\"g/kg bw/d\",L23=\"mg/g bw/d\"),BK23/100*AD23*1000*AK23,IF(OR(L23=\"g/d\",L23=\"g/org/d\",L23=\"g/org/day\"),BK23/100*AD23*1000/BB23*AK23,IF(OR(L23=\"ug/kg\",L23=\"ng/g diet\",L23=\"ug/kg diet\",L23=\"ug/L\"),BK23/100*AD23/1000*BC23/BB23*AK23,IF(L23=\"ug/org/d\",BK23/100*AD23/1000/BB23*AK23,NA())))))))))))","v":""},{"$f":"IF(AE23=\"\",\"\",IF(OR(L23=\"mg/kg bw/d\",L23=\"mg/kg/bw/d\",L23=\"mg/kg/d\",L23=\"ug/g bw/d\"),BK23/100*AE23*AK23,IF(OR(L23=\"mg/org/d\",L23=\"mg/d\"),BK23/100*AE23/BB23*AK23,IF(OR(L23=\"mg/kg diet\",L23=\"mg/L\",L23=\"ppm in mg/kg\",L23=\"mg/kg\",L23=\"ug/g diet\",L23=\"ug/g\",L23=\"ppm in mg/L\"),BK23/100*AE23*BC23/BB23*AK23,IF(OR(L23=\"mg/ml\",L23=\"mg/g\",L23=\"g/L\",L23=\"g/kg diet\",L23=\"mg/g diet\"),BK23/100*(AE23*1000)*BC23/BB23*AK23,IF(OR(L23=\"% in diet\", L23=\"% in water\", L23=\"% water\"),BK23/100*(AE23*10000)*BC23/BB23*AK23,IF( L23=\"ug/kg bw/d\",BK23/100*AE23/1000*AK23,IF(OR(L23=\"g/kg bw/d\",L23=\"mg/g bw/d\"),BK23/100*AE23*1000*AK23,IF(OR(L23=\"g/d\",L23=\"g/org/d\",L23=\"g/org/day\"),BK23/100*AE23*1000/BB23*AK23,IF(OR(L23=\"ug/kg\",L23=\"ng/g diet\",L23=\"ug/kg diet\",L23=\"ug/L\"),BK23/100*AE23/1000*BC23/BB23*AK23,IF(L23=\"ug/org/d\",BK23/100*AE23/1000/BB23*AK23,NA())))))))))))","v":""},{"$f":"IF(AND(OR(ISERROR(BA23)=TRUE,BA23=\"ERROR\"),AX23=\"\"),\"X\",\"\")","v":""},{"$f":"IF(BF23=\"X\",\"\",IF(AND(ISERROR(BD23)=TRUE,AY23=\"\"),\"X\",\"\"))","v":""},{"$f":"IF(BF23=\"X\",\"\",IF(AND(ISERROR(BE23)=TRUE,AZ23=\"\"),\"X\",\"\"))","v":""},{"$f":"IF(ISNUMBER(AY23)=TRUE,AY23,BD23)","v":""},"",{"$f":"IF(F23>=90,100,F23)","v":0}]
[null,null,null,null,null,null,null,null,null,null,null,null,null,null,null,null,null,null,null,null,null,null,null,null,null,null,null,null,null,null,null,null,null,"",{"$f":"VLOOKUP(AH24,Index!$L$2:$Q$30,6,FALSE)","v":{"$error":"#N/A"}},"",1,"","","","","","","yes","yes","","","","",null,null,null,{"$f":"IF(A24=\"\",\"\",IF(AR24=\"no\",\"\",IF(ISERROR(IF(AF24<>\"NR\",AF24,IF(AM24=\"NR\",IF(AQ24=\"B\",VLOOKUP(AH24&AJ24&AP24,'Default BW IR-Formatted by LS'!$AB$4:$AF$83,5,FALSE),VLOOKUP(AH24&AJ24&AQ24&AP24,'Default BW IR-Formatted by LS'!$S$4:$X$124,6,FALSE)),VLOOKUP(AO24,INDIRECT(\"'Default BW IR-Formatted by age'!\"&VLOOKUP(AH24&AJ24&AQ24,Index!$A$2:$E$151,5,FALSE)),2,TRUE))))=TRUE,\"ERROR\",IF(AF24<>\"NR\",AF24,IF(AM24=\"NR\",IF(AQ24=\"B\",VLOOKUP(AH24&AJ24&AP24,'Default BW IR-Formatted by LS'!$AB$4:$AF$83,5,FALSE),VLOOKUP(AH24&AJ24&AQ24&AP24,'Default BW IR-Formatted by LS'!$S$4:$X$124,6,FALSE)),VLOOKUP(AO24,INDIRECT(\"'Default BW IR-Formatted by age'!\"&VLOOKUP(AH24&AJ24&AQ24,Index!$A$2:$E$151,5,FALSE)),2,TRUE))))))","v":""},"",{"$f":"IF(A24=\"\",\"\",IF(AS24=\"no\",\"\",IF(AG24<>\"NR\",AG24,IF(OR(L24=\"mg/L\",L24=\"ppm in mg/L\",L24=\"mg/ml\",L24=\"% in water\",L24=\"% water\",L24=\"g/L\",L24=\"ug/L\"),IF(AI24=\"bird\",0.059*BB24^0.67,0.099*BB24^0.9),(((BB24*1000)^VLOOKUP(AH24,Index!$L$2:$N$30,3,FALSE))*VLOOKUP(AH24,Index!$L$2:$N$30,2,FALSE))/1000))))","v":""},"","","","","","","",0]
[null,null,null,null,null,null,null,null,null,null,null,null,null,null,null,null,null,null,null,null,null,null,null,null,null,null,null,null,null,null,null,null,null,"",{"$f":"VLOOKUP(AH25,Index!$L$2:$Q$30,6,FALSE)","v":{"$error":"#N/A"}},"",1,"","","","","","","yes","yes","","","","",null,null,null,{"$f":"IF(A25=\"\",\"\",IF(AR25=\"no\",\"\",IF(ISERROR(IF(AF25<>\"NR\",AF25,IF(AM25=\"NR\",IF(AQ25=\"B\",VLOOKUP(AH25&AJ25&AP25,'Default BW IR-Formatted by LS'!$AB$4:$AF$83,5,FALSE),VLOOKUP(AH25&AJ25&AQ25&AP25,'Default BW IR-Formatted by LS'!$S$4:$X$124,6,FALSE)),VLOOKUP(AO25,INDIRECT(\"'Default BW IR-Formatted by age'!\"&VLOOKUP(AH25&AJ25&AQ25,Index!$A$2:$E$151,5,FALSE)),2,TRUE))))=TRUE,\"ERROR\",IF(AF25<>\"NR\",AF25,IF(AM25=\"NR\",IF(AQ25=\"B\",VLOOKUP(AH25&AJ25&AP25,'Default BW IR-Formatted by LS'!$AB$4:$AF$83,5,FALSE),VLOOKUP(AH25&AJ25&AQ25&AP25,'Default BW IR-Formatted by LS'!$S$4:$X$124,6,FALSE)),VLOOKUP(AO25,INDIRECT(\"'Default BW IR-Formatted by age'!\"&VLOOKUP(AH25&AJ25&AQ25,Index!$A$2:$E$151,5,FALSE)),2,TRUE))))))","v":""},"",{"$f":"IF(A25=\"\",\"\",IF(AS25=\"no\",\"\",IF(AG25<>\"NR\",AG25,IF(OR(L25=\"mg/L\",L25=\"ppm in mg/L\",L25=\"mg/ml\",L25=\"% in water\",L25=\"% water\",L25=\"g/L\",L25=\"ug/L\"),IF(AI25=\"bird\",0.059*BB25^0.67,0.099*BB25^0.9),(((BB25*1000)^VLOOKUP(AH25,Index!$L$2:$N$30,3,FALSE))*VLOOKUP(AH25,Index!$L$2:$N$30,2,FALSE))/1000))))","v":""},"","","","","","","",0]
[null,null,null,null,null,null,null,null,null,null,null,null,null,null,null,null,null,null,null,null,null,null,null,null,null,null,null,null,null,null,null,null,null,"",{"$f":"VLOOKUP(AH26,Index!$L$2:$Q$30,6,FALSE)","v":{"$error":"#N/A"}},"",1,"","","","","","","yes","yes","","","","",null,null,null,{"$f":"IF(A26=\"\",\"\",IF(AR26=\"no\",\"\",IF(ISERROR(IF(AF26<>\"NR\",AF26,IF(AM26=\"NR\",IF(AQ26=\"B\",VLOOKUP(AH26&AJ26&AP26,'Default BW IR-Formatted by LS'!$AB$4:$AF$83,5,FALSE),VLOOKUP(AH26&AJ26&AQ26&AP26,'Default BW IR-Formatted by LS'!$S$4:$X$124,6,FALSE)),VLOOKUP(AO26,INDIRECT(\"'Default BW IR-Formatted by age'!\"&VLOOKUP(AH26&AJ26&AQ26,Index!$A$2:$E$151,5,FALSE)),2,TRUE))))=TRUE,\"ERROR\",IF(AF26<>\"NR\",AF26,IF(AM26=\"NR\",IF(AQ26=\"B\",VLOOKUP(AH26&AJ26&AP26,'Default BW IR-Formatted by LS'!$AB$4:$AF$83,5,FALSE),VLOOKUP(AH26&AJ26&AQ26&AP26,'Default BW IR-Formatted by LS'!$S$4:$X$124,6,FALSE)),VLOOKUP(AO26,INDIRECT(\"'Default BW IR-Formatted by age'!\"&VLOOKUP(AH26&AJ26&AQ26,Index!$A$2:$E$151,5,FALSE)),2,TRUE))))))","v":""},"",{"$f":"IF(A26=\"\",\"\",IF(AS26=\"no\",\"\",IF(AG26<>\"NR\",AG26,IF(OR(L26=\"mg/L\",L26=\"ppm in mg/L\",L26=\"mg/ml\",L26=\"% in water\",L26=\"% water\",L26=\"g/L\",L26=\"ug/L\"),IF(AI26=\"bird\",0.059*BB26^0.67,0.099*BB26^0.9),(((BB26*1000)^VLOOKUP(AH26,Index!$L$2:$N$30,3,FALSE))*VLOOKUP(AH26,Index!$L$2:$N$30,2,FALSE))/1000))))","v":""},"","","","","","","",0]
[null,null,null,null,null,null,null,null,null,null,null,null,null,null,null,null,null,null,null,null,null,null,null,null,null,null,null,null,null,null,null,null,null,"",{"$f":"VLOOKUP(AH27,Index!$L$2:$Q$30,6,FALSE)","v":{"$error":"#N/A"}},"",1,"","","","","","","yes","yes","","","","",null,null,null,{"$f":"IF(A27=\"\",\"\",IF(AR27=\"no\",\"\",IF(ISERROR(IF(AF27<>\"NR\",AF27,IF(AM27=\"NR\",IF(AQ27=\"B\",VLOOKUP(AH27&AJ27&AP27,'Default BW IR-Formatted by LS'!$AB$4:$AF$83,5,FALSE),VLOOKUP(AH27&AJ27&AQ27&AP27,'Default BW IR-Formatted by LS'!$S$4:$X$124,6,FALSE)),VLOOKUP(AO27,INDIRECT(\"'Default BW IR-Formatted by age'!\"&VLOOKUP(AH27&AJ27&AQ27,Index!$A$2:$E$151,5,FALSE)),2,TRUE))))=TRUE,\"ERROR\",IF(AF27<>\"NR\",AF27,IF(AM27=\"NR\",IF(AQ27=\"B\",VLOOKUP(AH27&AJ27&AP27,'Default BW IR-Formatted by LS'!$AB$4:$AF$83,5,FALSE),VLOOKUP(AH27&AJ27&AQ27&AP27,'Default BW IR-Formatted by LS'!$S$4:$X$124,6,FALSE)),VLOOKUP(AO27,INDIRECT(\"'Default BW IR-Formatted by age'!\"&VLOOKUP(AH27&AJ27&AQ27,Index!$A$2:$E$151,5,FALSE)),2,TRUE))))))","v":""},"",{"$f":"IF(A27=\"\",\"\",IF(AS27=\"no\",\"\",IF(AG27<>\"NR\",AG27,IF(OR(L27=\"mg/L\",L27=\"ppm in mg/L\",L27=\"mg/ml\",L27=\"% in water\",L27=\"% water\",L27=\"g/L\",L27=\"ug/L\"),IF(AI27=\"bird\",0.059*BB27^0.67,0.099*BB27^0.9),(((BB27*1000)^VLOOKUP(AH27,Index!$L$2:$N$30,3,FALSE))*VLOOKUP(AH27,Index!$L$2:$N$30,2,FALSE))/1000))))","v":""},"","","","","","","",0]
[null,null,null,null,null,null,null,null,null,null,null,null,null,null,null,null,null,null,null,null,null,null,null,null,null,null,null,null,null,null,null,null,null,"",{"$f":"VLOOKUP(AH28,Index!$L$2:$Q$30,6,FALSE)","v":{"$error":"#N/A"}},"",1,"","","","","","","yes","yes","","","","",null,null,null,{"$f":"IF(A28=\"\",\"\",IF(AR28=\"no\",\"\",IF(ISERROR(IF(AF28<>\"NR\",AF28,IF(AM28=\"NR\",IF(AQ28=\"B\",VLOOKUP(AH28&AJ28&AP28,'Default BW IR-Formatted by LS'!$AB$4:$AF$83,5,FALSE),VLOOKUP(AH28&AJ28&AQ28&AP28,'Default BW IR-Formatted by LS'!$S$4:$X$124,6,FALSE)),VLOOKUP(AO28,INDIRECT(\"'Default BW IR-Formatted by age'!\"&VLOOKUP(AH28&AJ28&AQ28,Index!$A$2:$E$151,5,FALSE)),2,TRUE))))=TRUE,\"ERROR\",IF(AF28<>\"NR\",AF28,IF(AM28=\"NR\",IF(AQ28=\"B\",VLOOKUP(AH28&AJ28&AP28,'Default BW IR-Formatted by LS'!$AB$4:$AF$83,5,FALSE),VLOOKUP(AH28&AJ28&AQ28&AP28,'Default BW IR-Formatted by LS'!$S$4:$X$124,6,FALSE)),VLOOKUP(AO28,INDIRECT(\"'Default BW IR-Formatted by age'!\"&VLOOKUP(AH28&AJ28&AQ28,Index!$A$2:$E$151,5,FALSE)),2,TRUE))))))","v":""},"",{"$f":"IF(A28=\"\",\"\",IF(AS28=\"no\",\"\",IF(AG28<>\"NR\",AG28,IF(OR(L28=\"mg/L\",L28=\"ppm in mg/L\",L28=\"mg/ml\",L28=\"% in water\",L28=\"% water\",L28=\"g/L\",L28=\"ug/L\"),IF(AI28=\"bird\",0.059*BB28^0.67,0.099*BB28^0.9),(((BB28*1000)^VLOOKUP(AH28,Index!$L$2:$N$30,3,FALSE))*VLOOKUP(AH28,Index!$L$2:$N$30,2,FALSE))/1000))))","v":""},"","","","","","","",0]
[null,null,null,null,null,null,null,null,null,null,null,null,null,null,null,null,null,null,null,null,null,null,null,null,null,null,null,null,null,null,null,null,null,"",{"$f":"VLOOKUP(AH29,Index!$L$2:$Q$30,6,FALSE)","v":{"$error":"#N/A"}},"",1,"","","","","","","yes","yes","","","","",null,null,null,{"$f":"IF(A29=\"\",\"\",IF(AR29=\"no\",\"\",IF(ISERROR(IF(AF29<>\"NR\",AF29,IF(AM29=\"NR\",IF(AQ29=\"B\",VLOOKUP(AH29&AJ29&AP29,'Default BW IR-Formatted by LS'!$AB$4:$AF$83,5,FALSE),VLOOKUP(AH29&AJ29&AQ29&AP29,'Default BW IR-Formatted by LS'!$S$4:$X$124,6,FALSE)),VLOOKUP(AO29,INDIRECT(\"'Default BW IR-Formatted by age'!\"&VLOOKUP(AH29&AJ29&AQ29,Index!$A$2:$E$151,5,FALSE)),2,TRUE))))=TRUE,\"ERROR\",IF(AF29<>\"NR\",AF29,IF(AM29=\"NR\",IF(AQ29=\"B\",VLOOKUP(AH29&AJ29&AP29,'Default BW IR-Formatted by LS'!$AB$4:$AF$83,5,FALSE),VLOOKUP(AH29&AJ29&AQ29&AP29,'Default BW IR-Formatted by LS'!$S$4:$X$124,6,FALSE)),VLOOKUP(AO29,INDIRECT(\"'Default BW IR-Formatted by age'!\"&VLOOKUP(AH29&AJ29&AQ29,Index!$A$2:$E$151,5,FALSE)),2,TRUE))))))","v":""},"",{"$f":"IF(A29=\"\",\"\",IF(AS29=\"no\",\"\",IF(AG29<>\"NR\",AG29,IF(OR(L29=\"mg/L\",L29=\"ppm in mg/L\",L29=\"mg/ml\",L29=\"% in water\",L29=\"% water\",L29=\"g/L\",L29=\"ug/L\"),IF(AI29=\"bird\",0.059*BB29^0.67,0.099*BB29^0.9),(((BB29*1000)^VLOOKUP(AH29,Index!$L$2:$N$30,3,FALSE))*VLOOKUP(AH29,Index!$L$2:$N$30,2,FALSE))/1000))))","v":""},"","","","","","","",0]
[null,null,null,null,null,null,null,null,null,null,null,null,null,null,null,null,null,null,null,null,null,null,null,null,null,null,null,null,null,null,null,null,null,"",{"$f":"VLOOKUP(AH30,Index!$L$2:$Q$30,6,FALSE)","v":{"$error":"#N/A"}},"",1,"","","","","","","yes","yes","","","","",null,null,null,{"$f":"IF(A30=\"\",\"\",IF(AR30=\"no\",\"\",IF(ISERROR(IF(AF30<>\"NR\",AF30,IF(AM30=\"NR\",IF(AQ30=\"B\",VLOOKUP(AH30&AJ30&AP30,'Default BW IR-Formatted by LS'!$AB$4:$AF$83,5,FALSE),VLOOKUP(AH30&AJ30&AQ30&AP30,'Default BW IR-Formatted by LS'!$S$4:$X$124,6,FALSE)),VLOOKUP(AO30,INDIRECT(\"'Default BW IR-Formatted by age'!\"&VLOOKUP(AH30&AJ30&AQ30,Index!$A$2:$E$151,5,FALSE)),2,TRUE))))=TRUE,\"ERROR\",IF(AF30<>\"NR\",AF30,IF(AM30=\"NR\",IF(AQ30=\"B\",VLOOKUP(AH30&AJ30&AP30,'Default BW IR-Formatted by LS'!$AB$4:$AF$83,5,FALSE),VLOOKUP(AH30&AJ30&AQ30&AP30,'Default BW IR-Formatted by LS'!$S$4:$X$124,6,FALSE)),VLOOKUP(AO30,INDIRECT(\"'Default BW IR-Formatted by age'!\"&VLOOKUP(AH30&AJ30&AQ30,Index!$A$2:$E$151,5,FALSE)),2,TRUE))))))","v":""},"",{"$f":"IF(A30=\"\",\"\",IF(AS30=\"no\",\"\",IF(AG30<>\"NR\",AG30,IF(OR(L30=\"mg/L\",L30=\"ppm in mg/L\",L30=\"mg/ml\",L30=\"% in water\",L30=\"% water\",L30=\"g/L\",L30=\"ug/L\"),IF(AI30=\"bird\",0.059*BB30^0.67,0.099*BB30^0.9),(((BB30*1000)^VLOOKUP(AH30,Index!$L$2:$N$30,3,FALSE))*VLOOKUP(AH30,Index!$L$2:$N$30,2,FALSE))/1000))))","v":""},"","","","","","","",0]
[null,null,null,null,null,null,null,null,null,null,null,null,null,null,null,null,null,null,null,null,null,null,null,null,null,null,null,null,null,null,null,null,null,"",{"$f":"VLOOKUP(AH31,Index!$L$2:$Q$30,6,FALSE)","v":{"$error":"#N/A"}},"",1,"","","","","","","yes","yes","","","","",null,null,null,{"$f":"IF(A31=\"\",\"\",IF(AR31=\"no\",\"\",IF(ISERROR(IF(AF31<>\"NR\",AF31,IF(AM31=\"NR\",IF(AQ31=\"B\",VLOOKUP(AH31&AJ31&AP31,'Default BW IR-Formatted by LS'!$AB$4:$AF$83,5,FALSE),VLOOKUP(AH31&AJ31&AQ31&AP31,'Default BW IR-Formatted by LS'!$S$4:$X$124,6,FALSE)),VLOOKUP(AO31,INDIRECT(\"'Default BW IR-Formatted by age'!\"&VLOOKUP(AH31&AJ31&AQ31,Index!$A$2:$E$151,5,FALSE)),2,TRUE))))=TRUE,\"ERROR\",IF(AF31<>\"NR\",AF31,IF(AM31=\"NR\",IF(AQ31=\"B\",VLOOKUP(AH31&AJ31&AP31,'Default BW IR-Formatted by LS'!$AB$4:$AF$83,5,FALSE),VLOOKUP(AH31&AJ31&AQ31&AP31,'Default BW IR-Formatted by LS'!$S$4:$X$124,6,FALSE)),VLOOKUP(AO31,INDIRECT(\"'Default BW IR-Formatted by age'!\"&VLOOKUP(AH31&AJ31&AQ31,Index!$A$2:$E$151,5,FALSE)),2,TRUE))))))","v":""},"",{"$f":"IF(A31=\"\",\"\",IF(AS31=\"no\",\"\",IF(AG31<>\"NR\",AG31,IF(OR(L31=\"mg/L\",L31=\"ppm in mg/L\",L31=\"mg/ml\",L31=\"% in water\",L31=\"% water\",L31=\"g/L\",L31=\"ug/L\"),IF(AI31=\"bird\",0.059*BB31^0.67,0.099*BB31^0.9),(((BB31*1000)^VLOOKUP(AH31,Index!$L$2:$N$30,3,FALSE))*VLOOKUP(AH31,Index!$L$2:$N$30,2,FALSE))/1000))))","v":""},"","","","","","","",0]
[null,null,null,null,null,null,null,null,null,null,null,null,null,null,null,null,null,null,null,null,null,null,null,null,null,null,null,null,null,null,null,null,null,"",{"$f":"VLOOKUP(AH32,Index!$L$2:$Q$30,6,FALSE)","v":{"$error":"#N/A"}},"",1,"","","","","","","yes","yes","","","","",null,null,null,{"$f":"IF(A32=\"\",\"\",IF(AR32=\"no\",\"\",IF(ISERROR(IF(AF32<>\"NR\",AF32,IF(AM32=\"NR\",IF(AQ32=\"B\",VLOOKUP(AH32&AJ32&AP32,'Default BW IR-Formatted by LS'!$AB$4:$AF$83,5,FALSE),VLOOKUP(AH32&AJ32&AQ32&AP32,'Default BW IR-Formatted by LS'!$S$4:$X$124,6,FALSE)),VLOOKUP(AO32,INDIRECT(\"'Default BW IR-Formatted by age'!\"&VLOOKUP(AH32&AJ32&AQ32,Index!$A$2:$E$151,5,FALSE)),2,TRUE))))=TRUE,\"ERROR\",IF(AF32<>\"NR\",AF32,IF(AM32=\"NR\",IF(AQ32=\"B\",VLOOKUP(AH32&AJ32&AP32,'Default BW IR-Formatted by LS'!$AB$4:$AF$83,5,FALSE),VLOOKUP(AH32&AJ32&AQ32&AP32,'Default BW IR-Formatted by LS'!$S$4:$X$124,6,FALSE)),VLOOKUP(AO32,INDIRECT(\"'Default BW IR-Formatted by age'!\"&VLOOKUP(AH32&AJ32&AQ32,Index!$A$2:$E$151,5,FALSE)),2,TRUE))))))","v":""},"",{"$f":"IF(A32=\"\",\"\",IF(AS32=\"no\",\"\",IF(AG32<>\"NR\",AG32,IF(OR(L32=\"mg/L\",L32=\"ppm in mg/L\",L32=\"mg/ml\",L32=\"% in water\",L32=\"% water\",L32=\"g/L\",L32=\"ug/L\"),IF(AI32=\"bird\",0.059*BB32^0.67,0.099*BB32^0.9),(((BB32*1000)^VLOOKUP(AH32,Index!$L$2:$N$30,3,FALSE))*VLOOKUP(AH32,Index!$L$2:$N$30,2,FALSE))/1000))))","v":""},"","","","","","","",0]
[null,null,null,null,null,null,null,null,null,null,null,null,null,null,null,null,null,null,null,null,null,null,null,null,null,null,null,null,null,null,null,null,null,"",{"$f":"VLOOKUP(AH33,Index!$L$2:$Q$30,6,FALSE)","v":{"$error":"#N/A"}},"",1,"","","","","","","yes","yes","","","","",null,null,null,{"$f":"IF(A33=\"\",\"\",IF(AR33=\"no\",\"\",IF(ISERROR(IF(AF33<>\"NR\",AF33,IF(AM33=\"NR\",IF(AQ33=\"B\",VLOOKUP(AH33&AJ33&AP33,'Default BW IR-Formatted by LS'!$AB$4:$AF$83,5,FALSE),VLOOKUP(AH33&AJ33&AQ33&AP33,'Default BW IR-Formatted by LS'!$S$4:$X$124,6,FALSE)),VLOOKUP(AO33,INDIRECT(\"'Default BW IR-Formatted by age'!\"&VLOOKUP(AH33&AJ33&AQ33,Index!$A$2:$E$151,5,FALSE)),2,TRUE))))=TRUE,\"ERROR\",IF(AF33<>\"NR\",AF33,IF(AM33=\"NR\",IF(AQ33=\"B\",VLOOKUP(AH33&AJ33&AP33,'Default BW IR-Formatted by LS'!$AB$4:$AF$83,5,FALSE),VLOOKUP(AH33&AJ33&AQ33&AP33,'Default BW IR-Formatted by LS'!$S$4:$X$124,6,FALSE)),VLOOKUP(AO33,INDIRECT(\"'Default BW IR-Formatted by age'!\"&VLOOKUP(AH33&AJ33&AQ33,Index!$A$2:$E$151,5,FALSE)),2,TRUE))))))","v":""},"",{"$f":"IF(A33=\"\",\"\",IF(AS33=\"no\",\"\",IF(AG33<>\"NR\",AG33,IF(OR(L33=\"mg/L\",L33=\"ppm in mg/L\",L33=\"mg/ml\",L33=\"% in water\",L33=\"% water\",L33=\"g/L\",L33=\"ug/L\"),IF(AI33=\"bird\",0.059*BB33^0.67,0.099*BB33^0.9),(((BB33*1000)^VLOOKUP(AH33,Index!$L$2:$N$30,3,FALSE))*VLOOKUP(AH33,Index!$L$2:$N$30,2,FALSE))/1000))))","v":""},"","","","","","","",0]
[null,null,null,null,null,null,null,null,null,null,null,null,null,null,null,null,null,null,null,null,null,null,null,null,null,null,null,null,null,null,null,null,null,"",{"$f":"VLOOKUP(AH34,Index!$L$2:$Q$30,6,FALSE)","v":{"$error":"#N/A"}},"",1,"","","","","","","yes","yes","","","","",null,null,null,{"$f":"IF(A34=\"\",\"\",IF(AR34=\"no\",\"\",IF(ISERROR(IF(AF34<>\"NR\",AF34,IF(AM34=\"NR\",IF(AQ34=\"B\",VLOOKUP(AH34&AJ34&AP34,'Default BW IR-Formatted by LS'!$AB$4:$AF$83,5,FALSE),VLOOKUP(AH34&AJ34&AQ34&AP34,'Default BW IR-Formatted by LS'!$S$4:$X$124,6,FALSE)),VLOOKUP(AO34,INDIRECT(\"'Default BW IR-Formatted by age'!\"&VLOOKUP(AH34&AJ34&AQ34,Index!$A$2:$E$151,5,FALSE)),2,TRUE))))=TRUE,\"ERROR\",IF(AF34<>\"NR\",AF34,IF(AM34=\"NR\",IF(AQ34=\"B\",VLOOKUP(AH34&AJ34&AP34,'Default BW IR-Formatted by LS'!$AB$4:$AF$83,5,FALSE),VLOOKUP(AH34&AJ34&AQ34&AP34,'Default BW IR-Formatted by LS'!$S$4:$X$124,6,FALSE)),VLOOKUP(AO34,INDIRECT(\"'Default BW IR-Formatted by age'!\"&VLOOKUP(AH34&AJ34&AQ34,Index!$A$2:$E$151,5,FALSE)),2,TRUE))))))","v":""},"",{"$f":"IF(A34=\"\",\"\",IF(AS34=\"no\",\"\",IF(AG34<>\"NR\",AG34,IF(OR(L34=\"mg/L\",L34=\"ppm in mg/L\",L34=\"mg/ml\",L34=\"% in water\",L34=\"% water\",L34=\"g/L\",L34=\"ug/L\"),IF(AI34=\"bird\",0.059*BB34^0.67,0.099*BB34^0.9),(((BB34*1000)^VLOOKUP(AH34,Index!$L$2:$N$30,3,FALSE))*VLOOKUP(AH34,Index!$L$2:$N$30,2,FALSE))/1000))))","v":""},"","","","","","","",0]
[null,null,null,null,null,null,null,null,null,null,null,null,null,null,null,null,null,null,null,null,null,null,null,null,null,null,null,null,null,null,null,null,null,"",{"$f":"VLOOKUP(AH35,Index!$L$2:$Q$30,6,FALSE)","v":{"$error":"#N/A"}},"",1,"","","","","","","yes","yes","","","","",null,null,null,{"$f":"IF(A35=\"\",\"\",IF(AR35=\"no\",\"\",IF(ISERROR(IF(AF35<>\"NR\",AF35,IF(AM35=\"NR\",IF(AQ35=\"B\",VLOOKUP(AH35&AJ35&AP35,'Default BW IR-Formatted by LS'!$AB$4:$AF$83,5,FALSE),VLOOKUP(AH35&AJ35&AQ35&AP35,'Default BW IR-Formatted by LS'!$S$4:$X$124,6,FALSE)),VLOOKUP(AO35,INDIRECT(\"'Default BW IR-Formatted by age'!\"&VLOOKUP(AH35&AJ35&AQ35,Index!$A$2:$E$151,5,FALSE)),2,TRUE))))=TRUE,\"ERROR\",IF(AF35<>\"NR\",AF35,IF(AM35=\"NR\",IF(AQ35=\"B\",VLOOKUP(AH35&AJ35&AP35,'Default BW IR-Formatted by LS'!$AB$4:$AF$83,5,FALSE),VLOOKUP(AH35&AJ35&AQ35&AP35,'Default BW IR-Formatted by LS'!$S$4:$X$124,6,FALSE)),VLOOKUP(AO35,INDIRECT(\"'Default BW IR-Formatted by age'!\"&VLOOKUP(AH35&AJ35&AQ35,Index!$A$2:$E$151,5,FALSE)),2,TRUE))))))","v":""},"",{"$f":"IF(A35=\"\",\"\",IF(AS35=\"no\",\"\",IF(AG35<>\"NR\",AG35,IF(OR(L35=\"mg/L\",L35=\"ppm in mg/L\",L35=\"mg/ml\",L35=\"% in water\",L35=\"% water\",L35=\"g/L\",L35=\"ug/L\"),IF(AI35=\"bird\",0.059*BB35^0.67,0.099*BB35^0.9),(((BB35*1000)^VLOOKUP(AH35,Index!$L$2:$N$30,3,FALSE))*VLOOKUP(AH35,Index!$L$2:$N$30,2,FALSE))/1000))))","v":""},"","","","","","","",0]
[null,null,null,null,null,null,null,null,null,null,null,null,null,null,null,null,null,null,null,null,null,null,null,null,null,null,null,null,null,null,null,null,null,"",{"$f":"VLOOKUP(AH36,Index!$L$2:$Q$30,6,FALSE)","v":{"$error":"#N/A"}},"",1,"","","","","","","yes","yes","","","","",null,null,null,{"$f":"IF(A36=\"\",\"\",IF(AR36=\"no\",\"\",IF(ISERROR(IF(AF36<>\"NR\",AF36,IF(AM36=\"NR\",IF(AQ36=\"B\",VLOOKUP(AH36&AJ36&AP36,'Default BW IR-Formatted by LS'!$AB$4:$AF$83,5,FALSE),VLOOKUP(AH36&AJ36&AQ36&AP36,'Default BW IR-Formatted by LS'!$S$4:$X$124,6,FALSE)),VLOOKUP(AO36,INDIRECT(\"'Default BW IR-Formatted by age'!\"&VLOOKUP(AH36&AJ36&AQ36,Index!$A$2:$E$151,5,FALSE)),2,TRUE))))=TRUE,\"ERROR\",IF(AF36<>\"NR\",AF36,IF(AM36=\"NR\",IF(AQ36=\"B\",VLOOKUP(AH36&AJ36&AP36,'Default BW IR-Formatted by LS'!$AB$4:$AF$83,5,FALSE),VLOOKUP(AH36&AJ36&AQ36&AP36,'Default BW IR-Formatted by LS'!$S$4:$X$124,6,FALSE)),VLOOKUP(AO36,INDIRECT(\"'Default BW IR-Formatted by age'!\"&VLOOKUP(AH36&AJ36&AQ36,Index!$A$2:$E$151,5,FALSE)),2,TRUE))))))","v":""},"",{"$f":"IF(A36=\"\",\"\",IF(AS36=\"no\",\"\",IF(AG36<>\"NR\",AG36,IF(OR(L36=\"mg/L\",L36=\"ppm in mg/L\",L36=\"mg/ml\",L36=\"% in water\",L36=\"% water\",L36=\"g/L\",L36=\"ug/L\"),IF(AI36=\"bird\",0.059*BB36^0.67,0.099*BB36^0.9),(((BB36*1000)^VLOOKUP(AH36,Index!$L$2:$N$30,3,FALSE))*VLOOKUP(AH36,Index!$L$2:$N$30,2,FALSE))/1000))))","v":""},"","","","","","","",0]
[null,null,null,null,null,null,null,null,null,null,null,null,null,null,null,null,null,null,null,null,null,null,null,null,null,null,null,null,null,null,null,null,null,"",{"$f":"VLOOKUP(AH37,Index!$L$2:$Q$30,6,FALSE)","v":{"$error":"#N/A"}},"",1,"","","","","","","yes","yes","","","","",null,null,null,{"$f":"IF(A37=\"\",\"\",IF(AR37=\"no\",\"\",IF(ISERROR(IF(AF37<>\"NR\",AF37,IF(AM37=\"NR\",IF(AQ37=\"B\",VLOOKUP(AH37&AJ37&AP37,'Default BW IR-Formatted by LS'!$AB$4:$AF$83,5,FALSE),VLOOKUP(AH37&AJ37&AQ37&AP37,'Default BW IR-Formatted by LS'!$S$4:$X$124,6,FALSE)),VLOOKUP(AO37,INDIRECT(\"'Default BW IR-Formatted by age'!\"&VLOOKUP(AH37&AJ37&AQ37,Index!$A$2:$E$151,5,FALSE)),2,TRUE))))=TRUE,\"ERROR\",IF(AF37<>\"NR\",AF37,IF(AM37=\"NR\",IF(AQ37=\"B\",VLOOKUP(AH37&AJ37&AP37,'Default BW IR-Formatted by LS'!$AB$4:$AF$83,5,FALSE),VLOOKUP(AH37&AJ37&AQ37&AP37,'Default BW IR-Formatted by LS'!$S$4:$X$124,6,FALSE)),VLOOKUP(AO37,INDIRECT(\"'Default BW IR-Formatted by age'!\"&VLOOKUP(AH37&AJ37&AQ37,Index!$A$2:$E$151,5,FALSE)),2,TRUE))))))","v":""},"",{"$f":"IF(A37=\"\",\"\",IF(AS37=\"no\",\"\",IF(AG37<>\"NR\",AG37,IF(OR(L37=\"mg/L\",L37=\"ppm in mg/L\",L37=\"mg/ml\",L37=\"% in water\",L37=\"% water\",L37=\"g/L\",L37=\"ug/L\"),IF(AI37=\"bird\",0.059*BB37^0.67,0.099*BB37^0.9),(((BB37*1000)^VLOOKUP(AH37,Index!$L$2:$N$30,3,FALSE))*VLOOKUP(AH37,Index!$L$2:$N$30,2,FALSE))/1000))))","v":""},"","","","","","","",0]
[null,null,null,null,null,null,null,null,null,null,null,null,null,null,null,null,null,null,null,null,null,null,null,null,null,null,null,null,null,null,null,null,null,"",{"$f":"VLOOKUP(AH38,Index!$L$2:$Q$30,6,FALSE)","v":{"$error":"#N/A"}},"",1,"","","","","","","yes","yes","","","","",null,null,null,{"$f":"IF(A38=\"\",\"\",IF(AR38=\"no\",\"\",IF(ISERROR(IF(AF38<>\"NR\",AF38,IF(AM38=\"NR\",IF(AQ38=\"B\",VLOOKUP(AH38&AJ38&AP38,'Default BW IR-Formatted by LS'!$AB$4:$AF$83,5,FALSE),VLOOKUP(AH38&AJ38&AQ38&AP38,'Default BW IR-Formatted by LS'!$S$4:$X$124,6,FALSE)),VLOOKUP(AO38,INDIRECT(\"'Default BW IR-Formatted by age'!\"&VLOOKUP(AH38&AJ38&AQ38,Index!$A$2:$E$151,5,FALSE)),2,TRUE))))=TRUE,\"ERROR\",IF(AF38<>\"NR\",AF38,IF(AM38=\"NR\",IF(AQ38=\"B\",VLOOKUP(AH38&AJ38&AP38,'Default BW IR-Formatted by LS'!$AB$4:$AF$83,5,FALSE),VLOOKUP(AH38&AJ38&AQ38&AP38,'Default BW IR-Formatted by LS'!$S$4:$X$124,6,FALSE)),VLOOKUP(AO38,INDIRECT(\"'Default BW IR-Formatted by age'!\"&VLOOKUP(AH38&AJ38&AQ38,Index!$A$2:$E$151,5,FALSE)),2,TRUE))))))","v":""},"",{"$f":"IF(A38=\"\",\"\",IF(AS38=\"no\",\"\",IF(AG38<>\"NR\",AG38,IF(OR(L38=\"mg/L\",L38=\"ppm in mg/L\",L38=\"mg/ml\",L38=\"% in water\",L38=\"% water\",L38=\"g/L\",L38=\"ug/L\"),IF(AI38=\"bird\",0.059*BB38^0.67,0.099*BB38^0.9),(((BB38*1000)^VLOOKUP(AH38,Index!$L$2:$N$30,3,FALSE))*VLOOKUP(AH38,Index!$L$2:$N$30,2,FALSE))/1000))))","v":""},"","","","","","","",0]
[null,null,null,null,null,null,null,null,null,null,null,null,null,null,null,null,null,null,null,null,null,null,null,null,null,null,null,null,null,null,null,null,null,"",{"$f":"VLOOKUP(AH39,Index!$L$2:$Q$30,6,FALSE)","v":{"$error":"#N/A"}},"",1,"","","","","","","yes","yes","","","","",null,null,null,{"$f":"IF(A39=\"\",\"\",IF(AR39=\"no\",\"\",IF(ISERROR(IF(AF39<>\"NR\",AF39,IF(AM39=\"NR\",IF(AQ39=\"B\",VLOOKUP(AH39&AJ39&AP39,'Default BW IR-Formatted by LS'!$AB$4:$AF$83,5,FALSE),VLOOKUP(AH39&AJ39&AQ39&AP39,'Default BW IR-Formatted by LS'!$S$4:$X$124,6,FALSE)),VLOOKUP(AO39,INDIRECT(\"'Default BW IR-Formatted by age'!\"&VLOOKUP(AH39&AJ39&AQ39,Index!$A$2:$E$151,5,FALSE)),2,TRUE))))=TRUE,\"ERROR\",IF(AF39<>\"NR\",AF39,IF(AM39=\"NR\",IF(AQ39=\"B\",VLOOKUP(AH39&AJ39&AP39,'Default BW IR-Formatted by LS'!$AB$4:$AF$83,5,FALSE),VLOOKUP(AH39&AJ39&AQ39&AP39,'Default BW IR-Formatted by LS'!$S$4:$X$124,6,FALSE)),VLOOKUP(AO39,INDIRECT(\"'Default BW IR-Formatted by age'!\"&VLOOKUP(AH39&AJ39&AQ39,Index!$A$2:$E$151,5,FALSE)),2,TRUE))))))","v":""},"",{"$f":"IF(A39=\"\",\"\",IF(AS39=\"no\",\"\",IF(AG39<>\"NR\",AG39,IF(OR(L39=\"mg/L\",L39=\"ppm in mg/L\",L39=\"mg/ml\",L39=\"% in water\",L39=\"% water\",L39=\"g/L\",L39=\"ug/L\"),IF(AI39=\"bird\",0.059*BB39^0.67,0.099*BB39^0.9),(((BB39*1000)^VLOOKUP(AH39,Index!$L$2:$N$30,3,FALSE))*VLOOKUP(AH39,Index!$L$2:$N$30,2,FALSE))/1000))))","v":""},"","","","","","","",0]
[null,null,null,null,null,null,null,null,null,null,null,null,null,null,null,null,null,null,null,null,null,null,null,null,null,null,null,null,null,null,null,null,null,"",{"$f":"VLOOKUP(AH40,Index!$L$2:$Q$30,6,FALSE)","v":{"$error":"#N/A"}},"",1,"","","","","","","yes","yes","","","","",null,null,null,{"$f":"IF(A40=\"\",\"\",IF(AR40=\"no\",\"\",IF(ISERROR(IF(AF40<>\"NR\",AF40,IF(AM40=\"NR\",IF(AQ40=\"B\",VLOOKUP(AH40&AJ40&AP40,'Default BW IR-Formatted by LS'!$AB$4:$AF$83,5,FALSE),VLOOKUP(AH40&AJ40&AQ40&AP40,'Default BW IR-Formatted by LS'!$S$4:$X$124,6,FALSE)),VLOOKUP(AO40,INDIRECT(\"'Default BW IR-Formatted by age'!\"&VLOOKUP(AH40&AJ40&AQ40,Index!$A$2:$E$151,5,FALSE)),2,TRUE))))=TRUE,\"ERROR\",IF(AF40<>\"NR\",AF40,IF(AM40=\"NR\",IF(AQ40=\"B\",VLOOKUP(AH40&AJ40&AP40,'Default BW IR-Formatted by LS'!$AB$4:$AF$83,5,FALSE),VLOOKUP(AH40&AJ40&AQ40&AP40,'Default BW IR-Formatted by LS'!$S$4:$X$124,6,FALSE)),VLOOKUP(AO40,INDIRECT(\"'Default BW IR-Formatted by age'!\"&VLOOKUP(AH40&AJ40&AQ40,Index!$A$2:$E$151,5,FALSE)),2,TRUE))))))","v":""},"",{"$f":"IF(A40=\"\",\"\",IF(AS40=\"no\",\"\",IF(AG40<>\"NR\",AG40,IF(OR(L40=\"mg/L\",L40=\"ppm in mg/L\",L40=\"mg/ml\",L40=\"% in water\",L40=\"% water\",L40=\"g/L\",L40=\"ug/L\"),IF(AI40=\"bird\",0.059*BB40^0.67,0.099*BB40^0.9),(((BB40*1000)^VLOOKUP(AH40,Index!$L$2:$N$30,3,FALSE))*VLOOKUP(AH40,Index!$L$2:$N$30,2,FALSE))/1000))))","v":""},"","","","","","","",0]
[null,null,null,null,null,null,null,null,null,null,null,null,null,null,null,null,null,null,null,null,null,null,null,null,null,null,null,null,null,null,null,null,null,"",{"$f":"VLOOKUP(AH41,Index!$L$2:$Q$30,6,FALSE)","v":{"$error":"#N/A"}},"",1,"","","","","","","yes","yes","","","","",null,null,null,{"$f":"IF(A41=\"\",\"\",IF(AR41=\"no\",\"\",IF(ISERROR(IF(AF41<>\"NR\",AF41,IF(AM41=\"NR\",IF(AQ41=\"B\",VLOOKUP(AH41&AJ41&AP41,'Default BW IR-Formatted by LS'!$AB$4:$AF$83,5,FALSE),VLOOKUP(AH41&AJ41&AQ41&AP41,'Default BW IR-Formatted by LS'!$S$4:$X$124,6,FALSE)),VLOOKUP(AO41,INDIRECT(\"'Default BW IR-Formatted by age'!\"&VLOOKUP(AH41&AJ41&AQ41,Index!$A$2:$E$151,5,FALSE)),2,TRUE))))=TRUE,\"ERROR\",IF(AF41<>\"NR\",AF41,IF(AM41=\"NR\",IF(AQ41=\"B\",VLOOKUP(AH41&AJ41&AP41,'Default BW IR-Formatted by LS'!$AB$4:$AF$83,5,FALSE),VLOOKUP(AH41&AJ41&AQ41&AP41,'Default BW IR-Formatted by LS'!$S$4:$X$124,6,FALSE)),VLOOKUP(AO41,INDIRECT(\"'Default BW IR-Formatted by age'!\"&VLOOKUP(AH41&AJ41&AQ41,Index!$A$2:$E$151,5,FALSE)),2,TRUE))))))","v":""},"",{"$f":"IF(A41=\"\",\"\",IF(AS41=\"no\",\"\",IF(AG41<>\"NR\",AG41,IF(OR(L41=\"mg/L\",L41=\"ppm in mg/L\",L41=\"mg/ml\",L41=\"% in water\",L41=\"% water\",L41=\"g/L\",L41=\"ug/L\"),IF(AI41=\"bird\",0.059*BB41^0.67,0.099*BB41^0.9),(((BB41*1000)^VLOOKUP(AH41,Index!$L$2:$N$30,3,FALSE))*VLOOKUP(AH41,Index!$L$2:$N$30,2,FALSE))/1000))))","v":""},"","","","","","","",0]
[null,null,null,null,null,null,null,null,null,null,null,null,null,null,null,null,null,null,null,null,null,null,null,null,null,null,null,null,null,null,null,null,null,"",{"$f":"VLOOKUP(AH42,Index!$L$2:$Q$30,6,FALSE)","v":{"$error":"#N/A"}},"",1,"","","","","","","yes","yes","","","","",null,null,null,{"$f":"IF(A42=\"\",\"\",IF(AR42=\"no\",\"\",IF(ISERROR(IF(AF42<>\"NR\",AF42,IF(AM42=\"NR\",IF(AQ42=\"B\",VLOOKUP(AH42&AJ42&AP42,'Default BW IR-Formatted by LS'!$AB$4:$AF$83,5,FALSE),VLOOKUP(AH42&AJ42&AQ42&AP42,'Default BW IR-Formatted by LS'!$S$4:$X$124,6,FALSE)),VLOOKUP(AO42,INDIRECT(\"'Default BW IR-Formatted by age'!\"&VLOOKUP(AH42&AJ42&AQ42,Index!$A$2:$E$151,5,FALSE)),2,TRUE))))=TRUE,\"ERROR\",IF(AF42<>\"NR\",AF42,IF(AM42=\"NR\",IF(AQ42=\"B\",VLOOKUP(AH42&AJ42&AP42,'Default BW IR-Formatted by LS'!$AB$4:$AF$83,5,FALSE),VLOOKUP(AH42&AJ42&AQ42&AP42,'Default BW IR-Formatted by LS'!$S$4:$X$124,6,FALSE)),VLOOKUP(AO42,INDIRECT(\"'Default BW IR-Formatted by age'!\"&VLOOKUP(AH42&AJ42&AQ42,Index!$A$2:$E$151,5,FALSE)),2,TRUE))))))","v":""},"",{"$f":"IF(A42=\"\",\"\",IF(AS42=\"no\",\"\",IF(AG42<>\"NR\",AG42,IF(OR(L42=\"mg/L\",L42=\"ppm in mg/L\",L42=\"mg/ml\",L42=\"% in water\",L42=\"% water\",L42=\"g/L\",L42=\"ug/L\"),IF(AI42=\"bird\",0.059*BB42^0.67,0.099*BB42^0.9),(((BB42*1000)^VLOOKUP(AH42,Index!$L$2:$N$30,3,FALSE))*VLOOKUP(AH42,Index!$L$2:$N$30,2,FALSE))/1000))))","v":""},"","","","","","","",0]
[null,null,null,null,null,null,null,null,null,null,null,null,null,null,null,null,null,null,null,null,null,null,null,null,null,null,null,null,null,null,null,null,null,"",{"$f":"VLOOKUP(AH43,Index!$L$2:$Q$30,6,FALSE)","v":{"$error":"#N/A"}},"",1,"","","","","","","yes","yes","","","","",null,null,null,{"$f":"IF(A43=\"\",\"\",IF(AR43=\"no\",\"\",IF(ISERROR(IF(AF43<>\"NR\",AF43,IF(AM43=\"NR\",IF(AQ43=\"B\",VLOOKUP(AH43&AJ43&AP43,'Default BW IR-Formatted by LS'!$AB$4:$AF$83,5,FALSE),VLOOKUP(AH43&AJ43&AQ43&AP43,'Default BW IR-Formatted by LS'!$S$4:$X$124,6,FALSE)),VLOOKUP(AO43,INDIRECT(\"'Default BW IR-Formatted by age'!\"&VLOOKUP(AH43&AJ43&AQ43,Index!$A$2:$E$151,5,FALSE)),2,TRUE))))=TRUE,\"ERROR\",IF(AF43<>\"NR\",AF43,IF(AM43=\"NR\",IF(AQ43=\"B\",VLOOKUP(AH43&AJ43&AP43,'Default BW IR-Formatted by LS'!$AB$4:$AF$83,5,FALSE),VLOOKUP(AH43&AJ43&AQ43&AP43,'Default BW IR-Formatted by LS'!$S$4:$X$124,6,FALSE)),VLOOKUP(AO43,INDIRECT(\"'Default BW IR-Formatted by age'!\"&VLOOKUP(AH43&AJ43&AQ43,Index!$A$2:$E$151,5,FALSE)),2,TRUE))))))","v":""},"",{"$f":"IF(A43=\"\",\"\",IF(AS43=\"no\",\"\",IF(AG43<>\"NR\",AG43,IF(OR(L43=\"mg/L\",L43=\"ppm in mg/L\",L43=\"mg/ml\",L43=\"% in water\",L43=\"% water\",L43=\"g/L\",L43=\"ug/L\"),IF(AI43=\"bird\",0.059*BB43^0.67,0.099*BB43^0.9),(((BB43*1000)^VLOOKUP(AH43,Index!$L$2:$N$30,3,FALSE))*VLOOKUP(AH43,Index!$L$2:$N$30,2,FALSE))/1000))))","v":""},"","","","","","","",0]
[null,null,null,null,null,null,null,null,null,null,null,null,null,null,null,null,null,null,null,null,null,null,null,null,null,null,null,null,null,null,null,null,null,"",{"$f":"VLOOKUP(AH44,Index!$L$2:$Q$30,6,FALSE)","v":{"$error":"#N/A"}},"",1,"","","","","","","yes","yes","","","","",null,null,null,{"$f":"IF(A44=\"\",\"\",IF(AR44=\"no\",\"\",IF(ISERROR(IF(AF44<>\"NR\",AF44,IF(AM44=\"NR\",IF(AQ44=\"B\",VLOOKUP(AH44&AJ44&AP44,'Default BW IR-Formatted by LS'!$AB$4:$AF$83,5,FALSE),VLOOKUP(AH44&AJ44&AQ44&AP44,'Default BW IR-Formatted by LS'!$S$4:$X$124,6,FALSE)),VLOOKUP(AO44,INDIRECT(\"'Default BW IR-Formatted by age'!\"&VLOOKUP(AH44&AJ44&AQ44,Index!$A$2:$E$151,5,FALSE)),2,TRUE))))=TRUE,\"ERROR\",IF(AF44<>\"NR\",AF44,IF(AM44=\"NR\",IF(AQ44=\"B\",VLOOKUP(AH44&AJ44&AP44,'Default BW IR-Formatted by LS'!$AB$4:$AF$83,5,FALSE),VLOOKUP(AH44&AJ44&AQ44&AP44,'Default BW IR-Formatted by LS'!$S$4:$X$124,6,FALSE)),VLOOKUP(AO44,INDIRECT(\"'Default BW IR-Formatted by age'!\"&VLOOKUP(AH44&AJ44&AQ44,Index!$A$2:$E$151,5,FALSE)),2,TRUE))))))","v":""},"",{"$f":"IF(A44=\"\",\"\",IF(AS44=\"no\",\"\",IF(AG44<>\"NR\",AG44,IF(OR(L44=\"mg/L\",L44=\"ppm in mg/L\",L44=\"mg/ml\",L44=\"% in water\",L44=\"% water\",L44=\"g/L\",L44=\"ug/L\"),IF(AI44=\"bird\",0.059*BB44^0.67,0.099*BB44^0.9),(((BB44*1000)^VLOOKUP(AH44,Index!$L$2:$N$30,3,FALSE))*VLOOKUP(AH44,Index!$L$2:$N$30,2,FALSE))/1000))))","v":""},"","","","","","","",0]
[null,null,null,null,null,null,null,null,null,null,null,null,null,null,null,null,null,null,null,null,null,null,null,null,null,null,null,null,null,null,null,null,null,"",{"$f":"VLOOKUP(AH45,Index!$L$2:$Q$30,6,FALSE)","v":{"$error":"#N/A"}},"",1,"","","","","","","yes","yes","","","","",null,null,null,{"$f":"IF(A45=\"\",\"\",IF(AR45=\"no\",\"\",IF(ISERROR(IF(AF45<>\"NR\",AF45,IF(AM45=\"NR\",IF(AQ45=\"B\",VLOOKUP(AH45&AJ45&AP45,'Default BW IR-Formatted by LS'!$AB$4:$AF$83,5,FALSE),VLOOKUP(AH45&AJ45&AQ45&AP45,'Default BW IR-Formatted by LS'!$S$4:$X$124,6,FALSE)),VLOOKUP(AO45,INDIRECT(\"'Default BW IR-Formatted by age'!\"&VLOOKUP(AH45&AJ45&AQ45,Index!$A$2:$E$151,5,FALSE)),2,TRUE))))=TRUE,\"ERROR\",IF(AF45<>\"NR\",AF45,IF(AM45=\"NR\",IF(AQ45=\"B\",VLOOKUP(AH45&AJ45&AP45,'Default BW IR-Formatted by LS'!$AB$4:$AF$83,5,FALSE),VLOOKUP(AH45&AJ45&AQ45&AP45,'Default BW IR-Formatted by LS'!$S$4:$X$124,6,FALSE)),VLOOKUP(AO45,INDIRECT(\"'Default BW IR-Formatted by age'!\"&VLOOKUP(AH45&AJ45&AQ45,Index!$A$2:$E$151,5,FALSE)),2,TRUE))))))","v":""},"",{"$f":"IF(A45=\"\",\"\",IF(AS45=\"no\",\"\",IF(AG45<>\"NR\",AG45,IF(OR(L45=\"mg/L\",L45=\"ppm in mg/L\",L45=\"mg/ml\",L45=\"% in water\",L45=\"% water\",L45=\"g/L\",L45=\"ug/L\"),IF(AI45=\"bird\",0.059*BB45^0.67,0.099*BB45^0.9),(((BB45*1000)^VLOOKUP(AH45,Index!$L$2:$N$30,3,FALSE))*VLOOKUP(AH45,Index!$L$2:$N$30,2,FALSE))/1000))))","v":""},"","","","","","","",0]
[null,null,null,null,null,null,null,null,null,null,null,null,null,null,null,null,null,null,null,null,null,null,null,null,null,null,null,null,null,null,null,null,null,"",{"$f":"VLOOKUP(AH46,Index!$L$2:$Q$30,6,FALSE)","v":{"$error":"#N/A"}},"",1,"","","","","","","yes","yes","","","","",null,null,null,{"$f":"IF(A46=\"\",\"\",IF(AR46=\"no\",\"\",IF(ISERROR(IF(AF46<>\"NR\",AF46,IF(AM46=\"NR\",IF(AQ46=\"B\",VLOOKUP(AH46&AJ46&AP46,'Default BW IR-Formatted by LS'!$AB$4:$AF$83,5,FALSE),VLOOKUP(AH46&AJ46&AQ46&AP46,'Default BW IR-Formatted by LS'!$S$4:$X$124,6,FALSE)),VLOOKUP(AO46,INDIRECT(\"'Default BW IR-Formatted by age'!\"&VLOOKUP(AH46&AJ46&AQ46,Index!$A$2:$E$151,5,FALSE)),2,TRUE))))=TRUE,\"ERROR\",IF(AF46<>\"NR\",AF46,IF(AM46=\"NR\",IF(AQ46=\"B\",VLOOKUP(AH46&AJ46&AP46,'Default BW IR-Formatted by LS'!$AB$4:$AF$83,5,FALSE),VLOOKUP(AH46&AJ46&AQ46&AP46,'Default BW IR-Formatted by LS'!$S$4:$X$124,6,FALSE)),VLOOKUP(AO46,INDIRECT(\"'Default BW IR-Formatted by age'!\"&VLOOKUP(AH46&AJ46&AQ46,Index!$A$2:$E$151,5,FALSE)),2,TRUE))))))","v":""},"",{"$f":"IF(A46=\"\",\"\",IF(AS46=\"no\",\"\",IF(AG46<>\"NR\",AG46,IF(OR(L46=\"mg/L\",L46=\"ppm in mg/L\",L46=\"mg/ml\",L46=\"% in water\",L46=\"% water\",L46=\"g/L\",L46=\"ug/L\"),IF(AI46=\"bird\",0.059*BB46^0.67,0.099*BB46^0.9),(((BB46*1000)^VLOOKUP(AH46,Index!$L$2:$N$30,3,FALSE))*VLOOKUP(AH46,Index!$L$2:$N$30,2,FALSE))/1000))))","v":""},"","","","","","","",0]
[null,null,null,null,null,null,null,null,null,null,null,null,null,null,null,null,null,null,null,null,null,null,null,null,null,null,null,null,null,null,null,null,null,"",{"$f":"VLOOKUP(AH47,Index!$L$2:$Q$30,6,FALSE)","v":{"$error":"#N/A"}},"",1,"","","","","","","yes","yes","","","","",null,null,null,{"$f":"IF(A47=\"\",\"\",IF(AR47=\"no\",\"\",IF(ISERROR(IF(AF47<>\"NR\",AF47,IF(AM47=\"NR\",IF(AQ47=\"B\",VLOOKUP(AH47&AJ47&AP47,'Default BW IR-Formatted by LS'!$AB$4:$AF$83,5,FALSE),VLOOKUP(AH47&AJ47&AQ47&AP47,'Default BW IR-Formatted by LS'!$S$4:$X$124,6,FALSE)),VLOOKUP(AO47,INDIRECT(\"'Default BW IR-Formatted by age'!\"&VLOOKUP(AH47&AJ47&AQ47,Index!$A$2:$E$151,5,FALSE)),2,TRUE))))=TRUE,\"ERROR\",IF(AF47<>\"NR\",AF47,IF(AM47=\"NR\",IF(AQ47=\"B\",VLOOKUP(AH47&AJ47&AP47,'Default BW IR-Formatted by LS'!$AB$4:$AF$83,5,FALSE),VLOOKUP(AH47&AJ47&AQ47&AP47,'Default BW IR-Formatted by LS'!$S$4:$X$124,6,FALSE)),VLOOKUP(AO47,INDIRECT(\"'Default BW IR-Formatted by age'!\"&VLOOKUP(AH47&AJ47&AQ47,Index!$A$2:$E$151,5,FALSE)),2,TRUE))))))","v":""},"",{"$f":"IF(A47=\"\",\"\",IF(AS47=\"no\",\"\",IF(AG47<>\"NR\",AG47,IF(OR(L47=\"mg/L\",L47=\"ppm in mg/L\",L47=\"mg/ml\",L47=\"% in water\",L47=\"% water\",L47=\"g/L\",L47=\"ug/L\"),IF(AI47=\"bird\",0.059*BB47^0.67,0.099*BB47^0.9),(((BB47*1000)^VLOOKUP(AH47,Index!$L$2:$N$30,3,FALSE))*VLOOKUP(AH47,Index!$L$2:$N$30,2,FALSE))/1000))))","v":""},"","","","","","","",0]
[null,null,null,null,null,null,null,null,null,null,null,null,null,null,null,null,null,null,null,null,null,null,null,null,null,null,null,null,null,null,null,null,null,"",{"$f":"VLOOKUP(AH48,Index!$L$2:$Q$30,6,FALSE)","v":{"$error":"#N/A"}},"",1,"","","","","","","yes","yes","","","","",null,null,null,{"$f":"IF(A48=\"\",\"\",IF(AR48=\"no\",\"\",IF(ISERROR(IF(AF48<>\"NR\",AF48,IF(AM48=\"NR\",IF(AQ48=\"B\",VLOOKUP(AH48&AJ48&AP48,'Default BW IR-Formatted by LS'!$AB$4:$AF$83,5,FALSE),VLOOKUP(AH48&AJ48&AQ48&AP48,'Default BW IR-Formatted by LS'!$S$4:$X$124,6,FALSE)),VLOOKUP(AO48,INDIRECT(\"'Default BW IR-Formatted by age'!\"&VLOOKUP(AH48&AJ48&AQ48,Index!$A$2:$E$151,5,FALSE)),2,TRUE))))=TRUE,\"ERROR\",IF(AF48<>\"NR\",AF48,IF(AM48=\"NR\",IF(AQ48=\"B\",VLOOKUP(AH48&AJ48&AP48,'Default BW IR-Formatted by LS'!$AB$4:$AF$83,5,FALSE),VLOOKUP(AH48&AJ48&AQ48&AP48,'Default BW IR-Formatted by LS'!$S$4:$X$124,6,FALSE)),VLOOKUP(AO48,INDIRECT(\"'Default BW IR-Formatted by age'!\"&VLOOKUP(AH48&AJ48&AQ48,Index!$A$2:$E$151,5,FALSE)),2,TRUE))))))","v":""},"",{"$f":"IF(A48=\"\",\"\",IF(AS48=\"no\",\"\",IF(AG48<>\"NR\",AG48,IF(OR(L48=\"mg/L\",L48=\"ppm in mg/L\",L48=\"mg/ml\",L48=\"% in water\",L48=\"% water\",L48=\"g/L\",L48=\"ug/L\"),IF(AI48=\"bird\",0.059*BB48^0.67,0.099*BB48^0.9),(((BB48*1000)^VLOOKUP(AH48,Index!$L$2:$N$30,3,FALSE))*VLOOKUP(AH48,Index!$L$2:$N$30,2,FALSE))/1000))))","v":""},"","","","","","","",0]
[null,null,null,null,null,null,null,null,null,null,null,null,null,null,null,null,null,null,null,null,null,null,null,null,null,null,null,null,null,null,null,null,null,"",{"$f":"VLOOKUP(AH49,Index!$L$2:$Q$30,6,FALSE)","v":{"$error":"#N/A"}},"",1,"","","","","","","yes","yes","","","","",null,null,null,{"$f":"IF(A49=\"\",\"\",IF(AR49=\"no\",\"\",IF(ISERROR(IF(AF49<>\"NR\",AF49,IF(AM49=\"NR\",IF(AQ49=\"B\",VLOOKUP(AH49&AJ49&AP49,'Default BW IR-Formatted by LS'!$AB$4:$AF$83,5,FALSE),VLOOKUP(AH49&AJ49&AQ49&AP49,'Default BW IR-Formatted by LS'!$S$4:$X$124,6,FALSE)),VLOOKUP(AO49,INDIRECT(\"'Default BW IR-Formatted by age'!\"&VLOOKUP(AH49&AJ49&AQ49,Index!$A$2:$E$151,5,FALSE)),2,TRUE))))=TRUE,\"ERROR\",IF(AF49<>\"NR\",AF49,IF(AM49=\"NR\",IF(AQ49=\"B\",VLOOKUP(AH49&AJ49&AP49,'Default BW IR-Formatted by LS'!$AB$4:$AF$83,5,FALSE),VLOOKUP(AH49&AJ49&AQ49&AP49,'Default BW IR-Formatted by LS'!$S$4:$X$124,6,FALSE)),VLOOKUP(AO49,INDIRECT(\"'Default BW IR-Formatted by age'!\"&VLOOKUP(AH49&AJ49&AQ49,Index!$A$2:$E$151,5,FALSE)),2,TRUE))))))","v":""},"",{"$f":"IF(A49=\"\",\"\",IF(AS49=\"no\",\"\",IF(AG49<>\"NR\",AG49,IF(OR(L49=\"mg/L\",L49=\"ppm in mg/L\",L49=\"mg/ml\",L49=\"% in water\",L49=\"% water\",L49=\"g/L\",L49=\"ug/L\"),IF(AI49=\"bird\",0.059*BB49^0.67,0.099*BB49^0.9),(((BB49*1000)^VLOOKUP(AH49,Index!$L$2:$N$30,3,FALSE))*VLOOKUP(AH49,Index!$L$2:$N$30,2,FALSE))/1000))))","v":""},"","","","","","","",0]
[null,null,null,null,null,null,null,null,null,null,null,null,null,null,null,null,null,null,null,null,null,null,null,null,null,null,null,null,null,null,null,null,null,"",{"$f":"VLOOKUP(AH50,Index!$L$2:$Q$30,6,FALSE)","v":{"$error":"#N/A"}},"",1,"","","","","","","yes","yes","","","","",null,null,null,{"$f":"IF(A50=\"\",\"\",IF(AR50=\"no\",\"\",IF(ISERROR(IF(AF50<>\"NR\",AF50,IF(AM50=\"NR\",IF(AQ50=\"B\",VLOOKUP(AH50&AJ50&AP50,'Default BW IR-Formatted by LS'!$AB$4:$AF$83,5,FALSE),VLOOKUP(AH50&AJ50&AQ50&AP50,'Default BW IR-Formatted by LS'!$S$4:$X$124,6,FALSE)),VLOOKUP(AO50,INDIRECT(\"'Default BW IR-Formatted by age'!\"&VLOOKUP(AH50&AJ50&AQ50,Index!$A$2:$E$151,5,FALSE)),2,TRUE))))=TRUE,\"ERROR\",IF(AF50<>\"NR\",AF50,IF(AM50=\"NR\",IF(AQ50=\"B\",VLOOKUP(AH50&AJ50&AP50,'Default BW IR-Formatted by LS'!$AB$4:$AF$83,5,FALSE),VLOOKUP(AH50&AJ50&AQ50&AP50,'Default BW IR-Formatted by LS'!$S$4:$X$124,6,FALSE)),VLOOKUP(AO50,INDIRECT(\"'Default BW IR-Formatted by age'!\"&VLOOKUP(AH50&AJ50&AQ50,Index!$A$2:$E$151,5,FALSE)),2,TRUE))))))","v":""},"",{"$f":"IF(A50=\"\",\"\",IF(AS50=\"no\",\"\",IF(AG50<>\"NR\",AG50,IF(OR(L50=\"mg/L\",L50=\"ppm in mg/L\",L50=\"mg/ml\",L50=\"% in water\",L50=\"% water\",L50=\"g/L\",L50=\"ug/L\"),IF(AI50=\"bird\",0.059*BB50^0.67,0.099*BB50^0.9),(((BB50*1000)^VLOOKUP(AH50,Index!$L$2:$N$30,3,FALSE))*VLOOKUP(AH50,Index!$L$2:$N$30,2,FALSE))/1000))))","v":""},"","","","","","","",0]
[null,null,null,null,null,null,null,null,null,null,null,null,null,null,null,null,null,null,null,null,null,null,null,null,null,null,null,null,null,null,null,null,null,"",{"$f":"VLOOKUP(AH51,Index!$L$2:$Q$30,6,FALSE)","v":{"$error":"#N/A"}},"",1,"","","","","","","yes","yes","","","","",null,null,null,{"$f":"IF(A51=\"\",\"\",IF(AR51=\"no\",\"\",IF(ISERROR(IF(AF51<>\"NR\",AF51,IF(AM51=\"NR\",IF(AQ51=\"B\",VLOOKUP(AH51&AJ51&AP51,'Default BW IR-Formatted by LS'!$AB$4:$AF$83,5,FALSE),VLOOKUP(AH51&AJ51&AQ51&AP51,'Default BW IR-Formatted by LS'!$S$4:$X$124,6,FALSE)),VLOOKUP(AO51,INDIRECT(\"'Default BW IR-Formatted by age'!\"&VLOOKUP(AH51&AJ51&AQ51,Index!$A$2:$E$151,5,FALSE)),2,TRUE))))=TRUE,\"ERROR\",IF(AF51<>\"NR\",AF51,IF(AM51=\"NR\",IF(AQ51=\"B\",VLOOKUP(AH51&AJ51&AP51,'Default BW IR-Formatted by LS'!$AB$4:$AF$83,5,FALSE),VLOOKUP(AH51&AJ51&AQ51&AP51,'Default BW IR-Formatted by LS'!$S$4:$X$124,6,FALSE)),VLOOKUP(AO51,INDIRECT(\"'Default BW IR-Formatted by age'!\"&VLOOKUP(AH51&AJ51&AQ51,Index!$A$2:$E$151,5,FALSE)),2,TRUE))))))","v":""},"",{"$f":"IF(A51=\"\",\"\",IF(AS51=\"no\",\"\",IF(AG51<>\"NR\",AG51,IF(OR(L51=\"mg/L\",L51=\"ppm in mg/L\",L51=\"mg/ml\",L51=\"% in water\",L51=\"% water\",L51=\"g/L\",L51=\"ug/L\"),IF(AI51=\"bird\",0.059*BB51^0.67,0.099*BB51^0.9),(((BB51*1000)^VLOOKUP(AH51,Index!$L$2:$N$30,3,FALSE))*VLOOKUP(AH51,Index!$L$2:$N$30,2,FALSE))/1000))))","v":""},"","","","","","","",0]
[null,null,null,null,null,null,null,null,null,null,null,null,null,null,null,null,null,null,null,null,null,null,null,null,null,null,null,null,null,null,null,null,null,"",{"$f":"VLOOKUP(AH52,Index!$L$2:$Q$30,6,FALSE)","v":{"$error":"#N/A"}},"",1,"","","","","","","yes","yes","","","","",null,null,null,{"$f":"IF(A52=\"\",\"\",IF(AR52=\"no\",\"\",IF(ISERROR(IF(AF52<>\"NR\",AF52,IF(AM52=\"NR\",IF(AQ52=\"B\",VLOOKUP(AH52&AJ52&AP52,'Default BW IR-Formatted by LS'!$AB$4:$AF$83,5,FALSE),VLOOKUP(AH52&AJ52&AQ52&AP52,'Default BW IR-Formatted by LS'!$S$4:$X$124,6,FALSE)),VLOOKUP(AO52,INDIRECT(\"'Default BW IR-Formatted by age'!\"&VLOOKUP(AH52&AJ52&AQ52,Index!$A$2:$E$151,5,FALSE)),2,TRUE))))=TRUE,\"ERROR\",IF(AF52<>\"NR\",AF52,IF(AM52=\"NR\",IF(AQ52=\"B\",VLOOKUP(AH52&AJ52&AP52,'Default BW IR-Formatted by LS'!$AB$4:$AF$83,5,FALSE),VLOOKUP(AH52&AJ52&AQ52&AP52,'Default BW IR-Formatted by LS'!$S$4:$X$124,6,FALSE)),VLOOKUP(AO52,INDIRECT(\"'Default BW IR-Formatted by age'!\"&VLOOKUP(AH52&AJ52&AQ52,Index!$A$2:$E$151,5,FALSE)),2,TRUE))))))","v":""},"",{"$f":"IF(A52=\"\",\"\",IF(AS52=\"no\",\"\",IF(AG52<>\"NR\",AG52,IF(OR(L52=\"mg/L\",L52=\"ppm in mg/L\",L52=\"mg/ml\",L52=\"% in water\",L52=\"% water\",L52=\"g/L\",L52=\"ug/L\"),IF(AI52=\"bird\",0.059*BB52^0.67,0.099*BB52^0.9),(((BB52*1000)^VLOOKUP(AH52,Index!$L$2:$N$30,3,FALSE))*VLOOKUP(AH52,Index!$L$2:$N$30,2,FALSE))/1000))))","v":""},"","","","","","","",0]
[null,null,null,null,null,null,null,null,null,null,null,null,null,null,null,null,null,null,null,null,null,null,null,null,null,null,null,null,null,null,null,null,null,"",{"$f":"VLOOKUP(AH53,Index!$L$2:$Q$30,6,FALSE)","v":{"$error":"#N/A"}},"",1,"","","","","","","yes","yes","","","","",null,null,null,{"$f":"IF(A53=\"\",\"\",IF(AR53=\"no\",\"\",IF(ISERROR(IF(AF53<>\"NR\",AF53,IF(AM53=\"NR\",IF(AQ53=\"B\",VLOOKUP(AH53&AJ53&AP53,'Default BW IR-Formatted by LS'!$AB$4:$AF$83,5,FALSE),VLOOKUP(AH53&AJ53&AQ53&AP53,'Default BW IR-Formatted by LS'!$S$4:$X$124,6,FALSE)),VLOOKUP(AO53,INDIRECT(\"'Default BW IR-Formatted by age'!\"&VLOOKUP(AH53&AJ53&AQ53,Index!$A$2:$E$151,5,FALSE)),2,TRUE))))=TRUE,\"ERROR\",IF(AF53<>\"NR\",AF53,IF(AM53=\"NR\",IF(AQ53=\"B\",VLOOKUP(AH53&AJ53&AP53,'Default BW IR-Formatted by LS'!$AB$4:$AF$83,5,FALSE),VLOOKUP(AH53&AJ53&AQ53&AP53,'Default BW IR-Formatted by LS'!$S$4:$X$124,6,FALSE)),VLOOKUP(AO53,INDIRECT(\"'Default BW IR-Formatted by age'!\"&VLOOKUP(AH53&AJ53&AQ53,Index!$A$2:$E$151,5,FALSE)),2,TRUE))))))","v":""},"",{"$f":"IF(A53=\"\",\"\",IF(AS53=\"no\",\"\",IF(AG53<>\"NR\",AG53,IF(OR(L53=\"mg/L\",L53=\"ppm in mg/L\",L53=\"mg/ml\",L53=\"% in water\",L53=\"% water\",L53=\"g/L\",L53=\"ug/L\"),IF(AI53=\"bird\",0.059*BB53^0.67,0.099*BB53^0.9),(((BB53*1000)^VLOOKUP(AH53,Index!$L$2:$N$30,3,FALSE))*VLOOKUP(AH53,Index!$L$2:$N$30,2,FALSE))/1000))))","v":""},"","","","","","","",0]
[null,null,null,null,null,null,null,null,null,null,null,null,null,null,null,null,null,null,null,null,null,null,null,null,null,null,null,null,null,null,null,null,null,"",{"$f":"VLOOKUP(AH54,Index!$L$2:$Q$30,6,FALSE)","v":{"$error":"#N/A"}},"",1,"","","","","","","yes","yes","","","","",null,null,null,{"$f":"IF(A54=\"\",\"\",IF(AR54=\"no\",\"\",IF(ISERROR(IF(AF54<>\"NR\",AF54,IF(AM54=\"NR\",IF(AQ54=\"B\",VLOOKUP(AH54&AJ54&AP54,'Default BW IR-Formatted by LS'!$AB$4:$AF$83,5,FALSE),VLOOKUP(AH54&AJ54&AQ54&AP54,'Default BW IR-Formatted by LS'!$S$4:$X$124,6,FALSE)),VLOOKUP(AO54,INDIRECT(\"'Default BW IR-Formatted by age'!\"&VLOOKUP(AH54&AJ54&AQ54,Index!$A$2:$E$151,5,FALSE)),2,TRUE))))=TRUE,\"ERROR\",IF(AF54<>\"NR\",AF54,IF(AM54=\"NR\",IF(AQ54=\"B\",VLOOKUP(AH54&AJ54&AP54,'Default BW IR-Formatted by LS'!$AB$4:$AF$83,5,FALSE),VLOOKUP(AH54&AJ54&AQ54&AP54,'Default BW IR-Formatted by LS'!$S$4:$X$124,6,FALSE)),VLOOKUP(AO54,INDIRECT(\"'Default BW IR-Formatted by age'!\"&VLOOKUP(AH54&AJ54&AQ54,Index!$A$2:$E$151,5,FALSE)),2,TRUE))))))","v":""},"",{"$f":"IF(A54=\"\",\"\",IF(AS54=\"no\",\"\",IF(AG54<>\"NR\",AG54,IF(OR(L54=\"mg/L\",L54=\"ppm in mg/L\",L54=\"mg/ml\",L54=\"% in water\",L54=\"% water\",L54=\"g/L\",L54=\"ug/L\"),IF(AI54=\"bird\",0.059*BB54^0.67,0.099*BB54^0.9),(((BB54*1000)^VLOOKUP(AH54,Index!$L$2:$N$30,3,FALSE))*VLOOKUP(AH54,Index!$L$2:$N$30,2,FALSE))/1000))))","v":""},"","","","","","","",0]
[null,null,null,null,null,null,null,null,null,null,null,null,null,null,null,null,null,null,null,null,null,null,null,null,null,null,null,null,null,null,null,null,null,"",{"$f":"VLOOKUP(AH55,Index!$L$2:$Q$30,6,FALSE)","v":{"$error":"#N/A"}},"",1,"","","","","","","yes","yes","","","","",null,null,null,{"$f":"IF(A55=\"\",\"\",IF(AR55=\"no\",\"\",IF(ISERROR(IF(AF55<>\"NR\",AF55,IF(AM55=\"NR\",IF(AQ55=\"B\",VLOOKUP(AH55&AJ55&AP55,'Default BW IR-Formatted by LS'!$AB$4:$AF$83,5,FALSE),VLOOKUP(AH55&AJ55&AQ55&AP55,'Default BW IR-Formatted by LS'!$S$4:$X$124,6,FALSE)),VLOOKUP(AO55,INDIRECT(\"'Default BW IR-Formatted by age'!\"&VLOOKUP(AH55&AJ55&AQ55,Index!$A$2:$E$151,5,FALSE)),2,TRUE))))=TRUE,\"ERROR\",IF(AF55<>\"NR\",AF55,IF(AM55=\"NR\",IF(AQ55=\"B\",VLOOKUP(AH55&AJ55&AP55,'Default BW IR-Formatted by LS'!$AB$4:$AF$83,5,FALSE),VLOOKUP(AH55&AJ55&AQ55&AP55,'Default BW IR-Formatted by LS'!$S$4:$X$124,6,FALSE)),VLOOKUP(AO55,INDIRECT(\"'Default BW IR-Formatted by age'!\"&VLOOKUP(AH55&AJ55&AQ55,Index!$A$2:$E$151,5,FALSE)),2,TRUE))))))","v":""},"",{"$f":"IF(A55=\"\",\"\",IF(AS55=\"no\",\"\",IF(AG55<>\"NR\",AG55,IF(OR(L55=\"mg/L\",L55=\"ppm in mg/L\",L55=\"mg/ml\",L55=\"% in water\",L55=\"% water\",L55=\"g/L\",L55=\"ug/L\"),IF(AI55=\"bird\",0.059*BB55^0.67,0.099*BB55^0.9),(((BB55*1000)^VLOOKUP(AH55,Index!$L$2:$N$30,3,FALSE))*VLOOKUP(AH55,Index!$L$2:$N$30,2,FALSE))/1000))))","v":""},"","","","","","","",0]
[null,null,null,null,null,null,null,null,null,null,null,null,null,null,null,null,null,null,null,null,null,null,null,null,null,null,null,null,null,null,null,null,null,"",{"$f":"VLOOKUP(AH56,Index!$L$2:$Q$30,6,FALSE)","v":{"$error":"#N/A"}},"",1,"","","","","","","yes","yes","","","","",null,null,null,{"$f":"IF(A56=\"\",\"\",IF(AR56=\"no\",\"\",IF(ISERROR(IF(AF56<>\"NR\",AF56,IF(AM56=\"NR\",IF(AQ56=\"B\",VLOOKUP(AH56&AJ56&AP56,'Default BW IR-Formatted by LS'!$AB$4:$AF$83,5,FALSE),VLOOKUP(AH56&AJ56&AQ56&AP56,'Default BW IR-Formatted by LS'!$S$4:$X$124,6,FALSE)),VLOOKUP(AO56,INDIRECT(\"'Default BW IR-Formatted by age'!\"&VLOOKUP(AH56&AJ56&AQ56,Index!$A$2:$E$151,5,FALSE)),2,TRUE))))=TRUE,\"ERROR\",IF(AF56<>\"NR\",AF56,IF(AM56=\"NR\",IF(AQ56=\"B\",VLOOKUP(AH56&AJ56&AP56,'Default BW IR-Formatted by LS'!$AB$4:$AF$83,5,FALSE),VLOOKUP(AH56&AJ56&AQ56&AP56,'Default BW IR-Formatted by LS'!$S$4:$X$124,6,FALSE)),VLOOKUP(AO56,INDIRECT(\"'Default BW IR-Formatted by age'!\"&VLOOKUP(AH56&AJ56&AQ56,Index!$A$2:$E$151,5,FALSE)),2,TRUE))))))","v":""},{"$f":"IF(OR(ISERROR(BA56)=TRUE,BA56=\"ERROR\"),AX56,BA56)","v":""},{"$f":"IF(A56=\"\",\"\",IF(AS56=\"no\",\"\",IF(AG56<>\"NR\",AG56,IF(OR(L56=\"mg/L\",L56=\"ppm in mg/L\",L56=\"mg/ml\",L56=\"% in water\",L56=\"% water\",L56=\"g/L\",L56=\"ug/L\"),IF(AI56=\"bird\",0.059*BB56^0.67,0.099*BB56^0.9),(((BB56*1000)^VLOOKUP(AH56,Index!$L$2:$N$30,3,FALSE))*VLOOKUP(AH56,Index!$L$2:$N$30,2,FALSE))/1000))))","v":""},"","","","","","","",0]
[null,null,null,null,null,null,null,null,null,null,null,null,null,null,null,null,null,null,null,null,null,null,null,null,null,null,null,null,null,null,null,null,null,{"$f":"IF(A57=\"\",\"\",TRIM(LEFT(G57,FIND(\"(\",G57)-2)))","v":""},{"$f":"VLOOKUP(AH57,Index!$L$2:$Q$30,6,FALSE)","v":{"$error":"#N/A"}},{"$f":"IF(A57=\"\",\"\",IF(OR(H57=\"\",H57=\"unspecified\"),\"unspecified\",H57))","v":""},{"$f":"IF(RIGHT(O57,5)=\"per w\",LEFT(O57,1)/7,1)","v":1},{"$f":"IF(A57=\"\",\"\",IF(ISERROR(FIND(\"-\",T57))=TRUE,T57,LEFT(T57,FIND(\"-\",T57)-1)))","v":""},{"$f":"IF(A57=\"\",\"\",IF(ISERROR(FIND(\"-\",T57))=TRUE,T57,RIGHT(T57,LEN(T57)-FIND(\"-\",T57))))","v":""},{"$f":"IF(A57=\"\",\"\",IF(U57=\"NR\",\"NR\",AL57*IF(U57=\"d\",1,IF(U57=\"mo\",30.5,IF(U57=\"w\",7,IF(U57=\"yr\",365,\"ERROR\"))))))","v":""},{"$f":"IF(A57=\"\",\"\",IF(U57=\"NR\",\"NR\",AM57*IF(U57=\"d\",1,IF(U57=\"mo\",30.5,IF(U57=\"w\",7,IF(U57=\"yr\",365,\"ERROR\"))))))","v":""},{"$f":"IF(A57=\"\",\"\",IF(V57=\"JV\",\"juvenile\",\"adult\"))","v":""},{"$f":"IF(A57=\"\",\"\",IF(W57=\"M\",\"M\",IF(W57=\"F\",\"F\",\"B\")))","v":""},{"$f":"IF(AF57<>\"NR\",\"yes\",IF(OR(L57=\"mg/kg bw/d\",L57=\"mg/kg/bw/d\",L57=\"mg/kg/d\",L57=\"ug/g bw/d\",L57=\"ug/kg bw/d\",L57=\"g/kg bw/d\",L57=\"mg/g bw/d\"),\"no\",\"yes\"))","v":"yes"},{"$f":"IF(AG57<>\"NR\",\"yes\",IF(AR57=\"no\",\"no\",IF(OR(L57=\"mg/org/d\",L57=\"mg/d\",L57=\"g/d\",L57=\"g/org/d\",L57=\"g/org/day\",L57=\"ug/org/d\"),\"no\",\"yes\")))","v":"yes"},{"$f":"BB57","v":""},{"$f":"IF(BC57=\"\",\"\",sigfig(BC57,4))","v":""},{"$f":"IF(BI57=\"\",\"\",IF(AND(BI57>=10,BI57<10000),MROUND(BI57,1),sigfig(BI57,2)))","v":""},{"$f":"IF(BJ57=\"\",\"\",IF(AND(BJ57>=10,BJ57<10000),MROUND(BJ57,1),sigfig(BJ57,2)))","v":""},null,null,null,{"$f":"IF(A57=\"\",\"\",IF(AR57=\"no\",\"\",IF(ISERROR(IF(AF57<>\"NR\",AF57,IF(AM57=\"NR\",IF(AQ57=\"B\",VLOOKUP(AH57&AJ57&AP57,'Default BW IR-Formatted by LS'!$AB$4:$AF$83,5,FALSE),VLOOKUP(AH57&AJ57&AQ57&AP57,'Default BW IR-Formatted by LS'!$S$4:$X$124,6,FALSE)),VLOOKUP(AO57,INDIRECT(\"'Default BW IR-Formatted by age'!\"&VLOOKUP(AH57&AJ57&AQ57,Index!$A$2:$E$151,5,FALSE)),2,TRUE))))=TRUE,\"ERROR\",IF(AF57<>\"NR\",AF57,IF(AM57=\"NR\",IF(AQ57=\"B\",VLOOKUP(AH57&AJ57&AP57,'Default BW IR-Formatted by LS'!$AB$4:$AF$83,5,FALSE),VLOOKUP(AH57&AJ57&AQ57&AP57,'Default BW IR-Formatted by LS'!$S$4:$X$124,6,FALSE)),VLOOKUP(AO57,INDIRECT(\"'Default BW IR-Formatted by age'!\"&VLOOKUP(AH57&AJ57&AQ57,Index!$A$2:$E$151,5,FALSE)),2,TRUE))))))","v":""},"",{"$f":"IF(A57=\"\",\"\",IF(AS57=\"no\",\"\",IF(AG57<>\"NR\",AG57,IF(OR(L57=\"mg/L\",L57=\"ppm in mg/L\",L57=\"mg/ml\",L57=\"% in water\",L57=\"% water\",L57=\"g/L\",L57=\"ug/L\"),IF(AI57=\"bird\",0.059*BB57^0.67,0.099*BB57^0.9),(((BB57*1000)^VLOOKUP(AH57,Index!$L$2:$N$30,3,FALSE))*VLOOKUP(AH57,Index!$L$2:$N$30,2,FALSE))/1000))))","v":""},{"$f":"IF(AD57=\"\",\"\",IF(OR(L57=\"mg/kg bw/d\",L57=\"mg/kg/bw/d\",L57=\"mg/kg/d\",L57=\"ug/g bw/d\"),BK57/100*AD57*AK57,IF(OR(L57=\"mg/org/d\",L57=\"mg/d\"),BK57/100*AD57/BB57*AK57,IF(OR(L57=\"mg/kg diet\",L57=\"mg/L\",L57=\"ppm in mg/kg\",L57=\"mg/kg\",L57=\"ug/g diet\",L57=\"ug/g\",L57=\"ppm in mg/L\"),BK57/100*AD57*BC57/BB57*AK57,IF(OR(L57=\"mg/ml\",L57=\"mg/g\",L57=\"g/L\",L57=\"g/kg diet\",L57=\"mg/g diet\"),BK57/100*(AD57*1000)*BC57/BB57*AK57,IF(OR(L57=\"% in diet\", L57=\"% in water\", L57=\"% water\"),BK57/100*(AD57*10000)*BC57/BB57*AK57,IF( L57=\"ug/kg bw/d\",BK57/100*AD57/1000*AK57,IF(OR(L57=\"g/kg bw/d\",L57=\"mg/g bw/d\"),BK57/100*AD57*1000*AK57,IF(OR(L57=\"g/d\",L57=\"g/org/d\",L57=\"g/org/day\"),BK57/100*AD57*1000/BB57*AK57,IF(OR(L57=\"ug/kg\",L57=\"ng/g diet\",L57=\"ug/kg diet\",L57=\"ug/L\"),BK57/100*AD57/1000*BC57/BB57*AK57,IF(L57=\"ug/org/d\",BK57/100*AD57/1000/BB57*AK57,NA())))))))))))","v":""},{"$f":"IF(AE57=\"\",\"\",IF(OR(L57=\"mg/kg bw/d\",L57=\"mg/kg/bw/d\",L57=\"mg/kg/d\",L57=\"ug/g bw/d\"),BK57/100*AE57*AK57,IF(OR(L57=\"mg/org/d\",L57=\"mg/d\"),BK57/100*AE57/BB57*AK57,IF(OR(L57=\"mg/kg diet\",L57=\"mg/L\",L57=\"ppm in mg/kg\",L57=\"mg/kg\",L57=\"ug/g diet\",L57=\"ug/g\",L57=\"ppm in mg/L\"),BK57/100*AE57*BC57/BB57*AK57,IF(OR(L57=\"mg/ml\",L57=\"mg/g\",L57=\"g/L\",L57=\"g/kg diet\",L57=\"mg/g diet\"),BK57/100*(AE57*1000)*BC57/BB57*AK57,IF(OR(L57=\"% in diet\", L57=\"% in water\", L57=\"% water\"),BK57/100*(AE57*10000)*BC57/BB57*AK57,IF( L57=\"ug/kg bw/d\",BK57/100*AE57/1000*AK57,IF(OR(L57=\"g/kg bw/d\",L57=\"mg/g bw/d\"),BK57/100*AE57*1000*AK57,IF(OR(L57=\"g/d\",L57=\"g/org/d\",L57=\"g/org/day\"),BK57/100*AE57*1000/BB57*AK57,IF(OR(L57=\"ug/kg\",L57=\"ng/g diet\",L57=\"ug/kg diet\",L57=\"ug/L\"),BK57/100*AE57/1000*BC57/BB57*AK57,IF(L57=\"ug/org/d\",BK57/100*AE57/1000/BB57*AK57,NA())))))))))))","v":""},{"$f":"IF(AND(OR(ISERROR(BA57)=TRUE,BA57=\"ERROR\"),AX57=\"\"),\"X\",\"\")","v":""},{"$f":"IF(BF57=\"X\",\"\",IF(AND(ISERROR(BD57)=TRUE,AY57=\"\"),\"X\",\"\"))","v":""},{"$f":"IF(BF57=\"X\",\"\",IF(AND(ISERROR(BE57)=TRUE,AZ57=\"\"),\"X\",\"\"))","v":""},{"$f":"IF(ISNUMBER(AY57)=TRUE,AY57,BD57)","v":""},"",{"$f":"IF(F57>=90,100,F57)","v":0}]
[null,null,null,null,null,null,null,null,null,null,null,null,null,null,null,null,null,null,null,null,null,null,null,null,null,null,null,null,null,null,null,null,null,"",{"$f":"VLOOKUP(AH58,Index!$L$2:$Q$30,6,FALSE)","v":{"$error":"#N/A"}},"",1,"","","","","","","yes","yes","","","","",null,null,null,{"$f":"IF(A58=\"\",\"\",IF(AR58=\"no\",\"\",IF(ISERROR(IF(AF58<>\"NR\",AF58,IF(AM58=\"NR\",IF(AQ58=\"B\",VLOOKUP(AH58&AJ58&AP58,'Default BW IR-Formatted by LS'!$AB$4:$AF$83,5,FALSE),VLOOKUP(AH58&AJ58&AQ58&AP58,'Default BW IR-Formatted by LS'!$S$4:$X$124,6,FALSE)),VLOOKUP(AO58,INDIRECT(\"'Default BW IR-Formatted by age'!\"&VLOOKUP(AH58&AJ58&AQ58,Index!$A$2:$E$151,5,FALSE)),2,TRUE))))=TRUE,\"ERROR\",IF(AF58<>\"NR\",AF58,IF(AM58=\"NR\",IF(AQ58=\"B\",VLOOKUP(AH58&AJ58&AP58,'Default BW IR-Formatted by LS'!$AB$4:$AF$83,5,FALSE),VLOOKUP(AH58&AJ58&AQ58&AP58,'Default BW IR-Formatted by LS'!$S$4:$X$124,6,FALSE)),VLOOKUP(AO58,INDIRECT(\"'Default BW IR-Formatted by age'!\"&VLOOKUP(AH58&AJ58&AQ58,Index!$A$2:$E$151,5,FALSE)),2,TRUE))))))","v":""},"",{"$f":"IF(A58=\"\",\"\",IF(AS58=\"no\",\"\",IF(AG58<>\"NR\",AG58,IF(OR(L58=\"mg/L\",L58=\"ppm in mg/L\",L58=\"mg/ml\",L58=\"% in water\",L58=\"% water\",L58=\"g/L\",L58=\"ug/L\"),IF(AI58=\"bird\",0.059*BB58^0.67,0.099*BB58^0.9),(((BB58*1000)^VLOOKUP(AH58,Index!$L$2:$N$30,3,FALSE))*VLOOKUP(AH58,Index!$L$2:$N$30,2,FALSE))/1000))))","v":""},"","","","","","","",0]
[null,null,null,null,null,null,null,null,null,null,null,null,null,null,null,null,null,null,null,null,null,null,null,null,null,null,null,null,null,null,null,null,null,"",{"$f":"VLOOKUP(AH59,Index!$L$2:$Q$30,6,FALSE)","v":{"$error":"#N/A"}},"",1,"","","","","","","yes","yes","","","","",null,null,null,{"$f":"IF(A59=\"\",\"\",IF(AR59=\"no\",\"\",IF(ISERROR(IF(AF59<>\"NR\",AF59,IF(AM59=\"NR\",IF(AQ59=\"B\",VLOOKUP(AH59&AJ59&AP59,'Default BW IR-Formatted by LS'!$AB$4:$AF$83,5,FALSE),VLOOKUP(AH59&AJ59&AQ59&AP59,'Default BW IR-Formatted by LS'!$S$4:$X$124,6,FALSE)),VLOOKUP(AO59,INDIRECT(\"'Default BW IR-Formatted by age'!\"&VLOOKUP(AH59&AJ59&AQ59,Index!$A$2:$E$151,5,FALSE)),2,TRUE))))=TRUE,\"ERROR\",IF(AF59<>\"NR\",AF59,IF(AM59=\"NR\",IF(AQ59=\"B\",VLOOKUP(AH59&AJ59&AP59,'Default BW IR-Formatted by LS'!$AB$4:$AF$83,5,FALSE),VLOOKUP(AH59&AJ59&AQ59&AP59,'Default BW IR-Formatted by LS'!$S$4:$X$124,6,FALSE)),VLOOKUP(AO59,INDIRECT(\"'Default BW IR-Formatted by age'!\"&VLOOKUP(AH59&AJ59&AQ59,Index!$A$2:$E$151,5,FALSE)),2,TRUE))))))","v":""},"",{"$f":"IF(A59=\"\",\"\",IF(AS59=\"no\",\"\",IF(AG59<>\"NR\",AG59,IF(OR(L59=\"mg/L\",L59=\"ppm in mg/L\",L59=\"mg/ml\",L59=\"% in water\",L59=\"% water\",L59=\"g/L\",L59=\"ug/L\"),IF(AI59=\"bird\",0.059*BB59^0.67,0.099*BB59^0.9),(((BB59*1000)^VLOOKUP(AH59,Index!$L$2:$N$30,3,FALSE))*VLOOKUP(AH59,Index!$L$2:$N$30,2,FALSE))/1000))))","v":""},"","","","","","","",0]

{"sheet":"References","index":6,"n_rows":2,"n_cols":1,"rows_kept":2,"cut":false,"hidden":false,"merged":[]}
["References"]
["Alumot, E; Meidler, M; Holstein, P; Herzberg, M. (1976). Tolerance and acceptable daily intake of ethylene dichloride in the chicken diet. Food Cosmet Toxicol 14: 111-114. http://dx.doi.org/10.1016/S0015-6264(76)80253-2"]

{"sheet":"Default BW IR-Formatted by age","index":7,"n_rows":731,"n_cols":15,"rows_kept":731,"cut":false,"hidden":true,"merged":[[111,13,114,13],[0,0,12,1],[13,13,14,13],[15,13,16,13],[17,13,18,13],[19,13,20,13],[21,13,22,13],[23,13,24,13],[103,13,106,13],[107,13,110,13],[304,13,309,13],[364,13,369,13],[370,13,375,13],[382,13,387,13],[388,13,396,13],[561,13,565,13],[397,13,405,13],[406,13,414,13],[415,13,421,13],[422,13,428,13],[429,13,435,13],[436,13,443,13],[444,13,451,13],[452,13,459,13],[544,13,549,13],[556,13,560,13],[719,13,730,13],[566,13,570,13],[571,13,573,13],[574,13,576,13],[577,13,579,13],[604,13,609,13],[629,13,630,13],[706,13,707,13],[670,13,671,13]]}
["Body Weight Values in this tab are from Table 20 of Attachment 4-3 of the EcoSSLs",null,"General Organism Type","Specific Organism Type","Sex","SRC_Sex","Age","Lifestage",null,null,"Day Lookup","Default BW (kg)","Reference","SRC Notes","SRC Day Lookup References"]
[null,null,"cat","unspecified","M","M","weaning to 90 days","juvenile",null,null,{"$f":"4*7","v":28},1.72,"USEPA, 1987","Weaning usually begins at 4 weeks","multiple:\nhttps://pets.webmd.com/cats/weaning-kitten\nhttps://bestselfcleaninglitterbox.com/what-age-are-kittens-weaned/\nhttps://www.topdogforsale.com/\nhttps://www.pawtracks.com/getting-started/when-kittens-leave-their-mom/"]
[null,null,"cat","unspecified","M","M","90 days to 1 year","sexually mature",null,null,90,3.66,"USEPA, 1987",null,"multiple:\nhttps://www.thesprucepets.com/the-cat-mating-game-552391\nhttps://www.petmd.com/cat/care/what-age-are-cats-fully-grown\nhttps://pets.thenest.com/cat-reach-sexual-maturity-9770.html\nhttps://www.hepper.com/when-do-male-cats-become-sexually-active/\nhttps://pets.thenest.com/cats-sexually-mature-6826.html\nhttps://cat-world.com/mating-in-cats/"]
[null,null,"cat","unspecified","M","M","1 year or older","adult",null,null,365,4,"USEPA, 1987",null,"multiple:\nhttps://thediscerningcat.com/when-is-a-cat-an-adult/\nhttps://www.petmd.com/cat/care/what-age-are-cats-fully-grown\nhttps://www.animalwised.com/when-is-a-cat-an-adult-and-when-do-they-stop-growing-3170.html"]
[null,null,"cat","unspecified",null,"M",null,null,null,null,25550,"ERROR"]
[null,null,"cat","unspecified","F","F","weaning to 90 days","juvenile",null,null,{"$f":"8*7","v":56},1.49,"USEPA, 1987",null,"multiple:\nhttps://pets.webmd.com/cats/weaning-kitten\nhttps://bestselfcleaninglitterbox.com/what-age-are-kittens-weaned/\nhttps://www.topdogforsale.com/\nhttps://www.pawtracks.com/getting-started/when-kittens-leave-their-mom/"]
[null,null,"cat","unspecified","F","F","90 days to 1 year","sexually mature",null,null,182,2.96,"USEPA, 1987",null,"multiple:\nhttps://www.thesprucepets.com/the-cat-mating-game-552391\nhttps://www.petmd.com/cat/care/what-age-are-cats-fully-grown\nhttps://pets.thenest.com/cat-reach-sexual-maturity-9770.html\nhttps://www.hepper.com/when-do-male-cats-become-sexually-active/\nhttps://pets.thenest.com/cats-sexually-mature-6826.html\nhttps://cat-world.com/mating-in-cats/"]
[null,null,"cat","unspecified","F","F","1 year or older","adult",null,null,365,3.1,"USEPA, 1987",null,"multiple:\nhttps://thediscerningcat.com/when-is-a-cat-an-adult/\nhttps://www.petmd.com/cat/care/what-age-are-cats-fully-grown\nhttps://www.animalwised.com/when-is-a-cat-an-adult-and-when-do-they-stop-growing-3170.html"]
[null,null,"cat","unspecified",null,"F",null,null,null,null,25550,"ERROR"]
[null,null,"cat","unspecified",null,"B","weaning to 90 days","juvenile",null,null,{"$f":"8*7","v":56},1.72,"USEPA, 1987",null,"multiple:\nhttps://pets.webmd.com/cats/weaning-kitten\nhttps://bestselfcleaninglitterbox.com/what-age-are-kittens-weaned/\nhttps://www.topdogforsale.com/\nhttps://www.pawtracks.com/getting-started/when-kittens-leave-their-mom/"]
[null,null,"cat","unspecified",null,"B","90 days to 1 year","sexually mature",null,null,182,3.66,"USEPA, 1987",null,"multiple:\nhttps://www.thesprucepets.com/the-cat-mating-game-552391\nhttps://www.petmd.com/cat/care/what-age-are-cats-fully-grown\nhttps://pets.thenest.com/cat-reach-sexual-maturity-9770.html\nhttps://www.hepper.com/when-do-male-cats-become-sexually-active/\nhttps://pets.thenest.com/cats-sexually-mature-6826.html\nhttps://cat-world.com/mating-in-cats/"]
[null,null,"cat","unspecified",null,"B","1 year or older","adult",null,null,365,4,"USEPA, 1987",null,"multiple:\nhttps://thediscerningcat.com/when-is-a-cat-an-adult/\nhttps://www.petmd.com/cat/care/what-age-are-cats-fully-grown\nhttps://www.animalwised.com/when-is-a-cat-an-adult-and-when-do-they-stop-growing-3170.html"]
[null,null,"cat","unspecified",null,"B",null,null,null,null,25550,"ERROR"]
[null,null,"cattle","Beef","BH","M","weaning","juvenile",null,null,182,220,"Jurgens, 1972","Weaning occurs anywhere from 45 to 305 days, depending on the farming practices used; ideal/typical seems to be about 6-8 months, and recommendation is not less than 140 days (https://www.beefmagazine.com/weaning/when-best-time-wean-it-might-be-younger-you-think)","multiple:\nhttps://extension.oregonstate.edu/animals-livestock/beef/strategies-easing-weaning-process-beef-calves\nhttps://beef.unl.edu/cattleproduction/earlyweaning\nhttps://www.beefmagazine.com/weaning/when-best-time-wean-it-might-be-younger-you-think\nhttps://agreenerworld.org/wp-content/uploads/2018/05/TAFS-21-Weaning-Age-in-Beef-Cattle-v1.pdf\nhttps://www.beefmagazine.com/americancowman/beef-and-business/consider-cow-needs-weaning\nhttps://extension.umd.edu/resource/weaning-tips-and-vaccination-programs-beef-calves\nhttps://www.agribeef.com/blog/cattle-weaning-why-do-we-have-to-wean-our-cattle/"]
[null,null,"cattle","Beef",null,"M",null,null,null,null,{"$f":"6*30","v":180},"ERROR"]
[null,null,"cattle","Beef","BH","M","> 1 year","adult",null,null,366,454,"Jurgens, 1972","Cattle reach sexual maturity around 7 to 10 months but are not bred until 13 to 15 months or even older, depending on what they are raised for","multiple:\nhttps://www.wikihow.com/Know-when-a-Heifer-or-Cow-Is-Ready-to-Be-Bred#:~:text=Even%20though%20the%20early%20maturing%20breeds%20do%20reach,of%20age%20before%20you%20can%20breed%20them.%20\nhttps://www.how-to-raise-livestock.com/long-take-cow-mature/"]
[null,null,"cattle","Beef",null,"M",null,null,null,null,25550,"ERROR"]
[null,null,"cattle","Beef","BH","F","weaning","juvenile",null,null,140,220,"Jurgens, 1972","Weaning occurs anywhere from 45 to 305 days, depending on the farming practices used; ideal/typical seems to be about 6-8 months, and recommendation is not less than 140 days (https://www.beefmagazine.com/weaning/when-best-time-wean-it-might-be-younger-you-think)","multiple:\nhttps://extension.oregonstate.edu/animals-livestock/beef/strategies-easing-weaning-process-beef-calves\nhttps://beef.unl.edu/cattleproduction/earlyweaning\nhttps://www.beefmagazine.com/weaning/when-best-time-wean-it-might-be-younger-you-think\nhttps://agreenerworld.org/wp-content/uploads/2018/05/TAFS-21-Weaning-Age-in-Beef-Cattle-v1.pdf\nhttps://www.beefmagazine.com/americancowman/beef-and-business/consider-cow-needs-weaning\nhttps://extension.umd.edu/resource/weaning-tips-and-vaccination-programs-beef-calves\nhttps://www.agribeef.com/blog/cattle-weaning-why-do-we-have-to-wean-our-cattle/"]
[null,null,"cattle","Beef",null,"F",null,null,null,null,{"$f":"6*30","v":180},"ERROR"]
[null,null,"cattle","Beef","F","F","Lactating/> 1 year","lactation",null,null,366,454,"Jurgens, 1972","Age=Pregnant, Lifestage = gestation excluded (409kg); Cattle reach sexual maturity around 7 to 10 months but are not bred until 13 to 15 months or even older, depending on what they are raised for","multiple:\nhttps://www.wikihow.com/Know-when-a-Heifer-or-Cow-Is-Ready-to-Be-Bred#:~:text=Even%20though%20the%20early%20maturing%20breeds%20do%20reach,of%20age%20before%20you%20can%20breed%20them.%20\nhttps://www.how-to-raise-livestock.com/long-take-cow-mature/"]
[null,null,"cattle","Beef",null,"F",null,null,null,null,25550,"ERROR"]
[null,null,"cattle","Beef","BH","B","weaning","juvenile",null,null,140,220,"Jurgens, 1972","Weaning occurs anywhere from 45 to 305 days, depending on the farming practices used; ideal/typical seems to be about 6-8 months, and recommendation is not less than 140 days (https://www.beefmagazine.com/weaning/when-best-time-wean-it-might-be-younger-you-think)","multiple:\nhttps://extension.oregonstate.edu/animals-livestock/beef/strategies-easing-weaning-process-beef-calves\nhttps://beef.unl.edu/cattleproduction/earlyweaning\nhttps://www.beefmagazine.com/weaning/when-best-time-wean-it-might-be-younger-you-think\nhttps://agreenerworld.org/wp-content/uploads/2018/05/TAFS-21-Weaning-Age-in-Beef-Cattle-v1.pdf\nhttps://www.beefmagazine.com/americancowman/beef-and-business/consider-cow-needs-weaning\nhttps://extension.umd.edu/resource/weaning-tips-and-vaccination-programs-beef-calves\nhttps://www.agribeef.com/blog/cattle-weaning-why-do-we-have-to-wean-our-cattle/"]
[null,null,"cattle","Beef",null,"B",null,null,null,null,{"$f":"6*30","v":180},"ERROR"]
[null,null,"cattle","Beef","BH","B","> 1 year","Adult",null,null,366,454,"Jurgens, 1972","Cattle reach sexual maturity around 7 to 10 months but are not bred until 13 to 15 months or even older, depending on what they are raised for","multiple:\nhttps://www.wikihow.com/Know-when-a-Heifer-or-Cow-Is-Ready-to-Be-Bred#:~:text=Even%20though%20the%20early%20maturing%20breeds%20do%20reach,of%20age%20before%20you%20can%20breed%20them.%20\nhttps://www.how-to-raise-livestock.com/long-take-cow-mature/"]
[null,null,"cattle","Beef",null,"B",null,null,null,null,25550,"ERROR"]
[null,null,"cattle","Fresian","F","F","10 months","juvenile",null,null,300,99,"Maro et al., 1980"]
[null,null,"cattle","Fresian","F","F",null,null,null,null,331,"ERROR"]
[null,null,"cattle","Holstein","F","F","Lactating, 58 months","Adult",null,null,{"$f":"58*30","v":1740},680,"NRC (2001)"]
[null,null,"cattle","Holstein","F","F",null,null,null,null,25550,"ERROR"]
[null,null,"cattle","Jersey","F","F","Lactating, 58 months","Adult",null,null,{"$f":"58*30","v":1740},454,"NRC (2001)"]
[null,null,"cattle","Jersey","F","F",null,null,null,null,25550,"ERROR"]
[null,null,"cattle","unspecified",null,"M",null,null,null,null,3,67]
[null,null,"cattle","unspecified","BH","M","3 to 7 days","juvenile",null,null,8,"ERROR","USEPA, 2005"]
[null,null,"cattle","unspecified",null,"M",null,null,null,null,{"$f":"6*7-1","v":41},"ERROR"]
[null,null,"cattle","unspecified","BH","M","6 to 8 weeks","juvenile",null,null,{"$f":"6*7","v":42},119,"USEPA, 2005"]
[null,null,"cattle","unspecified","BH","M","8 to 10 weeks","juvenile",null,null,{"$f":"8*7","v":56},137,"USEPA, 2005"]
[null,null,"cattle","unspecified",null,"M",null,null,null,null,{"$f":"11*7","v":77},"ERROR"]
[null,null,"cattle","unspecified","BH","M","13 to 16 weeks","juvenile",null,null,{"$f":"13*7","v":91},198,"USEPA, 2005"]
[null,null,"cattle","unspecified",null,"M",null,null,null,null,{"$f":"17*7","v":119},"ERROR"]
[null,null,"cattle","unspecified","BH","M","22 to 51 weeks","juvenile",null,null,{"$f":"22*7","v":154},260,"USEPA, 2005"]
[null,null,"cattle","unspecified","BH","M",null,null,null,null,{"$f":"52*7","v":364},"ERROR","Jurgens, 1972"]
[null,null,"cattle","unspecified",null,"F",null,null,null,null,3,67]
[null,null,"cattle","unspecified","BH","F","3 to 7 days","juvenile",null,null,8,"ERROR","USEPA, 2005"]
[null,null,"cattle","unspecified",null,"F",null,null,null,null,{"$f":"6*7-1","v":41},"ERROR"]
[null,null,"cattle","unspecified","BH","F","6 to 8 weeks","juvenile",null,null,{"$f":"6*7","v":42},119,"USEPA, 2005"]
[null,null,"cattle","unspecified","BH","F","8 to 10 weeks","juvenile",null,null,{"$f":"8*7","v":56},137,"USEPA, 2005"]
[null,null,"cattle","unspecified",null,"F",null,null,null,null,{"$f":"11*7","v":77},"ERROR"]
[null,null,"cattle","unspecified","BH","F","13 to 16 weeks","juvenile",null,null,{"$f":"13*7","v":91},198,"USEPA, 2005"]
[null,null,"cattle","unspecified",null,"F",null,null,null,null,{"$f":"17*7","v":119},"ERROR"]
[null,null,"cattle","unspecified","BH","F","22 to 51 weeks","juvenile",null,null,{"$f":"22*7","v":154},260,"USEPA, 2005"]
[null,null,"cattle","unspecified","BH","F",null,null,null,null,{"$f":"52*7","v":364},"ERROR","Jurgens, 1972"]
[null,null,"cattle","unspecified",null,"B",null,null,null,null,3,67]
[null,null,"cattle","unspecified","BH","B","3 to 7 days","juvenile",null,null,8,"ERROR","USEPA, 2005"]
[null,null,"cattle","unspecified",null,"B",null,null,null,null,{"$f":"6*7-1","v":41},"ERROR"]
[null,null,"cattle","unspecified","BH","B","6 to 8 weeks","juvenile",null,null,{"$f":"6*7","v":42},119,"USEPA, 2005"]
[null,null,"cattle","unspecified","BH","B","8 to 10 weeks","juvenile",null,null,{"$f":"8*7","v":56},137,"USEPA, 2005"]
[null,null,"cattle","unspecified",null,"B",null,null,null,null,{"$f":"11*7","v":77},"ERROR"]
[null,null,"cattle","unspecified","BH","B","13 to 16 weeks","juvenile",null,null,{"$f":"13*7","v":91},198,"USEPA, 2005"]
[null,null,"cattle","unspecified",null,"B",null,null,null,null,{"$f":"17*7","v":119},"ERROR"]
[null,null,"cattle","unspecified","BH","B","22 to 51 weeks","juvenile",null,null,{"$f":"22*7","v":154},260,"USEPA, 2005"]
[null,null,"cattle","unspecified","BH","B",null,null,null,null,{"$f":"52*7","v":364},"ERROR","Jurgens, 1972"]
[null,null,"chicken","domestic","BH","M","1 day","juvenile",null,null,1,3.9699999999999999E-2,"Diaz et al 1994"]
[null,null,"chicken","domestic",null,"M",null,null,null,null,2,"ERROR"]
[null,null,"chicken","domestic","BH","M","3 days","juvenile",null,null,3,5.4300000000000001E-2,"Franson and Custer, 1982"]
[null,null,"chicken","domestic",null,"M",null,null,null,null,4,"ERROR"]
[null,null,"chicken","domestic","BH","M","7 days","juvenile",null,null,7,8.4000000000000005E-2,"Southern and Baker, 1981"]
[null,null,"chicken","domestic",null,"M",null,null,null,null,8,"ERROR"]
[null,null,"chicken","domestic","BH","M","14 days","juvenile",null,null,14,0.32800000000000001,"Southern and Baker, 1981"]
[null,null,"chicken","domestic",null,"M",null,null,null,null,15,"ERROR"]
[null,null,"chicken","domestic","BH","M","20 days","juvenile",null,null,20,0.56399999999999995,"Donaldson and McGowan, 1989"]
[null,null,"chicken","domestic",null,"M",null,null,null,null,21,"ERROR"]
[null,null,"chicken","domestic","BH","M","28 days","juvenile",null,null,28,1.042,"Diaz et al., 1994"]
[null,null,"chicken","domestic",null,"M",null,null,null,null,29,"ERROR"]
[null,null,"chicken","domestic","BH","F","1 day","juvenile",null,null,1,3.9699999999999999E-2,"Diaz et al 1994"]
[null,null,"chicken","domestic",null,"F",null,null,null,null,2,"ERROR"]
[null,null,"chicken","domestic","BH","F","3 days","juvenile",null,null,3,5.4300000000000001E-2,"Franson and Custer, 1982"]
[null,null,"chicken","domestic",null,"F",null,null,null,null,4,"ERROR"]
[null,null,"chicken","domestic","BH","F","7 days","juvenile",null,null,7,8.4000000000000005E-2,"Southern and Baker, 1981"]
[null,null,"chicken","domestic",null,"F",null,null,null,null,8,"ERROR"]
[null,null,"chicken","domestic","BH","F","14 days","juvenile",null,null,14,0.32800000000000001,"Southern and Baker, 1981"]
[null,null,"chicken","domestic",null,"F",null,null,null,null,15,"ERROR"]
[null,null,"chicken","domestic","BH","F","20 days","juvenile",null,null,20,0.56399999999999995,"Donaldson and McGowan, 1989"]
[null,null,"chicken","domestic",null,"F",null,null,null,null,21,"ERROR"]
[null,null,"chicken","domestic","BH","F","28 days","juvenile",null,null,28,1.042,"Diaz et al., 1994"]
[null,null,"chicken","domestic",null,"F",null,null,null,null,29,"ERROR"]
[null,null,"chicken","domestic","BH","B","1 day","juvenile",null,null,1,3.9699999999999999E-2,"Diaz et al 1994"]
[null,null,"chicken","domestic",null,"B",null,null,null,null,2,"ERROR"]
[null,null,"chicken","domestic","BH","B","3 days","juvenile",null,null,3,5.4300000000000001E-2,"Franson and Custer, 1982"]
[null,null,"chicken","domestic",null,"B",null,null,null,null,4,"ERROR"]
[null,null,"chicken","domestic","BH","B","7 days","juvenile",null,null,7,8.4000000000000005E-2,"Southern and Baker, 1981"]
[null,null,"chicken","domestic",null,"B",null,null,null,null,8,"ERROR"]
[null,null,"chicken","domestic","BH","B","14 days","juvenile",null,null,14,0.32800000000000001,"Southern and Baker, 1981"]
[null,null,"chicken","domestic",null,"B",null,null,null,null,15,"ERROR"]
[null,null,"chicken","domestic","BH","B","20 days","juvenile",null,null,20,0.56399999999999995,"Donaldson and McGowan, 1989"]
[null,null,"chicken","domestic",null,"B",null,null,null,null,21,"ERROR"]
[null,null,"chicken","domestic","BH","B","28 days","juvenile",null,null,28,1.042,"Diaz et al., 1994"]
[null,null,"chicken","domestic",null,"B",null,null,null,null,29,"ERROR"]
[null,null,"chicken","unspecified","M","M","Older than 30 days","adult",null,null,31,1.3,"Donaldson and McGowan, 1989"]
[null,null,"chicken","unspecified",null,"M",null,null,null,null,25550,"ERROR"]
[null,null,"chicken","unspecified","F","F","Older than 30 days","adult",null,null,31,1.6,"Donaldson and McGowan, 1989"]
[null,null,"chicken","unspecified",null,"F",null,null,null,null,25550,"ERROR"]
[null,null,"chicken","unspecified","F","B","Older than 30 days","adult",null,null,31,1.6,"Donaldson and McGowan, 1989"]
[null,null,"chicken","unspecified",null,"B",null,null,null,null,25550,"ERROR"]
[null,null,"dog","unspecified","M","M","weaning to 90 days",null,null,null,21,2.4,null,"It is important to note that while weaning begins at 3 to 4 weeks, puppies are not completely weaned until 6 to 8 weeks. Most breeds reach sexual maturity between 6 and 18 months, with full sexual maturity around 1 yr.","multiple:\nhttps://www.petmd.com/dog/puppycenter/nutrition/evr_dg_weaning_puppies_from_their_mother#:~:text=The%20weaning%20process%20should%20begin%20at%203-4%20weeks,will%20naturally%20seek%20an%20alternate%20source%20of%20food.\nhttps://winpropet.com/blogs/news/weaning-puppies\nhttps://ourpetshealth.com/info/how-to-wean-a-puppy\nhttps://proactivepetproducts.com/weaning-in-dog-puppies/\nhttps://vcahospitals.com/know-your-pet/breeding-for-dog-owners-caring-from-birth-to-weaning"]
[null,null,"dog","unspecified","M","M","90 days to 1 year","juvenile",null,null,90,10.8,"USEPA, 1987"]
[null,null,"dog","unspecified","M","M","1 year or older","sexually mature",null,null,366,14,"USEPA, 1987"]
[null,null,"dog","unspecified","M","M",null,"adult",null,null,25550,"ERROR","USEPA, 1987"]
[null,null,"dog","unspecified","F","F","weaning to 90 days",null,null,null,{"$f":"3*7","v":21},1.97,null,"It is important to note that while weaning begins at 3 to 4 weeks, puppies are not completely weaned until 6 to 8 weeks. Most breeds reach sexual maturity between 6 and 18 months, with full sexual maturity around 1 yr.","multiple:\nhttps://www.petmd.com/dog/puppycenter/nutrition/evr_dg_weaning_puppies_from_their_mother#:~:text=The%20weaning%20process%20should%20begin%20at%203-4%20weeks,will%20naturally%20seek%20an%20alternate%20source%20of%20food.\nhttps://winpropet.com/blogs/news/weaning-puppies\nhttps://ourpetshealth.com/info/how-to-wean-a-puppy\nhttps://proactivepetproducts.com/weaning-in-dog-puppies/\nhttps://vcahospitals.com/know-your-pet/breeding-for-dog-owners-caring-from-birth-to-weaning"]
[null,null,"dog","unspecified","F","F","90 days to 1 year","juvenile",null,null,90,10.1,"USEPA, 1987"]
[null,null,"dog","unspecified","F","F","1 year or older","sexually mature",null,null,366,14,"USEPA, 1987",null,"multiple:\nhttps://www.guidedog.org/PuppyRaising/PuppyRaiserManual/CareAndHealth/Sexual_Maturity.aspx\nhttps://www.akc.org/expert-advice/health/sexual-maturity-in-puppies-what-to-expect/\nhttps://newdogowners.com/when-does-a-dog-become-sexually-active/\nhttps://pmcofedmond.com/pet-education/puppy-dog-vet/dog-stages-of-life/"]
[null,null,"dog","unspecified","F","F",null,"adult",null,null,25550,"ERROR","USEPA, 1987"]
[null,null,"dog","unspecified","M","B","weaning to 90 days",null,null,null,21,2.4,null,"It is important to note that while weaning begins at 3 to 4 weeks, puppies are not completely weaned until 6 to 8 weeks. Most breeds reach sexual maturity between 6 and 18 months, with full sexual maturity around 1 yr.","multiple:\nhttps://www.petmd.com/dog/puppycenter/nutrition/evr_dg_weaning_puppies_from_their_mother#:~:text=The%20weaning%20process%20should%20begin%20at%203-4%20weeks,will%20naturally%20seek%20an%20alternate%20source%20of%20food.\nhttps://winpropet.com/blogs/news/weaning-puppies\nhttps://ourpetshealth.com/info/how-to-wean-a-puppy\nhttps://proactivepetproducts.com/weaning-in-dog-puppies/\nhttps://vcahospitals.com/know-your-pet/breeding-for-dog-owners-caring-from-birth-to-weaning"]
[null,null,"dog","unspecified","M","B","90 days to 1 year","juvenile",null,null,90,10.8,"USEPA, 1987"]
[null,null,"dog","unspecified","M","B","1 year or older","sexually mature",null,null,366,14,"USEPA, 1987",null,"multiple:\nhttps://www.guidedog.org/PuppyRaising/PuppyRaiserManual/CareAndHealth/Sexual_Maturity.aspx\nhttps://www.akc.org/expert-advice/health/sexual-maturity-in-puppies-what-to-expect/\nhttps://newdogowners.com/when-does-a-dog-become-sexually-active/\nhttps://pmcofedmond.com/pet-education/puppy-dog-vet/dog-stages-of-life/"]
[null,null,"dog","unspecified","M","B",null,"adult",null,null,25550,"ERROR","USEPA, 1987"]
[null,null,"dove","ringed turtle","B","B","0 days","juvenile",null,null,0,0.01,"Carriere et al., 1986"]
[null,null,"dove","ringed turtle",null,"B",null,null,null,null,1,"ERROR"]
[null,null,"dove","ringed turtle","B","B","7 days","juvenile",null,null,7,5.7000000000000002E-2,"Carriere et al., 1986; Kendall and Scanlon, 1981"]
[null,null,"dove","ringed turtle",null,"B",null,null,null,null,8,"ERROR"]
[null,null,"dove","ringed turtle","B","B","14 days","juvenile",null,null,14,9.1999999999999998E-2,"Carriere et al., 1986; Kendall and Scanlon, 1981"]
[null,null,"dove","ringed turtle",null,"B",null,null,null,null,15,"ERROR"]
[null,null,"dove","ringed turtle","B","B","21 days","juvenile",null,null,21,0.11700000000000001,"Carriere et al., 1986; Kendall and Scanlon, 1981"]
[null,null,"dove","ringed turtle",null,"B",null,null,null,null,22,"ERROR"]
[null,null,"dove","ringed turtle","B","B","28 days","juvenile",null,null,28,0.13400000000000001,"Carriere et al., 1986"]
[null,null,"dove","ringed turtle","B","B","Adult","adult",null,null,29,0.14399999999999999,"Carriere et al., 1986; Kendall and Scanlon, 1981; Keith and Mitchell, 1993"]
[null,null,"dove","ringed turtle","B","B",null,null,null,null,25550,"ERROR"]
[null,null,"dove","ringed turtle","B","M","0 days","juvenile",null,null,0,0.01,"Carriere et al., 1986"]
[null,null,"dove","ringed turtle",null,"M",null,null,null,null,1,"ERROR"]
[null,null,"dove","ringed turtle","B","M","7 days","juvenile",null,null,7,5.7000000000000002E-2,"Carriere et al., 1986; Kendall and Scanlon, 1981"]
[null,null,"dove","ringed turtle",null,"M",null,null,null,null,8,"ERROR"]
[null,null,"dove","ringed turtle","B","M","14 days","juvenile",null,null,14,9.1999999999999998E-2,"Carriere et al., 1986; Kendall and Scanlon, 1981"]
[null,null,"dove","ringed turtle",null,"M",null,null,null,null,15,"ERROR"]
[null,null,"dove","ringed turtle","B","M","21 days","juvenile",null,null,21,0.11700000000000001,"Carriere et al., 1986; Kendall and Scanlon, 1981"]
[null,null,"dove","ringed turtle",null,"M",null,null,null,null,22,"ERROR"]
[null,null,"dove","ringed turtle","B","M","28 days","juvenile",null,null,28,0.13400000000000001,"Carriere et al., 1986"]
[null,null,"dove","ringed turtle","B","M","Adult","adult",null,null,29,0.14399999999999999,"Carriere et al., 1986; Kendall and Scanlon, 1981; Keith and Mitchell, 1993"]
[null,null,"dove","ringed turtle","B","M",null,null,null,null,25550,"ERROR"]
[null,null,"dove","ringed turtle","B","F","0 days","juvenile",null,null,0,0.01,"Carriere et al., 1986"]
[null,null,"dove","ringed turtle",null,"F",null,null,null,null,1,"ERROR"]
[null,null,"dove","ringed turtle","B","F","7 days","juvenile",null,null,7,5.7000000000000002E-2,"Carriere et al., 1986; Kendall and Scanlon, 1981"]
[null,null,"dove","ringed turtle",null,"F",null,null,null,null,8,"ERROR"]
[null,null,"dove","ringed turtle","B","F","14 days","juvenile",null,null,14,9.1999999999999998E-2,"Carriere et al., 1986; Kendall and Scanlon, 1981"]
[null,null,"dove","ringed turtle",null,"F",null,null,null,null,15,"ERROR"]
[null,null,"dove","ringed turtle","B","F","21 days","juvenile",null,null,21,0.11700000000000001,"Carriere et al., 1986; Kendall and Scanlon, 1981"]
[null,null,"dove","ringed turtle",null,"F",null,null,null,null,22,"ERROR"]
[null,null,"dove","ringed turtle","B","F","28 days","juvenile",null,null,28,0.13400000000000001,"Carriere et al., 1986"]
[null,null,"dove","ringed turtle","B","F","Adult","adult",null,null,29,0.14399999999999999,"Carriere et al., 1986; Kendall and Scanlon, 1981; Keith and Mitchell, 1993"]
[null,null,"dove","ringed turtle","B","F",null,null,null,null,25550,"ERROR"]
[null,null,"duck","mallard","JV","F","10 days","juvenile",null,null,10,9.1999999999999998E-2]
[null,null,"duck","mallard",null,"F",null,null,null,null,11,"ERROR"]
[null,null,"duck","mallard","JV","F","30 days","juvenile",null,null,30,0.46,"USEPA, 1993"]
[null,null,"duck","mallard",null,"F",null,null,null,null,31,"ERROR"]
[null,null,"duck","mallard","F","F","Adult","adult",null,null,{"$f":"12*7","v":84},1.1000000000000001,"USEPA, 1993","Resource sindicate mallards reach adulthood at 14 months (426 days)","https://en.wikipedia.org/wiki/Mallard#:~:text=The%20adulthood%20age%20for%20mallards%20is%20fourteen%20months%2C,that%20can%20be%20confused%20with%20the%20female%20mallard."]
[null,null,"duck","mallard",null,"F",null,null,null,null,25550,"ERROR","USEPA, 1993","This resource says 12 to 14 weeks","How Long Does It Take for Mallards to Mature? (mom.com)"]
[null,null,"duck","mallard","JV","M","10 days","juvenile",null,null,10,9.1999999999999998E-2]
[null,null,"duck","mallard",null,"M",null,null,null,null,11,"ERROR"]
[null,null,"duck","mallard","JV","M","30 days","juvenile",null,null,30,0.46,"USEPA, 1993"]
[null,null,"duck","mallard",null,"M",null,null,null,null,31,"ERROR"]
[null,null,"duck","mallard","M","M","Adult","adult",null,null,{"$f":"12*7","v":84},1.2,"USEPA, 1993","Resourcesindicate mallards reach adulthood at 14 months (426 days)","https://en.wikipedia.org/wiki/Mallard#:~:text=The%20adulthood%20age%20for%20mallards%20is%20fourteen%20months%2C,that%20can%20be%20confused%20with%20the%20female%20mallard."]
[null,null,"duck","mallard",null,"M",null,null,null,null,25550,"ERROR","USEPA, 1993","This resource says 12 to 14 weeks","How Long Does It Take for Mallards to Mature? (mom.com)"]
[null,null,"duck","mallard","JV","B","10 days","juvenile",null,null,10,9.1999999999999998E-2]
[null,null,"duck","mallard",null,"B",null,null,null,null,11,"ERROR"]
[null,null,"duck","mallard","JV","B","30 days","juvenile",null,null,30,0.46,"USEPA, 1993"]
[null,null,"duck","mallard",null,"B",null,null,null,null,31,"ERROR"]
[null,null,"duck","mallard","M","B","Adult","adult",null,null,{"$f":"12*7","v":84},1.2,"USEPA, 1993","Resourcesindicate mallards reach adulthood at 14 months (426 days)","https://en.wikipedia.org/wiki/Mallard#:~:text=The%20adulthood%20age%20for%20mallards%20is%20fourteen%20months%2C,that%20can%20be%20confused%20with%20the%20female%20mallard."]
[null,null,"duck","mallard",null,"B",null,null,null,null,25550,"ERROR","USEPA, 1993","This resource says 12 to 14 weeks","How Long Does It Take for Mallards to Mature? (mom.com)"]
[null,null,"duck","white pekin","B","F","0 days","juvenile",null,null,0,0.06,"NRC, 1994"]
[null,null,"duck","white pekin",null,"F",null,null,null,null,1,"ERROR"]
[null,null,"duck","white pekin","B","F","7 days","juvenile",null,null,7,0.27,"NRC, 1994"]
[null,null,"duck","white pekin",null,"F",null,null,null,null,8,"ERROR"]
[null,null,"duck","white pekin","F","F","14 days","juvenile",null,null,14,0.74,"NRC, 1994"]
[null,null,"duck","white pekin",null,"F",null,null,null,null,15,"ERROR"]
[null,null,"duck","white pekin","F","F","21 days","juvenile",null,null,21,1.28,"NRC, 1994"]
[null,null,"duck","white pekin",null,"F",null,null,null,null,22,"ERROR"]
[null,null,"duck","white pekin","F","F","28 days","juvenile",null,null,28,1.82,"NRC, 1994"]
[null,null,"duck","white pekin",null,"F",null,null,null,null,29,"ERROR"]
[null,null,"duck","white pekin","F","F","35 days","juvenile",null,null,35,2.2999999999999998,"NRC, 1994"]
[null,null,"duck","white pekin",null,"F",null,null,null,null,36,"ERROR"]
[null,null,"duck","white pekin","F","F","42 days","juvenile",null,null,42,2.73,"NRC, 1994"]
[null,null,"duck","white pekin",null,"F",null,null,null,null,43,"ERROR"]
[null,null,"duck","white pekin","F","F","49 days","juvenile",null,null,49,3.06,"NRC, 1994"]
[null,null,"duck","white pekin",null,"F",null,null,null,null,50,"ERROR"]
[null,null,"duck","white pekin","F","F","56 days","juvenile",null,null,56,3.29,"NRC, 1994"]
[null,null,"duck","white pekin",null,"F",null,null,null,null,57,"ERROR"]
[null,null,"duck","white pekin","B","M","0 days","juvenile",null,null,0,0.06,"NRC, 1994"]
[null,null,"duck","white pekin",null,"M",null,null,null,null,1,"ERROR"]
[null,null,"duck","white pekin","B","M","7 days","juvenile",null,null,7,0.27,"NRC, 1994"]
[null,null,"duck","white pekin",null,"M",null,null,null,null,8,"ERROR"]
[null,null,"duck","white pekin","M","M","14 days","juvenile",null,null,14,0.78,"NRC, 1994"]
[null,null,"duck","white pekin",null,"M",null,null,null,null,15,"ERROR"]
[null,null,"duck","white pekin","M","M","21 days","juvenile",null,null,21,1.38,"NRC, 1994"]
[null,null,"duck","white pekin",null,"M",null,null,null,null,22,"ERROR"]
[null,null,"duck","white pekin","M","M","28 days","juvenile",null,null,28,1.96,"NRC, 1994"]
[null,null,"duck","white pekin",null,"M",null,null,null,null,29,"ERROR"]
[null,null,"duck","white pekin","M","M","35 days","juvenile",null,null,35,2.4900000000000002,"NRC, 1994"]
[null,null,"duck","white pekin",null,"M",null,null,null,null,36,"ERROR"]
[null,null,"duck","white pekin","M","M","42 days","juvenile",null,null,42,2.96,"NRC, 1994"]
[null,null,"duck","white pekin",null,"M",null,null,null,null,43,"ERROR"]
[null,null,"duck","white pekin","M","M","49 days","juvenile",null,null,49,3.34,"NRC, 1994"]
[null,null,"duck","white pekin",null,"M",null,null,null,null,50,"ERROR"]
[null,null,"duck","white pekin","M","M","56 days","juvenile",null,null,56,3.61,"NRC, 1994"]
[null,null,"duck","white pekin",null,"M",null,null,null,null,57,"ERROR"]
[null,null,"duck","white pekin","B","B","0 days","juvenile",null,null,0,0.06,"NRC, 1994"]
[null,null,"duck","white pekin",null,"B",null,null,null,null,1,"ERROR"]
[null,null,"duck","white pekin","B","B","7 days","juvenile",null,null,7,0.27,"NRC, 1994"]
[null,null,"duck","white pekin",null,"B",null,null,null,null,8,"ERROR"]
[null,null,"duck","white pekin","M","B","14 days","juvenile",null,null,14,0.78,"NRC, 1994"]
[null,null,"duck","white pekin",null,"B",null,null,null,null,15,"ERROR"]
[null,null,"duck","white pekin","M","B","21 days","juvenile",null,null,21,1.38,"NRC, 1994"]
[null,null,"duck","white pekin",null,"B",null,null,null,null,22,"ERROR"]
[null,null,"duck","white pekin","M","B","28 days","juvenile",null,null,28,1.96,"NRC, 1994"]
[null,null,"duck","white pekin",null,"B",null,null,null,null,29,"ERROR"]
[null,null,"duck","white pekin","M","B","35 days","juvenile",null,null,35,2.4900000000000002,"NRC, 1994"]
[null,null,"duck","white pekin",null,"B",null,null,null,null,36,"ERROR"]
[null,null,"duck","white pekin","M","B","42 days","juvenile",null,null,42,2.96,"NRC, 1994"]
[null,null,"duck","white pekin",null,"B",null,null,null,null,43,"ERROR"]
[null,null,"duck","white pekin","M","B","49 days","juvenile",null,null,49,3.34,"NRC, 1994"]
[null,null,"duck","white pekin",null,"B",null,null,null,null,50,"ERROR"]
[null,null,"duck","white pekin","M","B","56 days","juvenile",null,null,56,3.61,"NRC, 1994"]
[null,null,"duck","white pekin",null,"B",null,null,null,null,57,"ERROR"]
[null,null,"eagle","bald eagle","M","M","Adult","adult",null,null,{"$f":"5.5*365","v":2007.5},4.13,null,null,"multiple:\nhttps://avianreport.com/age-and-identify-a-juvenile-and-sub-adult-bald-eagle/\nhttps://www.onthewingphotography.com/wings/2011/02/16/bald-eagles-one-to-five-years-old/\nhttps://www.totaltails.com/when-do-bald-eagles-heads-turn-white/\nhttps://birdfact.com/articles/how-long-do-bald-eagles-live"]
[null,null,"eagle","bald eagle","M","M","Adult","adult",null,null,25550,"ERROR","Dunning, 1993"]
[null,null,"eagle","bald eagle","F","F","Adult","adult",null,null,{"$f":"5.5*365","v":2007.5},5.35,null,null,"multiple:\nhttps://avianreport.com/age-and-identify-a-juvenile-and-sub-adult-bald-eagle/\nhttps://www.onthewingphotography.com/wings/2011/02/16/bald-eagles-one-to-five-years-old/\nhttps://www.totaltails.com/when-do-bald-eagles-heads-turn-white/\nhttps://birdfact.com/articles/how-long-do-bald-eagles-live"]
[null,null,"eagle","bald eagle","F","F","Adult","adult",null,null,25550,"ERROR","Dunning, 1993"]
[null,null,"eagle","bald eagle","F","B","Adult","adult",null,null,{"$f":"5.5*365","v":2007.5},5.35]
[null,null,"eagle","bald eagle","F","B","Adult","adult",null,null,25550,"ERROR","Dunning, 1993"]
[null,null,"finch","zebra finch","B","B","Adult","adult",null,null,90,1.2E-2,"Dunning, 1993","Error in EcoSSL document; 12 g instead of 12 kg","multiple:\nhttps://animals.mom.com/zebra-finch-development-12337789.html\nhttps://animalia.bio/zebra-finch\nhttp://www.finchinfo.com/breeding/life_cycles_and_breeding_time_tables.php\nhttp://www.finchinfo.com/birds/finches/species/zebra_finch.php"]
[null,null,"finch","zebra finch","B","B","Adult","adult",null,null,25550,"ERROR"]
[null,null,"finch","zebra finch","B","M","Adult","adult",null,null,90,1.2E-2,"Dunning, 1993","Error in EcoSSL document; 12 g instead of 12 kg","multiple:\nhttps://animals.mom.com/zebra-finch-development-12337789.html\nhttps://animalia.bio/zebra-finch\nhttp://www.finchinfo.com/breeding/life_cycles_and_breeding_time_tables.php\nhttp://www.finchinfo.com/birds/finches/species/zebra_finch.php"]
[null,null,"finch","zebra finch","B","M","Adult","adult",null,null,25550,"ERROR"]
[null,null,"finch","zebra finch","B","F","Adult","adult",null,null,90,1.2E-2,"Dunning, 1993","Error in EcoSSL document; 12 g instead of 12 kg","multiple:\nhttps://animals.mom.com/zebra-finch-development-12337789.html\nhttps://animalia.bio/zebra-finch\nhttp://www.finchinfo.com/breeding/life_cycles_and_breeding_time_tables.php\nhttp://www.finchinfo.com/birds/finches/species/zebra_finch.php"]
[null,null,"finch","zebra finch","B","F","Adult","adult",null,null,25550,"ERROR"]
[null,null,"gerbil","unspecified","M","M","weaning to 90 days","juvenile",null,null,{"$f":"4*7","v":28},4.8000000000000001E-2,"USEPA, 1987","Weaning usually occurs after 4 weeks, not 6","multiple:\nhttps://www.merckvetmanual.com/exotic-and-laboratory-animals/rodents/gerbils#:~:text=Young%20gerbils%20suckle%20for%20~21%20days%20and%20begin,life%20span%20of%20a%20gerbil%20is%202%E2%80%933%20years.\nhttps://www.gerbilwelfare.com/gerbil-life-cycle/\nhttps://www.gerbilwelfare.com/how-to-tell-your-gerbils-age/\nhttps://squeaksandnibbles.com/baby-gerbils/"]
[null,null,"gerbil","unspecified","M","M","90 days to 1 year","juvenile",null,null,90,8.4000000000000005E-2,"USEPA, 1987"]
[null,null,"gerbil","unspecified","M","M","1 year or older","adult",null,null,365,0.1,"USEPA, 1987"]
[null,null,"gerbil","unspecified","M","M",null,null,null,null,25550,"ERROR"]
[null,null,"gerbil","unspecified","F","F","weaning to 90 days","juvenile",null,null,{"$f":"4*7","v":28},0.04,"USEPA, 1987","Weaning usually occurs after 4 weeks, not 6","multiple:\nhttps://www.merckvetmanual.com/exotic-and-laboratory-animals/rodents/gerbils#:~:text=Young%20gerbils%20suckle%20for%20~21%20days%20and%20begin,life%20span%20of%20a%20gerbil%20is%202%E2%80%933%20years.\nhttps://www.gerbilwelfare.com/gerbil-life-cycle/\nhttps://www.gerbilwelfare.com/how-to-tell-your-gerbils-age/\nhttps://squeaksandnibbles.com/baby-gerbils/"]
[null,null,"gerbil","unspecified","F","F","90 days to 1 year","juvenile",null,null,90,7.2999999999999995E-2,"USEPA, 1987"]
[null,null,"gerbil","unspecified","F","F","1 year or older","adult",null,null,365,0.09,"USEPA, 1987"]
[null,null,"gerbil","unspecified","F","F","1 year or older","adult",null,null,25550,"ERROR"]
[null,null,"gerbil","unspecified","M","B","weaning to 90 days","juvenile",null,null,{"$f":"4*7","v":28},4.8000000000000001E-2,"USEPA, 1987","Weaning usually occurs after 4 weeks, not 6","multiple:\nhttps://www.merckvetmanual.com/exotic-and-laboratory-animals/rodents/gerbils#:~:text=Young%20gerbils%20suckle%20for%20~21%20days%20and%20begin,life%20span%20of%20a%20gerbil%20is%202%E2%80%933%20years.\nhttps://www.gerbilwelfare.com/gerbil-life-cycle/\nhttps://www.gerbilwelfare.com/how-to-tell-your-gerbils-age/\nhttps://squeaksandnibbles.com/baby-gerbils/"]
[null,null,"gerbil","unspecified","M","B","90 days to 1 year","juvenile",null,null,90,8.4000000000000005E-2,"USEPA, 1987"]
[null,null,"gerbil","unspecified","M","B","1 year or older","adult",null,null,365,0.1,"USEPA, 1987"]
[null,null,"gerbil","unspecified","M","B",null,null,null,null,25550,"ERROR"]
[null,null,"guinea pig","unspecified","M","M","weaning to 90 days","juvenile",null,null,21,0.48,"USEPA, 1987",null,"multiple:\nhttps://animals.mom.com/old-should-guinea-pig-weaned-10144.html\nhttps://guineapigden.com/newborn-baby-guinea-pigs/\nhttps://guineapig101.com/do-guinea-pigs-nurse-their-young/"]
[null,null,"guinea pig","unspecified","M","M","90 days to 1 year","juvenile",null,null,90,0.89,"USEPA, 1987"]
[null,null,"guinea pig","unspecified","M","M","1 year or older","adult",null,null,365,1,"USEPA, 1987"]
[null,null,"guinea pig","unspecified","M","M","1 year or older","adult",null,null,25550,"ERROR"]
[null,null,"guinea pig","unspecified","F","F","weaning to 90 days","juvenile",null,null,21,0.39,"USEPA, 1987",null,"multiple:\nhttps://animals.mom.com/old-should-guinea-pig-weaned-10144.html\nhttps://guineapigden.com/newborn-baby-guinea-pigs/\nhttps://guineapig101.com/do-guinea-pigs-nurse-their-young/"]
[null,null,"guinea pig","unspecified","F","F","90 days to 1 year","juvenile",null,null,90,0.86,"USEPA, 1987"]
[null,null,"guinea pig","unspecified","F","F","1 year or older","adult",null,null,365,0.9,"USEPA, 1987"]
[null,null,"guinea pig","unspecified","F","F","1 year or older","adult",null,null,25550,"ERROR"]
[null,null,"guinea pig","unspecified","M","B","weaning to 90 days","juvenile",null,null,21,0.48,"USEPA, 1987",null,"multiple:\nhttps://animals.mom.com/old-should-guinea-pig-weaned-10144.html\nhttps://guineapigden.com/newborn-baby-guinea-pigs/\nhttps://guineapig101.com/do-guinea-pigs-nurse-their-young/"]
[null,null,"guinea pig","unspecified","M","B","90 days to 1 year","juvenile",null,null,90,0.89,"USEPA, 1987"]
[null,null,"guinea pig","unspecified","M","B","1 year or older","adult",null,null,365,1,"USEPA, 1987"]
[null,null,"guinea pig","unspecified","M","B","1 year or older","adult",null,null,25550,"ERROR"]
[null,null,"hamster","golden Syrian","M","M","weaning to 90 days","juvenile",null,null,21,9.7000000000000003E-2,"USEPA, 1987",null,"multiple:\nhttps://animalia.bio/syrian-hamster#:~:text=Females%20in%20the%20wild%20usually%20do%20it%20during,age%20of%20sexual%20maturity%20is%20one%20month%20old.\nhttps://firsthamster.com/hamster-reproduction-from-birth-to-first-litter/\nhttps://en.wikipedia.org/wiki/Syrian_hamster_breeding"]
[null,null,"hamster","golden Syrian","M","M","90 days to 1 year","juvenile",null,null,90,0.13400000000000001,"USEPA, 1987","Hamsters reach adulthood at 12 weeks (84 days)"]
[null,null,"hamster","golden Syrian","M","M","1 year or older","adult",null,null,365,0.15,"USEPA, 1987"]
[null,null,"hamster","golden Syrian","M","M",null,null,null,null,25550,"ERROR"]
[null,null,"hamster","golden Syrian","F","F","weaning to 90 days","juvenile",null,null,21,9.5000000000000001E-2,"USEPA, 1987",null,"multiple:\nhttps://animalia.bio/syrian-hamster#:~:text=Females%20in%20the%20wild%20usually%20do%20it%20during,age%20of%20sexual%20maturity%20is%20one%20month%20old.\nhttps://firsthamster.com/hamster-reproduction-from-birth-to-first-litter/\nhttps://en.wikipedia.org/wiki/Syrian_hamster_breeding"]
[null,null,"hamster","golden Syrian","F","F","90 days to 1 year","juvenile",null,null,90,0.14499999999999999,"USEPA, 1987","Hamsters reach adulthood at 12 weeks (84 days)"]
[null,null,"hamster","golden Syrian","F","F","1 year or older","adult",null,null,365,0.16,"USEPA, 1987"]
[null,null,"hamster","golden Syrian","F","F",null,null,null,null,25550,"ERROR"]
[null,null,"hamster","golden Syrian","M","B","weaning to 90 days","juvenile",null,null,21,9.7000000000000003E-2,"USEPA, 1987",null,"multiple:\nhttps://animalia.bio/syrian-hamster#:~:text=Females%20in%20the%20wild%20usually%20do%20it%20during,age%20of%20sexual%20maturity%20is%20one%20month%20old.\nhttps://firsthamster.com/hamster-reproduction-from-birth-to-first-litter/\nhttps://en.wikipedia.org/wiki/Syrian_hamster_breeding"]
[null,null,"hamster","golden Syrian","F","B","90 days to 1 year","juvenile",null,null,90,0.14499999999999999,"USEPA, 1987","Hamsters reach adulthood at 12 weeks (84 days)"]
[null,null,"hamster","golden Syrian","F","B","1 year or older","adult",null,null,365,0.16,"USEPA, 1987"]
[null,null,"hamster","golden Syrian","M","B",null,null,null,null,25550,"ERROR"]
[null,null,"hamster","Chinese & Djungarain","M","M","weaning to 90 days","juvenile",null,null,21,0.03,"USEPA, 1987",null,"multiple:\nhttps://firsthamster.com/hamster-reproduction-from-birth-to-first-litter/#:~:text=Once%20the%20hamster%20pups%20reach%203-4%20weeks%20of,a%20few%20days%20the%20pups%20will%20be%20alright.\nhttps://animalia.bio/djungarian-hamster\nhttps://petsvills.com/chinese-hamster-complete-guide/\nhttps://dwarfhamsterguide.com/chinese-dwarf-hamster/"]
[null,null,"hamster","Chinese & Djungarain","M","M","90 days to 1 year","juvenile",null,null,90,4.1000000000000002E-2,"USEPA, 1987","Hamsters reach adulthood at 12 weeks (84 days)"]
[null,null,"hamster","Chinese & Djungarain","M","M","1 year or older","adult",null,null,365,0.04,"USEPA, 1987"]
[null,null,"hamster","Chinese & Djungarain","M","M",null,null,null,null,25550,"ERROR"]
[null,null,"hamster","Chinese & Djungarain","F","F","weaning to 90 days","juvenile",null,null,21,2.5000000000000001E-2,"USEPA, 1987",null,"multiple:\nhttps://firsthamster.com/hamster-reproduction-from-birth-to-first-litter/#:~:text=Once%20the%20hamster%20pups%20reach%203-4%20weeks%20of,a%20few%20days%20the%20pups%20will%20be%20alright.\nhttps://animalia.bio/djungarian-hamster\nhttps://petsvills.com/chinese-hamster-complete-guide/\nhttps://dwarfhamsterguide.com/chinese-dwarf-hamster/"]
[null,null,"hamster","Chinese & Djungarain","F","F","90 days to 1 year","juvenile",null,null,90,3.7999999999999999E-2,"USEPA, 1987","Hamsters reach adulthood at 12 weeks (84 days)"]
[null,null,"hamster","Chinese & Djungarain","F","F","1 year or older","adult",null,null,365,3.5000000000000003E-2,"USEPA, 1987"]
[null,null,"hamster","Chinese & Djungarain","F","F",null,null,null,null,25550,"ERROR"]
[null,null,"hamster","Chinese & Djungarain","M","B","weaning to 90 days","juvenile",null,null,21,0.03,"USEPA, 1987",null,"multiple:\nhttps://firsthamster.com/hamster-reproduction-from-birth-to-first-litter/#:~:text=Once%20the%20hamster%20pups%20reach%203-4%20weeks%20of,a%20few%20days%20the%20pups%20will%20be%20alright.\nhttps://animalia.bio/djungarian-hamster\nhttps://petsvills.com/chinese-hamster-complete-guide/\nhttps://dwarfhamsterguide.com/chinese-dwarf-hamster/"]
[null,null,"hamster","Chinese & Djungarain","M","B","90 days to 1 year","juvenile",null,null,90,4.1000000000000002E-2,"USEPA, 1987","Hamsters reach adulthood at 12 weeks (84 days)"]
[null,null,"hamster","Chinese & Djungarain","M","B","1 year or older","adult",null,null,365,0.04,"USEPA, 1987"]
[null,null,"hamster","Chinese & Djungarain","M","B",null,null,null,null,25550,"ERROR"]
[null,null,"hamster","unspecified","M","M","weaning to 90 days","juvenile",null,null,21,6.3500000000000001E-2,"USEPA, 1987",null,"https://firsthamster.com/hamster-reproduction-from-birth-to-first-litter/#:~:text=Once%20the%20hamster%20pups%20reach%203-4%20weeks%20of,a%20few%20days%20the%20pups%20will%20be%20alright."]
[null,null,"hamster","unspecified","M","M","90 days to 1 year","juvenile",null,null,90,8.7499999999999994E-2,"USEPA, 1987","Hamsters reach adulthood at 12 weeks (84 days)"]
[null,null,"hamster","unspecified","M","M","1 year or older","adult",null,null,366,9.5000000000000001E-2,"USEPA, 1987"]
[null,null,"hamster","unspecified","M","M",null,null,null,null,25550,"ERROR"]
[null,null,"hamster","unspecified","F","F","weaning to 90 days","juvenile",null,null,21,0.24249999999999999,"USEPA, 1987",null,"https://firsthamster.com/hamster-reproduction-from-birth-to-first-litter/#:~:text=Once%20the%20hamster%20pups%20reach%203-4%20weeks%20of,a%20few%20days%20the%20pups%20will%20be%20alright."]
[null,null,"hamster","unspecified","F","F","90 days to 1 year","juvenile",null,null,90,0.50249999999999995,"USEPA, 1987","Hamsters reach adulthood at 12 weeks (84 days)"]
[null,null,"hamster","unspecified","F","F","1 year or older","adult",null,null,366,1.03,"USEPA, 1987"]
[null,null,"hamster","unspecified","F","F",null,null,null,null,25550,"ERROR"]
[null,null,"hamster","unspecified","F","B","weaning to 90 days","juvenile",null,null,21,0.24249999999999999,"USEPA, 1987",null,"https://firsthamster.com/hamster-reproduction-from-birth-to-first-litter/#:~:text=Once%20the%20hamster%20pups%20reach%203-4%20weeks%20of,a%20few%20days%20the%20pups%20will%20be%20alright."]
[null,null,"hamster","unspecified","F","B","90 days to 1 year","juvenile",null,null,90,0.50249999999999995,"USEPA, 1987","Hamsters reach adulthood at 12 weeks (84 days)"]
[null,null,"hamster","unspecified","F","B","1 year or older","adult",null,null,366,1.03,"USEPA, 1987"]
[null,null,"hamster","unspecified","F","B",null,null,null,null,25550,"ERROR"]
[null,null,"horse","unspecified","M","M","2 to 5 months","foal",null,null,60,181.44,"Jurgens, 1993",null,"multiple:\nhttps://horses.lovetoknow.com/equine-health/life-cycle-horse-stages-care#:~:text=Stages%20of%20Life%201%20Foal.%20From%20the%20time,Adolescent.%20...%205%20Adult.%20...%206%20Senior.%20\nhttps://www.horsesandus.com/5-stages-of-a-horses-life-cycle/\nhttps://www.besthorserider.com/life-cycle-of-a-horse-facts/\n"]
[null,null,"horse","unspecified","M","M","5 to 12 months","weanling",null,null,150,317.51,"Jurgens, 1993"]
[null,null,"horse","unspecified","M","M","12 to 24 months","yearling",null,null,365,408.23,"Jurgens, 1993"]
[null,null,"horse","unspecified","B","M","> 2 year","adult",null,null,{"$f":"2*365","v":730},498.95,"Jurgens, 1993"]
[null,null,"horse","unspecified",null,"M",null,null,null,null,25550,"ERROR"]
[null,null,"horse","unspecified","M","B","2 to 5 months","foal",null,null,60,181.44,"Jurgens, 1993"]
[null,null,"horse","unspecified","M","B","5 to 12 months","weanling",null,null,150,317.51,"Jurgens, 1993"]
[null,null,"horse","unspecified","M","B","12 to 24 months","yearling",null,null,365,408.23,"Jurgens, 1993"]
[null,null,"horse","unspecified","B","B","> 2 year","adult",null,null,{"$f":"2*365","v":730},498.95,"Jurgens, 1993"]
[null,null,"horse","unspecified",null,"B",null,null,null,null,25550,"ERROR"]
[null,null,"horse","unspecified","B","F","> 2 year","adult",null,null,730,498.95,"Jurgens, 1993"]
[null,null,"horse","unspecified",null,"F",null,null,null,null,25550,"ERROR"]
[null,null,"kestrel","American","F","F","unspecified","adult",null,null,20,0.13800000000000001,"Dunning, 1993","lower values available for female adult (0.132) and incubating (0.119); Although kestrels mature when they are a year old, many do not manage to secure a mate and a breeding territory until their second year. Kestrels reach adult size in 20 days.","multiple:\nKestrel Breeding and Nesting Habits - The RSPB\nhttps://learnbirdwatching.com/common-kestrel-facts/\nhttps://kestrel.peregrinefund.org/kestrel-biology"]
[null,null,"kestrel","American","F","F",null,null,null,null,25550,"ERROR"]
[null,null,"kestrel","American","M","M","unspecified","adult",null,null,20,0.114,"Dunning, 1993",null,"Kestrel Breeding and Nesting Habits - The RSPB"]
[null,null,"kestrel","American","M","M",null,null,null,null,25550,"ERROR"]
[null,null,"kestrel","American","F","B","unspecified","egg-laying",null,null,20,0.13800000000000001,"Dunning, 1993",null,"Kestrel Breeding and Nesting Habits - The RSPB"]
[null,null,"kestrel","American","F","B",null,null,null,null,25550,"ERROR"]
[null,null,"mink","unspecified","M","M","weaning to 49 days","juvenile",null,null,{"$f":"6*7","v":42},1.02,"USEPA 1993","Kits are weaned at 6 to 10 weeks","multiple:\nhttps://www.livescience.com/56071-mink-facts.html\nhttps://a-z-animals.com/animals/mink/\nhttps://animalhype.com/mammals/what-do-minks-eat/"]
[null,null,"mink","unspecified","M","M",null,null,null,null,50,"ERROR"]
[null,null,"mink","unspecified","M","M","> 1 year","adult",null,null,366,1.18,"USEPA 1993"]
[null,null,"mink","unspecified","M","M",null,null,null,null,25550,"ERROR"]
[null,null,"mink","unspecified","F","F","weaning to 49 days","juvenile",null,null,{"$f":"6*7","v":42},0.58299999999999996,"USEPA 1993","Kits are weaned at 6 to 10 weeks","multiple:\nhttps://www.livescience.com/56071-mink-facts.html\nhttps://a-z-animals.com/animals/mink/\nhttps://animalhype.com/mammals/what-do-minks-eat/"]
[null,null,"mink","unspecified","F","F",null,null,null,null,50,"ERROR"]
[null,null,"mink","unspecified","F","F","> 1 year","adult",null,null,366,0.59599999999999997,"USEPA 1993"]
[null,null,"mink","unspecified","F","F",null,null,null,null,25550,"ERROR"]
[null,null,"mink","unspecified","M","B","weaning to 49 days","juvenile",null,null,{"$f":"6*7","v":42},1.02,"USEPA 1993","Kits are weaned at 6 to 10 weeks","multiple:\nhttps://www.livescience.com/56071-mink-facts.html\nhttps://a-z-animals.com/animals/mink/\nhttps://animalhype.com/mammals/what-do-minks-eat/"]
[null,null,"mink","unspecified","M","B",null,null,null,null,50,"ERROR"]
[null,null,"mink","unspecified","M","B","> 1 year","adult",null,null,366,1.18,"USEPA 1993"]
[null,null,"mink","unspecified","M","B",null,null,null,null,25550,"ERROR"]
[null,null,"mouse","BAF1","M","M","weaning to 90 days","juvenile",null,null,21,2.23E-2,"USEPA, 1987",null,"multiple:\nhttps://animal.research.wvu.edu/files/d/2ecc259d-85e1-42c9-bb18-c0176e6b9078/breeding-and-weaning-of-rats-and-mice.pdf\nhttps://www.umt.edu/research/LAR/sops/sop-rodent-weaning.php\nhttps://www.umt.edu/research/LAR/sops/sop-rodent-weaning.php\nhttps://research.wayne.edu/iacuc/rodentbreedingandweaning"]
[null,null,"mouse","BAF1","M","M","90 days to 1 year","juvenile",null,null,90,2.6100000000000002E-2,"USEPA, 1987"]
[null,null,"mouse","BAF1","M","M","1 year or older","adult",null,null,365,3.5000000000000003E-2,"USEPA, 1987"]
[null,null,"mouse","BAF1","M","M",null,null,null,null,25550,"ERROR"]
[null,null,"mouse","BAF1","F","F","weaning to 90 days","juvenile",null,null,21,2.0400000000000001E-2,"USEPA, 1987",null,"multiple:\nhttps://animal.research.wvu.edu/files/d/2ecc259d-85e1-42c9-bb18-c0176e6b9078/breeding-and-weaning-of-rats-and-mice.pdf\nhttps://www.umt.edu/research/LAR/sops/sop-rodent-weaning.php\nhttps://www.umt.edu/research/LAR/sops/sop-rodent-weaning.php\nhttps://research.wayne.edu/iacuc/rodentbreedingandweaning"]
[null,null,"mouse","BAF1","F","F","90 days to 1 year","juvenile",null,null,90,2.2200000000000001E-2,"USEPA, 1987"]
[null,null,"mouse","BAF1","F","F","1 year or older","adult",null,null,365,0.03,"USEPA, 1987"]
[null,null,"mouse","BAF1","F","F",null,null,null,null,25550,"ERROR"]
[null,null,"mouse","BAF1","M","B","weaning to 90 days","juvenile",null,null,21,2.23E-2,"USEPA, 1987",null,"multiple:\nhttps://animal.research.wvu.edu/files/d/2ecc259d-85e1-42c9-bb18-c0176e6b9078/breeding-and-weaning-of-rats-and-mice.pdf\nhttps://www.umt.edu/research/LAR/sops/sop-rodent-weaning.php\nhttps://www.umt.edu/research/LAR/sops/sop-rodent-weaning.php\nhttps://research.wayne.edu/iacuc/rodentbreedingandweaning"]
[null,null,"mouse","BAF1","M","B","90 days to 1 year","juvenile",null,null,90,2.6100000000000002E-2,"USEPA, 1987"]
[null,null,"mouse","BAF1","M","B","1 year or older","adult",null,null,365,3.5000000000000003E-2,"USEPA, 1987"]
[null,null,"mouse","BAF1","M","B",null,null,null,null,25550,"ERROR"]
[null,null,"mouse","B6C3F1","M","M","weaning to 90 days","juvenile",null,null,21,3.1600000000000003E-2,"USEPA, 1987",null,"multiple:\nhttps://animal.research.wvu.edu/files/d/2ecc259d-85e1-42c9-bb18-c0176e6b9078/breeding-and-weaning-of-rats-and-mice.pdf\nhttps://www.umt.edu/research/LAR/sops/sop-rodent-weaning.php\nhttps://www.umt.edu/research/LAR/sops/sop-rodent-weaning.php\nhttps://research.wayne.edu/iacuc/rodentbreedingandweaning"]
[null,null,"mouse","B6C3F1","M","M","90 days to 1 year","juvenile",null,null,90,3.73E-2,"USEPA, 1987"]
[null,null,"mouse","B6C3F1","M","M","1 year or older","adult",null,null,365,0.04,"USEPA, 1987"]
[null,null,"mouse","B6C3F1","M","M",null,null,null,null,25550,"ERROR"]
[null,null,"mouse","B6C3F1","F","F","weaning to 90 days","juvenile",null,null,21,2.46E-2,"USEPA, 1987",null,"multiple:\nhttps://animal.research.wvu.edu/files/d/2ecc259d-85e1-42c9-bb18-c0176e6b9078/breeding-and-weaning-of-rats-and-mice.pdf\nhttps://www.umt.edu/research/LAR/sops/sop-rodent-weaning.php\nhttps://www.umt.edu/research/LAR/sops/sop-rodent-weaning.php\nhttps://research.wayne.edu/iacuc/rodentbreedingandweaning"]
[null,null,"mouse","B6C3F1","F","F","90 days to 1 year","juvenile",null,null,90,3.5299999999999998E-2,"USEPA, 1987"]
[null,null,"mouse","B6C3F1","F","F","1 year or older","adult",null,null,365,3.5000000000000003E-2,"USEPA, 1987"]
[null,null,"mouse","B6C3F1","F","F",null,null,null,null,25550,"ERROR"]
[null,null,"mouse","B6C3F1","M","B","weaning to 90 days","juvenile",null,null,21,3.1600000000000003E-2,"USEPA, 1987",null,"multiple:\nhttps://animal.research.wvu.edu/files/d/2ecc259d-85e1-42c9-bb18-c0176e6b9078/breeding-and-weaning-of-rats-and-mice.pdf\nhttps://www.umt.edu/research/LAR/sops/sop-rodent-weaning.php\nhttps://www.umt.edu/research/LAR/sops/sop-rodent-weaning.php\nhttps://research.wayne.edu/iacuc/rodentbreedingandweaning"]
[null,null,"mouse","B6C3F1","M","B","90 days to 1 year","juvenile",null,null,90,3.73E-2,"USEPA, 1987"]
[null,null,"mouse","B6C3F1","M","B","1 year or older","adult",null,null,365,0.04,"USEPA, 1987"]
[null,null,"mouse","B6C3F1","M","B",null,null,null,null,25550,"ERROR"]
[null,null,"mouse","deer mouse","M","M","Adult","adult",null,null,{"$f":"6*7","v":42},0.02,"USEPA, 1993","The age of sexual maturity is reported as 5 or 6 weeks; most reports indicated 6 weeks.","multiple:\nhttps://animalia.bio/deer-mouse\nhttps://www.coniferousforest.com/deer-mouse.htm\nhttps://www.dept.psu.edu/nkbiology/naturetrail/speciespages/deermouse.htm\nhttp://baldwin.ucdavis.edu/files/3713/8938/8918/pndeermouse.pdf\n"]
[null,null,"mouse","deer mouse","M","M",null,null,null,null,25550,"ERROR"]
[null,null,"mouse","deer mouse","F","F","Adult","adult",null,null,{"$f":"6*7","v":42},1.9E-2,"USEPA, 1993","The age of sexual maturity is reported as 5 or 6 weeks; most reports indicated 6 weeks.","multiple:\nhttps://animalia.bio/deer-mouse\nhttps://www.coniferousforest.com/deer-mouse.htm\nhttps://www.dept.psu.edu/nkbiology/naturetrail/speciespages/deermouse.htm\nhttp://baldwin.ucdavis.edu/files/3713/8938/8918/pndeermouse.pdf\n"]
[null,null,"mouse","deer mouse","F","F",null,null,null,null,25550,"ERROR"]
[null,null,"mouse","deer mouse","M","B","Adult","adult",null,null,{"$f":"6*7","v":42},0.02,"USEPA, 1993","The age of sexual maturity is reported as 5 or 6 weeks; most reports indicated 6 weeks.","multiple:\nhttps://animalia.bio/deer-mouse\nhttps://www.coniferousforest.com/deer-mouse.htm\nhttps://www.dept.psu.edu/nkbiology/naturetrail/speciespages/deermouse.htm\nhttp://baldwin.ucdavis.edu/files/3713/8938/8918/pndeermouse.pdf\n"]
[null,null,"mouse","deer mouse","M","B",null,null,null,null,25550,"ERROR"]
[null,null,"mouse","unspecified","M","M","weaning to 90 days","juvenile",null,null,21,2.6950000000000002E-2,"USEPA, 1987"]
[null,null,"mouse","unspecified","M","M","90 days to 1 year","juvenile",null,null,90,3.1699999999999999E-2,"USEPA, 1987"]
[null,null,"mouse","unspecified","M","M","1 year or older","adult",null,null,365,3.7499999999999999E-2,"USEPA, 1987"]
[null,null,"mouse","unspecified","M","M",null,null,null,null,25550,"ERROR"]
[null,null,"mouse","unspecified","F","F","weaning to 90 days","juvenile",null,null,21,2.2499999999999999E-2,"USEPA, 1987"]
[null,null,"mouse","unspecified","F","F","90 days to 1 year","juvenile",null,null,90,2.8750000000000001E-2,"USEPA, 1987"]
[null,null,"mouse","unspecified","F","F","1 year or older","adult",null,null,365,3.2500000000000001E-2,"USEPA, 1987"]
[null,null,"mouse","unspecified","F","F",null,null,null,null,25550,"ERROR"]
[null,null,"mouse","unspecified","M","B","weaning to 90 days","juvenile",null,null,21,2.6950000000000002E-2,"USEPA, 1987"]
[null,null,"mouse","unspecified","M","B","90 days to 1 year","juvenile",null,null,90,3.1699999999999999E-2,"USEPA, 1987"]
[null,null,"mouse","unspecified","M","B","1 year or older","adult",null,null,365,3.7499999999999999E-2,"USEPA, 1987"]
[null,null,"mouse","unspecified","M","B",null,null,null,null,25550,"ERROR"]
[null,null,"pheasant","ring-necked","F","F","Adult","adult",null,null,{"$f":"6*7","v":42},0.95,"Dunning, 1993","Ringneck pheasants are reported to mature around 16 to 18 weeks of age and as early as 12 weeks. Adult plumage in 6 weeks","multiple:\nhttps://www.myerspoultry.com/Product-Ringneck-Pheasant\nhttps://animaldiversity.org/accounts/Phasianus_colchicus/"]
[null,null,"pheasant","ring-necked","F","F",null,null,null,null,25550,"ERROR",null,null,"FS 603 Layout1 (umd.edu)"]
[null,null,"pheasant","ring-necked","M","M","Adult","adult",null,null,{"$f":"6*7","v":42},1.3,"Dunning, 1993",null,"multiple:\nhttps://www.myerspoultry.com/Product-Ringneck-Pheasant\nhttps://animaldiversity.org/accounts/Phasianus_colchicus/"]
[null,null,"pheasant","ring-necked","M","M",null,null,null,null,25550,"ERROR"]
[null,null,"pheasant","ring-necked","M","B","Adult","adult",null,null,{"$f":"6*7","v":42},1.3,"Dunning, 1993",null,"multiple:\nhttps://www.myerspoultry.com/Product-Ringneck-Pheasant\nhttps://animaldiversity.org/accounts/Phasianus_colchicus/"]
[null,null,"pheasant","ring-necked","M","B",null,null,null,null,25550,"ERROR"]
[null,null,"owl","barn owl","M","M","Adult","adult",null,null,{"$f":"8*30","v":240},0.47899999999999998,"Dunning, 1993","Sexual maturity is reached after a year; reach adult size by 8 to 9 weeks and look like adults by 10 weeks","multiple:\nhttps://littlethings.com/pets/facts-about-owl-babies#:~:text=Baby%20owls%20will%20grow%20up%20fast%2C%20as%20birds,Jaguar%2010.%20But%20They%20Start%20Off%20Quite%20Small\nhttps://www.barnowltrust.org.uk/barn-owl-facts/owlets-young-barn-owls/\nhttps://genomics.senescence.info/species/entry.php?species=Tyto_alba\nhttps://animaldiversity.org/accounts/Tyto_alba/\nhttps://portal.ct.gov/DEEP/Wildlife/Fact-Sheets/Barn-Owl#:~:text=Barn%20owls%20are%20sexually%20mature%20at%201%20year,cavities%2C%20barns%2C%20abandoned%20and%20occupied%20buildings%2C%20and%20chimneys.\nhttps://www.owlpages.com/owls/articles.php?a=11"]
[null,null,"owl","barn owl","M","M",null,null,null,null,25550,"ERROR"]
[null,null,"owl","barn owl","F","F","Adult","adult",null,null,{"$f":"8*30","v":240},0.56799999999999995,"Dunning, 1993",null,"multiple:\nhttps://littlethings.com/pets/facts-about-owl-babies#:~:text=Baby%20owls%20will%20grow%20up%20fast%2C%20as%20birds,Jaguar%2010.%20But%20They%20Start%20Off%20Quite%20Small\nhttps://www.barnowltrust.org.uk/barn-owl-facts/owlets-young-barn-owls/\nhttps://genomics.senescence.info/species/entry.php?species=Tyto_alba\nhttps://animaldiversity.org/accounts/Tyto_alba/\nhttps://portal.ct.gov/DEEP/Wildlife/Fact-Sheets/Barn-Owl#:~:text=Barn%20owls%20are%20sexually%20mature%20at%201%20year,cavities%2C%20barns%2C%20abandoned%20and%20occupied%20buildings%2C%20and%20chimneys.\nhttps://www.owlpages.com/owls/articles.php?a=11"]
[null,null,"owl","barn owl","F","F",null,null,null,null,25550,"ERROR"]
[null,null,"owl","barn owl","F","B","Adult","adult",null,null,{"$f":"8*30","v":240},0.56799999999999995,"Dunning, 1993",null,"multiple:\nhttps://littlethings.com/pets/facts-about-owl-babies#:~:text=Baby%20owls%20will%20grow%20up%20fast%2C%20as%20birds,Jaguar%2010.%20But%20They%20Start%20Off%20Quite%20Small\nhttps://www.barnowltrust.org.uk/barn-owl-facts/owlets-young-barn-owls/\nhttps://genomics.senescence.info/species/entry.php?species=Tyto_alba\nhttps://animaldiversity.org/accounts/Tyto_alba/\nhttps://portal.ct.gov/DEEP/Wildlife/Fact-Sheets/Barn-Owl#:~:text=Barn%20owls%20are%20sexually%20mature%20at%201%20year,cavities%2C%20barns%2C%20abandoned%20and%20occupied%20buildings%2C%20and%20chimneys.\nhttps://www.owlpages.com/owls/articles.php?a=11"]
[null,null,"owl","barn owl","F","B",null,null,null,null,25550,"ERROR"]
[null,null,"pigeon","pigeon","F","F","Adult","adult",null,null,{"$f":"7*30.4166667","v":212.9166669},0.34,"Dunning, 1993",null,"multiple:\nhttps://pigeonpedia.com/pigeon-life-cycle/\nhttps://www.ovocontrol.com/pigeon-facts-figures"]
[null,null,"pigeon","pigeon","F","F",null,null,null,null,25550,"ERROR"]
[null,null,"pigeon","pigeon","M","M","Adult","adult",null,null,{"$f":"7*30.4166667","v":212.9166669},0.36899999999999999,"Dunning, 1993",null,"multiple:\nhttps://pigeonpedia.com/pigeon-life-cycle/\nhttps://www.ovocontrol.com/pigeon-facts-figures"]
[null,null,"pigeon","pigeon","M","M",null,null,null,null,25550,"ERROR"]
[null,null,"pigeon","pigeon","M","B","Adult","adult",null,null,{"$f":"7*30.4166667","v":212.9166669},0.36899999999999999,"Dunning, 1993",null,"multiple:\nhttps://pigeonpedia.com/pigeon-life-cycle/\nhttps://www.ovocontrol.com/pigeon-facts-figures"]
[null,null,"pigeon","pigeon","M","B",null,null,null,null,25550,"ERROR"]
[null,null,"pig","miniature","M","M","Adult","adult",null,null,365,72.5,"USEPA, 1987","Mini pigs can start breeding at 1 year but aren't considered fully mature until about 5 years; 1 to 5 years is considered adolescent","multiple:\nhttps://lafeber.com/vet/basic-information-sheet-miniature-pig/#:~:text=The%20adult%20size%20of%20other%20miniature%20pigs%20is,reached%20until%203-4%20years%20of%20age%20Sexual%20dimorphism\nhttps://petpigworld.com/miniature-pigs-complete-guide-everything-you-need-to-know/\nhttps://vcahospitals.com/know-your-pet/general-facts-about-mini-pigs\nhttps://americanminipigassociation.com/mini-pig-education/mini-pig-size-classifications/\nhttps://americanminipigassociation.com/owners/ready-mini-pig-owner/frequently-asked-questions/\nhttps://americanminipigassociation.com/mini-pig-education/mini-pig-size-classifications/\nhttps://www.thesprucepets.com/pet-pot-bellied-pigs-1239252"]
[null,null,"pig","miniature","M","M",null,null,null,null,25550,"ERROR"]
[null,null,"pig","miniature","F","F","Adult","adult",null,null,365,72.5,"USEPA, 1987",null,"multiple:\nhttps://lafeber.com/vet/basic-information-sheet-miniature-pig/#:~:text=The%20adult%20size%20of%20other%20miniature%20pigs%20is,reached%20until%203-4%20years%20of%20age%20Sexual%20dimorphism\nhttps://petpigworld.com/miniature-pigs-complete-guide-everything-you-need-to-know/\nhttps://vcahospitals.com/know-your-pet/general-facts-about-mini-pigs\nhttps://americanminipigassociation.com/mini-pig-education/mini-pig-size-classifications/\nhttps://americanminipigassociation.com/owners/ready-mini-pig-owner/frequently-asked-questions/\nhttps://americanminipigassociation.com/mini-pig-education/mini-pig-size-classifications/\nhttps://www.thesprucepets.com/pet-pot-bellied-pigs-1239252"]
[null,null,"pig","miniature","F","F",null,null,null,null,25550,"ERROR"]
[null,null,"pig","miniature","M","B","Adult","adult",null,null,365,72.5,"USEPA, 1987",null,"multiple:\nhttps://lafeber.com/vet/basic-information-sheet-miniature-pig/#:~:text=The%20adult%20size%20of%20other%20miniature%20pigs%20is,reached%20until%203-4%20years%20of%20age%20Sexual%20dimorphism\nhttps://petpigworld.com/miniature-pigs-complete-guide-everything-you-need-to-know/\nhttps://vcahospitals.com/know-your-pet/general-facts-about-mini-pigs\nhttps://americanminipigassociation.com/mini-pig-education/mini-pig-size-classifications/\nhttps://americanminipigassociation.com/owners/ready-mini-pig-owner/frequently-asked-questions/\nhttps://americanminipigassociation.com/mini-pig-education/mini-pig-size-classifications/\nhttps://www.thesprucepets.com/pet-pot-bellied-pigs-1239252"]
[null,null,"pig","miniature","M","B",null,null,null,null,25550,"ERROR"]
[null,null,"pig","unspecified","BH","B","1 d","juvenile",null,null,1,1.2,"Spears et al, 1984","Used female \"Gestation\" value instead of \"adult/>299\" value for both. Assumed 300 days was adult. It seems that a pig reaches sexual maturity at 5 to 6 months (152 to 183 days) and full maturity at 18 months (548 days)"]
[null,null,"pig","unspecified","BH","B","21 to 25 days","juvenile",null,null,21,6.6,"USEPA 2005"]
[null,null,"pig","unspecified","BH","B","26 to 29 days","juvenile",null,null,26,7.9,"USEPA 2005"]
[null,null,"pig","unspecified","BH","B","30 TO 35 days","juvenile",null,null,30,9.3000000000000007,"USEPA 2005"]
[null,null,"pig","unspecified","BH","B","36 to 66 days","juvenile",null,null,36,31.5,"USEPA 2005"]
[null,null,"pig","unspecified","BH","B","67 to 150 days","juvenile",null,null,67,61,"USEPA 2005"]
[null,null,"pig","unspecified","BH","B","151 to 299 days","juvenile",null,null,151,61,"USEPA 2005"]
[null,null,"pig","unspecified","F","B","Adult","Gestation",null,null,300,152,"USEPA 2005",null,"multiple:\nhttps://pubmed.ncbi.nlm.nih.gov/233594/\nhttps://porkcheckoff.org/pork-branding/facts-statistics/life-cycle-of-a-market-pig/"]
[null,null,"pig","unspecified","F","B",null,null,null,null,25550,"ERROR","Cromwell et al., 1993"]
[null,null,"pig","unspecified","BH","F","1 d","juvenile",null,null,1,1.2,"Spears et al, 1984","Used female \"Gestation\" value instead of \"adult/>299\" value for both. Assumed 300 days was adult. It seems that a pig reaches sexual maturity at 5 to 6 months (152 to 183 days) and full maturity at 18 months (548 days)"]
[null,null,"pig","unspecified","BH","F","21 to 25 days","juvenile",null,null,21,6.6,"USEPA 2005"]
[null,null,"pig","unspecified","BH","F","26 to 29 days","juvenile",null,null,26,7.9,"USEPA 2005"]
[null,null,"pig","unspecified","BH","F","30 TO 35 days","juvenile",null,null,30,9.3000000000000007,"USEPA 2005"]
[null,null,"pig","unspecified","BH","F","36 to 66 days","juvenile",null,null,36,31.5,"USEPA 2005"]
[null,null,"pig","unspecified","BH","F","67 to 150 days","juvenile",null,null,67,61,"USEPA 2005"]
[null,null,"pig","unspecified","BH","F","151 to 299 days","juvenile",null,null,151,61,"USEPA 2005"]
[null,null,"pig","unspecified","F","B","Adult","Gestation",null,null,300,152,"USEPA 2005",null,"multiple:\nhttps://pubmed.ncbi.nlm.nih.gov/233594/\nhttps://porkcheckoff.org/pork-branding/facts-statistics/life-cycle-of-a-market-pig/"]
[null,null,"pig","unspecified","F","F",null,null,null,null,25550,"ERROR","Cromwell et al., 1993"]
[null,null,"pig","unspecified","BH","M","1 d","juvenile",null,null,1,1.2,"Spears et al, 1984","Used female \"Gestation\" value instead of \"adult/>299\" value for both. Assumed 300 days was adult. It seems that a pig reaches sexual maturity at 5 to 6 months (152 to 183 days) and full maturity at 18 months (548 days)"]
[null,null,"pig","unspecified","BH","M","21 to 25 days","juvenile",null,null,21,6.6,"USEPA 2005"]
[null,null,"pig","unspecified","BH","M","26 to 29 days","juvenile",null,null,26,7.9,"USEPA 2005"]
[null,null,"pig","unspecified","BH","M","30 TO 35 days","juvenile",null,null,30,9.3000000000000007,"USEPA 2005"]
[null,null,"pig","unspecified","BH","M","36 to 66 days","juvenile",null,null,36,31.5,"USEPA 2005"]
[null,null,"pig","unspecified","BH","M","67 to 150 days","juvenile",null,null,67,61,"USEPA 2005"]
[null,null,"pig","unspecified","BH","M","151 to 299 days","juvenile",null,null,151,61,"USEPA 2005"]
[null,null,"pig","unspecified","BH","M","> 299 days","adult",null,null,300,104,"USEPA 2005",null,"multiple:\nhttps://pubmed.ncbi.nlm.nih.gov/233594/\nhttps://porkcheckoff.org/pork-branding/facts-statistics/life-cycle-of-a-market-pig/"]
[null,null,"pig","unspecified","BH","M",null,null,null,null,25550,"ERROR"]
[null,null,"quail","Japanese","BH","F","0 to 1 days","juvenile",null,null,0,7.0449999999999999E-2,"USEPA, 2005","Dunning, 1993 values were not used as the Dunning Adult female weight (0.1) is less than 60-154 days juvenile value (0.135) for both. 0.135 was used as the adult female value.\nMature in about 4 to 6 weeks and are in full egg production by 50 days.","multiple:\nhttps://www.thepoultrysite.com/articles/raising-japanese-quail\nhttps://www.ed.ac.uk/roslin/national-avian-research-facility/avian-resources/poultry-lines/japanese-quail\nCheng, Kimberly & Bennett, Darin & Mills, Andrew. (2010). The Japanese Quail. The UFAW Handbook on the Care and Management of Laboratory and Other Research Animals: Eighth Edition. 655-673. 10.1002/9781444318777.ch42. \n"]
[null,null,"quail","Japanese","BH","F","7 to 8 days","juvenile",null,null,7,0.10299999999999999,"USEPA, 2005"]
[null,null,"quail","Japanese","BH","F",null,null,null,null,9,"ERROR"]
[null,null,"quail","Japanese","BH","F","14 to 28 days","juvenile",null,null,14,0.12,"USEPA, 2005"]
[null,null,"quail","Japanese","BH","F","29 to 59 days","juvenile",null,null,29,0.13200000000000001,"USEPA, 2005"]
[null,null,"quail","Japanese","BH","F","60 to 154 days","juvenile",null,null,60,0.13500000000000001,"USEPA, 2005"]
[null,null,"quail","Japanese","F","F","Adult","adult",null,null,25550,"ERROR"]
[null,null,"quail","Japanese","BH","B","0 to 1 days","juvenile",null,null,0,7.0449999999999999E-2,"USEPA, 2005","Dunning, 1993 values were not used as the Dunning Adult female weight (0.1) is less than 60-154 days juvenile value (0.135) for both. 0.135 was used as the adult female value.\nMature in about 4 to 6 weeks and are in full egg production by 50 days.","multiple:\nhttps://www.thepoultrysite.com/articles/raising-japanese-quail\nhttps://www.ed.ac.uk/roslin/national-avian-research-facility/avian-resources/poultry-lines/japanese-quail\nCheng, Kimberly & Bennett, Darin & Mills, Andrew. (2010). The Japanese Quail. The UFAW Handbook on the Care and Management of Laboratory and Other Research Animals: Eighth Edition. 655-673. 10.1002/9781444318777.ch42. \n"]
[null,null,"quail","Japanese","BH","B","7 to 8 days","juvenile",null,null,7,0.10299999999999999,"USEPA, 2005"]
[null,null,"quail","Japanese","BH","B",null,null,null,null,9,"ERROR"]
[null,null,"quail","Japanese","BH","B","14 to 28 days","juvenile",null,null,14,0.12,"USEPA, 2005"]
[null,null,"quail","Japanese","BH","B","29 to 59 days","juvenile",null,null,29,0.13200000000000001,"USEPA, 2005"]
[null,null,"quail","Japanese","BH","B","60 to 154 days","juvenile",null,null,60,0.13500000000000001,"USEPA, 2005"]
[null,null,"quail","Japanese","M","M","Adult","adult",null,null,25550,"ERROR","Dunning, 1993"]
[null,null,"quail","Japanese","BH","B","0 to 1 days","juvenile",null,null,0,7.0449999999999999E-2,"USEPA, 2005","Dunning, 1993 values were not used as the Dunning Adult female weight (0.1) is less than 60-154 days juvenile value (0.135) for both. 0.135 was used as the adult female value.\nMature in about 4 to 6 weeks and are in full egg production by 50 days.","multiple:\nhttps://www.thepoultrysite.com/articles/raising-japanese-quail\nhttps://www.ed.ac.uk/roslin/national-avian-research-facility/avian-resources/poultry-lines/japanese-quail\nCheng, Kimberly & Bennett, Darin & Mills, Andrew. (2010). The Japanese Quail. The UFAW Handbook on the Care and Management of Laboratory and Other Research Animals: Eighth Edition. 655-673. 10.1002/9781444318777.ch42. \n"]
[null,null,"quail","Japanese","BH","B","7 to 8 days","juvenile",null,null,7,0.10299999999999999,"USEPA, 2005"]
[null,null,"quail","Japanese","BH","B",null,null,null,null,9,"ERROR"]
[null,null,"quail","Japanese","BH","B","14 to 28 days","juvenile",null,null,14,0.12,"USEPA, 2005"]
[null,null,"quail","Japanese","BH","B","29 to 59 days","juvenile",null,null,29,0.13200000000000001,"USEPA, 2005"]
[null,null,"quail","Japanese","BH","B","60 to 154 days","juvenile",null,null,60,0.13500000000000001,"USEPA, 2005"]
[null,null,"quail","Japanese","F","B","Adult","adult",null,null,25550,"ERROR","Dunning, 1993"]
[null,null,"quail","bobwhite","JV","F","10 days","juvenile",null,null,10,1.2E-2,"USEPA, 1993","While young breeders may begin to lay a few eggs as early as 18 weeks of age, do not expect consistent egg production until about 22 weeks of age. Age of sexual maturity is one year.","multiple:\nhttps://www.thepoultrysite.com/articles/bobwhite-quail-production-and-management-guide\nhttps://animaldiversity.org/accounts/Colinus_virginianus/\nhttps://feistyacres.com/bobwhite-quail-release-program/\n"]
[null,null,"quail","bobwhite","JV","F",null,null,null,null,11,"ERROR"]
[null,null,"quail","bobwhite","JV","F","18 days","juvenile",null,null,18,3.4000000000000002E-2,"Landis Assoc.Inc, 1985"]
[null,null,"quail","bobwhite","JV","F",null,null,null,null,19,"ERROR"]
[null,null,"quail","bobwhite","JV","F","30 days","juvenile",null,null,30,0.04,"USEPA, 1993"]
[null,null,"quail","bobwhite","JV","F",null,null,null,null,31,"ERROR"]
[null,null,"quail","bobwhite","F","F","Adult","adult",null,null,{"$f":"6*7","v":42},0.17,"USEPA, 1993"]
[null,null,"quail","bobwhite","F","F",null,null,null,null,25550,"ERROR"]
[null,null,"quail","bobwhite","JV","B","10 days","juvenile",null,null,10,1.2E-2,"USEPA, 1993","While young breeders may begin to lay a few eggs as early as 18 weeks of age, do not expect consistent egg production until about 22 weeks of age. Age of sexual maturity is one year."]
[null,null,"quail","bobwhite","JV","B",null,null,null,null,11,"ERROR"]
[null,null,"quail","bobwhite","JV","B","18 days","juvenile",null,null,18,3.4000000000000002E-2,"Landis Assoc.Inc, 1985"]
[null,null,"quail","bobwhite","JV","B",null,null,null,null,19,"ERROR"]
[null,null,"quail","bobwhite","JV","B","30 days","juvenile",null,null,30,0.04,"USEPA, 1993"]
[null,null,"quail","bobwhite","JV","B",null,null,null,null,31,"ERROR"]
[null,null,"quail","bobwhite","F","B","Adult","adult",null,null,{"$f":"6*7","v":42},0.17]
[null,null,"quail","bobwhite","F","B",null,null,null,null,25550,"ERROR"]
[null,null,"quail","bobwhite","JV","M","10 days","juvenile",null,null,10,1.2E-2,"USEPA, 1993","While young breeders may begin to lay a few eggs as early as 18 weeks of age, do not expect consistent egg production until about 22 weeks of age. Age of sexual maturity is one year."]
[null,null,"quail","bobwhite","JV","M",null,null,null,null,11,"ERROR"]
[null,null,"quail","bobwhite","JV","M","18 days","juvenile",null,null,18,3.4000000000000002E-2,"Landis Assoc.Inc, 1985"]
[null,null,"quail","bobwhite","JV","M",null,null,null,null,19,"ERROR"]
[null,null,"quail","bobwhite","JV","M","30 days","juvenile",null,null,30,0.04,"USEPA, 1993"]
[null,null,"quail","bobwhite","JV","M",null,null,null,null,31,"ERROR"]
[null,null,"quail","bobwhite","M","M","Adult","adult",null,null,{"$f":"6*7","v":42},0.16,"USEPA, 1993"]
[null,null,"quail","bobwhite","M","M",null,null,null,null,25550,"ERROR","USEPA, 1993"]
[null,null,"rabbit","unspecified","M","M","weaning to 90 days","juvenile",null,null,{"$f":"8*7","v":56},2.86,"USEPA, 1987","Most resources indicate weaning at 8 weeks, not 4 weeks.","multiple:\nhttps://feistyacres.com/bobwhite-quail-release-program/\nhttps://cleverpetowners.com/when-can-baby-rabbits-leave-their-mother/\nhttps://rabbitpros.com/rabbit-lifecycle/\nhttps://fluffyplanet.com/at-what-age-can-should-a-baby-rabbit-kit-be-separated-from-its-mother/\nhttps://www.raising-rabbits.com/weaning-rabbits.html\nhttps://rabbitscage.com/how-old-do-you-wean-rabbits-1649069538\n"]
[null,null,"rabbit","unspecified","M","M","90 days to 1 year","juvenile",null,null,90,3.76,"USEPA, 1987",null,"https://rabbitpros.com/rabbit-lifecycle/"]
[null,null,"rabbit","unspecified","M","M","1 year or older","adult",null,null,365,4,"USEPA, 1987",null,"7 Stages In A Rabbits Life Cycle - Rabbit changes with age. (rabbitpros.com)"]
[null,null,"rabbit","unspecified","M","M",null,null,null,null,25550,"ERROR"]
[null,null,"rabbit","unspecified","F","F","weaning to 90 days","juvenile",null,null,{"$f":"8*7","v":56},3.1,"USEPA, 1987","Most resources indicate weaning at 8 weeks, not 4 weeks.","multiple:\nhttps://feistyacres.com/bobwhite-quail-release-program/\nhttps://cleverpetowners.com/when-can-baby-rabbits-leave-their-mother/\nhttps://rabbitpros.com/rabbit-lifecycle/\nhttps://fluffyplanet.com/at-what-age-can-should-a-baby-rabbit-kit-be-separated-from-its-mother/\nhttps://www.raising-rabbits.com/weaning-rabbits.html\nhttps://rabbitscage.com/how-old-do-you-wean-rabbits-1649069538\n"]
[null,null,"rabbit","unspecified","F","F","90 days to 1 year","juvenile",null,null,90,3.93,"USEPA, 1987",null,"https://rabbitpros.com/rabbit-lifecycle/"]
[null,null,"rabbit","unspecified","F","F","1 year or older","adult",null,null,365,4.0999999999999996,"USEPA, 1987",null,"7 Stages In A Rabbits Life Cycle - Rabbit changes with age. (rabbitpros.com)"]
[null,null,"rabbit","unspecified","F","F",null,null,null,null,25550,"ERROR"]
[null,null,"rabbit","unspecified","F","B","weaning to 90 days","juvenile",null,null,{"$f":"8*7","v":56},3.1,"USEPA, 1987","Most resources indicate weaning at 8 weeks, not 4 weeks.","multiple:\nhttps://feistyacres.com/bobwhite-quail-release-program/\nhttps://cleverpetowners.com/when-can-baby-rabbits-leave-their-mother/\nhttps://rabbitpros.com/rabbit-lifecycle/\nhttps://fluffyplanet.com/at-what-age-can-should-a-baby-rabbit-kit-be-separated-from-its-mother/\nhttps://www.raising-rabbits.com/weaning-rabbits.html\nhttps://rabbitscage.com/how-old-do-you-wean-rabbits-1649069538\n"]
[null,null,"rabbit","unspecified","F","B","90 days to 1 year","juvenile",null,null,90,3.93,"USEPA, 1987",null,"https://rabbitpros.com/rabbit-lifecycle/"]
[null,null,"rabbit","unspecified","F","B","1 year or older","adult",null,null,365,4.0999999999999996,"USEPA, 1987",null,"7 Stages In A Rabbits Life Cycle - Rabbit changes with age. (rabbitpros.com)"]
[null,null,"rabbit","unspecified","F","B",null,null,null,null,25550,"ERROR"]
[null,null,"rat","Fischer 344","M","M","weaning to 90 days","juvenile",null,null,21,0.18,"USEPA, 1987",null,"multiple:\nhttps://www.sciencedirect.com/topics/biochemistry-genetics-and-molecular-biology/fischer-344-rat\nhttps://academic.oup.com/biolreprod/article/63/5/1525/2723714\nhttps://www.umt.edu/research/LAR/sops/sop-rodent-weaning.php\nhttps://squeaksandnibbles.com/baby-rats/\nhttps://ratguide.com/breeding/figures-breeding/birth_to_weaning_figure_3.php\nhttps://research.wayne.edu/iacuc/rodentbreedingandweaning"]
[null,null,"rat","Fischer 344","M","M","90 days to 1 year","juvenile",null,null,90,0.38,"USEPA, 1987"]
[null,null,"rat","Fischer 344","M","M","1 year or older","adult",null,null,365,0.4,"USEPA, 1987"]
[null,null,"rat","Fischer 344","M","M",null,null,null,null,25550,"ERROR"]
[null,null,"rat","Fischer 344","F","F","weaning to 90 days","juvenile",null,null,21,0.124,"USEPA, 1987",null,"multiple:\nhttps://www.sciencedirect.com/topics/biochemistry-genetics-and-molecular-biology/fischer-344-rat\nhttps://academic.oup.com/biolreprod/article/63/5/1525/2723714\nhttps://www.umt.edu/research/LAR/sops/sop-rodent-weaning.php\nhttps://squeaksandnibbles.com/baby-rats/\nhttps://ratguide.com/breeding/figures-breeding/birth_to_weaning_figure_3.php\nhttps://research.wayne.edu/iacuc/rodentbreedingandweaning"]
[null,null,"rat","Fischer 344","F","F","90 days to 1 year","juvenile",null,null,90,0.22900000000000001,"USEPA, 1987"]
[null,null,"rat","Fischer 344","F","F","1 year or older","adult",null,null,365,0.25,"USEPA, 1987"]
[null,null,"rat","Fischer 344","F","F",null,null,null,null,25550,"ERROR"]
[null,null,"rat","Fischer 344","M","B","weaning to 90 days","juvenile",null,null,21,0.18,"USEPA, 1987",null,"multiple:\nhttps://www.sciencedirect.com/topics/biochemistry-genetics-and-molecular-biology/fischer-344-rat\nhttps://academic.oup.com/biolreprod/article/63/5/1525/2723714\nhttps://www.umt.edu/research/LAR/sops/sop-rodent-weaning.php\nhttps://squeaksandnibbles.com/baby-rats/\nhttps://ratguide.com/breeding/figures-breeding/birth_to_weaning_figure_3.php\nhttps://research.wayne.edu/iacuc/rodentbreedingandweaning"]
[null,null,"rat","Fischer 344","M","B","90 days to 1 year","juvenile",null,null,90,0.38,"USEPA, 1987"]
[null,null,"rat","Fischer 344","M","B","1 year or older","adult",null,null,365,0.4,"USEPA, 1987"]
[null,null,"rat","Fischer 344","M","B",null,null,null,null,25550,"ERROR"]
[null,null,"rat","Long-Evans","M","M","weaning to 90 days","juvenile",null,null,21,0.248,"USEPA, 1987",null,"multiple:\nhttps://www.sciencedirect.com/topics/biochemistry-genetics-and-molecular-biology/fischer-344-rat\nhttps://academic.oup.com/biolreprod/article/63/5/1525/2723714\nhttps://www.umt.edu/research/LAR/sops/sop-rodent-weaning.php\nhttps://squeaksandnibbles.com/baby-rats/\nhttps://ratguide.com/breeding/figures-breeding/birth_to_weaning_figure_3.php\nhttps://research.wayne.edu/iacuc/rodentbreedingandweaning"]
[null,null,"rat","Long-Evans","M","M","90 days to 1 year","juvenile",null,null,90,0.47199999999999998,"USEPA, 1987"]
[null,null,"rat","Long-Evans","M","M","1 year or older","adult",null,null,365,0.5,"USEPA, 1987"]
[null,null,"rat","Long-Evans","M","M",null,null,null,null,25550,"ERROR"]
[null,null,"rat","Long-Evans","F","F","weaning to 90 days","juvenile",null,null,21,0.17899999999999999,"USEPA, 1987",null,"multiple:\nhttps://www.sciencedirect.com/topics/biochemistry-genetics-and-molecular-biology/fischer-344-rat\nhttps://academic.oup.com/biolreprod/article/63/5/1525/2723714\nhttps://www.umt.edu/research/LAR/sops/sop-rodent-weaning.php\nhttps://squeaksandnibbles.com/baby-rats/\nhttps://ratguide.com/breeding/figures-breeding/birth_to_weaning_figure_3.php\nhttps://research.wayne.edu/iacuc/rodentbreedingandweaning"]
[null,null,"rat","Long-Evans","F","F","90 days to 1 year","juvenile",null,null,90,0.34399999999999997,"USEPA, 1987"]
[null,null,"rat","Long-Evans","F","F","1 year or older","adult",null,null,365,0.35,"USEPA, 1987"]
[null,null,"rat","Long-Evans","F","F",null,null,null,null,25550,"ERROR"]
[null,null,"rat","Long-Evans","M","B","weaning to 90 days","juvenile",null,null,21,0.248,"USEPA, 1987",null,"multiple:\nhttps://www.sciencedirect.com/topics/biochemistry-genetics-and-molecular-biology/fischer-344-rat\nhttps://academic.oup.com/biolreprod/article/63/5/1525/2723714\nhttps://www.umt.edu/research/LAR/sops/sop-rodent-weaning.php\nhttps://squeaksandnibbles.com/baby-rats/\nhttps://ratguide.com/breeding/figures-breeding/birth_to_weaning_figure_3.php\nhttps://research.wayne.edu/iacuc/rodentbreedingandweaning"]
[null,null,"rat","Long-Evans","M","B","90 days to 1 year","juvenile",null,null,90,0.47199999999999998,"USEPA, 1987"]
[null,null,"rat","Long-Evans","M","B","1 year or older","adult",null,null,365,0.5,"USEPA, 1987"]
[null,null,"rat","Long-Evans","M","B",null,null,null,null,25550,"ERROR"]
[null,null,"rat","Osborne-Mendel","M","M","weaning to 90 days","juvenile",null,null,21,0.26300000000000001,"USEPA, 1987",null,"multiple:\nhttps://www.sciencedirect.com/topics/biochemistry-genetics-and-molecular-biology/fischer-344-rat\nhttps://academic.oup.com/biolreprod/article/63/5/1525/2723714\nhttps://www.umt.edu/research/LAR/sops/sop-rodent-weaning.php\nhttps://squeaksandnibbles.com/baby-rats/\nhttps://ratguide.com/breeding/figures-breeding/birth_to_weaning_figure_3.php\nhttps://research.wayne.edu/iacuc/rodentbreedingandweaning"]
[null,null,"rat","Osborne-Mendel","M","M","90 days to 1 year","juvenile",null,null,90,0.51400000000000001,"USEPA, 1987"]
[null,null,"rat","Osborne-Mendel","M","M","1 year or older","adult",null,null,365,0.55000000000000004,"USEPA, 1987"]
[null,null,"rat","Osborne-Mendel","M","M",null,null,null,null,25550,"ERROR"]
[null,null,"rat","Osborne-Mendel","F","F","weaning to 90 days","juvenile",null,null,21,0.20100000000000001,"USEPA, 1987",null,"multiple:\nhttps://www.sciencedirect.com/topics/biochemistry-genetics-and-molecular-biology/fischer-344-rat\nhttps://academic.oup.com/biolreprod/article/63/5/1525/2723714\nhttps://www.umt.edu/research/LAR/sops/sop-rodent-weaning.php\nhttps://squeaksandnibbles.com/baby-rats/\nhttps://ratguide.com/breeding/figures-breeding/birth_to_weaning_figure_3.php\nhttps://research.wayne.edu/iacuc/rodentbreedingandweaning"]
[null,null,"rat","Osborne-Mendel","F","F","90 days to 1 year","juvenile",null,null,90,0.38900000000000001,"USEPA, 1987"]
[null,null,"rat","Osborne-Mendel","F","F","1 year or older","adult",null,null,365,0.4,"USEPA, 1987"]
[null,null,"rat","Osborne-Mendel","F","F",null,null,null,null,25550,"ERROR"]
[null,null,"rat","Osborne-Mendel","M","B","weaning to 90 days","juvenile",null,null,21,0.26300000000000001,"USEPA, 1987",null,"multiple:\nhttps://www.sciencedirect.com/topics/biochemistry-genetics-and-molecular-biology/fischer-344-rat\nhttps://academic.oup.com/biolreprod/article/63/5/1525/2723714\nhttps://www.umt.edu/research/LAR/sops/sop-rodent-weaning.php\nhttps://squeaksandnibbles.com/baby-rats/\nhttps://ratguide.com/breeding/figures-breeding/birth_to_weaning_figure_3.php\nhttps://research.wayne.edu/iacuc/rodentbreedingandweaning"]
[null,null,"rat","Osborne-Mendel","M","B","90 days to 1 year","juvenile",null,null,90,0.51400000000000001,"USEPA, 1987"]
[null,null,"rat","Osborne-Mendel","M","B","1 year or older","adult",null,null,365,0.55000000000000004,"USEPA, 1987"]
[null,null,"rat","Osborne-Mendel","M","B",null,null,null,null,25550,"ERROR"]
[null,null,"rat","Sprague-Dawley","M","M","weaning to 90 days","juvenile",null,null,21,0.26700000000000002,"USEPA, 1987",null,"multiple:\nhttps://www.sciencedirect.com/topics/biochemistry-genetics-and-molecular-biology/fischer-344-rat\nhttps://academic.oup.com/biolreprod/article/63/5/1525/2723714\nhttps://www.umt.edu/research/LAR/sops/sop-rodent-weaning.php\nhttps://squeaksandnibbles.com/baby-rats/\nhttps://ratguide.com/breeding/figures-breeding/birth_to_weaning_figure_3.php\nhttps://research.wayne.edu/iacuc/rodentbreedingandweaning"]
[null,null,"rat","Sprague-Dawley","M","M","90 days to 1 year","juvenile",null,null,90,0.52300000000000002,"USEPA, 1987"]
[null,null,"rat","Sprague-Dawley","M","M","1 year or older","adult",null,null,365,0.6,"USEPA, 1987"]
[null,null,"rat","Sprague-Dawley","M","M",null,null,null,null,25550,"ERROR"]
[null,null,"rat","Sprague-Dawley","F","F","weaning to 90 days","juvenile",null,null,21,0.20399999999999999,"USEPA, 1987",null,"multiple:\nhttps://www.sciencedirect.com/topics/biochemistry-genetics-and-molecular-biology/fischer-344-rat\nhttps://academic.oup.com/biolreprod/article/63/5/1525/2723714\nhttps://www.umt.edu/research/LAR/sops/sop-rodent-weaning.php\nhttps://squeaksandnibbles.com/baby-rats/\nhttps://ratguide.com/breeding/figures-breeding/birth_to_weaning_figure_3.php\nhttps://research.wayne.edu/iacuc/rodentbreedingandweaning"]
[null,null,"rat","Sprague-Dawley","F","F","90 days to 1 year","juvenile",null,null,90,0.33800000000000002,"USEPA, 1987"]
[null,null,"rat","Sprague-Dawley","F","F","1 year or older","adult",null,null,365,0.35,"USEPA, 1987"]
[null,null,"rat","Sprague-Dawley","F","F",null,null,null,null,25550,"ERROR"]
[null,null,"rat","Sprague-Dawley","M","B","weaning to 90 days","juvenile",null,null,21,0.26700000000000002,"USEPA, 1987",null,"multiple:\nhttps://www.sciencedirect.com/topics/biochemistry-genetics-and-molecular-biology/fischer-344-rat\nhttps://academic.oup.com/biolreprod/article/63/5/1525/2723714\nhttps://www.umt.edu/research/LAR/sops/sop-rodent-weaning.php\nhttps://squeaksandnibbles.com/baby-rats/\nhttps://ratguide.com/breeding/figures-breeding/birth_to_weaning_figure_3.php\nhttps://research.wayne.edu/iacuc/rodentbreedingandweaning"]
[null,null,"rat","Sprague-Dawley","M","B","90 days to 1 year","juvenile",null,null,90,0.52300000000000002,"USEPA, 1987"]
[null,null,"rat","Sprague-Dawley","M","B","1 year or older","adult",null,null,365,0.6,"USEPA, 1987"]
[null,null,"rat","Sprague-Dawley","M","B",null,null,null,null,25550,"ERROR"]
[null,null,"rat","Wistar","M","M","weaning to 90 days","juvenile",null,null,21,0.217,"USEPA, 1987",null,"multiple:\nhttps://www.sciencedirect.com/topics/biochemistry-genetics-and-molecular-biology/fischer-344-rat\nhttps://academic.oup.com/biolreprod/article/63/5/1525/2723714\nhttps://www.umt.edu/research/LAR/sops/sop-rodent-weaning.php\nhttps://squeaksandnibbles.com/baby-rats/\nhttps://ratguide.com/breeding/figures-breeding/birth_to_weaning_figure_3.php\nhttps://research.wayne.edu/iacuc/rodentbreedingandweaning"]
[null,null,"rat","Wistar","M","M","90 days to 1 year","juvenile",null,null,90,0.46200000000000002,"USEPA, 1987"]
[null,null,"rat","Wistar","M","M","1 year or older","adult",null,null,365,0.5,"USEPA, 1987"]
[null,null,"rat","Wistar","M","M",null,null,null,null,25550,"ERROR"]
[null,null,"rat","Wistar","F","F","weaning to 90 days","juvenile",null,null,21,0.156,"USEPA, 1987",null,"multiple:\nhttps://www.sciencedirect.com/topics/biochemistry-genetics-and-molecular-biology/fischer-344-rat\nhttps://academic.oup.com/biolreprod/article/63/5/1525/2723714\nhttps://www.umt.edu/research/LAR/sops/sop-rodent-weaning.php\nhttps://squeaksandnibbles.com/baby-rats/\nhttps://ratguide.com/breeding/figures-breeding/birth_to_weaning_figure_3.php\nhttps://research.wayne.edu/iacuc/rodentbreedingandweaning"]
[null,null,"rat","Wistar","F","F","90 days to 1 year","juvenile",null,null,90,0.29699999999999999,"USEPA, 1987"]
[null,null,"rat","Wistar","F","F","1 year or older","adult",null,null,365,0.32,"USEPA, 1987"]
[null,null,"rat","Wistar","F","F",null,null,null,null,25550,"ERROR"]
[null,null,"rat","Wistar","M","B","weaning to 90 days","juvenile",null,null,21,0.217,"USEPA, 1987",null,"multiple:\nhttps://www.sciencedirect.com/topics/biochemistry-genetics-and-molecular-biology/fischer-344-rat\nhttps://academic.oup.com/biolreprod/article/63/5/1525/2723714\nhttps://www.umt.edu/research/LAR/sops/sop-rodent-weaning.php\nhttps://squeaksandnibbles.com/baby-rats/\nhttps://ratguide.com/breeding/figures-breeding/birth_to_weaning_figure_3.php\nhttps://research.wayne.edu/iacuc/rodentbreedingandweaning"]
[null,null,"rat","Wistar","M","B","90 days to 1 year","juvenile",null,null,90,0.46200000000000002,"USEPA, 1987"]
[null,null,"rat","Wistar","M","B","1 year or older","adult",null,null,365,0.5,"USEPA, 1987"]
[null,null,"rat","Wistar","M","B",null,null,null,null,25550,"ERROR"]
[null,null,"rat","unspecified","M","M","weaning to 90 days","juvenile",null,null,21,0.23499999999999999,"USEPA, 1987",null,"multiple:\nhttps://www.sciencedirect.com/topics/biochemistry-genetics-and-molecular-biology/fischer-344-rat\nhttps://academic.oup.com/biolreprod/article/63/5/1525/2723714\nhttps://www.umt.edu/research/LAR/sops/sop-rodent-weaning.php\nhttps://squeaksandnibbles.com/baby-rats/\nhttps://ratguide.com/breeding/figures-breeding/birth_to_weaning_figure_3.php\nhttps://research.wayne.edu/iacuc/rodentbreedingandweaning"]
[null,null,"rat","unspecified","M","M","90 days to 1 year","juvenile",null,null,90,0.47020000000000001,"USEPA, 1987"]
[null,null,"rat","unspecified","M","M","1 year or older","adult",null,null,365,0.51,"USEPA, 1987"]
[null,null,"rat","unspecified","M","M",null,null,null,null,25550,"ERROR"]
[null,null,"rat","unspecified","F","F","weaning to 90 days","juvenile",null,null,21,0.2024,"USEPA, 1987",null,"multiple:\nhttps://www.sciencedirect.com/topics/biochemistry-genetics-and-molecular-biology/fischer-344-rat\nhttps://academic.oup.com/biolreprod/article/63/5/1525/2723714\nhttps://www.umt.edu/research/LAR/sops/sop-rodent-weaning.php\nhttps://squeaksandnibbles.com/baby-rats/\nhttps://ratguide.com/breeding/figures-breeding/birth_to_weaning_figure_3.php\nhttps://research.wayne.edu/iacuc/rodentbreedingandweaning"]
[null,null,"rat","unspecified","F","F","90 days to 1 year","juvenile",null,null,90,0.3846,"USEPA, 1987"]
[null,null,"rat","unspecified","F","F","1 year or older","adult",null,null,365,0.4,"USEPA, 1987"]
[null,null,"rat","unspecified","F","F",null,null,null,null,25550,"ERROR"]
[null,null,"rat","unspecified","M","B","weaning to 90 days","juvenile",null,null,21,0.23499999999999999,"USEPA, 1987",null,"multiple:\nhttps://www.sciencedirect.com/topics/biochemistry-genetics-and-molecular-biology/fischer-344-rat\nhttps://academic.oup.com/biolreprod/article/63/5/1525/2723714\nhttps://www.umt.edu/research/LAR/sops/sop-rodent-weaning.php\nhttps://squeaksandnibbles.com/baby-rats/\nhttps://ratguide.com/breeding/figures-breeding/birth_to_weaning_figure_3.php\nhttps://research.wayne.edu/iacuc/rodentbreedingandweaning"]
[null,null,"rat","unspecified","M","B","90 days to 1 year","juvenile",null,null,90,0.47020000000000001,"USEPA, 1987"]
[null,null,"rat","unspecified","M","B","1 year or older","adult",null,null,365,0.51,"USEPA, 1987"]
[null,null,"rat","unspecified","M","B",null,null,null,null,25550,"ERROR"]
[null,null,"blackbird","red winged","M","M","not specified","adult",null,null,366,6.3600000000000004E-2,"Dunning, 1993","Red-winged blackbirds fledge the nest in 11 to 14 days but don't reach sexual maturity until after a year.\n\nTable 20 specifies \"red-winged blackbird\"\n","https://sora.unm.edu/sites/default/files/journals/condor/v046n02/p0046-p0059.pdf#:~:text=In%20several%20species%2C%20among%20them%20the%20Red-winged%20Blackbird,year-old%20male%20Red-wings%20in%20Louisiana%20do%20not%20breed."]
[null,null,"blackbird","red winged","M","M",null,null,null,null,25550,"ERROR"]
[null,null,"blackbird","red winged","F","F","not specified","adult",null,null,366,4.1500000000000002E-2,"Dunning, 1993",null,"https://sora.unm.edu/sites/default/files/journals/condor/v046n02/p0046-p0059.pdf#:~:text=In%20several%20species%2C%20among%20them%20the%20Red-winged%20Blackbird,year-old%20male%20Red-wings%20in%20Louisiana%20do%20not%20breed."]
[null,null,"blackbird","red winged","F","F",null,null,null,null,25550,"ERROR"]
[null,null,"blackbird","red winged","M","B","not specified","adult",null,null,366,6.3600000000000004E-2,"Dunning, 1993",null,"https://sora.unm.edu/sites/default/files/journals/condor/v046n02/p0046-p0059.pdf#:~:text=In%20several%20species%2C%20among%20them%20the%20Red-winged%20Blackbird,year-old%20male%20Red-wings%20in%20Louisiana%20do%20not%20breed."]
[null,null,"blackbird","red winged","M","B",null,null,null,null,25550,"ERROR"]
[null,null,"sheep","domestic","BH","B","1 week","juvenile",null,null,7,46.81,"Steinheim et al., 2002"]
[null,null,"sheep","domestic","BH","B","1 week",null,null,null,13,"ERROR"]
[null,null,"sheep","domestic","BH","M","1 week","juvenile",null,null,7,46.81,"Steinheim et al., 2002"]
[null,null,"sheep","domestic","BH","M","1 week",null,null,null,13,"ERROR"]
[null,null,"sheep","domestic","BH","F","1 week","juvenile",null,null,7,46.81,"Steinheim et al., 2002"]
[null,null,"sheep","domestic","BH","F","1 week",null,null,null,13,"ERROR"]
[null,null,"sheep","unspecified","BH","F","112 to 189 days","juvenile",null,null,112,34,"USEPA, 2005","Adult  weight for both (>252 days; 65.1) is less than \"gestation\" value (70) for both, 70 was used as the adult value. Ewes reach sexual maturity in 6 to 8 months, and rams reach sexual maturity in 4 to 6 months. Sheep reach adult size aftera bout 12 months."]
[null,null,"sheep","unspecified","BH","F","189 to 224 days","juvenile",null,null,189,40.6,"USEPA, 2005"]
[null,null,"sheep","unspecified","BH","F","225 to 252 days","juvenile",null,null,225,59.1,"USEPA, 2005"]
[null,null,"sheep","unspecified","F","F","Gestation","Gestation",null,null,253,70,"USEPA, 2005",null,"multiple:\nhttps://faunafacts.com/sheep/when-a-lamb-becomes-an-adult/\nhttps://familyfarmlivestock.com/sheep-reproduction-beginner-basics-chart-with-definitions/\nhttps://allanimalsfaq.com/sheep/how-long-for-sheep-to-become-adult-stardew/\nhttps://animalcorner.org/sheep-reproduction/"]
[null,null,"sheep","unspecified","F","F",null,null,null,null,25550,"ERROR","USEPA, 2005"]
[null,null,"sheep","unspecified","BH","M","112 to 189 days","juvenile",null,null,112,34,"USEPA, 2005","Ewes reach sexual maturity in 6 to 8 months, and rams reach sexual maturity in 4 to 6 months. Sheep reach adult size aftera bout 12 months."]
[null,null,"sheep","unspecified","BH","M","189 to 224 days","juvenile",null,null,189,40.6,"USEPA, 2005"]
[null,null,"sheep","unspecified","BH","M","225 to 252 days","juvenile",null,null,225,59.1,"USEPA, 2005"]
[null,null,"sheep","unspecified","BH","M","> 252 days","adult",null,null,253,65.099999999999994,"USEPA, 2005",null,"multiple:\nhttps://faunafacts.com/sheep/when-a-lamb-becomes-an-adult/\nhttps://familyfarmlivestock.com/sheep-reproduction-beginner-basics-chart-with-definitions/\nhttps://allanimalsfaq.com/sheep/how-long-for-sheep-to-become-adult-stardew/\nhttps://animalcorner.org/sheep-reproduction/"]
[null,null,"sheep","unspecified",null,"M",null,null,null,null,25550,"ERROR","USEPA, 2005"]
[null,null,"sheep","unspecified","BH","B","112 to 189 days","juvenile",null,null,112,34,"USEPA, 2005","Adult  weight for both (>252 days; 65.1) is less than \"gestation\" value (70) for both, 70 was used as the adult value. Ewes reach sexual maturity in 6 to 8 months, and rams reach sexual maturity in 4 to 6 months. Sheep reach adult size aftera bout 12 months."]
[null,null,"sheep","unspecified","BH","B","189 to 224 days","juvenile",null,null,189,40.6,"USEPA, 2005"]
[null,null,"sheep","unspecified","BH","B","225 to 252 days","juvenile",null,null,225,59.1,"USEPA, 2005"]
[null,null,"sheep","unspecified","F","B","Gestation","Gestation",null,null,253,70,"USEPA, 2005",null,"multiple:\nhttps://faunafacts.com/sheep/when-a-lamb-becomes-an-adult/\nhttps://familyfarmlivestock.com/sheep-reproduction-beginner-basics-chart-with-definitions/\nhttps://allanimalsfaq.com/sheep/how-long-for-sheep-to-become-adult-stardew/\nhttps://animalcorner.org/sheep-reproduction/"]
[null,null,"sheep","unspecified","F","B",null,null,null,null,25550,"ERROR","USEPA, 2005"]
[null,null,"sheep","Clun forest","BH","M","Juvenile","Juvenile",null,null,0,24,"www.ansi.okstate.edu/br eeds/sheep/ based on data for related strain (Kerry Hill)","Assuming juvenile is aged 0 to 1 year \nAssuming adult is aged >=1 year\nSpelled incorrectly in Table 20 (Chun) - \"Clun\" is the correct spelling.","see also: https://domesticanimalbreeds.com/clun-forest-sheep-breed-everything-you-need-to-know/"]
[null,null,"sheep","Clun forest","M","M","Adult","Adult",null,null,365,91.5,"www.ansi.okstate.edu/br eeds/sheep/ based on data for related strain (mean of Kerry Hill and Shropshire)"]
[null,null,"sheep","Clun forest",null,"M",null,null,null,null,25550,"ERROR"]
[null,null,"sheep","Clun forest","BH","F","Juvenile","Juvenile",null,null,0,24,null,"Assuming juvenile is aged 0 to 1 year \nAssuming adult is aged >=1 year\nSpelled incorrectly in Table 20 (Chun) - \"Clun\" is the correct spelling.","see also: https://domesticanimalbreeds.com/clun-forest-sheep-breed-everything-you-need-to-know/"]
[null,null,"sheep","Clun forest","F","F","Adult","Adult",null,null,365,73,"www.ansi.okstate.edu/br eeds/sheep/ based on data for related strain (mean of Kerry Hill and Shropshire)"]
[null,null,"sheep","Clun forest",null,"F",null,null,null,null,25550,"ERROR"]
[null,null,"sheep","Clun forest","BH","B","Juvenile","Juvenile",null,null,0,24,"www.ansi.okstate.edu/br eeds/sheep/ based on data for related strain (Kerry Hill)","Assuming juvenile is aged 0 to 1 year \nAssuming adult is aged >=1 year\nSpelled incorrectly in Table 20 (Chun) - \"Clun\" is the correct spelling.","see also: https://domesticanimalbreeds.com/clun-forest-sheep-breed-everything-you-need-to-know/"]
[null,null,"sheep","Clun forest","M","B","Adult","Adult",null,null,365,91.5,"www.ansi.okstate.edu/br eeds/sheep/ based on data for related strain (mean of Kerry Hill and Shropshire)"]
[null,null,"sheep","Clun forest",null,"B",null,null,null,null,25550,"ERROR"]
[null,null,"sheep","Dala","M","M","Adult","adult",null,null,365,115,"Geertman, 2001","Assuming adult is aged >=1 year","general:\nhttps://content.ces.ncsu.edu/sheep-facts\nhttps://garden-en.desigusxpro.com/ovtsy/sparivanie-polovaya-zrelost.html\nhttps://aces.nmsu.edu/newmexicosheep/reproductioninsheep.html"]
[null,null,"sheep","Dala","M","M",null,null,null,null,25550,"ERROR"]
[null,null,"sheep","Dala","F","F","Adult","adult",null,null,365,80,"Geertman, 2001","Assuming adult is aged >=1 year"]
[null,null,"sheep","Dala","F","F",null,null,null,null,25550,"ERROR"]
[null,null,"sheep","Dala","M","B","Adult","adult",null,null,365,115,"Geertman, 2001","Assuming adult is aged >=1 year"]
[null,null,"sheep","Dala","M","B",null,null,null,null,25550,"ERROR"]
[null,null,"sheep","Old Norse","M","M","Adult","adult",null,null,365,43,"www.ansi.okstate.edu/breeds/sheep/","Assuming adult is aged >=1 year","general:\nhttps://content.ces.ncsu.edu/sheep-facts\nhttps://garden-en.desigusxpro.com/ovtsy/sparivanie-polovaya-zrelost.html\nhttps://aces.nmsu.edu/newmexicosheep/reproductioninsheep.html"]
[null,null,"sheep","Old Norse","M","M",null,null,null,null,25550,"ERROR"]
[null,null,"sheep","Old Norse","F","F","Adult","adult",null,null,365,32,"www.ansi.okstate.edu/br eeds/sheep/","Assuming adult is aged >=1 year"]
[null,null,"sheep","Old Norse","F","F",null,null,null,null,25550,"ERROR"]
[null,null,"sheep","Old Norse","M","B","Adult","adult",null,null,365,43,"www.ansi.okstate.edu/breeds/sheep/","Assuming adult is aged >=1 year"]
[null,null,"sheep","Old Norse","M","B",null,null,null,null,25550,"ERROR"]
[null,null,"shrew","short-tailed","M","M","Adult","adult",null,null,{"$f":"12*7","v":84},1.7000000000000001E-2,"USEPA, 1993","Females reach sexual maturity at 6 weeks and males at 12 weeks","multiple:\nhttps://animaldiversity.org/accounts/Blarina_brevicauda/\nhttps://animalia.bio/southern-short-tailed-shrew\nhttps://animalia.bio/northern-short-tailed-shrew\nhttps://animaldiversity.org/accounts/Blarina_carolinensis/"]
[null,null,"shrew","short-tailed","M","M",null,null,null,null,25550,"ERROR"]
[null,null,"shrew","short-tailed","F","F","Adult","adult",null,null,{"$f":"6*7","v":42},1.7000000000000001E-2,"USEPA, 1993","Females reach sexual maturity at 6 weeks and males at 12 weeks","multiple:\nhttps://animaldiversity.org/accounts/Blarina_brevicauda/\nhttps://animalia.bio/southern-short-tailed-shrew\nhttps://animalia.bio/northern-short-tailed-shrew\nhttps://animaldiversity.org/accounts/Blarina_carolinensis/"]
[null,null,"shrew","short-tailed","F","F",null,null,null,null,25550,"ERROR"]
[null,null,"shrew","short-tailed","M","B","Adult","adult",null,null,42,1.7000000000000001E-2,"USEPA, 1993","Females reach sexual maturity at 6 weeks and males at 12 weeks","multiple:\nhttps://animaldiversity.org/accounts/Blarina_brevicauda/\nhttps://animalia.bio/southern-short-tailed-shrew\nhttps://animalia.bio/northern-short-tailed-shrew\nhttps://animaldiversity.org/accounts/Blarina_carolinensis/"]
[null,null,"shrew","short-tailed","M","B",null,null,null,null,25550,"ERROR"]
[null,null,"sparrow","white-throated","BH","B","Adult","adult",null,null,365,2.5899999999999999E-2,"Dunning, 1993","Sexual maturity is reached after a year","https://genomics.senescence.info/species/entry.php?species=Zonotrichia_albicollis"]
[null,null,"sparrow","white-throated","BH","B",null,null,null,null,25550,"ERROR"]
[null,null,"sparrow","white-throated","BH","M","Adult","adult",null,null,365,2.5899999999999999E-2,"Dunning, 1993"]
[null,null,"sparrow","white-throated","BH","M",null,null,null,null,25550,"ERROR"]
[null,null,"sparrow","white-throated","BH","F","Adult","adult",null,null,365,2.5899999999999999E-2,"Dunning, 1993"]
[null,null,"sparrow","white-throated","BH","F",null,null,null,null,25550,"ERROR"]
[null,null,"starling","starling","M","M","Adult","adult",null,null,{"$f":"20*7","v":140},8.4699999999999998E-2,"Dunning, 1993","Starlings have their full adult plumage by 20 weeks, but they are sexually mature after a year.","multiple:\nhttps://crittertude.com/european-starling-baby-growth-chart/\nhttps://genomics.senescence.info/species/entry.php?species=Sturnus_vulgaris\nhttps://a-z-animals.com/animals/european-starling/\n"]
[null,null,"starling","starling","M","M",null,null,null,null,25550,"ERROR"]
[null,null,"starling","starling","F","F","Adult","adult",null,null,{"$f":"20*7","v":140},7.9899999999999999E-2,"Dunning, 1993"]
[null,null,"starling","starling","F","F",null,null,null,null,25550,"ERROR"]
[null,null,"starling","starling","M","B","Adult","adult",null,null,{"$f":"20*7","v":140},8.4699999999999998E-2,"Dunning, 1993"]
[null,null,"starling","starling","M","B",null,null,null,null,25550,"ERROR"]
[null,null,"turkey","domestic","BH","F","1 w","juvenile",null,null,7,0.12,"NRC, 1994",null,"A Beginner's Guide to Turkey Farming (livestocking.net)"]
[null,null,"turkey","domestic","F","F","2 w","juvenile",null,null,{"$f":"2*7","v":14},0.24]
[null,null,"turkey","domestic","F","F","3 w","juvenile",null,null,{"$f":"3*7","v":21},0.46,"NRC, 1994"]
[null,null,"turkey","domestic","F","F","4 w","juvenile",null,null,{"$f":"4*7","v":28},0.9,"NRC, 1994"]
[null,null,"turkey","domestic","F","F","5 w","juvenile",null,null,{"$f":"5*7","v":35},1.4,"NRC, 1994"]
[null,null,"turkey","domestic","F","F","6 w","juvenile",null,null,{"$f":"6*7","v":42},1.8,"NRC, 1994"]
[null,null,"turkey","domestic","F","F","7 w","juvenile",null,null,{"$f":"7*7","v":49},2.2999999999999998,"NRC, 1994"]
[null,null,"turkey","domestic","F","F","8 w","juvenile",null,null,{"$f":"8*7","v":56},3,"NRC, 1994"]
[null,null,"turkey","domestic","F","F","9 w","juvenile",null,null,{"$f":"9*7","v":63},3.7,"NRC, 1994"]
[null,null,"turkey","domestic","F","F","10 w","juvenile",null,null,{"$f":"10*7","v":70},4.4000000000000004,"NRC, 1994"]
[null,null,"turkey","domestic","F","F","11 w","juvenile",null,null,{"$f":"11*7","v":77},5.2,"NRC, 1994"]
[null,null,"turkey","domestic","F","F","12 w","juvenile",null,null,{"$f":"12*7","v":84},6,"NRC, 1994"]
[null,null,"turkey","domestic","F","F","13 w","juvenile",null,null,{"$f":"13*7","v":91},6.8,"NRC, 1994"]
[null,null,"turkey","domestic","F","F","14 w","juvenile",null,null,{"$f":"14*7","v":98},7.5,"NRC, 1994"]
[null,null,"turkey","domestic","F","F","15 w","juvenile",null,null,{"$f":"15*7","v":105},8.3000000000000007,"NRC, 1994"]
[null,null,"turkey","domestic","F","F","16 w","juvenile",null,null,{"$f":"16*7","v":112},8.9,"NRC, 1994"]
[null,null,"turkey","domestic","F","F","17 w","juvenile",null,null,{"$f":"17*7","v":119},9.6,"NRC, 1994"]
[null,null,"turkey","domestic","F","F","18 w","juvenile",null,null,{"$f":"18*7","v":126},10.199999999999999,"NRC, 1994"]
[null,null,"turkey","domestic","F","F","19 w","juvenile",null,null,{"$f":"19*7","v":133},10.9,"NRC, 1994"]
[null,null,"turkey","domestic","F","F","20 w","juvenile",null,null,{"$f":"20*7","v":140},11.5,"NRC, 1994","2 values reported for female, 20 weeks - 1 for juvenile and 1 for egg laying bird. Juvenile value (11.5) was used, egg laying bird value (8.4) was excluded."]
[null,null,"turkey","domestic","F","F",null,null,null,null,{"$f":"21*7","v":147},"ERROR"]
[null,null,"turkey","domestic","F","F","25 w","egg laying bird",null,null,{"$f":"25*7","v":175},9.8000000000000007,"NRC, 1994","Turkeys start laying eggs around 30 weeks (210 days)."]
[null,null,"turkey","domestic","F","F",null,null,null,null,{"$f":"26*7","v":182},"ERROR"]
[null,null,"turkey","domestic","F","F","30 w","egg laying bird",null,null,{"$f":"30*7","v":210},11.1,"NRC, 1994"]
[null,null,"turkey","domestic","F","F",null,null,null,null,{"$f":"31*7","v":217},"ERROR"]
[null,null,"turkey","domestic","F","F","35 w","egg laying bird",null,null,{"$f":"35*7","v":245},11.1,"NRC, 1994"]
[null,null,"turkey","domestic","F","F",null,null,null,null,{"$f":"36*7","v":252},"ERROR"]
[null,null,"turkey","domestic","F","F","40 w","egg laying bird",null,null,{"$f":"40*7","v":280},10.8,"NRC, 1994"]
[null,null,"turkey","domestic","F","F",null,null,null,null,{"$f":"41*7","v":287},"ERROR"]
[null,null,"turkey","domestic","F","F","45 w","egg laying bird",null,null,{"$f":"45*7","v":315},10.5,"NRC, 1994"]
[null,null,"turkey","domestic","F","F",null,null,null,null,{"$f":"46*7","v":322},"ERROR"]
[null,null,"turkey","domestic","F","F","50 w","egg laying bird",null,null,{"$f":"50*7","v":350},10.5,"NRC, 1994"]
[null,null,"turkey","domestic","F","F",null,null,null,null,{"$f":"51*7","v":357},"ERROR"]
[null,null,"turkey","domestic","F","F","55 w","egg laying bird",null,null,{"$f":"55*7","v":385},10.5,"NRC, 1994"]
[null,null,"turkey","domestic","F","F",null,null,null,null,{"$f":"56*7","v":392},"ERROR"]
[null,null,"turkey","domestic","F","F","60 w","egg laying bird",null,null,{"$f":"60*7","v":420},10.6,"NRC, 1994"]
[null,null,"turkey","domestic","F","F",null,null,null,null,25550,"ERROR"]
[null,null,"turkey","domestic","BH","B","1 w","juvenile",null,null,7,0.12,"NRC, 1994"]
[null,null,"turkey","domestic","M","M","2 w","juvenile",null,null,{"$f":"2*7","v":14},0.25,"NRC, 1994"]
[null,null,"turkey","domestic","M","M","3 w","juvenile",null,null,{"$f":"3*7","v":21},0.5,"NRC, 1994"]
[null,null,"turkey","domestic","M","M","4 w","juvenile",null,null,{"$f":"4*7","v":28},1,"NRC, 1994"]
[null,null,"turkey","domestic","M","M","5 w","juvenile",null,null,{"$f":"5*7","v":35},1.6,"NRC, 1994"]
[null,null,"turkey","domestic","M","M","6 w","juvenile",null,null,{"$f":"6*7","v":42},2.2000000000000002,"NRC, 1994"]
[null,null,"turkey","domestic","M","M","7 w","juvenile",null,null,{"$f":"7*7","v":49},3.1,"NRC, 1994"]
[null,null,"turkey","domestic","M","M","8 w","juvenile",null,null,{"$f":"8*7","v":56},4,"NRC, 1994"]
[null,null,"turkey","domestic","M","M","9 w","juvenile",null,null,{"$f":"9*7","v":63},5,"NRC, 1994"]
[null,null,"turkey","domestic","M","M","10 w","juvenile",null,null,{"$f":"10*7","v":70},6,"NRC, 1994"]
[null,null,"turkey","domestic","M","M","11 w","juvenile",null,null,{"$f":"11*7","v":77},7.1,"NRC, 1994"]
[null,null,"turkey","domestic","M","M","12 w","juvenile",null,null,{"$f":"12*7","v":84},8.1999999999999993,"NRC, 1994"]
[null,null,"turkey","domestic","M","M","13 w","juvenile",null,null,{"$f":"13*7","v":91},9.3000000000000007,"NRC, 1994"]
[null,null,"turkey","domestic","M","M","14 w","juvenile",null,null,{"$f":"14*7","v":98},10.5,"NRC, 1994"]
[null,null,"turkey","domestic","M","M","15 w","juvenile",null,null,{"$f":"15*7","v":105},11.5,"NRC, 1994"]
[null,null,"turkey","domestic","M","M","16 w","juvenile",null,null,{"$f":"16*7","v":112},12.6,"NRC, 1994"]
[null,null,"turkey","domestic","M","M","17 w","juvenile",null,null,{"$f":"17*7","v":119},13.5,"NRC, 1994"]
[null,null,"turkey","domestic","M","M","18 w","juvenile",null,null,{"$f":"18*7","v":126},14.4,"NRC, 1994"]
[null,null,"turkey","domestic","M","M","19 w","juvenile",null,null,{"$f":"19*7","v":133},15.2,"NRC, 1994"]
[null,null,"turkey","domestic","M","M","20 w","juvenile",null,null,{"$f":"20*7","v":140},16.100000000000001,"NRC, 1994"]
[null,null,"turkey","domestic","M","M","21 w","juvenile",null,null,{"$f":"21*7","v":147},17,"NRC, 1994"]
[null,null,"turkey","domestic","M","M","22 w","juvenile",null,null,{"$f":"22*7","v":154},17.899999999999999,"NRC, 1994"]
[null,null,"turkey","domestic","M","M","23 w","juvenile",null,null,{"$f":"23*7","v":161},18.600000000000001,"NRC, 1994"]
[null,null,"turkey","domestic","M","M","24 w/ > 24 w","adult",null,null,{"$f":"24*7","v":168},19.399999999999999,"NRC, 1994","values for male, breeding (juvenile) are available for 25 w and 30w but value is less than the \"> 24 w\", adult value (19.4). So, 19.4 used for 24 w thru <35 w."]
[null,null,"turkey","domestic","M","M","35 w","breeding (juvenile)",null,null,{"$f":"35*7","v":245},20.7,"NRC, 1994"]
[null,null,"turkey","domestic","M","M",null,null,null,null,{"$f":"36*7","v":252},"ERROR"]
[null,null,"turkey","domestic","M","M","40 w","breeding (juvenile)",null,null,{"$f":"40*7","v":280},21.8,"NRC, 1994"]
[null,null,"turkey","domestic","M","M",null,null,null,null,{"$f":"41*7","v":287},"ERROR"]
[null,null,"turkey","domestic","M","M","45 w","breeding (juvenile)",null,null,{"$f":"45*7","v":315},22.5,"NRC, 1994"]
[null,null,"turkey","domestic","M","M",null,null,null,null,{"$f":"46*7","v":322},"ERROR"]
[null,null,"turkey","domestic","M","M","50 w","breeding (juvenile)",null,null,{"$f":"50*7","v":350},23.2,"NRC, 1994"]
[null,null,"turkey","domestic","M","M",null,null,null,null,{"$f":"51*7","v":357},"ERROR"]
[null,null,"turkey","domestic","M","M","55 w","breeding (adult)",null,null,{"$f":"55*7","v":385},23.9,"NRC, 1994"]
[null,null,"turkey","domestic","M","M",null,null,null,null,{"$f":"56*7","v":392},"ERROR"]
[null,null,"turkey","domestic","M","M","60 w","breeding (adult)",null,null,{"$f":"60*7","v":420},24.5,"NRC, 1994"]
[null,null,"turkey","domestic","M","M",null,null,null,null,25550,"ERROR"]
[null,null,"turkey","domestic","BH","B","1 w","juvenile",null,null,7,0.12,"NRC, 1994"]
[null,null,"turkey","domestic","M","B","2 w","juvenile",null,null,{"$f":"2*7","v":14},0.25,"NRC, 1994"]
[null,null,"turkey","domestic","M","B","3 w","juvenile",null,null,{"$f":"3*7","v":21},0.5,"NRC, 1994"]
[null,null,"turkey","domestic","M","B","4 w","juvenile",null,null,{"$f":"4*7","v":28},1,"NRC, 1994"]
[null,null,"turkey","domestic","M","B","5 w","juvenile",null,null,{"$f":"5*7","v":35},1.6,"NRC, 1994"]
[null,null,"turkey","domestic","M","B","6 w","juvenile",null,null,{"$f":"6*7","v":42},2.2000000000000002,"NRC, 1994"]
[null,null,"turkey","domestic","M","B","7 w","juvenile",null,null,{"$f":"7*7","v":49},3.1,"NRC, 1994"]
[null,null,"turkey","domestic","M","B","8 w","juvenile",null,null,{"$f":"8*7","v":56},4,"NRC, 1994"]
[null,null,"turkey","domestic","M","B","9 w","juvenile",null,null,{"$f":"9*7","v":63},5,"NRC, 1994"]
[null,null,"turkey","domestic","M","B","10 w","juvenile",null,null,{"$f":"10*7","v":70},6,"NRC, 1994"]
[null,null,"turkey","domestic","M","B","11 w","juvenile",null,null,{"$f":"11*7","v":77},7.1,"NRC, 1994"]
[null,null,"turkey","domestic","M","B","12 w","juvenile",null,null,{"$f":"12*7","v":84},8.1999999999999993,"NRC, 1994"]
[null,null,"turkey","domestic","M","B","13 w","juvenile",null,null,{"$f":"13*7","v":91},9.3000000000000007,"NRC, 1994"]
[null,null,"turkey","domestic","M","B","14 w","juvenile",null,null,{"$f":"14*7","v":98},10.5,"NRC, 1994"]
[null,null,"turkey","domestic","M","B","15 w","juvenile",null,null,{"$f":"15*7","v":105},11.5,"NRC, 1994"]
[null,null,"turkey","domestic","M","B","16 w","juvenile",null,null,{"$f":"16*7","v":112},12.6,"NRC, 1994"]
[null,null,"turkey","domestic","M","B","17 w","juvenile",null,null,{"$f":"17*7","v":119},13.5,"NRC, 1994"]
[null,null,"turkey","domestic","M","B","18 w","juvenile",null,null,{"$f":"18*7","v":126},14.4,"NRC, 1994"]
[null,null,"turkey","domestic","M","B","19 w","juvenile",null,null,{"$f":"19*7","v":133},15.2,"NRC, 1994"]
[null,null,"turkey","domestic","M","B","20 w","juvenile",null,null,{"$f":"20*7","v":140},16.100000000000001,"NRC, 1994"]
[null,null,"turkey","domestic","M","B","21 w","juvenile",null,null,{"$f":"21*7","v":147},17,"NRC, 1994"]
[null,null,"turkey","domestic","M","B","22 w","juvenile",null,null,{"$f":"22*7","v":154},17.899999999999999,"NRC, 1994"]
[null,null,"turkey","domestic","M","B","23 w","juvenile",null,null,{"$f":"23*7","v":161},18.600000000000001,"NRC, 1994"]
[null,null,"turkey","domestic","M","B","24 w/ > 24 w","adult",null,null,{"$f":"24*7","v":168},19.399999999999999,"NRC, 1994","values for male, breeding (juvenile) are available for 25 w and 30w but value is less than the \"> 24 w\", adult value (19.4). So, 19.4 used for 24 w thru <35 w."]
[null,null,"turkey","domestic","M","B","35 w","breeding (juvenile)",null,null,{"$f":"35*7","v":245},20.7,"NRC, 1994"]
[null,null,"turkey","domestic","M","B",null,null,null,null,{"$f":"36*7","v":252},"ERROR"]
[null,null,"turkey","domestic","M","B","40 w","breeding (juvenile)",null,null,{"$f":"40*7","v":280},21.8,"NRC, 1994"]
[null,null,"turkey","domestic","M","B",null,null,null,null,{"$f":"41*7","v":287},"ERROR"]
[null,null,"turkey","domestic","M","B","45 w","breeding (juvenile)",null,null,{"$f":"45*7","v":315},22.5,"NRC, 1994"]
[null,null,"turkey","domestic","M","B",null,null,null,null,{"$f":"46*7","v":322},"ERROR"]
[null,null,"turkey","domestic","M","B","50 w","breeding (juvenile)",null,null,{"$f":"50*7","v":350},23.2,"NRC, 1994"]
[null,null,"turkey","domestic","M","B",null,null,null,null,{"$f":"51*7","v":357},"ERROR"]
[null,null,"turkey","domestic","M","B","55 w","breeding (adult)",null,null,{"$f":"55*7","v":385},23.9,"NRC, 1994"]
[null,null,"turkey","domestic","M","B",null,null,null,null,{"$f":"56*7","v":392},"ERROR"]
[null,null,"turkey","domestic","M","B","60 w","breeding (adult)",null,null,{"$f":"60*7","v":420},24.5,"NRC, 1994"]
[null,null,"turkey","domestic","M","B",null,null,null,null,25550,"ERROR"]
[null,null,"vole","prairie vole","BH","B","Adult","adult",null,null,30,4.2000000000000003E-2,"USEPA, 1993","Females are mature from 30 to 40 days, males at 35 to 45. The adult size is gained by the time they are 2 months old.","multiple:\nhttps://animalia.bio/prairie-vole\nhttps://animaldiversity.org/accounts/Microtus_ochrogaster/\nhttp://minnesotaseasons.com/Mammals/prairie_vole.html"]
[null,null,"vole","prairie vole",null,"B",null,null,null,null,25550,"ERROR"]
[null,null,"vole","prairie vole","BH","M","Adult","adult",null,null,35,4.2000000000000003E-2,"USEPA, 1993"]
[null,null,"vole","prairie vole",null,"M",null,null,null,null,25550,"ERROR"]
[null,null,"vole","prairie vole","BH","F","Adult","adult",null,null,30,4.2000000000000003E-2,"USEPA, 1993"]
[null,null,"vole","prairie vole",null,"F",null,null,null,null,25550,"ERROR"]
[null,null,"vole","meadow vole","M","M","Adult","adult",null,null,35,4.2999999999999997E-2,"USEPA, 1993",null,"multiple:\nhttps://feedingnature.com/what-do-baby-voles-eat/#:~:text=They%20are%20fully%20furred%20at%20three%20weeks%20and,year%2C%20each%20consisting%20of%20four%20to%20seven%20young.\nhttps://animalia.bio/public/meadow-vole\nhttps://www.coniferousforest.com/meadow-vole.htm\nhttps://www.tn.gov/twra/wildlife/mammals/small/meadow-vole.html\nhttps://www.turffiles.ncsu.edu/insects/voles-in-turf/"]
[null,null,"vole","meadow vole",null,"M",null,null,null,null,25550,"ERROR"]
[null,null,"vole","meadow vole","F","F","Adult","adult",null,null,30,3.9E-2,"USEPA, 1993"]
[null,null,"vole","meadow vole",null,"F",null,null,null,null,25550,"ERROR"]
[null,null,"vole","meadow vole","M","B","Adult","adult",null,null,30,4.2999999999999997E-2,"USEPA, 1993"]
[null,null,"vole","meadow vole",null,"B",null,null,null,null,25550,"ERROR"]

{"sheet":"Default BW IR-Formatted by LS","index":8,"n_rows":284,"n_cols":33,"rows_kept":284,"cut":false,"hidden":true,"merged":[]}
[null,null,"Table 20.  Default Body Weights",null,null,null,null,null,null,null,null,null,null,null,null,null,null,null,null,"For \"Male\" or \"Femaile\" - by Lifestage",null,null,null,null,null,null,null,null,"For \"Both\" - by Lifestage"]
["Nagy 2001 Group","Comments","General Organism Type","Specific Organism Type","Sex","SRC_Sex","Age","Lifestage","SRC_Lifestage","Default BW (kg)","Reference","BW (g)","a","b","BWb","FIR (g FMI/day)","Default FIR (kg/day)",null,null,null,null,null,null,"Values",null,null,null,null,null,null,null,"Values"]
["Carnivora",null,"cat","unspecified","M","M","weaning to 90 days","juvenile","juvenile",1.72,"USEPA, 1987",{"$f":"J3*1000","v":1720},0.34799999999999998,0.85899999999999999,{"$f":"L3^N3","v":601.61538781872594},{"$f":"M3*O3","v":209.3621549609166},{"$f":"P3/1000","v":0.20936215496091659},null,"Lookup","General Organism Type","Specific Organism Type","SRC_Sex","SRC_Lifestage","Max of Default BW (kg)","Max of Default FIR (kg/day)",null,null,"Lookup","General Organism Type","Specific Organism Type","SRC_Lifestage","Max of Default BW (kg)","Max of Default FIR (kg/day)"]
["Carnivora",null,"cat","unspecified","M","M","90 days to 1 year","sexually mature","juvenile",3.66,"USEPA, 1987",{"$f":"J4*1000","v":3660},0.34799999999999998,0.85899999999999999,{"$f":"L4^N4","v":1150.8805549022341},{"$f":"M4*O4","v":400.50643310597741},{"$f":"P4/1000","v":0.40050643310597739},null,{"$f":"T4&U4&V4&W4","v":"catunspecifiedFadult"},"cat","unspecified","F","adult",3.1,0.34726334075896659,null,null,{"$f":"AC4&AD4&AE4","v":"catunspecifiedadult"},"cat","unspecified","adult",4,0.4322637099237695]
["Carnivora",null,"cat","unspecified","M","M","1 year or older","adult","adult",4,"USEPA, 1987",{"$f":"J5*1000","v":4000},0.34799999999999998,0.85899999999999999,1242.1370974820964,432.26370992376951,0.4322637099237695,null,{"$f":"T5&U5&V5&W5","v":"catunspecifiedFjuvenile"},"cat","unspecified","F","juvenile",2.96,0.33374811672886712,null,null,{"$f":"AC5&AD5&AE5","v":"catunspecifiedjuvenile"},"cat","unspecified","juvenile",3.66,0.40050643310597739]
["Carnivora",null,"cat","unspecified","F","F","weaning to 90 days","juvenile","juvenile",1.49,"USEPA, 1987",1490,0.34799999999999998,0.85899999999999999,531.82286410513882,185.07435670858828,0.18507435670858829,null,"catunspecifiedMadult","cat","unspecified","M","adult",4,0.4322637099237695,null,null,"cattleBeefadult","cattle","Beef","adult",454,9.3026244129564795]
["Carnivora",null,"cat","unspecified","F","F","90 days to 1 year","sexually mature","juvenile",2.96,"USEPA, 1987",2960,0.34799999999999998,0.85899999999999999,959.04631243927338,333.7481167288671,0.33374811672886712,null,"catunspecifiedMjuvenile","cat","unspecified","M","juvenile",3.66,0.40050643310597739,null,null,"cattleBeefjuvenile","cattle","Beef","juvenile",220,5.9022262723203651]
["Carnivora",null,"cat","unspecified","F","F","1 year or older","adult","adult",3.1,"USEPA, 1987",3100,0.34799999999999998,0.85899999999999999,997.88316310047878,347.26334075896659,0.34726334075896659,null,"cattleBeefFadult","cattle","Beef","F","adult",454,9.3026244129564795,null,null,"cattleFresianjuvenile","cattle","Fresian","juvenile",99,3.5746482539643329]
["Herbivores",null,"cattle","unspecified","BH","B","3 to 7 days","juvenile","juvenile",67,"USEPA, 2005",67000,2.6059999999999999,0.628,1073.4330831653681,2797.3666147289491,2.7973666147289493,null,"cattleFresianFjuvenile","cattle","Fresian","F","juvenile",99,3.5746482539643329,null,null,"cattleHolsteinadult","cattle","Holstein","adult",680,11.989194576414674]
["Herbivores",null,"cattle","unspecified","BH","B","6 to 8 weeks","juvenile","juvenile",119,"USEPA, 2005",119000,2.6059999999999999,0.628,1539.7261714871167,4012.5264028954261,4.0125264028954257,null,"cattleHolsteinFadult","cattle","Holstein","F","adult",680,11.989194576414674,null,null,"cattleJerseyadult","cattle","Jersey","adult",454,9.3026244129564795]
["Herbivores",null,"cattle","unspecified","BH","B","8 to 10 weeks","juvenile","juvenile",137,"USEPA, 2005",137000,2.6059999999999999,0.628,1682.133717734883,4383.6404684171048,4.3836404684171049,null,"cattleJerseyFadult","cattle","Jersey","F","adult",454,9.3026244129564795,null,null,"cattleunspecifiedjuvenile","cattle","unspecified","juvenile",260,6.5550751337316928]
["Herbivores",null,"cattle","unspecified","BH","B","13 to 16 weeks","juvenile","juvenile",198,"USEPA, 2005",198000,2.6059999999999999,0.628,2119.8529678580194,5524.3368342379981,5.5243368342379977,null,"chickenunspecifiedFadult","chicken","unspecified","F","adult",1.6,0.33308779843150532,null,null,"chickendomesticjuvenile","chicken","domestic","juvenile",1.042,0.24787396530917435]
["Herbivores",null,"cattle","unspecified","BH","B","22 to 51 weeks","juvenile","juvenile",260,"USEPA, 2005",260000,2.6059999999999999,0.628,2515.3780252232127,6555.0751337316924,6.5550751337316928,null,"chickenunspecifiedMadult","chicken","unspecified","M","adult",1.3,0.28868686594449389,null,null,"chickenunspecifiedadult","chicken","unspecified","adult",1.6,0.33308779843150532]
["Herbivores",null,"cattle","Beef","BH","B","weaning","juvenile","juvenile",220,"Jurgens, 1972",220000,2.6059999999999999,0.628,2264.8604268305317,5902.2262723203648,5.9022262723203651,null,"dogunspecifiedFadult","dog","unspecified","F","adult",14,1.2679532073272661,null,null,"dogunspecifiedadult","dog","unspecified","adult",14,1.2679532073272661]
["Herbivores",null,"cattle","Beef","F","F","Pregnant","gestation","adult",409,"Jurgens, 1972",409000,2.6059999999999999,0.628,3343.1990707976611,8712.3767784987049,8.7123767784987045,null,"dogunspecifiedFjuvenile","dog","unspecified","F","juvenile",10.1,0.95783632679999087,null,null,"dogunspecifiedjuvenile","dog","unspecified","juvenile",10.8,1.0145892346673748]
["Herbivores",null,"cattle","Beef","F","F","Lactating","lactation","adult",454,"Jurgens, 1972",454000,2.6059999999999999,0.628,3569.6947094998009,9302.6244129564802,9.3026244129564795,null,"dogunspecifiedMadult","dog","unspecified","M","adult",14,1.2679532073272661,null,null,"doveringed turtleadult","dove","ringed turtle","adult",0.14399999999999999,6.3391614533736762E-2]
["Herbivores",null,"cattle","Beef","BH","B","> 1 year","Adult","Adult",454,"Jurgens, 1972",454000,2.6059999999999999,0.628,3569.6947094998009,9302.6244129564802,9.3026244129564795,null,"dogunspecifiedMjuvenile","dog","unspecified","M","juvenile",10.8,1.0145892346673748,null,null,"doveringed turtlejuvenile","dove","ringed turtle","juvenile",0.13400000000000001,6.0324712676816064E-2]
["Herbivores",null,"cattle","Fresian","F","F","10 months","juvenile","juvenile",99,"Maro et al., 1980",99000,2.6059999999999999,0.628,1371.6992532480174,3574.648253964333,3.5746482539643329,null,"duckmallardFadult","duck","mallard","F","adult",1.1000000000000001,0.16901680622675402,null,null,"duckmallardadult","duck","mallard","adult",1.2,0.17849387528103505]
["Herbivores",null,"cattle","Holstein","F","F","Lactating, 58 months","Adult","Adult",680,"NRC (2001)",680000,2.6059999999999999,0.628,4600.6118865750859,11989.194576414673,11.989194576414674,null,"duckmallardMadult","duck","mallard","M","adult",1.2,0.17849387528103505,null,null,"duckmallardjuvenile","duck","mallard","juvenile",0.46,9.7842116299676665E-2]
["Herbivores",null,"cattle","Jersey","F","F","Lactating, 58 months","Adult","Adult",454,"NRC (2001)",454000,2.6059999999999999,0.628,3569.6947094998009,9302.6244129564802,9.3026244129564795,null,"duckwhite pekinFjuvenile","duck","white pekin","F","juvenile",3.29,0.33593751502628905,null,null,"duckwhite pekinjuvenile","duck","white pekin","juvenile",3.61,0.35606861307223842]
["All birds ","A","chicken","unspecified","M","M","Older than 30 days","adult","adult",1.3,"USEPA, 1987",1300,2.0649999999999999,0.68899999999999995,139.79993508207937,288.68686594449389,0.28868686594449389,null,"duckwhite pekinMjuvenile","duck","white pekin","M","juvenile",3.61,0.35606861307223842,null,null,"eaglebald eagleadult","eagle","bald eagle","adult",5.35,0.91911579118100872]
["All birds ","A","chicken","unspecified","F","F","Older than 30 days","adult","adult",1.6,"USEPA, 1987",1600,2.0649999999999999,0.68899999999999995,161.30159730339241,333.08779843150535,0.33308779843150532,null,"eaglebald eagleFadult","eagle","bald eagle","F","adult",5.35,0.91911579118100872,null,null,"finchzebra finchadult","finch","zebra finch","adult",12,0.72961997895589126]
["All birds ","A","chicken","domestic","BH","B","1 day","juvenile","juvenile",3.9699999999999999E-2,"Diaz et al 1994",39.699999999999996,2.0649999999999999,0.68899999999999995,12.63475017668492,26.090759114854357,2.6090759114854357E-2,null,"eaglebald eagleMadult","eagle","bald eagle","M","adult",4.13,0.77378756646337032,null,null,"gerbilunspecifiedadult","gerbil","unspecified","adult",0.1,3.1432384332541939E-2]
["All birds ","A","chicken","domestic","BH","B","3 days","juvenile","juvenile",5.4300000000000001E-2,"Franson and Custer, 1982",54.300000000000004,2.0649999999999999,0.68899999999999995,15.677509859999011,32.374057860897956,3.2374057860897955E-2,null,"gerbilunspecifiedFadult","gerbil","unspecified","F","adult",0.09,2.8697420023746728E-2,null,null,"gerbilunspecifiedjuvenile","gerbil","unspecified","juvenile",8.4000000000000005E-2,2.7036758961973474E-2]
["All birds ","A","chicken","domestic","BH","B","7 days","juvenile","juvenile",8.4000000000000005E-2,"Southern and Baker, 1981",84,2.0649999999999999,0.68899999999999995,21.175244230998238,43.726879337011361,4.372687933701136E-2,null,"gerbilunspecifiedFjuvenile","gerbil","unspecified","F","juvenile",7.2999999999999995E-2,2.3949049256843345E-2,null,null,"guinea pigunspecifiedadult","guinea pig","unspecified","adult",1,0.22981444672593229]
["All birds ","A","chicken","domestic","BH","B","14 days","juvenile","juvenile",0.32800000000000001,"Southern and Baker, 1981",328,2.0649999999999999,0.68899999999999995,54.129881745987561,111.77820580546431,0.11177820580546431,null,"gerbilunspecifiedMadult","gerbil","unspecified","M","adult",0.1,3.1432384332541939E-2,null,null,"guinea pigunspecifiedjuvenile","guinea pig","unspecified","juvenile",0.89,0.20780227210734392]
["All birds ","A","chicken","domestic","BH","B","20 days","juvenile","juvenile",0.56399999999999995,"Donaldson and McGowan, 1989",564,2.0649999999999999,0.68899999999999995,78.637790517816825,162.38703741929174,0.16238703741929175,null,"gerbilunspecifiedMjuvenile","gerbil","unspecified","M","juvenile",8.4000000000000005E-2,2.7036758961973474E-2,null,null,"hamsterChinese & Djungarainadult","hamster","Chinese & Djungarain","adult",0.04,1.4241546708721808E-2]
["All birds ","A","chicken","domestic","BH","B","28 days","juvenile","juvenile",1.042,"Diaz et al., 1994",1042,2.0649999999999999,0.68899999999999995,120.03581855165829,247.87396530917437,0.24787396530917435,null,"guinea pigunspecifiedFadult","guinea pig","unspecified","F","adult",0.9,0.20981805374500859,null,null,"hamsterChinese & Djungarainjuvenile","hamster","Chinese & Djungarain","juvenile",4.1000000000000002E-2,1.4548646053552952E-2]
["Carnivora",null,"dog","unspecified","M","M","weaning to 90 days","juvenile","juvenile",2.4,"USEPA, 1987",2400,0.34799999999999998,0.85899999999999999,800.94271690278435,278.72806548216892,0.27872806548216894,null,"guinea pigunspecifiedFjuvenile","guinea pig","unspecified","F","juvenile",0.86,0.20173627058807259,null,null,"hamstergolden Syrianadult","hamster","golden Syrian","adult",0.16,4.7177724624755855E-2]
["Carnivora",null,"dog","unspecified","M","M","90 days to 1 year","sexually mature","juvenile",10.8,"USEPA, 1987",10800,0.34799999999999998,0.85899999999999999,2915.486306515445,1014.5892346673747,1.0145892346673748,null,"guinea pigunspecifiedMadult","guinea pig","unspecified","M","adult",1,0.22981444672593229,null,null,"hamstergolden Syrianjuvenile","hamster","golden Syrian","juvenile",0.14499999999999999,4.3331056684957785E-2]
["Carnivora",null,"dog","unspecified","M","M","1 year or older","adult","adult",14,"USEPA, 1987",14000,0.34799999999999998,0.85899999999999999,3643.5436992162827,1267.9532073272662,1.2679532073272661,null,"guinea pigunspecifiedMjuvenile","guinea pig","unspecified","M","juvenile",0.89,0.20780227210734392,null,null,"hamsterunspecifiedadult","hamster","unspecified","adult",1.03,0.23575922120686446]
["Carnivora",null,"dog","unspecified","F","F","weaning to 90 days","juvenile","juvenile",1.97,"USEPA, 1987",1970,0.34799999999999998,0.85899999999999999,675.99967675367827,235.24788751028001,0.23524788751028,null,"hamsterChinese & DjungarainFadult","hamster","Chinese & Djungarain","F","adult",3.5000000000000003E-2,1.2689722248343006E-2,null,null,"hamsterunspecifiedjuvenile","hamster","unspecified","juvenile",0.50249999999999995,0.12681157227266135]
["Carnivora",null,"dog","unspecified","F","F","90 days to 1 year","sexually mature","juvenile",10.1,"USEPA, 1987",10100,0.34799999999999998,0.85899999999999999,2752.4032379310083,957.83632679999084,0.95783632679999087,null,"hamsterChinese & DjungarainFjuvenile","hamster","Chinese & Djungarain","F","juvenile",3.7999999999999999E-2,1.3624179396014452E-2,null,null,"horseunspecifiedadult","horse","unspecified","adult",498.95,20.156660650797139]
["Carnivora",null,"dog","unspecified","F","F","1 year or older","adult","adult",14,"USEPA, 1987",14000,0.34799999999999998,0.85899999999999999,3643.5436992162827,1267.9532073272662,1.2679532073272661,null,"hamsterChinese & DjungarainMadult","hamster","Chinese & Djungarain","M","adult",0.04,1.4241546708721808E-2,null,null,"horseunspecifiedjuvenile","horse","unspecified","juvenile",408.23,17.260366107827707]
["All birds ","B","dove","ringed turtle","B","B","0 days","juvenile","juvenile",0.01,"Carriere et al., 1986",10,2.0649999999999999,0.68899999999999995,4.8865235934283362,10.090671220429513,1.0090671220429514E-2,null,"hamsterChinese & DjungarainMjuvenile","hamster","Chinese & Djungarain","M","juvenile",4.1000000000000002E-2,1.4548646053552952E-2,null,null,"kestrelAmericanadult","kestrel","American","adult",0.13800000000000001,8.0729926135879482E-2]
["All birds ","B","dove","ringed turtle","B","B","7 days","juvenile","juvenile",5.7000000000000002E-2,"Carriere et al., 1986; Kendall and Scanlon, 1981",57,2.0649999999999999,0.68899999999999995,16.210550951445473,33.474787714734902,3.3474787714734902E-2,null,"hamstergolden SyrianFadult","hamster","golden Syrian","F","adult",0.16,4.7177724624755855E-2,null,null,"minkunspecifiedadult","mink","unspecified","adult",1.18,0.15146974288766279]
["All birds ","B","dove","ringed turtle","B","B","14 days","juvenile","juvenile",9.1999999999999998E-2,"Carriere et al., 1986; Kendall and Scanlon, 1981",92,2.0649999999999999,0.68899999999999995,22.544977854367175,46.555379269268215,4.6555379269268213E-2,null,"hamstergolden SyrianFjuvenile","hamster","golden Syrian","F","juvenile",0.14499999999999999,4.3331056684957785E-2,null,null,"minkunspecifiedjuvenile","mink","unspecified","juvenile",1.02,0.13364933171164042]
["All birds ","B","dove","ringed turtle","B","B","21 days","juvenile","juvenile",0.11700000000000001,"Carriere et al., 1986; Kendall and Scanlon, 1981",117,2.0649999999999999,0.68899999999999995,26.606028915787395,54.941449711100965,5.4941449711100966E-2,null,"hamstergolden SyrianMadult","hamster","golden Syrian","M","adult",0.15,4.4619035058816724E-2,null,null,"mouseB6C3F1adult","mouse","B6C3F1","adult",0.04,1.4241546708721808E-2]
["All birds ","B","dove","ringed turtle","B","B","28 days","juvenile","juvenile",0.13400000000000001,"Carriere et al., 1986",134,2.0649999999999999,0.68899999999999995,29.212935920976303,60.324712676816063,6.0324712676816064E-2,null,"hamstergolden SyrianMjuvenile","hamster","golden Syrian","M","juvenile",0.13400000000000001,4.0475840128476569E-2,null,null,"mouseB6C3F1juvenile","mouse","B6C3F1","juvenile",3.73E-2,1.3407066291376597E-2]
["All birds ","B","dove","ringed turtle","B","B","Adult","adult","adult",0.14399999999999999,"Carriere et al., 1986; Kendall and Scanlon, 1981; Keith and Mitchell, 1993",144,2.0649999999999999,0.68899999999999995,30.698118418274461,63.391614533736764,6.3391614533736762E-2,null,"hamsterunspecifiedFadult","hamster","unspecified","F","adult",1.03,0.23575922120686446,null,null,"mouseBAF1adult","mouse","BAF1","adult",3.5000000000000003E-2,1.2689722248343006E-2]
["Omnivorous birds",null,"duck","mallard","F","F","Adult","adult","adult",1.1000000000000001,"USEPA, 1993",1100,2.0939999999999999,0.627,80.714807176100308,169.01680622675403,0.16901680622675402,null,"hamsterunspecifiedFjuvenile","hamster","unspecified","F","juvenile",0.50249999999999995,0.12681157227266135,null,null,"mouseBAF1juvenile","mouse","BAF1","juvenile",2.6100000000000002E-2,9.8481515777840284E-3]
["Omnivorous birds",null,"duck","mallard","M","M","Adult","adult","adult",1.2,"USEPA, 1993",1200,2.0939999999999999,0.627,85.24062811892793,178.49387528103506,0.17849387528103505,null,"hamsterunspecifiedMadult","hamster","unspecified","M","adult",9.5000000000000001E-2,3.0069798719879363E-2,null,null,"mousedeer mouseadult","mouse","deer mouse","adult",0.02,7.8246918328485418E-3]
["Omnivorous birds",null,"duck","mallard","JV","B","10 days","juvenile","juvenile",9.1999999999999998E-2,"USEPA, 1993",92,2.0939999999999999,0.627,17.033149872856331,35.667415833761154,3.5667415833761151E-2,null,"hamsterunspecifiedMjuvenile","hamster","unspecified","M","juvenile",8.7499999999999994E-2,2.8007367102819706E-2,null,null,"mouseunspecifiedadult","mouse","unspecified","adult",3.7499999999999999E-2,1.3469154711094184E-2]
["Omnivorous birds",null,"duck","mallard","JV","B","30 days","juvenile","juvenile",0.46,"USEPA, 1993",460,2.0939999999999999,0.627,46.72498390624483,97.842116299676661,9.7842116299676665E-2,null,"horseunspecifiedMjuvenile","horse","unspecified","M","juvenile",408.23,17.260366107827707,null,null,"mouseunspecifiedjuvenile","mouse","unspecified","juvenile",3.1699999999999999E-2,1.164910416328381E-2]
["Omnivorous birds",null,"duck","white pekin","B","B","0 days","juvenile","juvenile",0.06,"NRC, 1994",60,2.0939999999999999,0.627,13.028692496981307,27.282082088678855,2.7282082088678855E-2,null,"kestrelAmericanFadult","kestrel","American","F","adult",0.13800000000000001,8.0729926135879482E-2,null,null,"owlbarn owladult","owl","barn owl","adult",0.56799999999999995,0.20685051471926025]
["Omnivorous birds",null,"duck","white pekin","B","B","7 days","juvenile","juvenile",0.27,"NRC, 1994",270,2.0939999999999999,0.627,33.455311670145427,70.055422637284522,7.0055422637284523E-2,null,"kestrelAmericanMadult","kestrel","American","M","adult",0.114,7.1097886171368488E-2,null,null,"pheasantring-neckedadult","pheasant","ring-necked","adult",1.3,0.28868686594449389]
["Omnivorous birds",null,"duck","white pekin","M","M","14 days","juvenile","juvenile",0.78,"NRC, 1994",780,2.0939999999999999,0.627,65.064383018396924,136.24481804052314,0.13624481804052313,null,"minkunspecifiedFadult","mink","unspecified","F","adult",0.59599999999999997,8.4239500119280594E-2,null,null,"pigminiatureadult","pig","miniature","adult",72.5,4.5379716824994398]
["Omnivorous birds",null,"duck","white pekin","F","F","14 days","juvenile","juvenile",0.74,"NRC, 1994",740,2.0939999999999999,0.627,62.951819675110329,131.82111039968103,0.13182111039968103,null,"minkunspecifiedFjuvenile","mink","unspecified","F","juvenile",0.58299999999999996,8.2658692724568314E-2,null,null,"pigunspecifiedadult","pig","unspecified","adult",152,8.0423986363400406]
["Omnivorous birds",null,"duck","white pekin","M","M","21 days","juvenile","juvenile",1.38,"NRC, 1994",1380,2.0939999999999999,0.627,93.047388198765731,194.84123088821542,0.19484123088821542,null,"minkunspecifiedMadult","mink","unspecified","M","adult",1.18,0.15146974288766279,null,null,"pigunspecifiedjuvenile","pig","unspecified","juvenile",61,3.9708224160575574]
["Omnivorous birds",null,"duck","white pekin","F","F","21 days","juvenile","juvenile",1.28,"NRC, 1994",1280,2.0939999999999999,0.627,88.760686181401525,185.86487686385479,0.18586487686385478,null,"minkunspecifiedMjuvenile","mink","unspecified","M","juvenile",1.02,0.13364933171164042,null,null,"pigeonpigeonadult","pigeon","pigeon","adult",0.36899999999999999,0.12122752043523936]
["Omnivorous birds",null,"duck","white pekin","M","M","28 days","juvenile","juvenile",1.96,"NRC, 1994",1960,2.0939999999999999,0.627,115.94300621630232,242.78465501693705,0.24278465501693705,null,"mouseB6C3F1Fadult","mouse","B6C3F1","F","adult",3.5000000000000003E-2,1.2689722248343006E-2,null,null,"quailbobwhiteadult","quail","bobwhite","adult",0.17,7.1072135166891467E-2]
["Omnivorous birds",null,"duck","white pekin","F","F","28 days","juvenile","juvenile",1.82,"NRC, 1994",1820,2.0939999999999999,0.627,110.67888116208748,231.76157715341117,0.23176157715341117,null,"mouseB6C3F1Fjuvenile","mouse","B6C3F1","F","juvenile",3.5299999999999998E-2,1.2783644107804009E-2,null,null,"quailbobwhitejuvenile","quail","bobwhite","juvenile",0.04,2.6226442834686111E-2]
["Omnivorous birds",null,"duck","white pekin","M","M","35 days","juvenile","juvenile",2.4900000000000002,"NRC, 1994",2490,2.0939999999999999,0.627,134.71532110700488,282.09388239806822,0.28209388239806821,null,"mouseB6C3F1Madult","mouse","B6C3F1","M","adult",0.04,1.4241546708721808E-2,null,null,"quailJapaneseadult","quail","Japanese","adult",0.13500000000000001,6.0634530968764859E-2]
["Omnivorous birds",null,"duck","white pekin","F","F","35 days","juvenile","juvenile",2.2999999999999998,"NRC, 1994",2300,2.0939999999999999,0.627,128.17500798944872,268.39846672990558,0.26839846672990558,null,"mouseB6C3F1Mjuvenile","mouse","B6C3F1","M","juvenile",3.73E-2,1.3407066291376597E-2,null,null,"quailJapanesejuvenile","quail","Japanese","juvenile",0.13200000000000001,5.9702909292269304E-2]
["Omnivorous birds",null,"duck","white pekin","M","M","42 days","juvenile","juvenile",2.96,"NRC, 1994",2960,2.0939999999999999,0.627,150.14120698385418,314.39568742419061,0.31439568742419061,null,"mouseBAF1Fadult","mouse","BAF1","F","adult",0.03,1.1107340617900625E-2,null,null,"rabbitunspecifiedadult","rabbit","unspecified","adult",4.0999999999999996,0.4926090924502739]
["Omnivorous birds",null,"duck","white pekin","F","F","42 days","juvenile","juvenile",2.73,"NRC, 1994",2730,2.0939999999999999,0.627,142.71643205266841,298.84820871828765,0.29884820871828766,null,"mouseBAF1Fjuvenile","mouse","BAF1","F","juvenile",2.2200000000000001E-2,8.5630069399994409E-3,null,null,"rabbitunspecifiedjuvenile","rabbit","unspecified","juvenile",3.93,0.47674477706254448]
["Omnivorous birds",null,"duck","white pekin","M","M","49 days","juvenile","juvenile",3.34,"NRC, 1994",3340,2.0939999999999999,0.627,161.95301396391477,339.1296112404375,0.3391296112404375,null,"mouseBAF1Madult","mouse","BAF1","M","adult",3.5000000000000003E-2,1.2689722248343006E-2,null,null,"ratFischer 344adult","rat","Fischer 344","adult",0.4,0.10412551408001137]
["Omnivorous birds",null,"duck","white pekin","F","F","49 days","juvenile","juvenile",3.06,"NRC, 1994",3060,2.0939999999999999,0.627,153.30182832091572,321.01402850399751,0.32101402850399752,null,"mouseBAF1Mjuvenile","mouse","BAF1","M","juvenile",2.6100000000000002E-2,9.8481515777840284E-3,null,null,"ratFischer 344juvenile","rat","Fischer 344","juvenile",0.38,9.9611700368156642E-2]
["Omnivorous birds",null,"duck","white pekin","M","M","56 days","juvenile","juvenile",3.61,"NRC, 1994",3610,2.0939999999999999,0.627,170.04231760851883,356.06861307223841,0.35606861307223842,null,"mousedeer mouseFadult","mouse","deer mouse","F","adult",1.9E-2,7.4854934951672511E-3,null,null,"ratLong-Evansadult","rat","Long-Evans","adult",0.5,0.12626628702244388]
["Omnivorous birds",null,"duck","white pekin","F","F","56 days","juvenile","juvenile",3.29,"NRC, 1994",3290,2.0939999999999999,0.627,160.4286127155153,335.93751502628902,0.33593751502628905,null,"mousedeer mouseMadult","mouse","deer mouse","M","adult",0.02,7.8246918328485418E-3,null,null,"ratLong-Evansjuvenile","rat","Long-Evans","juvenile",0.47199999999999998,0.12013324628431137]
["Carnivorous birds",null,"eagle","bald eagle","M","M","Adult","adult","adult",4.13,"Dunning, 1993",4130,3.048,0.66500000000000004,253.86731183181442,773.78756646337035,0.77378756646337032,null,"mouseunspecifiedFadult","mouse","unspecified","F","adult",3.2500000000000001E-2,1.1902674301676566E-2,null,null,"ratOsborne-Mendeladult","rat","Osborne-Mendel","adult",0.55000000000000004,0.13710417814995979]
["Carnivorous birds",null,"eagle","bald eagle","F","F","Adult","adult","adult",5.35,"Dunning, 1993",5350,3.048,0.66500000000000004,301.54717558432043,919.11579118100872,0.91911579118100872,null,"mouseunspecifiedFjuvenile","mouse","unspecified","F","juvenile",2.8750000000000001E-2,1.0706325123069804E-2,null,null,"ratOsborne-Mendeljuvenile","rat","Osborne-Mendel","juvenile",0.51400000000000001,0.12931516577414565]
["Passerines",null,"finch","zebra finch","B","B","Adult","adult","adult",12,"Dunning, 1993",12000,2.4380000000000002,0.60699999999999998,299.26988472349927,729.61997895589127,0.72961997895589126,null,"mouseunspecifiedMadult","mouse","unspecified","M","adult",3.7499999999999999E-2,1.3469154711094184E-2,null,null,"ratSprague-Dawleyadult","rat","Sprague-Dawley","adult",0.6,0.14780870309107813]
["Rodentia",null,"gerbil","unspecified","M","M","weaning to 90 days","juvenile","juvenile",4.8000000000000001E-2,"USEPA, 1987",48,0.58799999999999997,0.86399999999999999,28.352569852624253,16.671311073343059,1.6671311073343058E-2,null,"mouseunspecifiedMjuvenile","mouse","unspecified","M","juvenile",3.1699999999999999E-2,1.164910416328381E-2,null,null,"ratSprague-Dawleyjuvenile","rat","Sprague-Dawley","juvenile",0.52300000000000002,0.13126918390393919]
["Rodentia",null,"gerbil","unspecified","M","M","90 days to 1 year","juvenile","juvenile",8.4000000000000005E-2,"USEPA, 1987",84,0.58799999999999997,0.86399999999999999,45.980882588390266,27.036758961973476,2.7036758961973474E-2,null,"owlbarn owlFadult","owl","barn owl","F","adult",0.56799999999999995,0.20685051471926025,null,null,"ratunspecifiedadult","rat","unspecified","adult",0.51,0.12844522333919098]
["Rodentia",null,"gerbil","unspecified","M","M","1 year or older","adult","adult",0.1,"USEPA, 1987",100,0.58799999999999997,0.86399999999999999,53.45643593969718,31.43238433254194,3.1432384332541939E-2,null,"owlbarn owlMadult","owl","barn owl","M","adult",0.47899999999999998,0.18468774517323283,null,null,"ratunspecifiedjuvenile","rat","unspecified","juvenile",0.47020000000000001,0.11973731462290967]
["Rodentia",null,"gerbil","unspecified","F","F","weaning to 90 days","juvenile","juvenile",0.04,"USEPA, 1987",40,0.58799999999999997,0.86399999999999999,24.220317531839811,14.241546708721808,1.4241546708721808E-2,null,"pheasantring-neckedFadult","pheasant","ring-necked","F","adult",0.95,0.23257960041249923,null,null,"ratWistaradult","rat","Wistar","adult",0.5,0.12626628702244388]
["Rodentia",null,"gerbil","unspecified","F","F","90 days to 1 year","juvenile","juvenile",7.2999999999999995E-2,"USEPA, 1987",73,0.58799999999999997,0.86399999999999999,{"$f":"L68^N68","v":40.729675606876441},{"$f":"M68*O68","v":23.949049256843345},{"$f":"P68/1000","v":2.3949049256843345E-2},null,"pheasantring-neckedMadult","pheasant","ring-necked","M","adult",1.3,0.28868686594449389,null,null,"ratWistarjuvenile","rat","Wistar","juvenile",0.46200000000000002,0.11793100320048688]
["Rodentia",null,"gerbil","unspecified","F","F","1 year or older","adult","adult",0.09,"USEPA, 1987",{"$f":"J69*1000","v":90},0.58799999999999997,0.86399999999999999,48.805136094807359,28.697420023746727,2.8697420023746728E-2,null,{"$f":"T69&U69&V69&W69","v":"pigminiatureFadult"},"pig","miniature","F","adult",72.5,4.5379716824994398,null,null,{"$f":"AC69&AD69&AE69","v":"sheepChun forestadult"},"sheep","Chun forest","adult",91.5,5.4324909079647563]
["Rodentia",null,"guinea pig","unspecified","M","M","weaning to 90 days","juvenile","juvenile",0.48,"USEPA, 1987",480,0.58799999999999997,0.86399999999999999,207.29671936447266,121.89047098630992,0.12189047098630992,null,"pigminiatureMadult","pig","miniature","M","adult",72.5,4.5379716824994398,null,null,"sheepChun forestjuvenile","sheep","Chun forest","juvenile",24,1.9307399916507986]
["Rodentia",null,"guinea pig","unspecified","M","M","90 days to 1 year","juvenile","juvenile",0.89,"USEPA, 1987",890,0.58799999999999997,0.86399999999999999,353.40522467235365,207.80227210734392,0.20780227210734392,null,"pigunspecifiedFadult","pig","unspecified","F","adult",152,8.0423986363400406,null,null,"sheepDalaadult","sheep","Dala","adult",115,6.4824613043237838]
["Rodentia",null,"guinea pig","unspecified","M","M","1 year or older","adult","adult",1,"USEPA, 1987",1000,0.58799999999999997,0.86399999999999999,390.84089579240191,229.8144467259323,0.22981444672593229,null,"pigeonpigeonFadult","pigeon","pigeon","F","adult",0.34,0.11458005591115758,null,null,"sheepdomesticjuvenile","sheep","domestic","juvenile",46.81,3.235878988470049]
["Rodentia",null,"guinea pig","unspecified","F","F","weaning to 90 days","juvenile","juvenile",0.39,"USEPA, 1987",390,0.58799999999999997,0.86399999999999999,173.25262381018561,101.87254280038913,0.10187254280038913,null,"pigeonpigeonMadult","pigeon","pigeon","M","adult",0.36899999999999999,0.12122752043523936,null,null,"sheepOld Norseadult","sheep","Old Norse","adult",43,3.0303418149317309]
["Rodentia",null,"guinea pig","unspecified","F","F","90 days to 1 year","juvenile","juvenile",0.86,"USEPA, 1987",860,0.58799999999999997,0.86399999999999999,343.08889555794661,201.73627058807259,0.20173627058807259,null,"quailbobwhiteFadult","quail","bobwhite","F","adult",0.17,7.1072135166891467E-2,null,null,"sheepunspecifiedadult","sheep","unspecified","adult",70,4.4165310429684048]
["Rodentia",null,"guinea pig","unspecified","F","F","1 year or older","adult","adult",0.9,"USEPA, 1987",900,0.58799999999999997,0.86399999999999999,356.8334247364092,209.8180537450086,0.20981805374500859,null,"quailbobwhiteMadult","quail","bobwhite","M","adult",0.16,6.8164573865858349E-2,null,null,"sheepunspecifiedjuvenile","sheep","unspecified","juvenile",59.1,3.8748743578793241]
["Rodentia",null,"hamster","golden Syrian","M","M","weaning to 90 days","juvenile","juvenile",9.7000000000000003E-2,"USEPA, 1987",97,0.58799999999999997,0.86399999999999999,52.067985880342704,30.61597569764151,3.0615975697641511E-2,null,"quailJapaneseFadult","quail","Japanese","F","adult",0.1,4.9308302992157119E-2,null,null,"shrewshort-tailedadult","shrew","short-tailed","adult",1.7000000000000001E-2,6.799628634934155E-3]
["Rodentia",null,"hamster","golden Syrian","M","M","90 days to 1 year","juvenile","juvenile",0.13400000000000001,"USEPA, 1987",134,0.58799999999999997,0.86399999999999999,68.836462803531589,40.47584012847657,4.0475840128476569E-2,null,"quailJapaneseMadult","quail","Japanese","M","adult",0.09,4.5855680734433663E-2,null,null,"sparrowwhite-throatedadult","sparrow","white-throated","adult",2.5899999999999999E-2,1.7575458280542619E-2]
["Rodentia",null,"hamster","golden Syrian","M","M","1 year or older","adult","adult",0.15,"USEPA, 1987",150,0.58799999999999997,0.86399999999999999,75.882712685062458,44.619035058816721,4.4619035058816724E-2,null,"rabbitunspecifiedFadult","rabbit","unspecified","F","adult",4.0999999999999996,0.4926090924502739,null,null,"starlingstarlingadult","starling","starling","adult",8.4699999999999998E-2,3.6079368824565035E-2]
["Rodentia",null,"hamster","golden Syrian","F","F","weaning to 90 days","juvenile","juvenile",9.5000000000000001E-2,"USEPA, 1987",95,0.58799999999999997,0.86399999999999999,51.13911346918259,30.069798719879362,3.0069798719879363E-2,null,"rabbitunspecifiedFjuvenile","rabbit","unspecified","F","juvenile",3.93,0.47674477706254448,null,null,"turkeydomesticadult","turkey","domestic","adult",24.5,2.1830088085846704]
["Rodentia",null,"hamster","golden Syrian","F","F","90 days to 1 year","juvenile","juvenile",0.14499999999999999,"USEPA, 1987",145,0.58799999999999997,0.86399999999999999,73.69227327373774,43.331056684957787,4.3331056684957785E-2,null,"rabbitunspecifiedMadult","rabbit","unspecified","M","adult",4,0.48329563834004141,null,null,"turkeydomesticjuvenile","turkey","domestic","juvenile",23.2,2.1025255282679809]
["Rodentia",null,"hamster","golden Syrian","F","F","1 year or older","adult","adult",0.16,"USEPA, 1987",160,0.58799999999999997,0.86399999999999999,80.234225552305872,47.177724624755854,4.7177724624755855E-2,null,"rabbitunspecifiedMjuvenile","rabbit","unspecified","M","juvenile",3.76,0.46072386259655085,null,null,"volemeadow voleadult","vole","meadow vole","adult",4.2999999999999997E-2,1.5159820941165835E-2]
["Rodentia",null,"hamster","Chinese & Djungarain","M","M","weaning to 90 days","juvenile","juvenile",0.03,"USEPA, 1987",30,0.58799999999999997,0.86399999999999999,18.890035064456846,11.107340617900626,1.1107340617900625E-2,null,"ratFischer 344Fadult","rat","Fischer 344","F","adult",0.25,6.9374121016192627E-2,null,null,"voleprairie voleadult","vole","prairie vole","adult",4.2000000000000003E-2,1.4854728307487028E-2]
["Rodentia",null,"hamster","Chinese & Djungarain","M","M","90 days to 1 year","juvenile","juvenile",4.1000000000000002E-2,"USEPA, 1987",41,0.58799999999999997,0.86399999999999999,24.742595329171689,14.548646053552952,1.4548646053552952E-2,null,"ratFischer 344Fjuvenile","rat","Fischer 344","F","juvenile",0.22900000000000001,6.4309507377034572E-2,null,null,"blackbirdred wingedadult","blackbird","red winged","adult",6.3600000000000004E-2,3.0320207595231186E-2]
["Rodentia",null,"hamster","Chinese & Djungarain","M","M","1 year or older","adult","adult",0.04,"USEPA, 1987",40,0.58799999999999997,0.86399999999999999,24.220317531839811,14.241546708721808,1.4241546708721808E-2,null,"ratFischer 344Madult","rat","Fischer 344","M","adult",0.4,0.10412551408001137]
["Rodentia",null,"hamster","Chinese & Djungarain","F","F","weaning to 90 days","juvenile","juvenile",2.5000000000000001E-2,"USEPA, 1987",25,0.58799999999999997,0.86399999999999999,16.13690222180638,9.4884985064221503,9.4884985064221505E-3,null,"ratFischer 344Mjuvenile","rat","Fischer 344","M","juvenile",0.38,9.9611700368156642E-2]
["Rodentia",null,"hamster","Chinese & Djungarain","F","F","90 days to 1 year","juvenile","juvenile",3.7999999999999999E-2,"USEPA, 1987",38,0.58799999999999997,0.86399999999999999,23.17037312247356,13.624179396014453,1.3624179396014452E-2,null,"ratLong-EvansFadult","rat","Long-Evans","F","adult",0.35,9.2779518943126374E-2]
["Rodentia",null,"hamster","Chinese & Djungarain","F","F","1 year or older","adult","adult",3.5000000000000003E-2,"USEPA, 1987",35,0.58799999999999997,0.86399999999999999,21.581160286297632,12.689722248343006,1.2689722248343006E-2,null,"ratLong-EvansFjuvenile","rat","Long-Evans","F","juvenile",0.34399999999999997,9.1403709309093778E-2]
["Rodentia",null,"hamster","unspecified","M","M","weaning to 90 days","juvenile","juvenile",6.3500000000000001E-2,"USEPA, 1987",63.5,0.58799999999999997,0.86399999999999999,36.107423405358659,21.231164962350892,2.1231164962350894E-2,null,"ratLong-EvansMadult","rat","Long-Evans","M","adult",0.5,0.12626628702244388]
["Rodentia",null,"hamster","unspecified","M","M","90 days to 1 year","juvenile","juvenile",8.7499999999999994E-2,"USEPA, 1987",87.5,0.58799999999999997,0.86399999999999999,47.631576705475695,28.007367102819707,2.8007367102819706E-2,null,"ratLong-EvansMjuvenile","rat","Long-Evans","M","juvenile",0.47199999999999998,0.12013324628431137]
["Rodentia",null,"hamster","unspecified","M","M","1 year or older","adult","adult",9.5000000000000001E-2,"USEPA, 1987",95,0.58799999999999997,0.86399999999999999,51.13911346918259,30.069798719879362,3.0069798719879363E-2,null,"ratOsborne-MendelFadult","rat","Osborne-Mendel","F","adult",0.4,0.10412551408001137]
["Rodentia",null,"hamster","unspecified","F","F","weaning to 90 days","juvenile","juvenile",0.24249999999999999,"USEPA, 1987",242.5,0.58799999999999997,0.86399999999999999,114.9187638874926,67.572233165845645,6.7572233165845652E-2,null,"ratOsborne-MendelFjuvenile","rat","Osborne-Mendel","F","juvenile",0.38900000000000001,0.10164681654754951]
["Rodentia",null,"hamster","unspecified","F","F","90 days to 1 year","juvenile","juvenile",0.50249999999999995,"USEPA, 1987",502.49999999999994,0.58799999999999997,0.86399999999999999,215.66593923921999,126.81157227266135,0.12681157227266135,null,"ratOsborne-MendelMadult","rat","Osborne-Mendel","M","adult",0.55000000000000004,0.13710417814995979]
["Rodentia",null,"hamster","unspecified","F","F","1 year or older","adult","adult",1.03,"USEPA, 1987",1030,0.58799999999999997,0.86399999999999999,400.9510564742593,235.75922120686445,0.23575922120686446,null,"ratOsborne-MendelMjuvenile","rat","Osborne-Mendel","M","juvenile",0.51400000000000001,0.12931516577414565]
["All mammals",null,"horse","unspecified","B","B","> 2 year","adult","adult",498.95,"Jurgens, 1993",498950,0.79400000000000004,0.77300000000000002,25386.222482112269,20156.660650797141,20.156660650797139,null,"ratSprague-DawleyFadult","rat","Sprague-Dawley","F","adult",0.35,9.2779518943126374E-2]
["All mammals",null,"horse","unspecified","M","M","2 to 5 months","foal","juvenile",181.44,"Jurgens, 1993",181440,0.79400000000000004,0.77300000000000002,11614.503194397357,9221.9155363515019,9.2219155363515011,null,"ratSprague-DawleyFjuvenile","rat","Sprague-Dawley","F","juvenile",0.33800000000000002,9.0024632075677943E-2]
["All mammals",null,"horse","unspecified","M","M","5 to 12 months","weanling","juvenile",317.51,"Jurgens, 1993",317510,0.79400000000000004,0.77300000000000002,17900.224439999482,14212.778205359589,14.212778205359589,null,"ratSprague-DawleyMadult","rat","Sprague-Dawley","M","adult",0.6,0.14780870309107813]
["All mammals",null,"horse","unspecified","M","M","12 to 24 months","yearling","juvenile",408.23,"Jurgens, 1993",408230,0.79400000000000004,0.77300000000000002,21738.496357465625,17260.366107827707,17.260366107827707,null,"ratSprague-DawleyMjuvenile","rat","Sprague-Dawley","M","juvenile",0.52300000000000002,0.13126918390393919]
["Carnivorous birds",null,"kestrel","American","F","F","unspecified","adult","adult",0.13200000000000001,"Dunning, 1993",132,3.048,0.66500000000000004,25.714711975434007,78.378442101122857,7.8378442101122853E-2,null,"ratunspecifiedFadult","rat","unspecified","F","adult",0.4,0.10412551408001137]
["Carnivorous birds",null,"kestrel","American","M","M","unspecified","adult","adult",0.114,"Dunning, 1993",114,3.048,0.66500000000000004,23.326078140212758,71.097886171368486,7.1097886171368488E-2,null,"ratunspecifiedFjuvenile","rat","unspecified","F","juvenile",0.3846,0.10065268021195795]
["Carnivorous birds",null,"kestrel","American","F","F","unspecified","egg-laying","adult",0.13800000000000001,"Dunning, 1993",138,3.048,0.66500000000000004,26.486196238805604,80.729926135879481,8.0729926135879482E-2,null,"ratunspecifiedMadult","rat","unspecified","M","adult",0.51,0.12844522333919098]
["Carnivorous birds",null,"kestrel","American","F","F","unspecified","incubating","adult",0.11899999999999999,"Dunning, 1993",119,3.048,0.66500000000000004,24.001519069781725,73.156630124694701,7.3156630124694699E-2,null,"ratunspecifiedMjuvenile","rat","unspecified","M","juvenile",0.47020000000000001,0.11973731462290967]
["Carnivora",null,"mink","unspecified","M","M","weaning to 49 days","juvenile","juvenile",1.02,"USEPA 1993",1020,0.34799999999999998,0.85899999999999999,384.04980376908168,133.64933171164043,0.13364933171164042,null,"ratWistarFadult","rat","Wistar","F","adult",0.32,8.5867122080650587E-2]
["Carnivora",null,"mink","unspecified","F","F","weaning to 49 days","juvenile","juvenile",0.58299999999999996,"USEPA 1993",583,0.34799999999999998,0.85899999999999999,237.52497909358712,82.658692724568311,8.2658692724568314E-2,null,"ratWistarFjuvenile","rat","Wistar","F","juvenile",0.29699999999999999,8.0507974114530242E-2]
["Carnivora",null,"mink","unspecified","M","M","> 1 year","adult","adult",1.18,"USEPA 1993",1180,0.34799999999999998,0.85899999999999999,435.25788186110003,151.46974288766279,0.15146974288766279,null,"ratWistarMadult","rat","Wistar","M","adult",0.5,0.12626628702244388]
["Carnivora",null,"mink","unspecified","F","F","> 1 year","adult","adult",0.59599999999999997,"USEPA 1993",596,0.34799999999999998,0.85899999999999999,242.06752907839254,84.239500119280592,8.4239500119280594E-2,null,"ratWistarMjuvenile","rat","Wistar","M","juvenile",0.46200000000000002,0.11793100320048688]
["Rodentia",null,"mouse","BAF1","M","M","weaning to 90 days","juvenile","juvenile",2.23E-2,"USEPA, 1987",22.3,0.58799999999999997,0.86399999999999999,14.619597018018009,8.5963230465945895,8.5963230465945888E-3,null,"sheepChun forestFadult","sheep","Chun forest","F","adult",73,4.5621448826686786]
["Rodentia",null,"mouse","BAF1","M","M","90 days to 1 year","juvenile","juvenile",2.6100000000000002E-2,"USEPA, 1987",26.1,0.58799999999999997,0.86399999999999999,16.74855710507488,9.8481515777840283,9.8481515777840284E-3,null,"sheepChun forestMadult","sheep","Chun forest","M","adult",91.5,5.4324909079647563]
["Rodentia",null,"mouse","BAF1","M","M","1 year or older","adult","adult",3.5000000000000003E-2,"USEPA, 1987",35,0.58799999999999997,0.86399999999999999,21.581160286297632,12.689722248343006,1.2689722248343006E-2,null,"sheepDalaFadult","sheep","Dala","F","adult",80,4.8967627452101441]
["Rodentia",null,"mouse","BAF1","F","F","weaning to 90 days","juvenile","juvenile",2.0400000000000001E-2,"USEPA, 1987",20.400000000000002,0.58799999999999997,0.86399999999999999,13.536938774059426,7.9597199991469418,7.959719999146941E-3,null,"sheepDalaMadult","sheep","Dala","M","adult",115,6.4824613043237838]
["Rodentia",null,"mouse","BAF1","F","F","90 days to 1 year","juvenile","juvenile",2.2200000000000001E-2,"USEPA, 1987",22.2,0.58799999999999997,0.86399999999999999,14.562936972788165,8.5630069399994415,8.5630069399994409E-3,null,"sheepOld NorseFadult","sheep","Old Norse","F","adult",32,2.4115786795416958]
["Rodentia",null,"mouse","BAF1","F","F","1 year or older","adult","adult",0.03,"USEPA, 1987",30,0.58799999999999997,0.86399999999999999,18.890035064456846,11.107340617900626,1.1107340617900625E-2,null,"sheepOld NorseMadult","sheep","Old Norse","M","adult",43,3.0303418149317309]
["Rodentia",null,"mouse","B6C3F1","M","M","weaning to 90 days","juvenile","juvenile",3.1600000000000003E-2,"USEPA, 1987",31.6,0.58799999999999997,0.86399999999999999,19.757393035066318,11.617347104618995,1.1617347104618994E-2,null,"sheepunspecifiedFadult","sheep","unspecified","F","adult",70,4.4165310429684048]
["Rodentia",null,"mouse","B6C3F1","M","M","90 days to 1 year","juvenile","juvenile",3.73E-2,"USEPA, 1987",37.299999999999997,0.58799999999999997,0.86399999999999999,22.801133148599654,13.407066291376596,1.3407066291376597E-2,null,"shrewshort-tailedFadult","shrew","short-tailed","F","adult",1.7000000000000001E-2,6.799628634934155E-3]
["Rodentia",null,"mouse","B6C3F1","M","M","1 year or older","adult","adult",0.04,"USEPA, 1987",40,0.58799999999999997,0.86399999999999999,24.220317531839811,14.241546708721808,1.4241546708721808E-2,null,"shrewshort-tailedMadult","shrew","short-tailed","M","adult",1.7000000000000001E-2,6.799628634934155E-3]
["Rodentia",null,"mouse","B6C3F1","F","F","weaning to 90 days","juvenile","juvenile",2.46E-2,"USEPA, 1987",24.6,0.58799999999999997,0.86399999999999999,15.913581495046873,9.357185919087561,9.3571859190875618E-3,null,"starlingstarlingFadult","starling","starling","F","adult",7.9899999999999999E-2,3.4824075548724104E-2]
["Rodentia",null,"mouse","B6C3F1","F","F","90 days to 1 year","juvenile","juvenile",3.5299999999999998E-2,"USEPA, 1987",35.299999999999997,0.58799999999999997,0.86399999999999999,21.740891339802737,12.783644107804008,1.2783644107804009E-2,null,"starlingstarlingMadult","starling","starling","M","adult",8.4699999999999998E-2,3.6079368824565035E-2]
["Rodentia",null,"mouse","B6C3F1","F","F","1 year or older","adult","adult",3.5000000000000003E-2,"USEPA, 1987",35,0.58799999999999997,0.86399999999999999,21.581160286297632,12.689722248343006,1.2689722248343006E-2,null,"turkeydomesticFadult","turkey","domestic","F","adult",10.6,1.2256198811283039]
["Rodentia",null,"mouse","deer mouse","M","M","Adult","adult","adult",0.02,"USEPA, 1993",20,0.58799999999999997,0.86399999999999999,13.307299035456706,7.8246918328485426,7.8246918328485418E-3,null,"turkeydomesticFjuvenile","turkey","domestic","F","juvenile",11.5,1.2964055093664457]
["Rodentia",null,"mouse","deer mouse","F","F","Adult","adult","adult",1.9E-2,"USEPA, 1993",19,0.58799999999999997,0.86399999999999999,12.73043111423002,7.4854934951672512,7.4854934951672511E-3,null,"turkeydomesticMadult","turkey","domestic","M","adult",24.5,2.1830088085846704]
["Rodentia",null,"mouse","unspecified","M","M","weaning to 90 days","juvenile","juvenile",2.6950000000000002E-2,"USEPA, 1987",26.950000000000003,0.58799999999999997,0.86399999999999999,17.218795846042507,10.124651957472993,1.0124651957472993E-2,null,"turkeydomesticMjuvenile","turkey","domestic","M","juvenile",23.2,2.1025255282679809]
["Rodentia",null,"mouse","unspecified","M","M","90 days to 1 year","juvenile","juvenile",3.1699999999999999E-2,"USEPA, 1987",31.7,0.58799999999999997,0.86399999999999999,19.811401638237776,11.649104163283811,1.164910416328381E-2,null,"volemeadow voleFadult","vole","meadow vole","F","adult",3.9E-2,1.393340133248391E-2]
["Rodentia",null,"mouse","unspecified","M","M","1 year or older","adult","adult",3.7499999999999999E-2,"USEPA, 1987",37.5,0.58799999999999997,0.86399999999999999,22.90672569913977,13.469154711094184,1.3469154711094184E-2,null,"volemeadow voleMadult","vole","meadow vole","M","adult",4.2999999999999997E-2,1.5159820941165835E-2]
["Rodentia",null,"mouse","unspecified","F","F","weaning to 90 days","juvenile","juvenile",2.2499999999999999E-2,"USEPA, 1987",22.5,0.58799999999999997,0.86399999999999999,14.732813649834235,8.6628944261025289,8.6628944261025291E-3,null,"blackbirdred wingedFadult","blackbird","red winged","F","adult",4.1500000000000002E-2,2.3398547350348301E-2]
["Rodentia",null,"mouse","unspecified","F","F","90 days to 1 year","juvenile","juvenile",2.8750000000000001E-2,"USEPA, 1987",28.75,0.58799999999999997,0.86399999999999999,18.208035923588103,10.706325123069803,1.0706325123069804E-2,null,"blackbirdred wingedMadult","blackbird","red winged","M","adult",6.3600000000000004E-2,3.0320207595231186E-2]
["Rodentia",null,"mouse","unspecified","F","F","1 year or older","adult","adult",3.2500000000000001E-2,"USEPA, 1987",32.5,0.58799999999999997,0.86399999999999999,20.242643370198241,11.902674301676566,1.1902674301676566E-2]
["All birds ","A","pheasant","ring-necked","F","F","Adult","adult","adult",0.95,"Dunning, 1993",950,2.0649999999999999,0.68899999999999995,112.62934644673086,232.57960041249922,0.23257960041249923]
["All birds ","A","pheasant","ring-necked","M","M","Adult","adult","adult",1.3,"Dunning, 1993",1300,2.0649999999999999,0.68899999999999995,139.79993508207937,288.68686594449389,0.28868686594449389]
["Carnivorous birds",null,"owl","barn owl","M","M","Adult","adult","adult",0.47899999999999998,"Dunning, 1993",479,3.048,0.66500000000000004,60.593092248435966,184.68774517323283,0.18468774517323283]
["Carnivorous birds",null,"owl","barn owl","F","F","Adult","adult","adult",0.56799999999999995,"Dunning, 1993",568,3.048,0.66500000000000004,67.864342099494834,206.85051471926025,0.20685051471926025]
["All birds ","B","pigeon","pigeon","F","F","Adult","adult","adult",0.34,"Dunning, 1993",340,2.0649999999999999,0.68899999999999995,55.486709884337813,114.58005591115759,0.11458005591115758]
["All birds ","B","pigeon","pigeon","M","M","Adult","adult","adult",0.36899999999999999,"Dunning, 1993",369,2.0649999999999999,0.68899999999999995,58.705821034014221,121.22752043523937,0.12122752043523936]
["All mammals",null,"pig","miniature","M","M","Adult","adult","adult",72.5,"USEPA, 1987",72500,0.79400000000000004,0.77300000000000002,{"$f":"L132^N132","v":5715.3295749363224},{"$f":"M132*O132","v":4537.9716824994402},{"$f":"P132/1000","v":4.5379716824994398}]
["All mammals",null,"pig","miniature","F","F","Adult","adult","adult",72.5,"USEPA, 1987",{"$f":"J133*1000","v":72500},0.79400000000000004,0.77300000000000002,5715.3295749363224,4537.9716824994402,4.5379716824994398]
["All mammals",null,"pig","unspecified","BH","B","1 d","juvenile","juvenile",1.2,"Spears et al, 1984",1200,0.79400000000000004,0.77300000000000002,239.99771298199946,190.55818410770758,0.19055818410770758]
["All mammals",null,"pig","unspecified","BH","B","21 to 25 days","juvenile","juvenile",6.6,"USEPA 2005",6600,0.79400000000000004,0.77300000000000002,896.41158822176521,711.7508010480816,0.71175080104808164]
["All mammals",null,"pig","unspecified","BH","B","26 to 29 days","juvenile","juvenile",7.9,"USEPA 2005",7900,0.79400000000000004,0.77300000000000002,1030.0676345976881,817.87370187056433,0.8178737018705643]
["All mammals",null,"pig","unspecified","BH","B","30 TO 35 days","juvenile","juvenile",9.3000000000000007,"USEPA 2005",9300,0.79400000000000004,0.77300000000000002,1168.5231458741384,927.80737782406595,0.92780737782406597]
["All mammals",null,"pig","unspecified","BH","B","36 to 66 days","juvenile","juvenile",31.5,"USEPA 2005",31500,0.79400000000000004,0.77300000000000002,3000.5029499473512,2382.3993422581971,2.3823993422581973]
["All mammals",null,"pig","unspecified","BH","B","67 to 150 days","juvenile","juvenile",61,"USEPA 2005",61000,0.79400000000000004,0.77300000000000002,5001.0357884855885,3970.8224160575573,3.9708224160575574]
["All mammals",null,"pig","unspecified","BH","B","151 to 299 days","juvenile","juvenile",61,"USEPA 2005",61000,0.79400000000000004,0.77300000000000002,5001.0357884855885,3970.8224160575573,3.9708224160575574]
["All mammals",null,"pig","unspecified","BH","B","> 299 days","adult","adult",104,"USEPA 2005",104000,0.79400000000000004,0.77300000000000002,7553.8224258057353,5997.7350060897543,5.9977350060897541]
["All mammals",null,"pig","unspecified","F","F","Adult","Gestation","adult",152,"Cromwell et al., 1993",152000,0.79400000000000004,0.77300000000000002,10128.965536952192,8042.3986363400409,8.0423986363400406]
["All birds ","A","quail","Japanese","F","F","Adult","adult","adult",0.1,"Dunning, 1993",100,2.0649999999999999,0.68899999999999995,23.878112829131776,49.308302992157117,4.9308302992157119E-2]
["All birds ","A","quail","Japanese","M","M","Adult","adult","adult",0.09,"Dunning, 1993",90,2.0649999999999999,0.68899999999999995,22.206140791493301,45.855680734433662,4.5855680734433663E-2]
["All birds ","A","quail","Japanese","BH","B","0 to 1 days","juvenile","juvenile",7.0449999999999999E-2,"USEPA, 2005",70.45,2.0649999999999999,0.68899999999999995,18.758150123364743,38.735580004748194,3.8735580004748194E-2]
["All birds ","A","quail","Japanese","BH","B","7 to 8 days","juvenile","juvenile",0.10299999999999999,"USEPA, 2005",103,2.0649999999999999,0.68899999999999995,24.369400633388814,50.322812307947899,5.0322812307947898E-2]
["All birds ","A","quail","Japanese","BH","B","14 to 28 days","juvenile","juvenile",0.12,"USEPA, 2005",120,2.0649999999999999,0.68899999999999995,27.074215320736542,55.908254637320958,5.5908254637320957E-2]
["All birds ","A","quail","Japanese","BH","B","29 to 59 days","juvenile","juvenile",0.13200000000000001,"USEPA, 2005",132,2.0649999999999999,0.68899999999999995,28.911820480517825,59.702909292269304,5.9702909292269304E-2]
["All birds ","A","quail","Japanese","BH","B","60 to 154 days","juvenile","adult",0.13500000000000001,"USEPA, 2005",135,2.0649999999999999,0.68899999999999995,29.362968992137947,60.634530968764857,6.0634530968764859E-2]
["All birds ","A","quail","bobwhite","F","F","Adult","adult","adult",0.17,"USEPA, 1993",170,2.0649999999999999,0.68899999999999995,34.41749887016536,71.072135166891471,7.1072135166891467E-2]
["All birds ","A","quail","bobwhite","M","M","Adult","adult","adult",0.16,"USEPA, 1993",160,2.0649999999999999,0.68899999999999995,33.00947886966506,68.164573865858344,6.8164573865858349E-2]
["All birds ","A","quail","bobwhite","JV","B","10 days","juvenile","juvenile",1.2E-2,"USEPA, 1993",12,2.0649999999999999,0.68899999999999995,5.5405882736650316,11.441314785118291,1.1441314785118291E-2]
["All birds ","A","quail","bobwhite","BH","B","18 days","juvenile","juvenile",3.4000000000000002E-2,"Landis Assoc.Inc, 1985",34,2.0649999999999999,0.68899999999999995,11.355047985230106,23.448174089500167,2.3448174089500166E-2]
["All birds ","A","quail","bobwhite","JV","B","30 days","juvenile","juvenile",0.04,"USEPA, 1993",40,2.0649999999999999,0.68899999999999995,12.700456578540489,26.226442834686111,2.6226442834686111E-2]
["All mammals",null,"rabbit","unspecified","M","M","weaning to 90 days","juvenile","juvenile",2.86,"USEPA, 1987",2860,0.79400000000000004,0.77300000000000002,469.64634153825779,372.89919518137668,0.37289919518137671]
["All mammals",null,"rabbit","unspecified","M","M","90 days to 1 year","juvenile","juvenile",3.76,"USEPA, 1987",3760,0.79400000000000004,0.77300000000000002,580.25675389993808,460.72386259655087,0.46072386259655085]
["All mammals",null,"rabbit","unspecified","M","M","1 year or older","adult","adult",4,"USEPA, 1987",4000,0.79400000000000004,0.77300000000000002,608.68468304791111,483.29563834004142,0.48329563834004141]
["All mammals",null,"rabbit","unspecified","F","F","weaning to 90 days","juvenile","juvenile",3.1,"USEPA, 1987",3100,0.79400000000000004,0.77300000000000002,499.83031100768096,396.86526694009871,0.39686526694009872]
["All mammals",null,"rabbit","unspecified","F","F","90 days to 1 year","juvenile","juvenile",3.93,"USEPA, 1987",3930,0.79400000000000004,0.77300000000000002,600.43422803846909,476.74477706254447,0.47674477706254448]
["All mammals",null,"rabbit","unspecified","F","F","1 year or older","adult","adult",4.0999999999999996,"USEPA, 1987",4100,0.79400000000000004,0.77300000000000002,620.41447411873287,492.60909245027392,0.4926090924502739]
["Rodentia",null,"rat","Fischer 344","M","M","weaning to 90 days","juvenile","juvenile",0.18,"USEPA, 1987",180,0.58799999999999997,0.86399999999999999,88.829137321653519,52.231532745132263,5.2231532745132266E-2]
["Rodentia",null,"rat","Fischer 344","M","M","90 days to 1 year","juvenile","juvenile",0.38,"USEPA, 1987",380,0.58799999999999997,0.86399999999999999,169.40765368734125,99.611700368156647,9.9611700368156642E-2]
["Rodentia",null,"rat","Fischer 344","M","M","1 year or older","adult","adult",0.4,"USEPA, 1987",400,0.58799999999999997,0.86399999999999999,177.08420761906697,104.12551408001137,0.10412551408001137]
["Rodentia",null,"rat","Fischer 344","F","F","weaning to 90 days","juvenile","juvenile",0.124,"USEPA, 1987",124,0.58799999999999997,0.86399999999999999,64.374865694503711,37.852421028368177,3.785242102836818E-2]
["Rodentia",null,"rat","Fischer 344","F","F","90 days to 1 year","juvenile","juvenile",0.22900000000000001,"USEPA, 1987",229,0.58799999999999997,0.86399999999999999,109.36991050516086,64.309507377034578,6.4309507377034572E-2]
["Rodentia",null,"rat","Fischer 344","F","F","1 year or older","adult","adult",0.25,"USEPA, 1987",250,0.58799999999999997,0.86399999999999999,117.98319900713034,69.374121016192632,6.9374121016192627E-2]
["Rodentia",null,"rat","Long-Evans","M","M","weaning to 90 days","juvenile","juvenile",0.248,"USEPA, 1987",248,0.58799999999999997,0.86399999999999999,117.16725415398385,68.894345442542502,6.8894345442542498E-2]
["Rodentia",null,"rat","Long-Evans","M","M","90 days to 1 year","juvenile","juvenile",0.47199999999999998,"USEPA, 1987",472,0.58799999999999997,0.86399999999999999,204.30824198012138,120.13324628431137,0.12013324628431137]
["Rodentia",null,"rat","Long-Evans","M","M","1 year or older","adult","adult",0.5,"USEPA, 1987",500,0.58799999999999997,0.86399999999999999,214.73858337150324,126.26628702244389,0.12626628702244388]
["Rodentia",null,"rat","Long-Evans","F","F","weaning to 90 days","juvenile","juvenile",0.17899999999999999,"USEPA, 1987",179,0.58799999999999997,0.86399999999999999,88.402596045807172,51.980726474934613,5.198072647493461E-2]
["Rodentia",null,"rat","Long-Evans","F","F","90 days to 1 year","juvenile","juvenile",0.34399999999999997,"USEPA, 1987",344,0.58799999999999997,0.86399999999999999,155.44848521954725,91.403709309093784,9.1403709309093778E-2]
["Rodentia",null,"rat","Long-Evans","F","F","1 year or older","adult","adult",0.35,"USEPA, 1987",350,0.58799999999999997,0.86399999999999999,157.78829752232377,92.779518943126376,9.2779518943126374E-2]
["Rodentia",null,"rat","Osborne-Mendel","M","M","weaning to 90 days","juvenile","juvenile",0.26300000000000001,"USEPA, 1987",263,0.58799999999999997,0.86399999999999999,123.26556386842174,72.480151554631973,7.2480151554631972E-2]
["Rodentia",null,"rat","Osborne-Mendel","M","M","90 days to 1 year","juvenile","juvenile",0.51400000000000001,"USEPA, 1987",514,0.58799999999999997,0.86399999999999999,219.92375131657423,129.31516577414564,0.12931516577414565]
["Rodentia",null,"rat","Osborne-Mendel","M","M","1 year or older","adult","adult",0.55000000000000004,"USEPA, 1987",550,0.58799999999999997,0.86399999999999999,233.17037100333297,137.10417814995978,0.13710417814995979]
["Rodentia",null,"rat","Osborne-Mendel","F","F","weaning to 90 days","juvenile","juvenile",0.20100000000000001,"USEPA, 1987",201,0.58799999999999997,0.86399999999999999,97.715035380751459,57.456440803881854,5.7456440803881854E-2]
["Rodentia",null,"rat","Osborne-Mendel","F","F","90 days to 1 year","juvenile","juvenile",0.38900000000000001,"USEPA, 1987",389,0.58799999999999997,0.86399999999999999,172.86873562508421,101.64681654754951,0.10164681654754951]
["Rodentia",null,"rat","Osborne-Mendel","F","F","1 year or older","adult","adult",0.4,"USEPA, 1987",400,0.58799999999999997,0.86399999999999999,177.08420761906697,104.12551408001137,0.10412551408001137]
["Rodentia",null,"rat","Sprague-Dawley","M","M","weaning to 90 days","juvenile","juvenile",0.26700000000000002,"USEPA, 1987",267,0.58799999999999997,0.86399999999999999,124.88369208814916,73.4316109478317,7.3431610947831696E-2]
["Rodentia",null,"rat","Sprague-Dawley","M","M","90 days to 1 year","juvenile","juvenile",0.52300000000000002,"USEPA, 1987",523,0.58799999999999997,0.86399999999999999,223.24691140125717,131.26918390393919,0.13126918390393919]
["Rodentia",null,"rat","Sprague-Dawley","M","M","1 year or older","adult","adult",0.6,"USEPA, 1987",600,0.58799999999999997,0.86399999999999999,251.37534539299006,147.80870309107814,0.14780870309107813]
["Rodentia",null,"rat","Sprague-Dawley","F","F","weaning to 90 days","juvenile","juvenile",0.20399999999999999,"USEPA, 1987",204,0.58799999999999997,0.86399999999999999,98.973850084369403,58.196623849609203,5.8196623849609205E-2]
["Rodentia",null,"rat","Sprague-Dawley","F","F","90 days to 1 year","juvenile","juvenile",0.33800000000000002,"USEPA, 1987",338,0.58799999999999997,0.86399999999999999,153.1031157749625,90.024632075677943,9.0024632075677943E-2]
["Rodentia",null,"rat","Sprague-Dawley","F","F","1 year or older","adult","adult",0.35,"USEPA, 1987",350,0.58799999999999997,0.86399999999999999,157.78829752232377,92.779518943126376,9.2779518943126374E-2]
["Rodentia",null,"rat","Wistar","M","M","weaning to 90 days","juvenile","juvenile",0.217,"USEPA, 1987",217,0.58799999999999997,0.86399999999999999,104.40017100842782,61.387300552955551,6.1387300552955548E-2]
["Rodentia",null,"rat","Wistar","M","M","90 days to 1 year","juvenile","juvenile",0.46200000000000002,"USEPA, 1987",462,0.58799999999999997,0.86399999999999999,200.56293061307295,117.93100320048688,0.11793100320048688]
["Rodentia",null,"rat","Wistar","M","M","1 year or older","adult","adult",0.5,"USEPA, 1987",500,0.58799999999999997,0.86399999999999999,214.73858337150324,126.26628702244389,0.12626628702244388]
["Rodentia",null,"rat","Wistar","F","F","weaning to 90 days","juvenile","juvenile",0.156,"USEPA, 1987",156,0.58799999999999997,0.86399999999999999,78.498191810631596,46.156936784651379,4.6156936784651381E-2]
["Rodentia",null,"rat","Wistar","F","F","90 days to 1 year","juvenile","juvenile",0.29699999999999999,"USEPA, 1987",297,0.58799999999999997,0.86399999999999999,136.91832332403104,80.507974114530242,8.0507974114530242E-2]
["Rodentia",null,"rat","Wistar","F","F","1 year or older","adult","adult",0.32,"USEPA, 1987",320,0.58799999999999997,0.86399999999999999,146.03252054532413,85.867122080650589,8.5867122080650587E-2]
["Rodentia",null,"rat","unspecified","M","M","weaning to 90 days","juvenile","juvenile",0.23499999999999999,"USEPA, 1987",235,0.58799999999999997,0.86399999999999999,111.8414098342943,65.762748982565043,6.5762748982565039E-2]
["Rodentia",null,"rat","unspecified","M","M","90 days to 1 year","juvenile","juvenile",0.47020000000000001,"USEPA, 1987",470.2,0.58799999999999997,0.86399999999999999,203.63488881447222,119.73731462290966,0.11973731462290967]
["Rodentia",null,"rat","unspecified","M","M","1 year or older","adult","adult",0.51,"USEPA, 1987",510,0.58799999999999997,0.86399999999999999,218.44425737957653,128.44522333919099,0.12844522333919098]
["Rodentia",null,"rat","unspecified","F","F","weaning to 90 days","juvenile","juvenile",0.2024,"USEPA, 1987",202.4,0.58799999999999997,0.86399999999999999,98.302797930303853,57.802045183018663,5.7802045183018666E-2]
["Rodentia",null,"rat","unspecified","F","F","90 days to 1 year","juvenile","juvenile",0.3846,"USEPA, 1987",384.6,0.58799999999999997,0.86399999999999999,171.17802757135706,100.65268021195794,0.10065268021195795]
["Rodentia",null,"rat","unspecified","F","F","1 year or older","adult","adult",0.4,"USEPA, 1987",400,0.58799999999999997,0.86399999999999999,{"$f":"L196^N196","v":177.08420761906697},{"$f":"M196*O196","v":104.12551408001137},{"$f":"P196/1000","v":0.10412551408001137}]
["Passerines",null,"blackbird","red winged","M","M","not specified","adult","adult",6.3600000000000004E-2,"Dunning, 1993",{"$f":"J197*1000","v":63.6},2.4380000000000002,0.60699999999999998,12.436508447592773,30.320207595231185,3.0320207595231186E-2]
["Passerines",null,"blackbird","red winged","F","F","not specified","adult","adult",4.1500000000000002E-2,"Dunning, 1993",41.5,2.4380000000000002,0.60699999999999998,9.5974353364841267,23.398547350348302,2.3398547350348301E-2]
["All mammals",null,"sheep","domestic","BH","B","1 week","juvenile","juvenile",46.81,"Steinheim et al., 2002",46810,0.79400000000000004,0.77300000000000002,4075.4143431612706,3235.8789884700491,3.235878988470049]
["All mammals",null,"sheep","unspecified","BH","B","112 to 189 days","juvenile","juvenile",34,"USEPA, 2005",34000,0.79400000000000004,0.77300000000000002,3182.9748190663709,2527.2820063386985,2.5272820063386985]
["All mammals",null,"sheep","unspecified","BH","B","189 to 224 days","juvenile","juvenile",40.6,"USEPA, 2005",40600,0.79400000000000004,0.77300000000000002,3650.8217058893961,2898.7524344761805,2.8987524344761804]
["All mammals",null,"sheep","unspecified","BH","B","225 to 252 days","juvenile","juvenile",59.1,"USEPA, 2005",59100,0.79400000000000004,0.77300000000000002,4880.1944053895768,3874.8743578793242,3.8748743578793241]
["All mammals",null,"sheep","unspecified","BH","B","> 252 days","adult","adult",65.099999999999994,"USEPA, 2005",65099.999999999993,0.79400000000000004,0.77300000000000002,5258.9386467953855,4175.5972855555365,4.1755972855555363]
["All mammals",null,"sheep","unspecified","F","F","Gestation","Gestation","adult",70,"USEPA, 2005",70000,0.79400000000000004,0.77300000000000002,5562.3816662070594,4416.531042968405,4.4165310429684048]
["All mammals",null,"sheep","Chun forest","BH","B","Juvenile","Juvenile","Juvenile",24,"www.ansi.okstate.edu/br eeds/sheep/ based on data for related strain (Kerry Hill)",24000,0.79400000000000004,0.77300000000000002,2431.6624579984868,1930.7399916507986,1.9307399916507986]
["All mammals",null,"sheep","Chun forest","M","M","Adult","Adult","Adult",91.5,"www.ansi.okstate.edu/br eeds/sheep/ based on data for related strain (mean of Kerry Hill and Shropshire)",91500,0.79400000000000004,0.77300000000000002,6841.9280956734956,5432.4909079647559,5.4324909079647563]
["All mammals",null,"sheep","Chun forest","F","F","Adult","Adult","Adult",73,"www.ansi.okstate.edu/br eeds/sheep/ based on data for related strain (mean of Kerry Hill and Shropshire)",73000,0.79400000000000004,0.77300000000000002,5745.7744114215093,4562.1448826686783,4.5621448826686786]
["All mammals",null,"sheep","Dala","M","M","Adult","adult","adult",115,"Geertman, 2001",115000,0.79400000000000004,0.77300000000000002,8164.3089475110628,6482.4613043237841,6.4824613043237838]
["All mammals",null,"sheep","Dala","F","F","Adult","adult","adult",80,"Geertman, 2001",80000,0.79400000000000004,0.77300000000000002,6167.2074876702063,4896.7627452101442,4.8967627452101441]
["All mammals",null,"sheep","Old Norse","M","M","Adult","adult","adult",43,"www.ansi.okstate.edu/breeds/sheep/",43000,0.79400000000000004,0.77300000000000002,3816.5514041961346,3030.3418149317308,3.0303418149317309]
["All mammals",null,"sheep","Old Norse","F","F","Adult","adult","adult",32,"www.ansi.okstate.edu/br eeds/sheep/",32000,0.79400000000000004,0.77300000000000002,3037.25274501473,2411.5786795416957,2.4115786795416958]
["Rodentia",null,"shrew","short-tailed","M","M","Adult","adult","adult",1.7000000000000001E-2,"USEPA, 1993",17,0.58799999999999997,0.86399999999999999,11.563994277098905,6.7996286349341553,6.799628634934155E-3]
["Rodentia",null,"shrew","short-tailed","F","F","Adult","adult","adult",1.7000000000000001E-2,"USEPA, 1993",17,0.58799999999999997,0.86399999999999999,11.563994277098905,6.7996286349341553,6.799628634934155E-3]
["Passerines",null,"sparrow","white-throated","BH","B","Adult","adult","adult",2.5899999999999999E-2,"Dunning, 1993",25.9,2.4380000000000002,0.60699999999999998,7.2089656605999259,17.57545828054262,1.7575458280542619E-2]
["Passerines",null,"starling","starling","M","M","Adult","adult","adult",8.4699999999999998E-2,"Dunning, 1993",84.7,2.4380000000000002,0.60699999999999998,14.798756695883934,36.079368824565037,3.6079368824565035E-2]
["Passerines",null,"starling","starling","F","F","Adult","adult","adult",7.9899999999999999E-2,"Dunning, 1993",79.900000000000006,2.4380000000000002,0.60699999999999998,14.283870200461076,34.824075548724103,3.4824075548724104E-2]
["All birds ","A","turkey","domestic","BH","B","1 w","juvenile","juvenile",0.12,"NRC, 1994",120,2.0649999999999999,0.68899999999999995,27.074215320736542,55.908254637320958,5.5908254637320957E-2]
["All birds ","A","turkey","domestic","M","M","2 w","juvenile","juvenile",0.25,"NRC, 1994",250,2.0649999999999999,0.68899999999999995,44.893210630248788,{"$f":"M218*O218","v":92.704479951463739},9.2704479951463734E-2]
["All birds ","A","turkey","domestic","F","F","2 w","juvenile","juvenile",0.24,"NRC, 1994",240,2.0649999999999999,0.68899999999999995,43.64812029237919,90.133368403763029,9.0133368403763028E-2]
["All birds ","A","turkey","domestic","M","M","3 w","juvenile","juvenile",0.5,"NRC, 1994",500,2.0649999999999999,0.68899999999999995,72.375292679282239,149.45497938271782,0.14945497938271782]
["All birds ","A","turkey","domestic","F","F","3 w","juvenile","juvenile",0.46,"NRC, 1994",460,2.0649999999999999,0.68899999999999995,68.334519663842755,141.11078310583528,0.14111078310583527]
["All birds ","A","turkey","domestic","M","M","4 w","juvenile","juvenile",1,"NRC, 1994",1000,2.0649999999999999,0.68899999999999995,116.68096170609618,240.94618592308862,0.24094618592308861]
["All birds ","A","turkey","domestic","F","F","4 w","juvenile","juvenile",0.9,"NRC, 1994",900,2.0649999999999999,0.68899999999999995,108.51083089662343,224.07486580152738,0.22407486580152738]
["All birds ","A","turkey","domestic","M","M","5 w","juvenile","juvenile",1.6,"NRC, 1994",1600,2.0649999999999999,0.68899999999999995,161.30159730339241,333.08779843150535,0.33308779843150532]
["All birds ","A","turkey","domestic","F","F","5 w","juvenile","juvenile",1.4,"NRC, 1994",1400,2.0649999999999999,0.68899999999999995,147.12355710368854,303.81014541911685,0.30381014541911683]
["All birds ","A","turkey","domestic","M","M","6 w","juvenile","juvenile",2.2000000000000002,"NRC, 1994",2200,2.0649999999999999,0.68899999999999995,200.87654362022582,414.81006257576632,0.4148100625757663]
["All birds ","A","turkey","domestic","F","F","6 w","juvenile","juvenile",1.8,"NRC, 1994",1800,2.0649999999999999,0.68899999999999995,174.93743563360951,361.24580458340364,0.36124580458340366]
["All birds ","A","turkey","domestic","M","M","7 w","juvenile","juvenile",3.1,"NRC, 1994",3100,2.0649999999999999,0.68899999999999995,254.41821838133811,525.37362095746323,0.52537362095746321]
["All birds ","A","turkey","domestic","F","F","7 w","juvenile","juvenile",2.2999999999999998,"NRC, 1994",2300,2.0649999999999999,0.68899999999999995,207.12402592950735,427.71111354443269,0.4277111135444327]
["All birds ","A","turkey","domestic","M","M","8 w","juvenile","juvenile",4,"NRC, 1994",4000,2.0649999999999999,0.68899999999999995,303.26293516387864,626.23796111340937,0.62623796111340935]
["All birds ","A","turkey","domestic","F","F","8 w","juvenile","juvenile",3,"NRC, 1994",3000,2.0649999999999999,0.68899999999999995,248.73479638513075,513.637354535295,0.51363735453529502]
["All birds ","A","turkey","domestic","M","M","9 w","juvenile","juvenile",5,"NRC, 1994",5000,2.0649999999999999,0.68899999999999995,{"$f":"L232^N232","v":353.66357525859399},730.31528290899655,0.7303152829089965]
["All birds ","A","turkey","domestic","F","F","9 w","juvenile","juvenile",3.7,"NRC, 1994",3700,2.0649999999999999,0.68899999999999995,287.40279535587598,593.48677240988388,0.5934867724098839]
["All birds ","A","turkey","domestic","M","M","10 w","juvenile","juvenile",6,"NRC, 1994",6000,2.0649999999999999,0.68899999999999995,401.0016979219057,828.06850620873524,0.82806850620873529]
["All birds ","A","turkey","domestic","F","F","10 w","juvenile","juvenile",4.4000000000000004,"NRC, 1994",4400,2.0649999999999999,0.68899999999999995,323.84626612382488,668.74253954569838,0.6687425395456984]
["All birds ","A","turkey","domestic","M","M","11 w","juvenile","juvenile",7.1,"NRC, 1994",7100,2.0649999999999999,0.68899999999999995,450.31561042429138,929.9017355261617,0.92990173552616173]
["All birds ","A","turkey","domestic","F","F","11 w","juvenile","juvenile",5.2,"NRC, 1994",5200,2.0649999999999999,0.68899999999999995,363.35095313579353,750.31971822541357,0.75031971822541355]
["All birds ","A","turkey","domestic","M","M","12 w","juvenile","juvenile",8.1999999999999993,"NRC, 1994",8200,2.0649999999999999,0.68899999999999995,497.2991813405265,1026.9228094681871,1.026922809468187]
["All birds ","A","turkey","domestic","F","F","12 w","juvenile","juvenile",6,"NRC, 1994",6000,2.0649999999999999,0.68899999999999995,401.0016979219057,828.06850620873524,0.82806850620873529]
["All birds ","A","turkey","domestic","M","M","13 w","juvenile","juvenile",9.3000000000000007,"NRC, 1994",9300,2.0649999999999999,0.68899999999999995,542.35637777095565,1119.9659200970234,1.1199659200970233]
["All birds ","A","turkey","domestic","F","F","13 w","juvenile","juvenile",6.8,"NRC, 1994",6800,2.0649999999999999,0.68899999999999995,437.11794994250141,902.64856663126534,0.90264856663126536]
["All birds ","A","turkey","domestic","M","M","14 w","juvenile","juvenile",10.5,"NRC, 1994",10500,2.0649999999999999,0.68899999999999995,589.65695724376519,1217.6416167083751,1.217641616708375]
["All birds ","A","turkey","domestic","F","F","14 w","juvenile","juvenile",7.5,"NRC, 1994",7500,2.0649999999999999,0.68899999999999995,467.64598547194925,965.68895999957522,0.96568895999957527]
["All birds ","A","turkey","domestic","M","M","15 w","juvenile","juvenile",11.5,"NRC, 1994",11500,2.0649999999999999,0.68899999999999995,627.79927814355733,1296.4055093664458,1.2964055093664457]
["All birds ","A","turkey","domestic","F","F","15 w","juvenile","juvenile",8.3000000000000007,"NRC, 1994",8300,2.0649999999999999,0.68899999999999995,501.46982540992263,1035.5351894714902,1.0355351894714901]
["All birds ","A","turkey","domestic","M","M","16 w","juvenile","juvenile",12.6,"NRC, 1994",12600,2.0649999999999999,0.68899999999999995,668.58296298487426,1380.6238185637653,1.3806238185637654]
["All birds ","A","turkey","domestic","F","F","16 w","juvenile","juvenile",8.9,"NRC, 1994",8900,2.0649999999999999,0.68899999999999995,526.17440009033635,1086.5501361865445,1.0865501361865444]
["All birds ","A","turkey","domestic","M","M","17 w","juvenile","juvenile",13.5,"NRC, 1994",13500,2.0649999999999999,0.68899999999999995,701.13228659256743,1447.8381718136518,1.4478381718136517]
["All birds ","A","turkey","domestic","F","F","17 w","juvenile","juvenile",9.6,"NRC, 1994",9600,2.0649999999999999,0.68899999999999995,554.35105650827416,1144.7349316895861,1.1447349316895861]
["All birds ","A","turkey","domestic","M","M","18 w","juvenile","juvenile",14.4,"NRC, 1994",14400,2.0649999999999999,0.68899999999999995,733.01313523360523,1513.6721242573947,1.5136721242573947]
["All birds ","A","turkey","domestic","F","F","18 w","juvenile","juvenile",10.199999999999999,"NRC, 1994",10200,2.0649999999999999,0.68899999999999995,577.99691223183697,1193.5636237587432,1.1935636237587433]
["All birds ","A","turkey","domestic","M","M","19 w","juvenile","juvenile",15.2,"NRC, 1994",15200,2.0649999999999999,0.68899999999999995,760.83456071664079,1571.1233678798633,1.5711233678798633]
["All birds ","A","turkey","domestic","F","F","19 w","juvenile","juvenile",10.9,"NRC, 1994",10900,2.0649999999999999,0.68899999999999995,605.04385862701236,1249.4155680647805,1.2494155680647805]
["All birds ","A","turkey","domestic","M","M","20 w","juvenile","juvenile",16.100000000000001,"NRC, 1994",16100.000000000002,2.0649999999999999,0.68899999999999995,791.59497485340307,1634.6436230722773,1.6346436230722772]
["All birds ","A","turkey","domestic","F","F","20 w","juvenile","juvenile",11.5,"NRC, 1994",11500,2.0649999999999999,0.68899999999999995,627.79927814355733,1296.4055093664458,1.2964055093664457]
["All birds ","A","turkey","domestic","M","M","21 w","juvenile","juvenile",17,"NRC, 1994",17000,2.0649999999999999,0.68899999999999995,821.82492131832407,1697.0684625223391,1.6970684625223391]
["All birds ","A","turkey","domestic","M","M","22 w","juvenile","juvenile",17.899999999999999,"NRC, 1994",17900,2.0649999999999999,0.68899999999999995,851.56095107599333,1758.4733639719261,1.7584733639719261]
["All birds ","A","turkey","domestic","M","M","23 w","juvenile","juvenile",18.600000000000001,"NRC, 1994",18600,2.0649999999999999,0.68899999999999995,874.36832934376343,1805.5706000948715,1.8055706000948715]
["All birds ","A","turkey","domestic","M","M","24 w","juvenile","juvenile",19.399999999999999,"NRC, 1994",19400,2.0649999999999999,0.68899999999999995,900.10959644695356,1858.7263166629591,1.8587263166629591]
["All birds ","A","turkey","domestic","M","M","> 24 w","adult","adult",19.399999999999999,"NRC, 1994",19400,2.0649999999999999,0.68899999999999995,{"$f":"L260^N260","v":900.10959644695356},{"$f":"M260*O260","v":1858.7263166629591},{"$f":"P260/1000","v":1.8587263166629591}]
["All birds ","A","turkey","domestic","F","F","20 w","egg laying bird","juvenile",8.4,"NRC, 1994",{"$f":"J261*1000","v":8400},2.0649999999999999,0.68899999999999995,505.62487093219789,1044.1153584749886,1.0441153584749887]
["All birds ","A","turkey","domestic","M","M","25 w","breeding (juvenile)","juvenile",16.399999999999999,"NRC, 1994",16400,2.0649999999999999,0.68899999999999995,801.72866438821222,1655.5696919616582,1.6555696919616583]
["All birds ","A","turkey","domestic","F","F","25 w","egg laying bird","juvenile",9.8000000000000007,"NRC, 1994",9800,2.0649999999999999,0.68899999999999995,562.28275770129358,1161.1138946531712,1.1611138946531712]
["All birds ","A","turkey","domestic","M","M","30 w","breeding (juvenile)","juvenile",19.100000000000001,"NRC, 1994",19100,2.0649999999999999,0.68899999999999995,890.49603491528171,1838.8743121000566,1.8388743121000566]
["All birds ","A","turkey","domestic","F","F","30 w","egg laying bird","juvenile",11.1,"NRC, 1994",11100,2.0649999999999999,0.68899999999999995,612.67129391191997,1265.1662219281147,1.2651662219281148]
["All birds ","A","turkey","domestic","M","M","35 w","breeding (juvenile)","juvenile",20.7,"NRC, 1994",20700,2.0649999999999999,0.68899999999999995,941.24691985056688,1943.6748894914206,1.9436748894914206]
["All birds ","A","turkey","domestic","F","F","35 w","egg laying bird","juvenile",11.1,"NRC, 1994",11100,2.0649999999999999,0.68899999999999995,612.67129391191997,1265.1662219281147,1.2651662219281148]
["All birds ","A","turkey","domestic","M","M","40 w","breeding (juvenile)","juvenile",21.8,"NRC, 1994",21800,2.0649999999999999,0.68899999999999995,975.43093347898525,2014.2648776341046,2.0142648776341043]
["All birds ","A","turkey","domestic","F","F","40 w","egg laying bird","juvenile",10.8,"NRC, 1994",10800,2.0649999999999999,0.68899999999999995,601.21383723148085,1241.5065738830078,1.2415065738830078]
["All birds ","A","turkey","domestic","M","M","45 w","breeding (juvenile)","juvenile",22.5,"NRC, 1994",22500,2.0649999999999999,0.68899999999999995,996.90495583746792,2058.6087338043712,2.058608733804371]
["All birds ","A","turkey","domestic","F","F","45 w","egg laying bird","juvenile",10.5,"NRC, 1994",10500,2.0649999999999999,0.68899999999999995,589.65695724376519,1217.6416167083751,1.217641616708375]
["All birds ","A","turkey","domestic","M","M","50 w","breeding (juvenile)","juvenile",23.2,"NRC, 1994",23200,2.0649999999999999,0.68899999999999995,1018.1721686527752,2102.5255282679809,2.1025255282679809]
["All birds ","A","turkey","domestic","F","F","50 w","egg laying bird","juvenile",10.5,"NRC, 1994",10500,2.0649999999999999,0.68899999999999995,589.65695724376519,1217.6416167083751,1.217641616708375]
["All birds ","A","turkey","domestic","M","M","55 w","breeding (adult)","adult",23.9,"NRC, 1994",23900,2.0649999999999999,0.68899999999999995,1039.2407167266053,2146.0320800404402,2.14603208004044]
["All birds ","A","turkey","domestic","F","F","55 w","egg laying bird","adult",10.5,"NRC, 1994",10500,2.0649999999999999,0.68899999999999995,589.65695724376519,1217.6416167083751,1.217641616708375]
["All birds ","A","turkey","domestic","M","M","60 w","breeding (adult)","adult",24.5,"NRC, 1994",24500,2.0649999999999999,0.68899999999999995,1057.1471228012933,2183.0088085846705,2.1830088085846704]
["All birds ","A","turkey","domestic","F","F","60 w","egg laying bird","adult",10.6,"NRC, 1994",10600,2.0649999999999999,0.68899999999999995,593.52052354881539,1225.6198811283039,1.2256198811283039]
["Rodentia",null,"vole","prairie vole","BH","B","Adult","adult","adult",4.2000000000000003E-2,"USEPA, 1993",42,0.58799999999999997,0.86399999999999999,25.263143380079981,14.854728307487028,1.4854728307487028E-2]
["Rodentia",null,"vole","meadow vole","M","M","Adult","adult","adult",4.2999999999999997E-2,"USEPA, 1993",43,0.58799999999999997,0.86399999999999999,25.782008403343259,15.159820941165835,1.5159820941165835E-2]
["Rodentia",null,"vole","meadow vole","F","F","Adult","adult","adult",3.9E-2,"USEPA, 1993",39,0.58799999999999997,0.86399999999999999,23.696260769530461,13.933401332483911,1.393340133248391E-2]
[]
[]
["A  No FMI regression for galliformes"]
["B  Doves will consume insects, but primary food is seeds, selected \"all bird\""]

{"sheet":"Index","index":9,"n_rows":151,"n_cols":24,"rows_kept":151,"cut":false,"hidden":true,"merged":[]}
["Lookup","General Organism Type","Specific Organism Type","SRC_Sex","BW Range","IR Range",null,null,"For FIR-->","Nagy 2001 Group","Comments","General Organism Type","a","b","Code","For Figure","Bird or Mammal?",null,"Accumulation","Accumulation\n(ACC)",null,"yes","NOAEL","Mammalian"]
[{"$f":"B2&C2&D2","v":"catunspecifiedM"},"cat","unspecified","M","K2:L5","K2:S5",null,null,null,"Carnivora",null,"cat",0.34799999999999998,0.85899999999999999,"Cat",{"$f":"O2&\" - \"&PROPER(L2)","v":"Cat - Cat"},"mammal",null,"Behavior","Behavior\n(BEH)",null,"no","LOAEL","Avian"]
[{"$f":"B3&C3&D3","v":"catunspecifiedF"},"cat","unspecified","F","K6:L9","K6:S9",null,null,null,"Herbivores",null,"cattle",2.6059999999999999,0.628,"Ctl",{"$f":"O3&\" - \"&PROPER(L3)","v":"Ctl - Cattle"},"mammal",null,"Biochemical","Biochemical\n(BIO)"]
["catunspecifiedB","cat","unspecified","B","K10:L13","K10:S13",null,null,null,"All birds ","A","chicken",2.0649999999999999,0.68899999999999995,"Chi","Chi - Chicken","bird",null,"Growth","Growth\n(GRO)"]
["cattleBeefM","cattle","Beef","M","K14:L17","K14:S17",null,null,null,"Carnivora",null,"dog",0.34799999999999998,0.85899999999999999,"Dog","Dog - Dog","mammal",null,"Pathology","Pathology\n(PTH)"]
["cattleBeefF","cattle","Beef","F","K18:L21","K18:S21",null,null,null,"All birds ","B","dove",2.0649999999999999,0.68899999999999995,"Dov","Dov - Dove","bird",null,"Population","Population\n(POP)"]
["cattleBeefB","cattle","Beef","B","K22:L25","K22:S25",null,null,null,"Omnivorous birds",null,"duck",2.0939999999999999,0.627,"Duc","Duc - Duck","bird",null,"Physiology","Physiology\n(PHY)"]
["cattleFresianF","cattle","Fresian","F","K26:L27","K26:S27",null,null,null,"Carnivorous birds",null,"eagle",3.048,0.66500000000000004,"Eag","Eag - Eagle","bird",null,"Reproduction","Reproduction\n(REP)"]
["cattleHolsteinF","cattle","Holstein","F","K28:L29","K28:S29",null,null,null,"Passerines",null,"finch",2.4380000000000002,0.60699999999999998,"Fin","Fin - Finch","bird",null,"Survival","Survival\n(SUR)"]
["cattleJerseyF","cattle","Jersey","F","K30:L31","K30:S31",null,null,null,"Rodentia",null,"gerbil",0.58799999999999997,0.86399999999999999,"Ger","Ger - Gerbil","mammal",null,"Data Not Used"]
["cattleunspecifiedM","cattle","unspecified","M","K32:L41","K32:S41",null,null,null,"Rodentia",null,"guinea pig",0.58799999999999997,0.86399999999999999,"GP","GP - Guinea Pig","mammal"]
["cattleunspecifiedF","cattle","unspecified","F","K42:L51","K42:S51",null,null,null,"Rodentia",null,"hamster",0.58799999999999997,0.86399999999999999,"Ham","Ham - Hamster","mammal"]
["cattleunspecifiedB","cattle","unspecified","B","K52:L61","K52:S61",null,null,null,"All mammals",null,"horse",0.79400000000000004,0.77300000000000002,"Hor","Hor - Horse","mammal"]
["chickendomesticM","chicken","domestic","M","K62:L73","K62:S73",null,null,null,"Carnivorous birds",null,"kestrel",3.048,0.66500000000000004,"Kes","Kes - Kestrel","bird"]
["chickendomesticF","chicken","domestic","F","K74:L85","K74:S85",null,null,null,"Carnivora",null,"mink",0.34799999999999998,0.85899999999999999,"Min","Min - Mink","mammal"]
["chickendomesticB","chicken","domestic","B","K86:L97","K86:S97",null,null,null,"Rodentia",null,"mouse",0.58799999999999997,0.86399999999999999,"Mou","Mou - Mouse","mammal"]
["chickenunspecifiedM","chicken","unspecified","M","K98:L99","K98:S99",null,null,null,"All birds ","A","pheasant",2.0649999999999999,0.68899999999999995,"Phe","Phe - Pheasant","bird"]
["chickenunspecifiedF","chicken","unspecified","F","K100:L101","K100:S101",null,null,null,"Carnivorous birds",null,"owl",3.048,0.66500000000000004,"Owl","Owl - Owl","bird"]
["chickenunspecifiedB","chicken","unspecified","B","K102:L103","K102:S103",null,null,null,"All birds ","B","pigeon",2.0649999999999999,0.68899999999999995,"Pin","Pin - Pigeon","bird"]
["dogunspecifiedM","dog","unspecified","M","K104:L107","K104:S107",null,null,null,"All mammals",null,"pig",0.79400000000000004,0.77300000000000002,"Pig","Pig - Pig","mammal"]
["dogunspecifiedF","dog","unspecified","F","L108:L111","S108:S111",null,null,null,"All birds ","A","quail",2.0649999999999999,0.68899999999999995,"Qua","Qua - Quail","bird"]
["dogunspecifiedB","dog","unspecified","B","K112:L115","K112:S115",null,null,null,"All mammals",null,"rabbit",0.79400000000000004,0.77300000000000002,"Rab","Rab - Rabbit","mammal"]
["doveringed turtleB","dove","ringed turtle","B","K116:L126","K116:S126",null,null,null,"Rodentia",null,"rat",0.58799999999999997,0.86399999999999999,"Rat","Rat - Rat","mammal"]
["doveringed turtleM","dove","ringed turtle","M","K127:L137","K127:S137",null,null,null,"Passerines",null,"blackbird",2.4380000000000002,0.60699999999999998,"Blk","Blk - Blackbird","bird"]
["doveringed turtleF","dove","ringed turtle","F","K138:L148","K138:S148",null,null,null,"All mammals",null,"sheep",0.79400000000000004,0.77300000000000002,"She","She - Sheep","mammal"]
["duckmallardF","duck","mallard","F","K149:L154","K149:S154",null,null,null,"Rodentia",null,"shrew",0.58799999999999997,0.86399999999999999,"Shr","Shr - Shrew","mammal"]
["duckmallardM","duck","mallard","M","K155:L1560","K155:S160",null,null,null,"Passerines",null,"sparrow",2.4380000000000002,0.60699999999999998,"Spa","Spa - Sparrow","bird"]
["duckmallardB","duck","mallard","B","K161:L166","K161:S166",null,null,null,"Passerines",null,"starling",2.4380000000000002,0.60699999999999998,"Sta","Sta - Starling","bird"]
["duckwhite pekinF","duck","white pekin","F","K167:L184","K167:S184",null,null,null,"All birds ","A","turkey",2.0649999999999999,0.68899999999999995,"Tur","Tur - Turkey","bird"]
["duckwhite pekinM","duck","white pekin","M","K185:L202","K185:S202",null,null,null,"Rodentia",null,"vole",0.58799999999999997,0.86399999999999999,"Vol","Vol - Vole","mammal"]
["duckwhite pekinB","duck","white pekin","B","K203:L220","K203:S220"]
["eaglebald eagleB","eagle","bald eagle","B","K221:L222","K221:S222"]
["eaglebald eagleM","eagle","bald eagle","M","K223:L224","K223:S224"]
["eaglebald eagleF","eagle","bald eagle","F","K225:L226","K225:S226"]
["finchzebra finchB","finch","zebra finch","B","K227:L228","K227:S228"]
["finchzebra finchM","finch","zebra finch","M","K229:L230","K229:S230"]
["finchzebra finchF","finch","zebra finch","F","K231:L232","K231:S232"]
["gerbilunspecifiedM","gerbil","unspecified","M","K233:L236","K233:S236"]
["gerbilunspecifiedF","gerbil","unspecified","F","K237:L240","K237:S240"]
["gerbilunspecifiedB","gerbil","unspecified","B","K241:L244","K241:S244"]
["guinea pigunspecifiedM","guinea pig","unspecified","M","K245:L248","K245:S248"]
["guinea pigunspecifiedF","guinea pig","unspecified","F","K249:L252","K249:S252"]
["guinea pigunspecifiedB","guinea pig","unspecified","B","K253:L256","K253:S256"]
["hamstergolden SyrianM","hamster","golden Syrian","M","K257:L260","K257:S260"]
["hamstergolden SyrianF","hamster","golden Syrian","F","K261:L264","K261:S264"]
["hamstergolden SyrianB","hamster","golden Syrian","B","K265:L268","K265:S268"]
["hamsterChinese & DjungarainM","hamster","Chinese & Djungarain","M","K269:L272","K269:S272"]
["hamsterChinese & DjungarainF","hamster","Chinese & Djungarain","F","K273:L276","K273:S276"]
["hamsterChinese & DjungarainB","hamster","Chinese & Djungarain","B","K277:L280","K277:S280"]
["hamsterunspecifiedM","hamster","unspecified","M","K281:L284","K281:S284"]
["hamsterunspecifiedF","hamster","unspecified","F","K285:L288","K285:S288"]
["hamsterunspecifiedB","hamster","unspecified","B","K289:L292","K289:S292"]
["horseunspecifiedM","horse","unspecified","M","K293:L297","K293:S297"]
["horseunspecifiedB","horse","unspecified","B","K298:L302","K298:S302"]
["horseunspecifiedF","horse","unspecified","F","K303:L304","K303:S304"]
["kestrelAmericanF","kestrel","American","F","K305:L306","K305:S306"]
["kestrelAmericanM","kestrel","American","M","K307:L308","K307:S308"]
["kestrelAmericanB","kestrel","American","B","K309:L310","K309:S310"]
["minkunspecifiedM","mink","unspecified","M","K311:L314","K311:S314"]
["minkunspecifiedF","mink","unspecified","F","K315:L318","K315:S318"]
["minkunspecifiedB","mink","unspecified","B","K319:L322","K319:S322"]
["mouseBAF1M","mouse","BAF1","M","K323:L326","K323:S326"]
["mouseBAF1F","mouse","BAF1","F","K327:L330","K327:S330"]
["mouseBAF1B","mouse","BAF1","B","K331:L334","K331:S334"]
["mouseB6C3F1M","mouse","B6C3F1","M","K335:L338","K335:S338"]
["mouseB6C3F1F","mouse","B6C3F1","F","K339:L342","K339:S342"]
["mouseB6C3F1B","mouse","B6C3F1","B","K343:L346","K343:S346"]
["mousedeer mouseM","mouse","deer mouse","M","K347:L348","K347:S348"]
["mousedeer mouseF","mouse","deer mouse","F","K349:L350","K349:S350"]
["mousedeer mouseB","mouse","deer mouse","B","K351:L352","K351:S352"]
[{"$f":"B71&C71&D71","v":"mouseunspecifiedM"},"mouse","unspecified","M","K353:L356","K353:S356"]
["mouseunspecifiedF","mouse","unspecified","F","K357:L360","K357:S360"]
["mouseunspecifiedB","mouse","unspecified","B","K361:L364","K361:S364"]
["pheasantring-neckedF","pheasant","ring-necked","F","K365:L366","K365:S366"]
["pheasantring-neckedM","pheasant","ring-necked","M","K367:L368","K367:S368"]
["pheasantring-neckedB","pheasant","ring-necked","B","K369:L370","K369:S370"]
["owlbarn owlM","owl","barn owl","M","K371:L372","K371:S372"]
["owlbarn owlF","owl","barn owl","F","K373:L374","K373:S374"]
["owlbarn owlB","owl","barn owl","B","K375:L376","K375:S376"]
["pigeonpigeonF","pigeon","pigeon","F","K377:L378","K377:S378"]
["pigeonpigeonM","pigeon","pigeon","M","K379:L380","K379:S380"]
["pigeonpigeonB","pigeon","pigeon","B","K381:L382","K381:S382"]
["pigminiatureM","pig","miniature","M","K383:L384","K383:S384"]
["pigminiatureF","pig","miniature","F","K385:L386","K385:S386"]
["pigminiatureB","pig","miniature","B","K387:L388","K387:S388"]
["pigunspecifiedB","pig","unspecified","B","K389:L397","K389:S397"]
["pigunspecifiedF","pig","unspecified","F","K398:L406","K398:S406"]
["pigunspecifiedM","pig","unspecified","M","K407:L415","K407:S415"]
["quailJapaneseF","quail","Japanese","F","K416:L422","K416:S422"]
["quailJapaneseB","quail","Japanese","B","K423:L429","K423:S429"]
["quailJapaneseM","quail","Japanese","M","K430:L436","K430:S436"]
["quailbobwhiteF","quail","bobwhite","F","K437:L444","K437:S444"]
["quailbobwhiteB","quail","bobwhite","B","K445:L452","K445:S452"]
["quailbobwhiteM","quail","bobwhite","M","K453:L460","K453:S460"]
["rabbitunspecifiedM","rabbit","unspecified","M","K461:L464","K461:S464"]
["rabbitunspecifiedF","rabbit","unspecified","F","K465:L468","K465:S468"]
["rabbitunspecifiedB","rabbit","unspecified","B","K469:L472","K469:S472"]
["ratFischer 344M","rat","Fischer 344","M","K473:L476","K473:S476"]
["ratFischer 344F","rat","Fischer 344","F","K477:L480","K477:S480"]
["ratFischer 344B","rat","Fischer 344","B","K481:L484","K481:S484"]
["ratLong-EvansM","rat","Long-Evans","M","K485:L488","K485:S488"]
["ratLong-EvansF","rat","Long-Evans","F","K489:L492","K489:S492"]
["ratLong-EvansB","rat","Long-Evans","B","K493:L496","K493:S496"]
["ratOsborne-MendelM","rat","Osborne-Mendel","M","K497:L500","K497:S500"]
["ratOsborne-MendelF","rat","Osborne-Mendel","F","K501:L504","K501:S504"]
["ratOsborne-MendelB","rat","Osborne-Mendel","B","K505:L508","K505:S508"]
["ratSprague-DawleyM","rat","Sprague-Dawley","M","K509:L512","K509:S512"]
["ratSprague-DawleyF","rat","Sprague-Dawley","F","K513:L516","K513:S516"]
["ratSprague-DawleyB","rat","Sprague-Dawley","B","K517:L520","K517:S520"]
["ratWistarM","rat","Wistar","M","K521:L524","K521:S524"]
["ratWistarF","rat","Wistar","F","K525:L528","K525:S528"]
["ratWistarB","rat","Wistar","B","K529:L532","K529:S532"]
["ratunspecifiedM","rat","unspecified","M","K533:L536","K533:S536"]
["ratunspecifiedF","rat","unspecified","F","K537:L540","K537:S540"]
["ratunspecifiedB","rat","unspecified","B","K541:L544","K541:S544"]
["blackbirdRed wingedM","blackbird","Red winged","M","K545:L546","K545:S546"]
["blackbirdRed wingedF","blackbird","Red winged","F","K547:L548","K547:S548"]
["blackbirdRed wingedB","blackbird","Red winged","B","K549:L550","K549:S550"]
["sheepdomesticB","sheep","domestic","B","K551:L552","K551:S552"]
["sheepdomesticM","sheep","domestic","M","K553:L554","K553:S554"]
["sheepdomesticF","sheep","domestic","F","K555:L556","K555:S556"]
["sheepunspecifiedF","sheep","unspecified","F","K557:L561","K557:S561"]
["sheepunspecifiedM","sheep","unspecified","M","K562:L566","K562:S566"]
["sheepunspecifiedB","sheep","unspecified","B","K567:L571","K567:S571"]
["sheepClun forestM","sheep","Clun forest","M","K572:L574","K572:S574"]
["sheepClun forestF","sheep","Clun forest","F","K575:L577","K575:S577"]
["sheepClun forestB","sheep","Clun forest","B","K578:L580","K578:S580"]
["sheepDalaM","sheep","Dala","M","K581:L582","K581:S582"]
["sheepDalaF","sheep","Dala","F","K583:L584","K583:S584"]
["sheepDalaB","sheep","Dala","B","K585:L586","K585:S586"]
["sheepOld NorseM","sheep","Old Norse","M","K587:L588","K587:S588"]
["sheepOld NorseF","sheep","Old Norse","F","K589:L590","K589:S590"]
["sheepOld NorseB","sheep","Old Norse","B","K591:L592","K591:S592"]
["shrewshort-tailedM","shrew","short-tailed","M","K593:L594","K593:S594"]
["shrewshort-tailedF","shrew","short-tailed","F","K595:L596","K595:S596"]
["shrewshort-tailedB","shrew","short-tailed","B","K597:L598","K597:S598"]
[{"$f":"B137&C137&D137","v":"sparrowwhite-throatedB"},"sparrow","white-throated","B","K599:L600","K599:S600"]
["sparrowwhite-throatedM","sparrow","white-throated","M","K601:L602","K601:S602"]
["sparrowwhite-throatedF","sparrow","white-throated","F","K603:L604","K603:S604"]
["starlingstarlingM","starling","starling","M","K605:L606","K605:S606"]
["starlingstarlingF","starling","starling","F","K607:L608","K607:S608"]
["starlingstarlingB","starling","starling","B","K609:L610","K609:S610"]
["turkeydomesticF","turkey","domestic","F","K611:L647","K611:S647"]
["turkeydomesticB","turkey","domestic","B","K648:L683","K648:S683"]
["turkeydomesticM","turkey","domestic","M","K684:L719","K684:S719"]
["voleprairie voleB","vole","prairie vole","B","K720:L721","K720:S721"]
["voleprairie voleM","vole","prairie vole","M","K722:L723","K722:S723"]
["voleprairie voleF","vole","prairie vole","F","K724:L725","K724:S725"]
["volemeadow voleM","vole","meadow vole","M","K726:L727","K726:S727"]
["volemeadow voleF","vole","meadow vole","F","K728:L729","K728:S729"]
["volemeadow voleB","vole","meadow vole","B","K730:L731","K730:S731"]